Workbook

Sheet SourceTypeAgeDistribution
A1: sourceTypeID | B1: yearID | C1: ageID | D1: ageFraction

Sheet Inputs
A1: Welcome (READ FIRST)
A2: Welcome to the Age Distribution Projection Tool for MOVES3. This macro-based excel file projects a base year age distribution by source type to a future distribution using a similar algorithm to what was used to generate the national projected age distributions in MOVES3. It also generates charts on new worksheets allowing the user to visually inspect the differences between the base year and analysis year age distributions. USER MUST ENABLE MACROS FOR THIS TOOL TO WORK. Instructions: First, enter the future analysis year (Step 1). Then, enter the base year age distribution by source type in the space provided (Step 2). The base year age distributions should be formatted as they are accepted into MOVES; see step 2 below. After inputing the base year age distribution, click the green button labeled "Start" to run the tool. Lastly, if the user requires multiple analysis years, click the red button labeled "Reset" to clear the previous results and generated graphs. NOTE: This calculator will only work with base year age distributions from 2011 or later. The output page "SourceTypeAgeDistribution" contains the future year age distribution formatted for use in MOVES. This tool is a macro-enabled Excel template (.xltm). Therefore, MOVES cannot import it directly into an input database. To import the projected age distribution, users can either 1) copy the calculated SourceTypeAgeDistribution into a blank spreadsheet and import from there; or 2) re-save this file by selecting File > Save As, choosing either an .xls or .xlsx file, and then selecting "Yes" when prompted to confirm saving a macro-free version of this workbook. Version 4/5/2021
A4: Calculation Inputs: follow the numbered steps below and make your selection or input data into the black outlined boxes.
A5: 1) Please specify an analysis year: | E5: 2) Enter a base year age distribution by source type below (max 403 rows):
E6: sourceTypeID | F6: yearID | G6: ageID | H6: ageFraction
A7: 3) Once you have completed step 2, click "Start"

Sheet 11 (hidden)
D1: 2011 | E1: 2012 | F1: 2013 | G1: 2014 | H1: 2015 | I1: 2016 | J1: 2017 | K1: 2018 | L1: 2019 | M1: 2020 | N1: 2021 | O1: 2022 | P1: 2023 | Q1: 2024 | R1: 2025 | S1: 2026 | T1: 2027 | U1: 2028 | V1: 2029 | W1: 2030 | X1: 2031 | Y1: 2032 | Z1: 2033 | AA1: 2034 | AB1: 2035 | AC1: 2036 | AD1: 2037 | AE1: 2038 | AF1: 2039 | AG1: 2040 | AH1: 2041 | AI1: 2042 | AJ1: 2043 | AK1: 2044 | AL1: 2045 | AM1: 2046 | AN1: 2047 | AO1: 2048 | AP1: 2049 | AQ1: 2050 | AR1: 2051 | AS1: 2052 | AT1: 2053 | AU1: 2054 | AV1: 2055 | AW1: 2056 | AX1: 2057 | AY1: 2058 | AZ1: 2059 | BA1: 2060
C2: sales (age 0 pop) | D2: 0.03304326475 | E2: 0.04563633457 | F2: 0.04275721105 | G2: 0.04906317841 | H2: 0.04906317841 | I2: 0.04906317841 | J2: 0.04906317841 | K2: 0.04906317841 | L2: 0.04906317841 | M2: 0.03754614624 | N2: 0.04086324292 | O2: 0.04502940369 | P2: 0.04585458924 | Q2: 0.04688003535 | R2: 0.04834235891 | S2: 0.04873513866 | T2: 0.04862861457 | U2: 0.04995762929 | V2: 0.05111230461 | W2: 0.05270625536 | X2: 0.0538649033 | Y2: 0.05487173909 | Z2: 0.05586145234 | AA2: 0.05674596956 | AB2: 0.05701626359 | AC2: 0.05700482886 | AD2: 0.05711072424 | AE2: 0.05732051227 | AF2: 0.05705317839 | AG2: 0.05700108046 | AH2: 0.05716291929 | AI2: 0.05729256466 | AJ2: 0.05692593083 | AK2: 0.05671392645 | AL2: 0.05676517678 | AM2: 0.05680781983 | AN2: 0.05665809614 | AO2: 0.05646603318 | AP2: 0.05590037731 | AQ2: 0.05534968539 | AR2: 0.05534968539 | AS2: 0.05534968539 | AT2: 0.05534968539 | AU2: 0.05534968539 | AV2: 0.05534968539 | AW2: 0.05534968539 | AX2: 0.05534968539 | AY2: 0.05534968539 | AZ2: 0.05534968539 | BA2: 0.05534968539
C3: scrappage k factor | D3: 0 | E3: 0.8063344241 | F3: 0.9620956407 | G3: 0.5121688763 | H3: 0.7320621915 | I3: 0.8184847601 | J3: 0.986706122 | K3: 1.029038481 | L3: 1.168447078 | M3: 0.9721122861 | N3: 0.9799494994 | O3: 0.993762455 | P3: 1.001625651 | Q3: 1.007509757 | R3: 1.021079008 | S3: 1.045462069 | T3: 1.077668249 | U3: 1.109086606 | V3: 1.134745579 | W3: 1.150225831 | X3: 1.160810118 | Y3: 1.162646632 | Z3: 1.158441026 | AA3: 1.138631249 | AB3: 1.116334186 | AC3: 1.089807774 | AD3: 1.06897309 | AE3: 1.052737731 | AF3: 1.039353876 | AG3: 1.025035122 | AH3: 1.014952385 | AI3: 1.010602232 | AJ3: 1.006067544 | AK3: 1.008530856 | AL3: 1.012037093 | AM3: 1.015160339 | AN3: 1.017769129 | AO3: 1.020366089 | AP3: 1.022688945 | AQ3: 1.021539986 | AR3: 1.021165003 | AS3: 1.021210984 | AT3: 1.021217192 | AU3: 1.021228627 | AV3: 1.021241206 | AW3: 1.021247111 | AX3: 1.021245253 | AY3: 1.021259248 | AZ3: 1.02127024
A5: default
A6: scrappage | C6: age | D6: 2011 | E6: 2012 | F6: 2013 | G6: 2014 | H6: 2015 | I6: 2016 | J6: 2017 | K6: 2018 | L6: 2019 | M6: 2020 | N6: 2021 | O6: 2022 | P6: 2023 | Q6: 2024 | R6: 2025 | S6: 2026 | T6: 2027 | U6: 2028 | V6: 2029 | W6: 2030 | X6: 2031 | Y6: 2032 | Z6: 2033 | AA6: 2034 | AB6: 2035 | AC6: 2036 | AD6: 2037 | AE6: 2038 | AF6: 2039 | AG6: 2040 | AH6: 2041 | AI6: 2042 | AJ6: 2043 | AK6: 2044 | AL6: 2045 | AM6: 2046 | AN6: 2047 | AO6: 2048 | AP6: 2049 | AQ6: 2050 | AR6: 2051 | AS6: 2052 | AT6: 2053 | AU6: 2054 | AV6: 2055 | AW6: 2056 | AX6: 2057 | AY6: 2058 | AZ6: 2059 | BA6: 2060
A7: 0 | C7: 0 | D7: 0.04906317841 | E7: =E41 -> 0.04563633457 | F7: =F41 -> 0.04275721105 | G7: 0.04906317841 | H7: 0.04906317841 | I7: 0.04906317841 | J7: 0.04906317841 | K7: 0.04906317841 | L7: 0.04906317841 | M7: 0.03754614624 | N7: 0.04086324292 | O7: 0.04502940369 | P7: 0.04585458924 | Q7: 0.04688003535 | R7: 0.04834235891 | S7: 0.04873513866 | T7: 0.04862861457 | U7: 0.04995762929 | V7: 0.05111230461 | W7: 0.05270625536 | X7: 0.0538649033 | Y7: 0.05487173909 | Z7: 0.05586145234 | AA7: 0.05674596956 | AB7: 0.05701626359 | AC7: 0.05700482886 | AD7: 0.05711072424 | AE7: 0.05732051227 | AF7: 0.05705317839 | AG7: 0.05700108046 | AH7: 0.05716291929 | AI7: 0.05729256466 | AJ7: 0.05692593083 | AK7: 0.05671392645 | AL7: 0.05676517678 | AM7: 0.05680781983 | AN7: 0.05665809614 | AO7: 0.05646603318 | AP7: 0.05590037731 | AQ7: 0.05534968539 | AR7: =AR41 -> 0.05534968539 | AS7: 0.05534968539 | AT7: 0.05534968539 | AU7: 0.05534968539 | AV7: 0.05534968539 | AW7: 0.05534968539 | AX7: 0.05534968539 | AY7: 0.05534968539 | AZ7: 0.05534968539 | BA7: 0.05534968539
A8: 0.02100002766 | C8: 1 | D8: 0.04290937526 | E8: =E42*(1-E$41-E$71)/SUM(E$42:E$70) -> 0.04710003952 | F8: =F42*(1-F$41-F$71)/SUM(F$42:F$70) -> 0.04602950926 | G8: 0.04309197339 | H8: 0.04809700633 | I8: 0.04868611466 | J8: 0.04889421728 | K8: 0.04935283653 | L8: 0.0495026698 | M8: 0.05061862567 | N8: 0.03820066641 | O8: 0.04145559972 | P8: 0.04571098375 | Q8: 0.0465276141 | R8: 0.04757651558 | S8: 0.04922263753 | T8: 0.04987793308 | U8: 0.04996699917 | V8: 0.05152445841 | W8: 0.05294466782 | X8: 0.05440095716 | Y8: 0.05582322356 | Z8: 0.05692442413 | AA8: 0.05785974752 | AB8: 0.05826309665 | AC8: 0.05812791492 | AD8: 0.05737335794 | AE8: 0.05750606612 | AF8: 0.05790006188 | AG8: 0.057497605 | AH8: 0.05747310272 | AI8: 0.05756960988 | AJ8: 0.05764221698 | AK8: 0.05735966227 | AL8: 0.05716338248 | AM8: 0.0572326997 | AN8: 0.05730504336 | AO8: 0.05718341716 | AP8: 0.05703690253 | AQ8: 0.05630151845 | AR8: =AR42*(1-AR$41-AR$71)/SUM(AR$42:AR$70) -> 0.05579305022 | AS8: 0.05585452866 | AT8: 0.05586264248 | AU8: 0.05587473914 | AV8: 0.05589459518 | AW8: 0.05589669279 | AX8: 0.05588867737 | AY8: 0.05590104962 | AZ8: 0.05590864432 | BA8: 0.05591980503
A9: 0.06000000238 | C9: 2 | D9: 0.04574292163 | E9: =E43*(1-E$41-E$71)/SUM(E$42:E$70) -> 0.04119246523 | F9: 0.04670140632 | G9: 0.04545262866 | H9: 0.04178903739 | I9: 0.04699363948 | J9: 0.04768450707 | K9: 0.04816376657 | L9: 0.04871886244 | M9: 0.04981887383 | N9: 0.0504496689 | O9: 0.03795690024 | P9: 0.04120485194 | Q9: 0.04540629624 | R9: 0.04621981455 | S9: 0.0474041039 | T9: 0.0492708528 | U9: 0.05009084427 | V9: 0.05033384868 | W9: 0.0520997687 | X9: 0.05332704866 | Y9: 0.05500441858 | Z9: 0.05649755774 | AA9: 0.05752638896 | AB9: 0.05798616237 | AC9: 0.05800656259 | AD9: 0.05716478921 | AE9: 0.05647365845 | AF9: 0.05680332133 | AG9: 0.05707748781 | AH9: 0.05672580981 | AI9: 0.05664830155 | AJ9: 0.05669171544 | AK9: 0.05685429418 | AL9: 0.05658977786 | AM9: 0.05640929684 | AN9: 0.05650285349 | AO9: 0.05660021574 | AP9: 0.05652384136 | AQ9: 0.05621245629 | AR9: 0.05553503203 | AS9: 0.0550945709 | AT9: 0.05516323749 | AU9: 0.05518319047 | AV9: 0.05521474099 | AW9: 0.05523642041 | AX9: 0.05523056529 | AY9: 0.0552348724 | AZ9: 0.05525458917 | BA9: 0.05527311465
A10: 0.06000000238 | C10: 3 | D10: 0.03153857965 | E10: 0.04391263442 | F10: 0.03953729047 | G10: 0.04435006897 | H10: 0.04318829731 | I10: 0.03964645339 | J10: 0.0445319381 | K10: 0.04512632343 | L10: 0.04559482129 | M10: 0.04673958679 | N10: 0.04773091021 | O10: 0.04817170396 | P10: 0.03623396322 | Q10: 0.03929697485 | R10: 0.04329526527 | S10: 0.04417823599 | T10: 0.04547240804 | U10: 0.04735337229 | V10: 0.04822400325 | W10: 0.04858848167 | X10: 0.050063768 | Y10: 0.05141662745 | Z10: 0.05308148564 | AA10: 0.05445118636 | AB10: 0.05502922774 | AC10: 0.05515708256 | AD10: 0.05456408642 | AE10: 0.05386866733 | AF10: 0.05344146259 | AG10: 0.05367588275 | AH10: 0.0540106876 | AI10: 0.05365037373 | AJ10: 0.0535381247 | AK10: 0.05367544643 | AL10: 0.05383723914 | AM10: 0.05359129747 | AN10: 0.05343708998 | AO10: 0.05354433196 | AP10: 0.05367223228 | AQ10: 0.05343618879 | AR10: 0.0531897372 | AS10: 0.05260790456 | AT10: 0.05219808733 | AU10: 0.05227444038 | AV10: 0.05231189357 | AW10: 0.05234372464 | AX10: 0.05235674815 | AY10: 0.05236279364 | AZ10: 0.05237394481 | BA10: 0.05240306236
A11: 0.06000000238 | C11: 4 | D11: 0.0243485829 | E11: 0.03027664322 | F11: 0.0421481592 | G11: 0.03754665432 | H11: 0.04214066427 | I11: 0.04097397125 | J11: 0.03756962491 | K11: 0.04214288382 | L11: 0.04271938842 | M11: 0.04374246442 | N11: 0.04478067946 | O11: 0.04557570597 | P11: 0.04598509726 | Q11: 0.03455624943 | R11: 0.03746997864 | S11: 0.04138286717 | T11: 0.04237799279 | U11: 0.04370275212 | V11: 0.04558855441 | W11: 0.04655179684 | X11: 0.04668969815 | Y11: 0.04827025257 | Z11: 0.04961912228 | AA11: 0.0511588462 | AB11: 0.05208751651 | AC11: 0.05234441345 | AD11: 0.05188371255 | AE11: 0.05141792107 | AF11: 0.05097633921 | AG11: 0.05049911893 | AH11: 0.05079185237 | AI11: 0.05108245408 | AJ11: 0.05070479291 | AK11: 0.05068964173 | AL11: 0.05082708153 | AM11: 0.05098460547 | AN11: 0.05076757105 | AO11: 0.05063909357 | AP11: 0.0507744323 | AQ11: 0.05074035076 | AR11: 0.05056275826 | AS11: 0.05038622499 | AT11: 0.04984215235 | AU11: 0.04946456967 | AV11: 0.04955449183 | AW11: 0.04959181739 | AX11: 0.04961485896 | AY11: 0.04963819553 | AZ11: 0.04965062731 | BA11: 0.04967107958
A12: 0.06000000238 | C12: 5 | D12: 0.05364169034 | E12: 0.02337433599 | F12: 0.02906008249 | G12: 0.04002607019 | H12: 0.03567617798 | I12: 0.03998005186 | J12: 0.03882760245 | K12: 0.03555408557 | L12: 0.03989507867 | M12: 0.04098385025 | N12: 0.04190916977 | O12: 0.04275868764 | P12: 0.04350693664 | Q12: 0.04385588409 | R12: 0.03294965918 | S12: 0.03581488968 | T12: 0.03969653399 | U12: 0.04072876265 | V12: 0.04207398959 | W12: 0.04400773432 | X12: 0.04473260468 | Y12: 0.04501705749 | Z12: 0.04658274344 | AA12: 0.04782189147 | AB12: 0.04893809344 | AC12: 0.04954622501 | AD12: 0.04923796501 | AE12: 0.04889209756 | AF12: 0.04865717894 | AG12: 0.04816971864 | AH12: 0.04778577757 | AI12: 0.04803813063 | AJ12: 0.04827786044 | AK12: 0.04800705667 | AL12: 0.04799972286 | AM12: 0.04813394484 | AN12: 0.0482982257 | AO12: 0.04810935216 | AP12: 0.04801948468 | AQ12: 0.04800084503 | AR12: 0.04801188385 | AS12: 0.04789770824 | AT12: 0.047737273 | AU12: 0.04723201067 | AV12: 0.04689082458 | AW12: 0.04697779305 | AX12: 0.04700641848 | AY12: 0.04703867519 | AZ12: 0.04706715161 | BA12: 0.04708830448
A13: 0.06000000238 | C13: 6 | D13: 0.06616034816 | E13: 0.05149535389 | F13: 0.02243512027 | G13: 0.02759695615 | H13: 0.03803207583 | I13: 0.03384700907 | J13: 0.03788574825 | K13: 0.036744575 | L13: 0.03365771186 | M13: 0.03827428225 | N13: 0.03926617215 | O13: 0.04001683585 | P13: 0.04081778821 | Q13: 0.04149246786 | R13: 0.04181693493 | S13: 0.03149423755 | T13: 0.03435544907 | U13: 0.03815165855 | V13: 0.03921083805 | W13: 0.04061503989 | X13: 0.04228796128 | Y13: 0.04313007615 | Z13: 0.04344327878 | AA13: 0.04489549187 | AB13: 0.04574599247 | AC13: 0.04655045876 | AD13: 0.04660583876 | AE13: 0.04639890383 | AF13: 0.0462669725 | AG13: 0.04597824512 | AH13: 0.04558153704 | AI13: 0.04519503263 | AJ13: 0.0454006803 | AK13: 0.04570924856 | AL13: 0.04545949304 | AM13: 0.04545639731 | AN13: 0.04559776643 | AO13: 0.04576930314 | AP13: 0.04562060922 | AQ13: 0.04539638827 | AR13: 0.04541968989 | AS13: 0.04548128472 | AT13: 0.0453795849 | AU13: 0.04523735998 | AV13: 0.04477443029 | AW13: 0.04445262924 | AX13: 0.04452867258 | AY13: 0.04456567442 | AZ13: 0.04460227518 | BA13: 0.04463815436
A14: 0.06000000238 | C14: 7 | D14: 0.08151139625 | E14: 0.06351310931 | F14: 0.04942619368 | G14: 0.02130554965 | H14: 0.02622214782 | I14: 0.03608211665 | J14: 0.03207397702 | K14: 0.03585324949 | L14: 0.03478470331 | M14: 0.03229031767 | N14: 0.03667016512 | O14: 0.03749317808 | P14: 0.03820039438 | Q14: 0.03892783304 | R14: 0.03956339873 | S14: 0.03996983627 | T14: 0.03021086157 | U14: 0.03301843336 | V14: 0.03672978032 | W14: 0.03785117045 | X14: 0.03902784955 | Y14: 0.04077301117 | Z14: 0.04162226557 | AA14: 0.04186974028 | AB14: 0.04294662487 | AC14: 0.04351409682 | AD14: 0.04378786022 | AE14: 0.04391854599 | AF14: 0.04390764386 | AG14: 0.04371963703 | AH14: 0.04350781242 | AI14: 0.04311029681 | AJ14: 0.04271367766 | AK14: 0.04298514809 | AL14: 0.04328362143 | AM14: 0.04305076476 | AN14: 0.04306129892 | AO14: 0.04321024145 | AP14: 0.04340161318 | AQ14: 0.04312855299 | AR14: 0.04295528289 | AS14: 0.04302571952 | AT14: 0.04309019987 | AU14: 0.04300313965 | AV14: 0.04288356545 | AW14: 0.0424462817 | AX14: 0.0421351546 | AY14: 0.04221658209 | AZ14: 0.04225736516 | BA14: 0.04230048296
A15: 0.06000000238 | C15: 8 | D15: 0.07913042806 | E15: 0.07824992406 | F15: 0.06096105774 | G15: 0.04693766787 | H15: 0.02024416277 | I15: 0.02487770062 | J15: =J49*(1-J$41-J$71)/SUM(J$42:J$70) -> 0.03419200136 | K15: 0.0303532688 | L15: 0.03394091907 | M15: 0.03337152342 | N15: 0.03093699505 | O15: 0.03501438912 | P15: 0.03579129031 | Q15: 0.03643163041 | R15: 0.03711799899 | S15: 0.03781584116 | T15: 0.03834108346 | U15: 0.02903514134 | V15: 0.03178786585 | W15: 0.03545614541 | X15: 0.03637198904 | Y15: 0.0376296917 | Z15: 0.03934760266 | AA15: 0.04011468513 | AB15: 0.04005221804 | AC15: 0.04085130722 | AD15: 0.04093169519 | AE15: 0.04126305209 | AF15: 0.04156046193 | AG15: 0.04149020671 | AH15: 0.04137056041 | AI15: 0.04114900086 | AJ15: 0.04074340065 | AK15: 0.04044110678 | AL15: 0.04070407927 | AM15: 0.04099018443 | AN15: 0.04078241919 | AO15: 0.04080658483 | AP15: 0.04097493421 | AQ15: 0.04103077108 | AR15: =AR49*(1-AR$41-AR$71)/SUM(AR$42:AR$70) -> 0.04080939618 | AS15: 0.0406912059 | AT15: 0.04076373094 | AU15: 0.0408336455 | AV15: 0.04076559628 | AW15: 0.04065373669 | AX15: 0.04023340514 | AY15: 0.03994734427 | AZ15: 0.04002994566 | BA15: 0.04007658684
A16: 0.06000000238 | C16: 9 | D16: 0.07130033223 | E16: 0.07596422428 | F16: 0.07510572527 | G16: 0.0578917709 | H16: 0.04459935574 | I16: 0.01920621545 | J16: 0.02357451426 | K16: 0.03235766514 | L16: 0.02873429478 | M16: 0.03256201916 | N16: 0.03197288629 | O16: 0.02954009014 | P16: 0.03342501836 | Q16: 0.03413407327 | R16: 0.03473784989 | S16: 0.03547845734 | T16: 0.03627486268 | U16: 0.03684895827 | V16: 0.02795302756 | W16: 0.03068559583 | X16: 0.0340705589 | Y16: 0.03506897638 | Z16: 0.03631417241 | AA16: 0.03792241171 | AB16: 0.03837334802 | AC16: 0.03809811525 | AD16: 0.03842693236 | AE16: 0.03857157355 | AF16: 0.03904754739 | AG16: 0.03927225432 | AH16: 0.03926091842 | AI16: 0.03912762171 | AJ16: 0.03888978626 | AK16: 0.03857565788 | AL16: 0.03829504118 | AM16: 0.03854732255 | AN16: 0.03883041088 | AO16: 0.03864702854 | AP16: 0.03869562105 | AQ16: 0.03873665107 | AR16: 0.03882441856 | AS16: 0.03865842409 | AT16: 0.03855194957 | AU16: 0.03862900946 | AV16: 0.03870898545 | AW16: 0.03864589616 | AX16: 0.03853431191 | AY16: 0.03814434055 | AZ16: 0.03787824454 | BA16: 0.03796411791
A17: 0.06000000238 | C17: 10 | D17: 0.05802673515 | E17: 0.06844742992 | F17: 0.07291186833 | G17: 0.07132427818 | H17: 0.05500775395 | I17: 0.04231268269 | J17: 0.01820012255 | K17: 0.02230978614 | L17: 0.0306317812 | M17: 0.02756692167 | N17: 0.03119730924 | O17: 0.03052920755 | P17: 0.02819920839 | Q17: 0.03187736502 | R17: 0.03254711085 | S17: 0.03320344197 | T17: 0.0340327262 | U17: 0.03486314889 | V17: 0.03547563052 | W17: 0.02698373367 | X17: 0.02948643706 | Y17: 0.0328499941 | Z17: 0.0338429787 | AA17: 0.03499885391 | AB17: 0.03627623893 | AC17: 0.03650115541 | AD17: 0.03583713221 | AE17: 0.03621123535 | AF17: 0.03650058029 | AG17: 0.03689769412 | AH17: 0.03716213766 | AI17: 0.03713235568 | AJ17: 0.03697938743 | AK17: 0.03682066459 | AL17: 0.03652858501 | AM17: 0.03626593037 | AN17: 0.03651626344 | AO17: 0.03679722849 | AP17: 0.03664778068 | AQ17: 0.03658184691 | AR17: 0.03665366053 | AS17: 0.0367780702 | AT17: 0.03662603707 | AU17: 0.03653305501 | AV17: 0.03661906124 | AW17: 0.0366962235 | AX17: 0.03663114729 | AY17: 0.03653347041 | AZ17: 0.03616862862 | BA17: 0.03592345976
A18: 0.06000000238 | C18: 11 | D18: 0.06233031281 | E18: 0.05570494223 | F18: 0.06569710998 | G18: 0.06924087825 | H18: 0.06777108877 | I18: 0.05218742736 | J18: 0.04009618721 | K18: 0.01722372039 | L18: 0.02111983312 | M18: 0.0293873199 | N18: 0.02641156176 | O18: 0.0297886503 | P18: 0.02914342785 | Q18: 0.02689352177 | R18: 0.03039532155 | S18: 0.03110947021 | T18: 0.03185041668 | U18: 0.03270826994 | V18: 0.03356383048 | W18: 0.03424548427 | X18: 0.02592923953 | Y18: 0.02843009668 | Z18: 0.03170157117 | AA18: 0.03261716814 | AB18: 0.03347958975 | AC18: 0.03450636193 | AD18: 0.03433494607 | AE18: 0.03377076308 | AF18: 0.03426697388 | AG18: 0.0344909562 | AH18: 0.03491516369 | AI18: 0.03514736203 | AJ18: 0.03509366803 | AK18: 0.03501190807 | AL18: 0.03486672297 | AM18: 0.0345930721 | AN18: 0.03435507785 | AO18: 0.03460425113 | AP18: 0.03489367256 | AQ18: 0.03464587119 | AR18: 0.03461472692 | AS18: 0.03472172798 | AT18: 0.03484453892 | AU18: 0.034707999 | AV18: 0.03463216369 | AW18: 0.03471496966 | AX18: 0.03478311804 | AY18: 0.03472912502 | AZ18: 0.03464119459 | BA18: 0.03430207208
A19: 0.06000000238 | C19: 12 | D19: 0.05013451773 | E19: 0.05983632312 | F19: 0.05346663448 | G19: 0.06238937087 | H19: 0.06579147838 | I19: 0.06429636767 | J19: 0.04945365608 | K19: 0.03794510258 | L19: 0.01630504649 | M19: 0.02026180874 | N19: 0.0281556651 | O19: 0.02521899473 | P19: 0.02843648592 | Q19: 0.02779402176 | R19: 0.0256431873 | S19: 0.02905272775 | T19: 0.02984177332 | U19: 0.03061088966 | V19: 0.03148926194 | W19: 0.03239997745 | X19: 0.03290720904 | Y19: 0.0250003344 | Z19: 0.02743619163 | AA19: 0.03055332352 | AB19: 0.03120129051 | AC19: 0.03184615813 | AD19: 0.03245853624 | AE19: 0.032355193 | AF19: 0.03195753598 | AG19: 0.03238032617 | AH19: 0.03263774093 | AI19: 0.03302220959 | AJ19: 0.03321765701 | AK19: 0.03322651791 | AL19: 0.03315395072 | AM19: 0.0330192659 | AN19: 0.03277036251 | AO19: 0.03255622644 | AP19: 0.03281414002 | AQ19: 0.0329875824 | AR19: 0.03278285464 | AS19: 0.03279026199 | AT19: 0.03289630465 | AU19: 0.03301979462 | AV19: 0.03290206916 | AW19: 0.03283138537 | AX19: 0.03290515406 | AY19: 0.03297705216 | AZ19: 0.03293030649 | BA19: 0.03285346444
A20: 0.06000000238 | C20: 13 | D20: 0.04164127771 | E20: 0.04812851191 | F20: 0.05743201031 | G20: 0.05077467926 | H20: 0.05928129522 | I20: 0.06241825475 | J20: 0.06092828512 | K20: 0.04680056094 | L20: 0.03592119749 | M20: 0.01564262993 | N20: 0.01941261412 | O20: 0.02688434619 | P20: 0.02407425584 | Q20: 0.02711981283 | R20: 0.02650182121 | S20: 0.02451050034 | T20: 0.02786884219 | U20: 0.02868041695 | V20: 0.02947004915 | W20: 0.03039734625 | X20: 0.03113382256 | Y20: 0.03172832081 | Z20: 0.0241263325 | AA20: 0.02644243828 | AB20: 0.02922703525 | AC20: 0.02967901454 | AD20: 0.02995620575 | AE20: 0.03058697696 | AF20: 0.03061797099 | AG20: 0.03019803972 | AH20: 0.03064051604 | AI20: 0.03086825917 | AJ20: 0.03120918238 | AK20: 0.03145031961 | AL20: 0.03146330487 | AM20: 0.03139724704 | AN20: 0.03127948019 | AO20: 0.0310544877 | AP20: 0.03087206162 | AQ20: 0.03102164571 | AR20: 0.03121373721 | AS20: 0.03105494362 | AT20: 0.03106638152 | AU20: 0.03117358579 | AV20: 0.03130170559 | AW20: 0.03119125106 | AX20: 0.03111976777 | AY20: 0.0311965989 | AZ20: 0.03126898343 | BA20: 0.03123087023
A21: 0.06000000238 | C21: 14 | D21: 0.03306140658 | E21: 0.03997510739 | F21: 0.04619463644 | G21: 0.05454040508 | H21: 0.04824521724 | I21: 0.05624185803 | J21: 0.05914855473 | K21: 0.05765959783 | L21: 0.04430432593 | M21: 0.03446184585 | N21: 0.01498703015 | O21: 0.0185360721 | P21: 0.02566401379 | Q21: 0.02295956378 | R21: 0.02585895763 | S21: 0.02533120747 | T21: 0.0235117085 | U21: 0.02678426665 | V21: 0.02761152343 | W21: 0.0284481513 | X21: 0.02920945196 | Y21: 0.03001846522 | Z21: 0.03061911113 | AA21: 0.02325246399 | AB21: 0.0252945993 | AC21: 0.02780108099 | AD21: 0.02791767417 | AE21: 0.02822893086 | AF21: 0.02894469439 | AG21: 0.02893222759 | AH21: 0.02857548487 | AI21: 0.02897931546 | AJ21: 0.02917349088 | AK21: =AK55*(1-AK$41-AK$71)/SUM(AK$42:AK$70) -> 0.02954870539 | AL21: 0.02978136309 | AM21: 0.02979618218 | AN21: 0.02974292553 | AO21: 0.02964166883 | AP21: 0.02944800926 | AQ21: 0.02918565464 | AR21: 0.02935351507 | AS21: 0.02956853086 | AT21: 0.02942229393 | AU21: 0.02943949236 | AV21: 0.02955155887 | AW21: 0.02967410204 | AX21: 0.02956513952 | AY21: 0.02950391634 | AZ21: 0.02958074995 | BA21: 0.02965528317
A22: 0.06000000238 | C22: 15 | D22: 0.02484216442 | E22: 0.03173853808 | F22: 0.03836884788 | G22: 0.0438688141 | H22: 0.05182334443 | I22: 0.04577161563 | J22: 0.05329570061 | K22: 0.05597534661 | L22: 0.0545841666 | M22: 0.04250439733 | N22: 0.03301751211 | O22: 0.0143103175 | P22: 0.01769468399 | Q22: 0.02447571237 | R22: 0.02189212701 | S22: 0.02471673986 | T22: 0.02429897219 | U22: 0.02259670013 | V22: 0.02578604096 | W22: 0.02665407147 | X22: 0.02733642936 | Y22: 0.02816303446 | Z22: 0.02896903143 | AA22: 0.02951007076 | AB22: 0.02224309851 | AC22: 0.02406050418 | AD22: 0.02615118907 | AE22: 0.02630794101 | AF22: 0.02671325701 | AG22: 0.02735107712 | AH22: 0.02737768542 | AI22: 0.02702624164 | AJ22: 0.02738825635 | AK22: 0.02762132235 | AL22: 0.02798066076 | AM22: 0.02820336019 | AN22: 0.0282262208 | AO22: 0.02818556904 | AP22: 0.02810827686 | AQ22: 0.02783939209 | AR22: 0.02761625097 | AS22: 0.02780635687 | AT22: 0.02801402626 | AU22: 0.02788150261 | AV22: 0.02790769395 | AW22: 0.02801495819 | AX22: 0.02812708491 | AY22: 0.02803001004 | AZ22: 0.02797574103 | BA22: 0.02805417445
A23: 0.06000000238 | C23: 16 | D23: 0.01827608122 | E23: 0.02384816809 | F23: 0.03046323623 | G23: 0.03643704085 | H23: 0.04168338426 | I23: 0.04916628709 | J23: 0.04337392839 | K23: 0.05043648705 | L23: 0.05298974949 | M23: 0.05236660431 | N23: 0.04072299144 | O23: 0.03152666516 | P23: 0.01366074455 | Q23: 0.01687538042 | R23: 0.02333778677 | S23: 0.02092512839 | T23: 0.02370954385 | U23: 0.02335332577 | V23: 0.0217545413 | W23: 0.02489188908 | X23: 0.02561246017 | Y23: 0.02635711219 | Z23: 0.0271784658 | AA23: 0.02791975781 | AB23: 0.02822906902 | AC23: 0.02115788268 | AD23: 0.02263260174 | AE23: 0.02464331144 | AF23: 0.02489540936 | AG23: 0.02524249669 | AH23: 0.0258814909 | AI23: 0.02589338186 | AJ23: 0.02554241266 | AK23: 0.02593107079 | AL23: 0.02615555709 | AM23: 0.02649807034 | AN23: 0.02671732464 | AO23: 0.02674827984 | AP23: 0.02672750251 | AQ23: 0.02657284347 | AR23: 0.02634238115 | AS23: 0.02616066008 | AT23: 0.02634449494 | AU23: 0.02654698332 | AV23: 0.02643076967 | AW23: 0.02645656977 | AX23: 0.02655443817 | AY23: 0.02666662445 | AZ23: 0.02657817671 | BA23: 0.02653199533
A24: 0.06000000238 | C24: 17 | D24: 0.01479665522 | E24: 0.0175448101 | F24: 0.02288991309 | G24: 0.02892946347 | H24: 0.03462184256 | I24: 0.03954621726 | J24: 0.04659077436 | K24: 0.04104699915 | L24: 0.04774632005 | M24: 0.05083696275 | N24: 0.05017186251 | O24: 0.03888421729 | P24: 0.03009560893 | Q24: 0.01302822143 | R24: 0.0160908097 | S24: 0.02230693181 | T24: 0.02007243884 | U24: 0.02278683629 | V24: 0.02248296817 | W24: 0.02100018494 | X24: 0.02391914189 | Y24: 0.02469490353 | Z24: 0.02543567787 | AA24: 0.02619404742 | AB24: 0.02670778992 | AC24: 0.02685180441 | AD24: 0.01990224015 | AE24: 0.02132760587 | AF24: 0.02332015744 | AG24: 0.02352473487 | AH24: 0.0238862055 | AI24: 0.02447830475 | AJ24: 0.02447175059 | AK24: 0.02418343478 | AL24: 0.02455500116 | AM24: 0.02476967207 | AN24: 0.02510188654 | AO24: 0.02531839033 | AP24: 0.02536456566 | AQ24: 0.02526749485 | AR24: 0.02514393881 | AS24: 0.0249539331 | AT24: 0.02478531726 | AU24: 0.02496488228 | AV24: 0.02516568822 | AW24: 0.02505644154 | AX24: 0.02507729411 | AY24: 0.02517563524 | AZ24: 0.02528540859 | BA24: 0.02520655519
A25: 0.06000000238 | C25: 18 | D25: 0.01336238625 | E25: 0.01420460452 | F25: 0.01683983343 | G25: 0.02173744442 | H25: 0.02748827309 | I25: 0.03284673095 | J25: 0.03747463951 | K25: 0.04409126741 | L25: 0.03885764598 | M25: 0.04580655536 | N25: 0.0487063299 | O25: 0.04790644141 | P25: 0.03711918756 | Q25: 0.02870211471 | R25: 0.01242251294 | S25: 0.01538006145 | T25: 0.0213979344 | U25: 0.019291277 | V25: 0.02193759126 | W25: 0.02170335303 | X25: 0.0201795212 | Y25: 0.02306224774 | Z25: 0.02383157937 | AA25: 0.02451438418 | AB25: 0.02505699083 | AC25: 0.02540474681 | AD25: 0.02525824856 | AE25: 0.01875467694 | AF25: 0.02018247945 | AG25: 0.0220362121 | AH25: 0.02226073982 | AI25: 0.02259119537 | AJ25: 0.02313436584 | AK25: 0.02316973702 | AL25: 0.02290010597 | AM25: 0.02325392361 | AN25: 0.02346455761 | AO25: 0.02378753749 | AP25: 0.02400864571 | AQ25: 0.02397900933 | AR25: 0.02390878284 | AS25: 0.02381865797 | AT25: 0.02364203147 | AU25: 0.02348735587 | AV25: 0.0236659072 | AW25: 0.02385714088 | AX25: 0.02375015957 | AY25: 0.02377518988 | AZ25: 0.02387164618 | BA25: 0.02398050303
A26: 0.06000000238 | C26: 19 | D26: 0.01098881716 | E26: 0.01282772419 | F26: 0.0136338423 | G26: 0.01599197611 | H26: 0.02065454167 | I26: 0.02607890983 | J26: 0.03112609718 | K26: 0.03546419596 | L26: 0.04173953993 | M26: 0.03727899679 | N26: 0.0438867524 | O26: 0.04650708233 | P26: 0.0457318755 | Q26: 0.0354004859 | R26: 0.02736769508 | S26: 0.01187379728 | T26: 0.01475333088 | U26: 0.02056518806 | V26: 0.01857230833 | W26: 0.0211768875 | X26: 0.02085521026 | Y26: 0.01945659754 | Z26: 0.02225600059 | AA26: 0.02296838698 | AB26: 0.02345024004 | AC26: 0.02383448836 | AD26: 0.02389706851 | AE26: 0.02380185789 | AF26: 0.01774769678 | AG26: 0.01907128624 | AH26: 0.02085219607 | AI26: 0.02105385564 | AJ26: 0.02135086493 | AK26: 0.0219035075 | AL26: 0.02194020154 | AM26: 0.02168671512 | AN26: 0.02202867396 | AO26: 0.02223594003 | AP26: 0.02255698535 | AQ26: 0.02269715741 | AR26: 0.02268958321 | AS26: 0.02264860432 | AT26: 0.02256644109 | AU26: 0.02240394184 | AV26: 0.02226525958 | AW26: 0.0224353444 | AX26: 0.02261338275 | AY26: 0.02251696499 | AZ26: 0.02254373783 | BA26: 0.02263970074
A27: 0.06000000238 | C27: 20 | D27: 0.009106440296 | E27: 0.01054912746 | F27: 0.01231228708 | G27: 0.01294740125 | H27: 0.01519529759 | I27: 0.01959555364 | J27: 0.02471279967 | K27: 0.02945624092 | L27: 0.03357261676 | M27: 0.04004380955 | N27: 0.03571659316 | O27: 0.04190512426 | P27: 0.04439603602 | Q27: 0.04361438706 | R27: 0.03375464538 | S27: 0.02615883477 | T27: 0.01138994539 | U27: 0.01417917349 | V27: 0.01979874187 | W27: 0.01792829849 | X27: 0.02034931842 | Y27: 0.0201080803 | Z27: 0.01877640251 | AA27: 0.0214498765 | AB27: 0.02197135299 | AC27: 0.02230612914 | AD27: 0.02241999912 | AE27: 0.02251916348 | AF27: 0.0225238834 | AG27: 0.01677055617 | AH27: 0.01804657707 | AI27: 0.01972167724 | AJ27: 0.01989793017 | AK27: 0.02021489732 | AL27: 0.02074116631 | AM27: 0.02077767243 | AN27: 0.02054404171 | AO27: 0.02087524007 | AP27: 0.02108565352 | AQ27: 0.02132479497 | AR27: 0.02147666047 | AS27: 0.02149366597 | AT27: 0.0214579006 | AU27: 0.02138467815 | AV27: 0.02123821785 | AW27: 0.02110752664 | AX27: 0.02126570961 | AY27: 0.02143921375 | AZ27: 0.02135068355 | BA27: 0.02138032183
A28: 0.06000000238 | C28: 21 | D28: 0.008082127618 | E28: 0.008742069139 | F28: 0.01012524777 | G28: 0.01169238411 | H28: 0.0123023955 | I28: 0.01441621285 | J28: 0.01856906575 | K28: 0.0233870047 | L28: 0.02788511232 | M28: 0.03220867968 | N28: 0.03836552958 | O28: 0.03410387401 | P28: 0.04000296973 | Q28: 0.04234039995 | R28: 0.04158666559 | S28: 0.03226366665 | T28: 0.02509287404 | U28: 0.01094668133 | V28: 0.01365072836 | W28: 0.01911220445 | X28: 0.01722768063 | Y28: 0.01962031183 | Z28: =Z62*(1-Z$41-Z$71)/SUM(Z$42:Z$70) -> 0.01940510968 | AA28: 0.01809631129 | AB28: 0.02051875948 | AC28: 0.02089939533 | AD28: 0.0209823424 | AE28: 0.02112726192 | AF28: 0.02131005969 | AG28: 0.02128377876 | AH28: 0.01586946632 | AI28: 0.01706816717 | AJ28: 0.01863889272 | AK28: 0.01883926561 | AL28: 0.01914216467 | AM28: 0.01964216959 | AN28: 0.0196828965 | AO28: 0.01946834401 | AP28: 0.01979534387 | AQ28: 0.01993383562 | AR28: 0.02017809424 | AS28: 0.02034467368 | AT28: 0.02036368076 | AU28: 0.02033418988 | AV28: 0.02027198858 | AW28: 0.02013388829 | AX28: 0.02000711574 | AY28: 0.02016151669 | AZ28: 0.02032875516 | BA28: 0.02024883757
A29: 0.06000000238 | C29: 22 | D29: 0.005863862517 | E29: 0.00775874174 | F29: 0.008390799748 | G29: 0.009615458551 | H29: 0.01110990005 | I29: 0.01167163401 | J29: 0.01366103807 | K29: 0.01757287049 | L29: 0.02213959529 | M29: 0.0267522385 | N29: 0.0308587786 | O29: 0.03663320243 | P29: 0.03255583329 | Q29: 0.03815074248 | R29: 0.04037190873 | S29: 0.03974973817 | T29: 0.03094893678 | U29: 0.02411633124 | V29: 0.0105387083 | W29: 0.01317737828 | X29: 0.01836532087 | Y29: 0.01661050553 | Z29: 0.01893439341 | AA29: 0.01870224636 | AB29: 0.01731076908 | AC29: 0.01951767222 | AD29: 0.01965909307 | AE29: 0.01977250049 | AF29: 0.01999289241 | AG29: 0.02013678494 | AH29: 0.02014019134 | AI29: 0.01500909025 | AJ29: 0.01613106902 | AK29: 0.01764721495 | AL29: 0.01783953284 | AM29: 0.01812789306 | AN29: 0.01860722332 | AO29: 0.01865228885 | AP29: 0.01846122789 | AQ29: 0.01871401 | AR29: 0.01886193111 | AS29: 0.01911455197 | AT29: 0.01927509437 | AU29: 0.01929727232 | AV29: 0.01927615942 | AW29: 0.01921790032 | AX29: 0.01908423665 | AY29: 0.01896827359 | AZ29: 0.01911723729 | BA29: 0.01927964791
A30: 0.06000000238 | C30: 23 | D30: 0.004798392355 | E30: 0.005629234902 | F30: 0.007446983912 | G30: 0.007968337077 | H30: 0.009136441499 | I30: 0.01054027951 | J30: 0.01106023047 | K30: 0.01292814921 | L30: 0.01663557372 | M30: 0.02124014157 | N30: 0.02563102285 | O30: 0.02946540541 | P30: 0.03497035061 | Q30: 0.03104842517 | R30: 0.03637703695 | S30: 0.03858863841 | T30: 0.03812995426 | U30: 0.02974449278 | V30: 0.02321753711 | W30: 0.01017327004 | X30: 0.01266242108 | Y30: 0.01770739024 | Z30: 0.01602980876 | AA30: 0.01824857968 | AB30: 0.01789040113 | AC30: 0.01646619607 | AD30: 0.01835937015 | AE30: 0.01852554972 | AF30: 0.01871087113 | AG30: 0.01889213735 | AH30: 0.01905482603 | AI30: 0.01904827442 | AJ30: 0.01418504215 | AK30: 0.01527281939 | AL30: 0.01671074006 | AM30: 0.0168942828 | AN30: 0.01717273405 | AO30: 0.01763293853 | AP30: 0.01768738805 | AQ30: 0.01745277099 | AR30: 0.01770769932 | AS30: 0.01786776086 | AT30: 0.01810964378 | AU30: 0.01826569319 | AV30: 0.01829319485 | AW30: 0.01827385156 | AX30: 0.0182160024 | AY30: 0.01809331373 | AZ30: 0.01798579903 | BA30: 0.01813065291
A31: 0.06000000238 | C31: 24 | D31: 0.004976124863 | E31: 0.004606396831 | F31: 0.005403043838 | G31: 0.007072040783 | H31: 0.007571375318 | I31: 0.008668003015 | J31: 0.009988140517 | K31: 0.01046687002 | L31: 0.01223859127 | M31: 0.015959729 | N31: 0.02034994395 | O31: 0.02447369966 | P31: 0.02812791375 | Q31: 0.03335114492 | R31: 0.0296049208 | S31: 0.03477022438 | T31: 0.03701616879 | U31: 0.03664604562 | V31: 0.0286359421 | W31: 0.02241245019 | X31: 0.009775710027 | Y31: 0.01220879466 | Z31: 0.01708834681 | AA31: 0.01544920062 | AB31: 0.01745642766 | AC31: 0.01701754853 | AD31: 0.01548898789 | AE31: 0.01730076882 | AF31: 0.0175308719 | AG31: 0.01768070072 | AH31: 0.01787705395 | AI31: 0.01802175308 | AJ31: 0.01800246192 | AK31: 0.01343033041 | AL31: 0.01446234523 | AM31: 0.01582530053 | AN31: 0.01600412274 | AO31: 0.01627355993 | AP31: 0.01672076971 | AQ31: 0.01672120267 | AR31: =AR65*(1-AR$41-AR$71)/SUM(AR$42:AR$70) -> 0.01651428107 | AS31: 0.01677436605 | AT31: 0.01692840014 | AU31: 0.0171612751 | AV31: 0.01731529094 | AW31: 0.01734199847 | AX31: 0.01732117029 | AY31: 0.01727016136 | AZ31: 0.0171561583 | BA31: 0.01705760484
A32: 0.06000000238 | C32: 25 | D32: 0.005473405931 | E32: 0.004777017823 | F32: 0.004421304928 | G32: 0.005131009658 | H32: 0.006719730166 | I32: 0.007183180026 | J32: 0.008213940822 | K32: 0.009452295664 | L32: 0.00990859108 | M32: 0.01174138044 | N32: 0.01529083926 | O32: 0.01943107848 | P32: 0.02336279116 | Q32: 0.02682552823 | R32: 0.03180058242 | S32: 0.02829723984 | T32: 0.03335335341 | U32: 0.0355756055 | V32: 0.03528028023 | W32: 0.02764296759 | X32: 0.0215365967 | Y32: 0.009425498938 | Z32: 0.01178197998 | AA32: 0.01646939787 | AB32: 0.01477856676 | AC32: 0.01660474814 | AD32: 0.01600761961 | AE32: 0.01459589281 | AF32: 0.01637185221 | AG32: 0.01656566909 | AH32: 0.01673070837 | AI32: 0.01690783487 | AJ32: 0.01703229995 | AK32: 0.01704464529 | AL32: 0.01271763058 | AM32: 0.01369603972 | AN32: 0.01499146516 | AO32: 0.01516613778 | AP32: 0.01543171306 | AQ32: 0.0158073865 | AR32: 0.01582205146 | AS32: 0.01564385021 | AT32: 0.01589248831 | AU32: 0.01604189102 | AV32: 0.01626833804 | AW32: 0.01641494291 | AX32: 0.01643789803 | AY32: 0.01642179218 | AZ32: 0.01637564167 | BA32: 0.01627077944
A33: 0.06000000238 | C33: 26 | D33: 0.005420070764 | E33: 0.005254401448 | F33: 0.004585070114 | G33: 0.004198699653 | H33: 0.004875396147 | I33: 0.006375199945 | J33: 0.006806898376 | K33: 0.007773278428 | L33: 0.008948131806 | M33: 0.009506039951 | N33: 0.01124928631 | O33: 0.01460040864 | P33: 0.01854906429 | Q33: 0.02228104152 | R33: 0.02557835492 | S33: 0.03039591674 | T33: 0.02714414007 | U33: 0.0320553364 | V33: 0.03424973446 | W33: 0.03405690791 | X33: 0.02656271134 | Y33: 0.02076505633 | Z33: 0.009095987185 | AA33: 0.01135523044 | AB33: 0.01575447829 | AC33: 0.01405753706 | AD33: 0.0156193174 | AE33: 0.01508462022 | AF33: 0.01381220698 | AG33: 0.01547046192 | AH33: 0.01567558792 | AI33: 0.01582363936 | AJ33: 0.01597953949 | AK33: 0.01612610056 | AL33: 0.01614014663 | AM33: 0.01204377096 | AN33: 0.01297439514 | AO33: 0.01420650352 | AP33: 0.01438157892 | AQ33: 0.01458874543 | AR33: 0.01495737403 | AS33: 0.01498810647 | AT33: 0.01482140701 | AU33: 0.01506022798 | AV33: 0.01520719785 | AW33: 0.01542242871 | AX33: 0.0155591732 | AY33: 0.01558438264 | AZ33: 0.01557121435 | BA33: 0.01553054297
A34: 0.06000000238 | C34: 27 | D34: 0.006757689013 | E34: 0.005203200352 | F34: 0.005043271752 | G34: 0.004354219537 | H34: 0.003989531393 | I34: 0.004625427581 | J34: 0.006041243293 | K34: 0.006441721149 | L34: 0.007358669514 | M34: 0.008584600752 | N34: 0.009107631394 | O34: 0.01074134483 | P34: 0.01393766789 | Q34: 0.017690201 | R34: 0.02124515062 | S34: 0.02444853167 | T34: 0.02915729684 | U34: 0.02608776786 | V34: 0.03086066265 | W34: 0.03306209715 | X34: 0.03272600204 | Y34: 0.02561111231 | Z34: 0.02003911809 | AA34: 0.008766525725 | AB34: 0.0108623116 | AC34: 0.01498583497 | AD34: 0.01322327393 | AE34: 0.01471870752 | AF34: 0.01427469353 | AG34: 0.0130517439 | AH34: 0.01463922673 | AI34: 0.01482572312 | AJ34: 0.01495486986 | AK34: 0.01512935196 | AL34: 0.0152703458 | AM34: 0.0152849407 | AN34: 0.01140918446 | AO34: 0.01229504844 | AP34: 0.01347158746 | AQ34: 0.01359597557 | AR34: 0.01380426309 | AS34: 0.01416900426 | AT34: 0.01420013765 | AU34: 0.01404523723 | AV34: 0.01427661279 | AW34: 0.01441646493 | AX34: 0.01461840231 | AY34: 0.01475128438 | AZ34: 0.01477717899 | BA34: 0.01476762978
A35: 0.06000000238 | C35: 28 | D35: 0.009406103779 | E35: 0.006487297193 | F35: 0.004994127993 | G35: 0.004789351492 | H35: 0.004137303682 | I35: 0.003784982386 | J35: 0.004383130504 | K35: 0.005717142013 | L35: 0.006098134458 | M35: 0.00705971271 | N35: 0.008224810722 | O35: =O69*(1-O$41-O$71)/SUM(O$42:O$70) -> 0.00869639252 | P35: 0.01025377444 | Q35: 0.0132923226 | R35: 0.01686774761 | S35: 0.02030672964 | T35: 0.02345226503 | U35: 0.02802257833 | V35: 0.02511550006 | W35: 0.02979054415 | X35: 0.03177006737 | Y35: 0.03155360548 | Z35: 0.02471575785 | AA35: 0.01931329065 | AB35: 0.008385979884 | AC35: 0.0103323516 | AD35: 0.01409648077 | AE35: 0.01246081993 | AF35: 0.0139284275 | AG35: 0.01348876718 | AH35: 0.01235046757 | AI35: 0.01384554911 | AJ35: 0.01401174248 | AK35: 0.01415919963 | AL35: 0.0143264911 | AM35: 0.01446122736 | AN35: 0.01447957691 | AO35: 0.01081179307 | AP35: 0.01165901378 | AQ35: 0.01273569301 | AR35: =AR69*(1-AR$41-AR$71)/SUM(AR$42:AR$70) -> 0.01286487756 | AS35: 0.01307667123 | AT35: 0.01342409805 | AU35: 0.01345650261 | AV35: 0.01331443414 | AW35: 0.01353426776 | AX35: 0.01366488302 | AY35: 0.01385936174 | AZ35: 0.01398723163 | BA35: 0.01401457225
A36: 0.06000000238 | C36: 29 | D36: 0.00831704899 | E36: 0.009029742346 | F36: 0.006226627905 | G36: 0.004742682039 | H36: 0.004550758499 | I36: 0.003925178177 | J36: 0.00358671095 | K36: 0.004147983841 | L36: 0.005412202718 | M36: 0.00585038875 | N36: 0.00676383241 | O36: 0.007853434043 | P36: 0.008301646465 | Q36: 0.009779001676 | R36: 0.01267433551 | S36: 0.01612268119 | T36: 0.01947923956 | U36: 0.02253957003 | V36: 0.02697820187 | W36: 0.02424459973 | X36: 0.028626363 | Y36: 0.0306319168 | Z36: 0.03045050378 | AA36: 0.02382054005 | AB36: 0.01847492062 | AC36: 0.007976837333 | AD36: 0.009719164532 | AE36: 0.01328367766 | AF36: 0.01179177089 | AG36: 0.01316156562 | AH36: 0.01276400939 | AI36: 0.01168087689 | AJ36: 0.01308538322 | AK36: 0.01326625111 | AL36: 0.0134078213 | AM36: 0.01356738399 | AN36: 0.01369926503 | AO36: 0.01372141803 | AP36: 0.01025248864 | AQ36: 0.01102213237 | AR36: =AR70*(1-AR$41-AR$71)/SUM(AR$42:AR$70) -> 0.01205085507 | AS36: 0.01218679861 | AT36: 0.01238919217 | AU36: 0.01272110277 | AV36: 0.01275633261 | AW36: 0.01262211978 | AX36: 0.01282867795 | AY36: 0.01295535264 | AZ36: 0.01314150672 | BA36: 0.01326539175
A37: 0.6999999881 | C37: 30 | D37: 0.05899154675 | E37: =D37 -> 0.05899154675 | F37: =E37 -> 0.05899154675 | G37: 0.05899154675 | H37: 0.05899154675 | I37: 0.05899154675 | J37: 0.05899154675 | K37: 0.05899154675 | L37: 0.05899154675 | M37: 0.05899154675 | N37: 0.05899154675 | O37: 0.05899154675 | P37: 0.05899154675 | Q37: 0.05899154675 | R37: 0.05899154675 | S37: 0.05899154675 | T37: 0.05899154675 | U37: 0.05899154675 | V37: 0.05899154675 | W37: 0.05899154675 | X37: 0.05899154675 | Y37: 0.05899154675 | Z37: 0.05899154675 | AA37: 0.05899154675 | AB37: 0.05899154675 | AC37: 0.05899154675 | AD37: 0.05899154675 | AE37: 0.05899154675 | AF37: 0.05899154675 | AG37: 0.05899154675 | AH37: 0.05899154675 | AI37: 0.05899154675 | AJ37: 0.05899154675 | AK37: 0.05899154675 | AL37: 0.05899154675 | AM37: 0.05899154675 | AN37: 0.05899154675 | AO37: 0.05899154675 | AP37: 0.05899154675 | AQ37: 0.05899154675 | AR37: =AQ37 -> 0.05899154675 | AS37: =AR37 -> 0.05899154675 | AT37: =AS37 -> 0.05899154675 | AU37: =AT37 -> 0.05899154675 | AV37: =AU37 -> 0.05899154675 | AW37: =AV37 -> 0.05899154675 | AX37: =AW37 -> 0.05899154675 | AY37: =AX37 -> 0.05899154675 | AZ37: =AY37 -> 0.05899154675 | BA37: =AZ37 -> 0.05899154675
C39: Intermediate table
C40: age | D40: 2011 | E40: 2012 | F40: 2013 | G40: 2014 | H40: 2015 | I40: 2016 | J40: 2017 | K40: 2018 | L40: 2019 | M40: 2020 | N40: 2021 | O40: 2022 | P40: 2023 | Q40: 2024 | R40: 2025 | S40: 2026 | T40: 2027 | U40: 2028 | V40: 2029 | W40: 2030 | X40: 2031 | Y40: 2032 | Z40: 2033 | AA40: 2034 | AB40: 2035 | AC40: 2036 | AD40: 2037 | AE40: 2038 | AF40: 2039 | AG40: 2040 | AH40: 2041 | AI40: 2042 | AJ40: 2043 | AK40: 2044 | AL40: 2045 | AM40: 2046 | AN40: 2047 | AO40: 2048 | AP40: 2049 | AQ40: 2050 | AR40: 2051 | AS40: 2052 | AT40: 2053 | AU40: 2054 | AV40: 2055 | AW40: 2056 | AX40: 2057 | AY40: 2058 | AZ40: 2059 | BA40: 2060
C41: 0 | D41: =D7 -> 0.04906317841 | E41: =E2 -> 0.04563633457 | F41: =F2 -> 0.04275721105 | G41: 0.04906317841 | H41: 0.04906317841 | I41: 0.04906317841 | J41: 0.04906317841 | K41: 0.04906317841 | L41: 0.04906317841 | M41: 0.03754614624 | N41: 0.04086324292 | O41: 0.04502940369 | P41: 0.04585458924 | Q41: 0.04688003535 | R41: 0.04834235891 | S41: 0.04873513866 | T41: 0.04862861457 | U41: 0.04995762929 | V41: 0.05111230461 | W41: 0.05270625536 | X41: 0.0538649033 | Y41: 0.05487173909 | Z41: 0.05586145234 | AA41: 0.05674596956 | AB41: 0.05701626359 | AC41: 0.05700482886 | AD41: 0.05711072424 | AE41: 0.05732051227 | AF41: 0.05705317839 | AG41: 0.05700108046 | AH41: 0.05716291929 | AI41: 0.05729256466 | AJ41: 0.05692593083 | AK41: 0.05671392645 | AL41: 0.05676517678 | AM41: 0.05680781983 | AN41: 0.05665809614 | AO41: 0.05646603318 | AP41: 0.05590037731 | AQ41: 0.05534968539 | AR41: =AR2 -> 0.05534968539 | AS41: 0.05534968539 | AT41: 0.05534968539 | AU41: 0.05534968539 | AV41: 0.05534968539 | AW41: 0.05534968539 | AX41: 0.05534968539 | AY41: 0.05534968539 | AZ41: 0.05534968539 | BA41: 0.05534968539
C42: 1 | D42: =D8 -> 0.04290937526 | E42: =MAX(D7*(1-D$3*$A7),0) -> 0.04906317841 | F42: =MAX(E7*(1-E$3*$A7),0) -> 0.04563633457 | G42: 0.04275721105 | H42: 0.04906317841 | I42: 0.04906317841 | J42: 0.04906317841 | K42: 0.04906317841 | L42: 0.04906317841 | M42: 0.04906317841 | N42: 0.03754614624 | O42: 0.04086324292 | P42: 0.04502940369 | Q42: 0.04585458924 | R42: 0.04688003535 | S42: 0.04834235891 | T42: 0.04873513866 | U42: 0.04862861457 | V42: 0.04995762929 | W42: 0.05111230461 | X42: 0.05270625536 | Y42: 0.0538649033 | Z42: 0.05487173909 | AA42: 0.05586145234 | AB42: 0.05674596956 | AC42: 0.05701626359 | AD42: 0.05700482886 | AE42: 0.05711072424 | AF42: 0.05732051227 | AG42: 0.05705317839 | AH42: 0.05700108046 | AI42: 0.05716291929 | AJ42: 0.05729256466 | AK42: 0.05692593083 | AL42: 0.05671392645 | AM42: 0.05676517678 | AN42: 0.05680781983 | AO42: 0.05665809614 | AP42: 0.05646603318 | AQ42: 0.05590037731 | AR42: =MAX(AQ7*(1-AQ$3*$A7),0) -> 0.05534968539 | AS42: 0.05534968539 | AT42: 0.05534968539 | AU42: 0.05534968539 | AV42: 0.05534968539 | AW42: 0.05534968539 | AX42: 0.05534968539 | AY42: 0.05534968539 | AZ42: 0.05534968539 | BA42: 0.05534968539
C43: 2 | D43: 0.04574292163 | E43: =MAX(D8*(1-D$3*$A8),0) -> 0.04290937526 | F43: 0.04630249242 | G43: 0.04509952744 | H43: 0.04262849506 | I43: 0.04735759536 | J43: 0.04784928786 | K43: 0.04788108725 | L43: 0.0482863298 | M43: 0.04828800195 | N43: 0.04958527756 | O43: 0.03741453617 | P43: 0.04059046119 | Q43: 0.04474949131 | R43: 0.04554319528 | S43: 0.04655634723 | T43: 0.0481419677 | U43: 0.04874914243 | V43: 0.04880322532 | W43: 0.05029664662 | X43: 0.05166580132 | Y43: 0.0530748226 | Z43: 0.05446026543 | AA43: 0.05553960696 | AB43: 0.05647624645 | AC43: 0.05689723203 | AD43: 0.05679759984 | AE43: 0.05608541415 | AF43: 0.05623474953 | AG43: 0.05663630849 | AH43: 0.05625992501 | AI43: 0.05624811939 | AJ43: 0.05634782877 | AK43: 0.05642438414 | AL43: 0.05614483189 | AM43: 0.05594850014 | AN43: 0.05601259039 | AO43: 0.05608025236 | AP43: 0.05595810713 | AQ43: 0.05581194971 | AR43: 0.05509371756 | AS43: 0.05459659653 | AT43: 0.05465670266 | AU43: 0.05466463519 | AV43: 0.05467645901 | AW43: 0.05469587446 | AX43: 0.05469792016 | AY43: 0.05469007881 | AZ43: 0.0547021693 | BA43: 0.05470958821
C44: 3 | D44: 0.03153857965 | E44: 0.04574292163 | F44: 0.03919957099 | G44: 0.04400553305 | H44: 0.0440558633 | I44: 0.03995350685 | J44: 0.04468582473 | K44: 0.04486147125 | L44: 0.0451900243 | M44: 0.04530333756 | N44: 0.04691310136 | O44: 0.04748338112 | P44: 0.0356936916 | Q44: 0.03872854164 | R44: 0.04266145894 | S44: 0.04338816949 | T44: 0.04443055223 | U44: 0.04608499466 | V44: 0.04675753907 | W44: 0.04690688181 | X44: 0.04850417857 | Y44: 0.04961289385 | Z44: 0.05116737631 | AA44: 0.05257061226 | AB44: 0.05359630816 | AC44: 0.0541022461 | AD44: 0.05421360227 | AE44: 0.05349833179 | AF44: 0.05290654125 | AG44: 0.05326099606 | AH44: 0.05356710189 | AI44: 0.05327136992 | AJ44: 0.05321336742 | AK44: 0.05326957361 | AL44: 0.05341393544 | AM44: 0.05315352046 | AN44: 0.05297342785 | AO44: 0.05305244175 | AP44: 0.05313503916 | AQ44: 0.05305546276 | AR44: 0.05276705984 | AS44: 0.05213240602 | AT44: 0.05171877991 | AU44: 0.05178321857 | AV44: 0.05180191111 | AW44: 0.05183148673 | AX44: 0.05185181819 | AY44: 0.05184632799 | AZ44: 0.05185032481 | BA44: 0.05186879699
C45: 4 | D45: 0.0243485829 | E45: 0.03153857965 | F45: 0.0417881382 | G45: 0.03725497109 | H45: 0.04298718542 | I45: 0.04129130606 | J45: 0.03769945224 | K45: 0.04189554184 | L45: 0.04234011992 | M45: 0.04239831302 | N45: 0.04401341909 | O45: 0.0449244772 | P45: 0.04529943 | Q45: 0.03405639111 | R45: 0.03692144962 | S45: 0.04064279197 | T45: 0.04140703568 | U45: 0.0425321577 | V45: 0.04420223271 | W45: 0.04494068465 | X45: 0.04523521794 | Y45: 0.04657689616 | Z45: 0.04782986518 | AA45: 0.04939197925 | AB45: 0.05073119688 | AC45: 0.05134336711 | AD45: 0.05155044537 | AE45: 0.05106443388 | AF45: 0.05046609248 | AG45: 0.05010878698 | AH45: 0.05037470272 | AI45: 0.05072159089 | AJ45: 0.05039722235 | AK45: 0.05030634639 | AL45: 0.05042744567 | AM45: 0.05056812203 | AN45: 0.05032707175 | AO45: 0.05017389262 | AP45: 0.05026624259 | AQ45: 0.05037883224 | AR45: 0.05016095644 | AS45: 0.04993080718 | AT45: 0.04938447823 | AU45: 0.04899975215 | AV45: 0.04907139096 | AW45: 0.04910650976 | AX45: 0.04913637186 | AY45: 0.04914860319 | AZ45: 0.04915423428 | BA45: 0.04916466761
C46: 5 | D46: 0.05364169034 | E46: 0.0243485829 | F46: 0.02881185718 | G46: 0.03971512549 | H46: 0.03639284061 | I46: 0.04028968898 | J46: 0.03896177691 | K46: 0.03534541408 | L46: 0.03954088477 | M46: 0.03972446763 | N46: 0.04119110909 | O46: 0.04214771109 | P46: 0.04285822033 | Q46: 0.04322150597 | R46: 0.03246730384 | S46: 0.03517439003 | T46: 0.03878701399 | U46: 0.03963782764 | V46: 0.04079454379 | W46: 0.04248466965 | X46: 0.04333909196 | Y46: 0.04343782558 | Z46: 0.04490297764 | AA46: 0.04617027253 | AB46: 0.0476637824 | AC46: 0.04859869185 | AD46: 0.04892169239 | AE46: 0.04855597486 | AF46: 0.0481701458 | AG46: 0.04779739174 | AH46: 0.04739331658 | AI46: 0.04769877354 | AJ46: 0.04798501143 | AK46: 0.047644046 | AL46: 0.04762231754 | AM46: 0.0477407479 | AN46: 0.04787915238 | AO46: 0.04766739093 | AP46: 0.04753886861 | AQ46: 0.04765884514 | AR46: 0.0476303528 | AS46: 0.04746478299 | AT46: 0.04729892688 | AU46: 0.04678817246 | AV46: 0.04643369148 | AW46: 0.04651806637 | AX46: 0.04655308725 | AY46: 0.04657472249 | AZ46: 0.04659658744 | BA46: 0.04660822471
C47: 6 | D47: 0.06616034816 | E47: 0.05364169034 | F47: 0.02224348404 | G47: 0.0273825677 | H47: 0.0387960637 | I47: 0.03410914706 | J47: 0.038016668 | K47: 0.03652891638 | L47: 0.03335889415 | M47: 0.03709816127 | N47: 0.0385933959 | O47: 0.03944503748 | P47: 0.04020916883 | Q47: 0.04089227671 | R47: 0.04120477012 | S47: 0.03093100678 | T47: 0.03356830307 | U47: 0.03712975223 | V47: 0.03801845904 | W47: 0.03920939305 | X47: 0.04097060424 | Y47: 0.04161704095 | Z47: 0.04187672155 | AA47: 0.04334494165 | AB47: 0.04455480134 | AC47: 0.04566021731 | AD47: 0.04630647321 | AE47: 0.04607992131 | AF47: 0.04580386409 | AG47: 0.04562285717 | AH47: 0.04520717932 | AI47: 0.04487576012 | AJ47: 0.045125284 | AK47: 0.04536361302 | AL47: 0.04510206068 | AM47: 0.04508507274 | AN47: 0.04520212442 | AO47: 0.04534883899 | AP47: 0.04516400295 | AQ47: 0.0450729448 | AR47: 0.04505875796 | AS47: 0.04507020041 | AT47: 0.04496288818 | AU47: 0.04481226545 | AV47: 0.04433792967 | AW47: 0.04401761393 | AX47: 0.04409923681 | AY47: 0.04412611346 | AZ47: 0.04415635416 | BA47: 0.04418305462
C48: 7 | D48: 0.08151139625 | E48: 0.06616034816 | F48: 0.0490040052 | G48: 0.02114003633 | H48: 0.026748898 | I48: 0.03636156507 | J48: 0.03218481334 | K48: 0.03564282218 | L48: 0.03447588001 | M48: 0.03129807646 | N48: 0.03604186816 | O48: 0.03695744012 | P48: 0.03763080202 | Q48: 0.03836473949 | R48: 0.03898422379 | S48: 0.03925503116 | T48: 0.02951867563 | U48: 0.03213402238 | V48: 0.03561284884 | W48: 0.03654117844 | X48: 0.0378120517 | Y48: 0.03934266357 | Z48: 0.04012137376 | AA48: 0.04042369008 | AB48: 0.04182832715 | AC48: 0.04268192344 | AD48: 0.04350659553 | AE48: 0.0436166154 | AF48: 0.04346815111 | AG48: 0.04338170695 | AH48: 0.04315048604 | AI48: 0.04280575155 | AJ48: 0.04245458047 | AK48: 0.04266011113 | AL48: 0.04294329719 | AM48: 0.04269909134 | AN48: 0.0426876653 | AO48: 0.04281328637 | AP48: 0.04296721634 | AQ48: 0.04282126755 | AR48: 0.04261393461 | AS48: 0.04263682992 | AT48: 0.04269452536 | AU48: 0.04259904005 | AV48: 0.04246549864 | AW48: 0.04203090059 | AX48: 0.04172880198 | AY48: 0.04180019074 | AZ48: 0.04183488789 | BA48: 0.0418692165
C49: 8 | D49: 0.07913042806 | E49: 0.08151139625 | F49: 0.0604403408 | G49: 0.04657303004 | H49: 0.02065082726 | I49: 0.02507037319 | J49: =MAX(I14*(1-I$3*$A14),0) -> 0.03431015682 | K49: 0.03017512158 | L49: 0.033639587 | M49: 0.03234605811 | N49: 0.03040692872 | O49: 0.03451407043 | P49: 0.03525761923 | Q49: 0.03590464459 | R49: 0.03657462265 | S49: 0.03713955727 | T49: 0.03746261931 | U49: 0.02825742431 | V49: 0.03082121514 | W49: 0.03422904287 | X49: 0.03523892671 | Y49: 0.03630961409 | Z49: 0.03792873481 | AA49: 0.03872924905 | AB49: 0.03900928849 | AC49: 0.04007005762 | AD49: 0.04066877664 | AE49: 0.04097937745 | AF49: 0.04114446325 | AG49: 0.04116950897 | AH49: 0.04103078712 | AI49: 0.04085831084 | AJ49: 0.04049625497 | AK49: 0.04013530687 | AL49: 0.04038403709 | AM49: 0.0406553435 | AN49: 0.04042855892 | AO49: 0.04043171117 | AP49: 0.04056482544 | AQ49: 0.04073843208 | AR49: 0.04048510039 | AS49: 0.04032341689 | AT49: 0.04038941917 | AU49: 0.04044993259 | AV49: 0.04036817731 | AW49: 0.0402558975 | AX49: 0.03984539305 | AY49: 0.0395533349 | AZ49: 0.0396297375 | BA49: 0.03966799369
C50: 9 | D50: 0.07130033223 | E50: 0.07913042806 | F50: 0.07446418746 | G50: 0.05744203553 | H50: 0.04549526705 | I50: 0.01935496356 | J50: 0.02365597944 | K50: 0.03216775386 | L50: 0.02847918783 | M50: 0.03156142891 | N50: 0.03142507127 | O50: 0.02911799341 | P50: 0.03292662992 | Q50: 0.03364032175 | R50: 0.03422931694 | S50: 0.03484397432 | T50: 0.03544373942 | U50: 0.03586194526 | V50: 0.02710299208 | W50: 0.02962359735 | X50: 0.03300919085 | Y50: 0.03383873057 | Z50: 0.03500468954 | AA50: 0.03661268992 | AB50: 0.03737413498 | AC50: 0.03736951832 | AD50: 0.03818010278 | AE50: 0.03830640225 | AF50: 0.03865670168 | AG50: 0.0389687002 | AH50: 0.03893847146 | AI50: 0.03885121137 | AJ50: 0.03865388443 | AK50: 0.03828396377 | AL50: 0.03799394044 | AM50: 0.03823243689 | AN50: 0.03849348776 | AO50: 0.03829199386 | AP50: 0.03830832541 | AQ50: 0.03846065737 | AR50: 0.03851589659 | AS50: 0.03830900845 | AT50: 0.03819794742 | AU50: 0.03826601347 | AV50: 0.03833161613 | AW50: 0.03826770578 | AX50: 0.03816268592 | AY50: 0.0377681146 | AZ50: 0.03749954848 | BA50: 0.03757706203
C51: 10 | D51: 0.05802673515 | E51: 0.07130033223 | F51: 0.07228906999 | G51: 0.07077019165 | H51: 0.05611274903 | I51: 0.04264038554 | J51: 0.01826301574 | K51: 0.02217884715 | L51: 0.03035982811 | M51: 0.02671982453 | N51: 0.03066278275 | O51: 0.03009297738 | P51: 0.02777874012 | Q51: 0.03141625694 | R51: 0.03207064848 | S51: 0.03260964445 | T51: 0.03325297437 | U51: 0.03392932652 | V51: 0.03439683701 | W51: 0.02604985302 | X51: 0.02856787385 | Y51: 0.03169759184 | Z51: 0.03262260665 | AA51: 0.03379010268 | AB51: 0.03533163303 | AC51: 0.0358030991 | AD51: 0.03560693782 | AE51: 0.03596229087 | AF51: 0.03613522841 | AG51: 0.03661249411 | AH51: 0.03685692783 | AI51: 0.03687004056 | AJ51: 0.0367550739 | AK51: 0.03654224106 | AL51: 0.03624137331 | AM51: 0.03596968096 | AN51: 0.03619941968 | AO51: 0.03645918718 | AP51: 0.0362809814 | AQ51: 0.03632120592 | AR51: 0.0363623887 | AS51: 0.03644565021 | AT51: 0.03628971955 | AU51: 0.03618975466 | AV51: 0.03626206635 | AW51: 0.0363371127 | AX51: 0.03627787548 | AY51: 0.03617313283 | AZ51: 0.03580702482 | BA51: 0.03555720901
C52: 11 | D52: 0.06233031281 | E52: 0.05802673515 | F52: 0.06513593865 | G52: 0.06870297672 | H52: 0.06913247357 | I52: 0.05259160804 | J52: 0.04023474545 | K52: 0.01712263217 | L52: 0.02093232838 | M52: 0.0284842842 | N52: 0.02595903301 | O52: 0.02936300191 | P52: 0.02870888066 | Q52: 0.02650450529 | R52: 0.02995035957 | S52: 0.03055312047 | T52: 0.03112066554 | U52: 0.0318321668 | V52: 0.03254317371 | W52: 0.03306028153 | X52: 0.02512149034 | Y52: 0.02743274771 | Z52: 0.03055841791 | AA52: 0.03149067291 | AB52: 0.03260780649 | AC52: 0.03384645449 | AD52: 0.03411440074 | AE52: 0.03353859632 | AF52: 0.03392397924 | AG52: 0.03422435903 | AH52: 0.03462840808 | AI52: 0.03489906955 | AJ52: 0.0348807931 | AK52: 0.03474716165 | AL52: 0.03459257792 | AM52: 0.03431048794 | AN52: 0.03405698623 | AO52: 0.03428635581 | AP52: 0.03454442975 | AQ52: 0.03439902378 | AR52: 0.03433965766 | AS52: 0.03440789432 | AT52: 0.03452457995 | AU52: 0.03438184866 | AV52: 0.03429453882 | AW52: 0.0343752475 | AX52: 0.03444766867 | AY52: 0.03438658409 | AZ52: 0.03429486165 | BA52: 0.03395235189
C53: 12 | D53: 0.05013451773 | E53: 0.06233031281 | F53: 0.05300993337 | G53: 0.06190469564 | H53: 0.0671130968 | I53: 0.06479432955 | J53: 0.04962455042 | K53: 0.03772239791 | L53: 0.01616028808 | M53: 0.01963918862 | N53: 0.02767325335 | O53: 0.02485864189 | P53: 0.0280124797 | Q53: 0.02739197949 | R53: 0.02526779258 | S53: 0.02853315999 | T53: 0.02915804387 | U53: 0.02979096563 | V53: 0.03053169161 | W53: 0.03127864589 | X53: 0.03188208174 | Y53: 0.02412330405 | Z53: 0.02644684723 | AA53: 0.02949810704 | AB53: 0.03038883244 | AC53: 0.03123712503 | AD53: 0.03225004375 | AE53: 0.03213275798 | AF53: 0.03163765761 | AG53: 0.03213004307 | AH53: 0.03236968963 | AI53: 0.03278892988 | AJ53: 0.0330161618 | AK53: 0.03297527192 | AL53: 0.0328932726 | AM53: 0.03274953787 | AN53: 0.03248602113 | AO53: 0.03225714551 | AP53: 0.03248571078 | AQ53: 0.03275255008 | AR53: 0.03252234254 | AS53: 0.03249388597 | AT53: 0.03259423529 | AU53: 0.0327095083 | AV53: 0.03258131078 | AW53: 0.03251009605 | AX53: 0.03258781583 | AY53: 0.03265179231 | AZ53: 0.03260107853 | BA53: 0.03251851324
C54: 13 | D54: 0.04164127771 | E54: 0.05013451773 | F54: 0.05694143777 | G54: 0.0503802334 | H54: 0.06047213715 | I54: 0.06290167104 | J54: 0.06113883172 | K54: 0.04652588245 | L54: 0.03560228424 | M54: 0.01516195141 | N54: 0.0190800035 | O54: 0.02650019724 | P54: 0.02371529326 | Q54: 0.02672752303 | R54: 0.0261138568 | S54: 0.02407216403 | T54: 0.02723031618 | U54: 0.02791220135 | V54: 0.02857388192 | W54: 0.02934532381 | X54: 0.0301639399 | Y54: 0.03061526768 | Z54: 0.02325634105 | AA54: 0.02552919895 | AB54: 0.0284659853 | AC54: 0.02911142639 | AD54: 0.0297637866 | AE54: 0.03037669805 | AF54: 0.03031150097 | AG54: 0.02996462457 | AH54: 0.0303888678 | AI54: 0.03065019567 | AJ54: 0.03101987039 | AK54: 0.03121250454 | AL54: 0.03121591972 | AM54: 0.03114076897 | AN54: 0.03100807487 | AO54: 0.03076920263 | AP54: 0.03056307019 | AQ54: 0.03080062044 | AR54: 0.03096569425 | AS54: 0.03077425233 | AT54: 0.03078111537 | AU54: 0.03088064826 | AV54: 0.03099654897 | AW54: 0.03088601215 | AX54: 0.03081964785 | AY54: 0.03088890004 | AZ54: 0.03095636491 | BA54: 0.03091246189
C55: 14 | D55: 0.03306140658 | E55: 0.04164127771 | F55: 0.04580005126 | G55: 0.05411670497 | H55: 0.04921436657 | I55: 0.05667743942 | J55: 0.05935295122 | K55: 0.05732118626 | L55: 0.04391098614 | M55: 0.0334028763 | N55: 0.01473024632 | O55: 0.01827121119 | P55: 0.0252813469 | Q55: 0.02262745225 | R55: 0.0254804042 | S55: 0.02487819395 | T55: 0.02297301238 | U55: 0.02606684013 | V55: 0.0267718729 | W55: 0.02746358859 | X55: 0.0282995174 | Y55: 0.0289653951 | Z55: 0.0295149912 | AA55: 0.02244939643 | AB55: 0.02463594702 | AC55: 0.02726940686 | AD55: 0.02773834922 | AE55: 0.02803486301 | AF55: 0.028654973 | AG55: 0.02870859651 | AH55: 0.02834079657 | AI55: 0.02877459608 | AJ55: 0.0289965272 | AK55: =MAX(AJ20*(1-AJ$3*$A20),0) -> 0.02932526958 | AL55: 0.02954720247 | AM55: 0.02955278289 | AN55: 0.02948485257 | AO55: 0.02936936276 | AP55: 0.02915327085 | AQ55: 0.02897771057 | AR55: 0.02912025454 | AS55: 0.02930127458 | AT55: 0.02915212457 | AU55: 0.02916285007 | AV55: 0.02926346422 | AW55: 0.02938371002 | AX55: 0.02928001248 | AY55: 0.02921291278 | AZ55: 0.02928500991 | BA55: 0.02935293842
C56: 15 | D56: 0.02484216442 | E56: 0.03306140658 | F56: 0.038041109 | G56: 0.04352801683 | H56: 0.05286437113 | I56: 0.04612610719 | J56: 0.0534798717 | K56: 0.05564682013 | L56: 0.05409956099 | M56: 0.04119829019 | N56: 0.03245179875 | O56: 0.01410583816 | P56: 0.01743084491 | Q56: 0.02412166966 | R56: 0.02157164466 | S56: 0.02427471524 | T56: 0.02374223841 | U56: =MAX(T21*(1-T$3*$A21),0) -> 0.02199143914 | V56: 0.02500190229 | W56: 0.02573160011 | X56: 0.02648484332 | Y56: 0.02717505423 | Z56: 0.02792441309 | AA56: 0.02849088498 | AB56: 0.021663905 | AC56: 0.02360036568 | AD56: 0.02598321086 | AE56: 0.02612707956 | AF56: 0.02644587115 | AG56: 0.0271396675 | AH56: 0.02715283456 | AI56: 0.02683531941 | AJ56: 0.02722212173 | AK56: 0.02741246067 | AL56: 0.02776065845 | AM56: 0.02797297237 | AN56: 0.02798130796 | AO56: 0.02792663957 | AP56: 0.02782694753 | AQ56: 0.02764103998 | AR56: 0.02739679577 | AS56: 0.02755502806 | AT56: 0.02775678828 | AU56: 0.02761950071 | AV56: 0.02763562515 | AW56: 0.02774080262 | AX56: 0.02785582651 | AY56: 0.02775354395 | AZ56: 0.02769604742 | BA56: 0.0277681535
C57: 16 | D57: 0.01827608122 | E57: 0.02484216442 | F57: 0.03020302547 | G57: 0.03615397772 | H57: 0.04252071957 | I57: 0.04954706967 | J57: 0.04352381335 | K57: 0.05014046884 | L57: 0.05251929933 | M57: 0.05075744385 | N57: 0.04002525442 | O57: 0.03107618236 | P57: 0.01345705409 | Q57: 0.01663127698 | R57: 0.02299614117 | S57: 0.02055091148 | T57: 0.02316631496 | U57: 0.02272779827 | V57: 0.02109299822 | W57: 0.02403040513 | X57: 0.02481457931 | Y57: 0.02543248506 | Z57: 0.02619841495 | AA57: 0.02695549648 | AB57: 0.02749400535 | AC57: 0.02075325457 | AD57: 0.02248722464 | AE57: 0.02447389396 | AF57: 0.02464621922 | AG57: 0.02504738531 | AH57: 0.02566892817 | AI57: 0.02571046253 | AJ57: 0.02538747476 | AK57: 0.02573499013 | AL57: 0.02594990493 | AM57: 0.0262816127 | AN57: 0.02648550416 | AO57: 0.02650255417 | AP57: 0.02645999304 | AQ57: 0.02638351535 | AR57: 0.02613304889 | AS57: 0.02592420596 | AT57: 0.02610258738 | AU57: 0.02629752188 | AV57: 0.02617309922 | AW57: 0.02619766466 | AX57: 0.02629834642 | AY57: 0.02640360572 | AZ57: 0.02631245556 | BA57: 0.02626149346
C58: 17 | D58: 0.01479665522 | E58: 0.01827608122 | F58: 0.02269439211 | G58: 0.02870472336 | H58: 0.03531732571 | I58: 0.03985249441 | J58: 0.0467517756 | K58: 0.04080608905 | L58: 0.04732242176 | M58: 0.04927480627 | N58: 0.04931223102 | O58: 0.03832860284 | P58: 0.02964686411 | Q58: 0.01283976738 | R58: 0.01585525375 | S58: 0.02190800327 | T58: 0.01961254266 | U58: 0.02217648243 | V58: 0.02179927406 | W58: 0.02027338907 | X58: 0.02317401139 | Y58: 0.02382858792 | Z58: 0.02451847165 | AA58: 0.02528938674 | AB58: 0.02601233922 | AC58: 0.02633828445 | AD58: 0.01977440113 | AE58: 0.02118098315 | AF58: 0.02308673476 | AG58: 0.02334290089 | AH58: 0.02369002989 | AI58: 0.02430538199 | AJ58: 0.02432330723 | AK58: 0.02400056906 | AL58: 0.02436193363 | AM58: 0.02456733338 | AN58: 0.02488408287 | AO58: 0.02508580048 | AP58: 0.02511069751 | AQ58: 0.02508746717 | AR58: =MAX(AQ23*(1-AQ$3*$A23),0) -> 0.02494413008 | AS58: 0.02472838603 | AT58: 0.02455772681 | AU58: 0.02473028781 | AV58: 0.0249203509 | AW58: 0.02481123814 | AX58: 0.02483544798 | AY58: 0.02492732247 | AZ58: 0.02503261218 | BA58: 0.02494956659
C59: 18 | D59: 0.01336238625 | E59: =MAX(D24*(1-D$3*$A24),0) -> 0.01479665522 | F59: 0.016695991 | G59: 0.0215685759 | H59: 0.02804045718 | I59: 0.03310112199 | J59: 0.03760413861 | K59: 0.04383249011 | L59: 0.03851266255 | M59: 0.04439897702 | N59: 0.04787180847 | O59: 0.0472219089 | P59: 0.03656571668 | Q59: 0.02828693682 | R59: 0.01224065778 | S59: 0.01510501038 | T59: 0.02090766869 | U59: 0.01877455299 | V59: 0.02127048174 | W59: 0.02095222119 | X59: 0.01955088758 | Y59: 0.02225320691 | Z59: 0.02297221668 | AA59: 0.02366773383 | AB59: 0.02440452569 | AC59: 0.02491890071 | AD59: 0.02509600602 | AE59: 0.01862574255 | AF59: 0.01998046329 | AG59: 0.02186588363 | AH59: 0.02207791404 | AI59: 0.02243160376 | AJ59: 0.02299403493 | AK59: 0.02299453649 | AL59: 0.02272005031 | AM59: 0.02306396678 | AN59: 0.02326096069 | AO59: 0.02356901097 | AP59: 0.02376834865 | AQ59: 0.02380816194 | AR59: 0.0237187894 | AS59: 0.02360337212 | AT59: 0.0234249392 | AU59: 0.02326664568 | AV59: 0.02343519107 | AW59: 0.02362367389 | AX59: 0.02352111236 | AY59: 0.02354069 | AZ59: 0.02363298416 | BA59: 0.02373601442
C60: 19 | D60: 0.01098881716 | E60: 0.01336238625 | F60: 0.0135173848 | G60: 0.01586774157 | H60: 0.02106944985 | I60: 0.02628088552 | J60: 0.03123365796 | K60: 0.03525605205 | L60: 0.04136897065 | M60: 0.0361334597 | N60: 0.04313480834 | O60: 0.04584254517 | P60: 0.04504998393 | Q60: 0.03488841564 | R60: 0.02696705501 | S60: 0.01166145088 | T60: 0.01441530516 | U60: 0.02001434187 | V60: 0.01800753513 | W60: 0.02044397612 | X60: 0.02020552753 | Y60: 0.0187740456 | Z60: 0.021453453 | AA60: 0.02217513055 | AB60: 0.02283961348 | AC60: 0.02337867224 | AD60: 0.02374356931 | AE60: 0.02363822522 | AF60: 0.01757005153 | AG60: 0.0189238751 | AH60: 0.02068093856 | AI60: 0.02090512431 | AJ60: 0.02122135257 | AK60: 0.0217378817 | AL60: 0.02176769328 | AM60: 0.02150956051 | AN60: 0.0218375359 | AO60: 0.02203166741 | AP60: 0.02233121764 | AQ60: 0.02253544306 | AR60: 0.02250927826 | AS60: 0.02244389405 | AT60: 0.0223592254 | AU60: 0.02219341247 | AV60: 0.0220481982 | AW60: 0.02221579117 | AX60: 0.02239529865 | AY60: 0.02229487525 | AZ60: 0.02231835187 | BA60: 0.02240888201
C61: 20 | D61: 0.009106440296 | E61: 0.01098881716 | F61: 0.01220711803 | G61: 0.01284681866 | H61: 0.01550054054 | I61: 0.01974731709 | J61: 0.02479819837 | K61: 0.02928335847 | L61: 0.03327455453 | M61: 0.0388133132 | N61: 0.03510463446 | O61: 0.04130634424 | P61: 0.04373406268 | Q61: 0.04298350222 | R61: 0.03326050571 | S61: 0.02569102028 | T61: 0.01112898097 | U61: 0.01379937907 | V61: 0.01919667353 | W61: 0.0173078176 | X61: 0.01971539526 | Y61: 0.01940267386 | Z61: 0.01809932863 | AA61: 0.02070906468 | AB61: 0.02139923553 | AC61: 0.0218795417 | AD61: 0.02227598765 | AE61: 0.02236434906 | AF61: 0.022298431 | AG61: 0.01664092849 | AH61: 0.0178983619 | AI61: 0.01958235686 | AJ61: 0.01977723118 | AK61: 0.02006204014 | AL61: 0.02057808566 | AM61: 0.02060794362 | AN61: 0.02036578548 | AO61: 0.02068346765 | AP61: 0.02087461203 | AQ61: 0.02117285853 | AR61: 0.02130599412 | AS61: 0.02129939466 | AT61: 0.02126086405 | AU61: 0.02118372678 | AV61: 0.02103116898 | AW61: 0.02090096749 | AX61: 0.02106062251 | AY61: 0.02122775411 | AZ61: 0.02113722541 | BA61: 0.02116234286
C62: 21 | D62: 0.008082127618 | E62: 0.009106440296 | F62: 0.01003875996 | G62: 0.01160155119 | H62: 0.01254952587 | I62: 0.01452786339 | J62: 0.01863323388 | K62: 0.02324974337 | L62: 0.02763754452 | M62: 0.03121894711 | N62: 0.0377081847 | O62: 0.03361656562 | P62: 0.03940649981 | Q62: 0.04172794341 | R62: 0.04097787173 | S62: 0.03168667571 | T62: 0.02451795053 | U62: 0.01065347041 | V62: 0.01323561757 | W62: 0.01845074973 | X62: 0.01669100292 | Y62: 0.01893201668 | Z62: 0.01870536473 | AA62: 0.01747132115 | AB62: 0.01998446646 | AC62: 0.02049971058 | AD62: 0.0208475655 | AE62: 0.02098201652 | AF62: 0.02109675704 | AG62: 0.02111926621 | AH62: 0.01573913159 | AI62: 0.01694759204 | AJ62: 0.01852583093 | AK62: 0.01869681042 | AL62: 0.01899165641 | AM62: 0.01948171648 | AN62: 0.01951211224 | AO62: 0.01928949617 | AP62: 0.01959721679 | AQ62: 0.01979180959 | AR62: 0.02001774707 | AS62: 0.02016078757 | AT62: 0.02017669185 | AU62: 0.02014310993 | AV62: 0.02007435937 | AW62: 0.01993685721 | AX62: 0.01981416655 | AY62: 0.01996265926 | AZ62: 0.02012551398 | BA62: 0.02004239443
C63: 22 | D63: 0.005863862517 | E63: 0.008082127618 | F63: 0.008319127245 | G63: 0.009540760338 | H63: 0.01133307558 | I63: 0.01176202837 | J63: =MAX(I28*(1-I$3*$A28),0) -> 0.01370824579 | K63: 0.01746973306 | L63: 0.02194303697 | M63: 0.02593017556 | N63: 0.03033005241 | O63: 0.0361097526 | P63: 0.03207040496 | Q63: 0.03759888959 | R63: 0.03978089789 | S63: 0.03903886922 | T63: 0.03023984019 | U63: 0.02347036636 | V63: 0.01021823224 | W63: 0.0127213221 | X63: 0.01779320332 | Y63: 0.01602779662 | Z63: 0.01825162241 | AA63: 0.01805632912 | AB63: 0.01686000971 | AC63: 0.01914441186 | AD63: 0.01953281586 | AE63: 0.01963656879 | AF63: 0.01979277392 | AG63: 0.01998113805 | AH63: 0.01997478146 | AI63: 0.01490306112 | AJ63: 0.01603321946 | AK63: 0.01751377358 | AL63: 0.01769926672 | AM63: 0.01797980978 | AN63: 0.01844577245 | AO63: 0.01848093779 | AP63: 0.01827645368 | AQ63: 0.01858067507 | AR63: 0.01871204296 | AS63: 0.01894178437 | AT63: 0.01909810138 | AU63: 0.01911593626 | AV63: 0.01908823842 | AW63: 0.01902983313 | AX63: 0.01890018773 | AY63: 0.01878118538 | AZ63: 0.01892610852 | BA63: 0.01908308595
C64: 23 | D64: 0.004798392355 | E64: 0.005863862517 | F64: 0.007383373292 | G64: 0.007906434617 | H64: 0.009319974224 | I64: 0.01062191176 | J64: 0.01109845071 | K64: 0.01285227225 | L64: 0.01648788085 | M64: 0.0205874585 | N64: 0.02519186765 | O64: 0.02904437585 | P64: 0.03444892027 | Q64: 0.03059930775 | R64: 0.03584450767 | S64: 0.03789853412 | T64: 0.03725632746 | U64: 0.02894777551 | V64: 0.02251150518 | W64: 0.00982118311 | X64: 0.01226796059 | Y64: 0.0170862018 | Z64: 0.01545177659 | AA64: 0.01761833067 | AB64: 0.01742454858 | AC64: 0.01615129283 | AD64: 0.01824144151 | AE64: 0.01839819053 | AF64: 0.018523585 | AG64: 0.01874611095 | AH64: 0.01889833018 | AI64: 0.01891371117 | AJ64: 0.014098997 | AK64: 0.01515733228 | AL64: 0.01657934925 | AM64: 0.01675627666 | AN64: 0.01702372993 | AO64: 0.01747095183 | AP64: 0.01751035902 | AQ64: 0.01732842223 | AR64: 0.01756698338 | AS64: 0.01770626243 | AT64: 0.0179433525 | AU64: 0.01809405086 | AV64: 0.01811485666 | AW64: 0.01809502288 | AX64: 0.01804032676 | AY64: 0.01791485543 | AZ64: 0.01780598206 | BA64: 0.01794580531
C65: 24 | D65: 0.004976124863 | E65: 0.004798392355 | F65: 0.005356892138 | G65: 0.007017101249 | H65: 0.007723469013 | I65: 0.00873513488 | J65: 0.010022656 | K65: 0.01040543861 | L65: 0.0121299354 | M65: 0.01546930642 | N65: 0.02000127337 | O65: 0.02412399631 | P65: 0.02770850853 | Q65: 0.03286871851 | R65: 0.02917152962 | S65: 0.03414840713 | T65: 0.03616806085 | U65: 0.0356644677 | V65: 0.02776513959 | W65: 0.02163677719 | X65: 0.009471176536 | Y65: 0.01178050105 | Z65: 0.01647214394 | AA65: 0.01491563343 | AB65: 0.01700187545 | AC65: 0.0166921011 | AD65: 0.01538949672 | AE65: 0.01718182974 | AF65: 0.01735539696 | AG65: 0.01754403809 | AH65: 0.01773023105 | AI65: 0.01789444152 | AJ65: 0.01789326066 | AK65: 0.01332877548 | AL65: 0.01434863278 | AM65: 0.01569602669 | AN65: 0.01586525841 | AO65: 0.01612406129 | AP65: 0.01655341534 | AQ65: 0.01660206624 | AR65: 0.01638304875 | AS65: 0.0166227503 | AT65: 0.0167729556 | AU65: 0.01700001096 | AV65: 0.01714648622 | AW65: 0.01717228894 | AX65: 0.01715412443 | AY65: 0.017099822 | AZ65: 0.01698463585 | BA65: 0.01688369731
C66: 25 | D66: 0.005473405931 | E66: 0.004976124863 | F66: 0.004383539042 | G66: 0.005091149131 | H66: 0.006854716023 | I66: 0.007238812248 | J66: 0.008242325296 | K66: 0.00939681893 | L66: 0.00982062127 | M66: 0.01138058246 | N66: 0.01502885004 | O66: 0.01915342886 | P66: 0.02301443697 | Q66: 0.02643749528 | R66: 0.0313350486 | S66: 0.02779118294 | T66: 0.03258916725 | U66: 0.03462269971 | V66: 0.03420742722 | W66: 0.0266862715 | X66: 0.02086568738 | Y66: 0.009094845414 | Z66: 0.01135712379 | AA66: 0.01590059624 | AB66: 0.01439374403 | AC66: 0.01628719519 | AD66: 0.01590479708 | AE66: 0.01449554918 | AF66: 0.01620797845 | AG66: 0.01643762508 | AH66: 0.01659330033 | AI66: 0.01678839239 | AJ66: 0.01692898361 | AK66: 0.01691576032 | AL66: 0.01261763622 | AM66: 0.0135841594 | AN66: 0.01486138744 | AO66: 0.01502681258 | AP66: 0.01527726057 | AQ66: 0.01569476089 | AR66: 0.01569632 | AS66: 0.01550245267 | AT66: 0.015746556 | AU66: 0.01589114571 | AV66: 0.01610973993 | AW66: 0.01625430558 | AX66: 0.01627937048 | AY66: 0.01625982047 | AZ66: 0.0162119226 | BA66: 0.01610489383
C67: 26 | D67: 0.005420070764 | E67: 0.005473405931 | F67: 0.004545905379 | G67: 0.004166081826 | H67: 0.004973333045 | I67: 0.006424574531 | J67: 0.006830420609 | K67: 0.007727656061 | L67: 0.008868689083 | M67: 0.009213931195 | N67: 0.011056544 | O67: 0.0143917842 | P67: 0.01827248586 | Q67: 0.02195874485 | R67: 0.02520390928 | S67: 0.02985232792 | T67: 0.02652221831 | U67: 0.03119672233 | V67: 0.03320821975 | W67: 0.03287823161 | X67: 0.0257352282 | Y67: 0.02003660268 | Z67: 0.008767987436 | AA67: 0.01096305621 | AB67: 0.01534424356 | AC67: 0.01378869756 | AD67: 0.01551898908 | AE67: 0.01498091669 | AF67: 0.01367395395 | AG67: 0.01535088328 | AH67: 0.01554684549 | AI67: 0.01571185599 | AJ67: 0.01588260909 | AK67: 0.01600416126 | AL67: 0.0160132422 | AM67: 0.01194538772 | AN67: 0.01286181911 | AO67: 0.0140759941 | AP67: 0.01423763698 | AQ67: 0.01448480248 | AR67: 0.01483851382 | AS67: 0.0148526359 | AT67: 0.01468530987 | AU67: 0.01491870733 | AV67: 0.01505894468 | AW67: 0.01527150417 | AX67: 0.01540912009 | AY67: 0.01543067047 | AZ67: 0.01541553772 | BA67: 0.0153722043
C68: 27 | D68: 0.006757689013 | E68: 0.005420070764 | F68: 0.005000193152 | G68: 0.004320393545 | H68: 0.004069673051 | I68: 0.004661250547 | J68: 0.006062119693 | K68: 0.006403913862 | L68: 0.007293338251 | M68: 0.008320806673 | N68: 0.008951583635 | O68: 0.01058786234 | P68: 0.01372984833 | Q68: 0.01743431113 | R68: 0.02093413946 | S68: 0.02401130358 | T68: 0.02848924999 | U68: 0.02538899733 | V68: 0.02992220766 | W68: 0.03191785028 | X68: 0.03170651971 | Y68: 0.02471265542 | Z68: 0.0193165109 | AA68: 0.008463757276 | AB68: 0.0105794652 | AC68: 0.01469924249 | AD68: 0.01313833623 | AE68: 0.01461751956 | AF68: 0.01413181125 | AG68: 0.0129508607 | AH68: 0.01451899587 | AI68: 0.01472098936 | AJ68: 0.01486415501 | AK68: 0.01501494969 | AL68: 0.01515028032 | AM68: 0.01516008096 | AN68: 0.01131018942 | AO68: 0.01218209878 | AP68: 0.01333675342 | AQ68: 0.01349910598 | AR68: 0.01369456619 | AS68: 0.01404093718 | AT68: 0.0140697453 | AU68: 0.01391325443 | AV68: 0.01413743178 | AW68: 0.01427538479 | AX68: 0.01447742203 | AY68: 0.01460578925 | AZ68: 0.0146294409 | BA68: 0.01461706924
C69: 28 | D69: 0.009406103779 | E69: 0.006757689013 | F69: 0.004951469169 | G69: 0.004752145155 | H69: 0.004220413788 | I69: 0.003814296281 | J69: 0.004398277053 | K69: 0.005683587374 | L69: 0.006043994396 | M69: 0.00684277654 | N69: 0.00808388898 | O69: 0.008572130243 | P69: 0.01010088409 | Q69: 0.01310004832 | R69: 0.01662081795 | S69: 0.01994357193 | T69: 0.02291493086 | U69: 0.02727198318 | V69: 0.02435175216 | W69: 0.02875952253 | X69: 0.03078036437 | Y69: 0.03044668149 | Z69: 0.02382451184 | AA69: 0.01864626984 | AB69: 0.008167615294 | AC69: 0.01013475339 | AD69: 0.01400593416 | AE69: 0.01237515446 | AF69: 0.01378901116 | AG69: 0.01338450602 | AH69: 0.01224903411 | AI69: 0.01374773961 | AJ69: 0.01392674855 | AK69: =MAX(AJ34*(1-AJ$3*$A34),0) -> 0.01405213327 | AL69: 0.01421384683 | AM69: 0.01434309638 | AN69: 0.01435394073 | AO69: 0.01071246949 | AP69: 0.01154232138 | AQ69: 0.01264495282 | AR69: 0.01276264557 | AS69: 0.01295847724 | AT69: 0.01330083166 | AU69: 0.01333005213 | AV69: 0.0131846333 | AW69: 0.01340182084 | AX69: 0.0135330985 | AY69: 0.01372266384 | AZ69: 0.01384739121 | BA69: 0.01387168937
C70: 29 | D70: 0.00831704899 | E70: =MAX(D35*(1-D$3*$A35),0) -> 0.009406103779 | F70: =MAX(E35*(1-E$3*$A35),0) -> 0.006173441318 | G70: 0.004705838255 | H70: 0.00464217408 | I70: 0.003955577859 | J70: 0.003599105355 | K70: 0.004123638792 | L70: 0.005364152451 | M70: 0.005670613598 | N70: 0.006647942686 | O70: 0.007741216754 | P70: 0.008177863596 | Q70: 0.009637547802 | R70: 0.01248879389 | S70: 0.01583434939 | T70: 0.01903293465 | U70: 0.02193583928 | V70: 0.02615781028 | W70: 0.02340551783 | X70: 0.02773459287 | Y70: 0.02955732634 | Z70: 0.0293524638 | AA70: 0.02299785291 | AB70: 0.01799384762 | AC70: 0.0078242865 | AD70: 0.00965673495 | AE70: 0.01319235522 | AF70: 0.01167374138 | AG70: 0.01305983356 | AH70: 0.01265917954 | AI70: 0.01159835935 | AJ70: 0.0130060085 | AK70: 0.01316593689 | AL70: 0.01330240021 | AM70: 0.01345655464 | AN70: 0.01358039946 | AO70: 0.01359536489 | AP70: 0.01014987383 | AQ70: 0.01094360109 | AR70: 0.0119550918 | AS70: 0.01207664777 | AT70: 0.01227542878 | AU70: 0.01260156283 | AV70: 0.01263197263 | AW70: 0.01249859918 | AX70: 0.01270495782 | AY70: 0.01282757117 | AZ70: 0.01301012163 | BA70: 0.01313014699
C71: 30 | D71: 0.05899154675 | E71: =E37 -> 0.05899154675 | F71: =F37 -> 0.05899154675 | G71: 0.05899154675 | H71: 0.05899154675 | I71: 0.05899154675 | J71: 0.05899154675 | K71: 0.05899154675 | L71: 0.05899154675 | M71: 0.05899154675 | N71: 0.05899154675 | O71: 0.05899154675 | P71: 0.05899154675 | Q71: 0.05899154675 | R71: 0.05899154675 | S71: 0.05899154675 | T71: 0.05899154675 | U71: 0.05899154675 | V71: 0.05899154675 | W71: 0.05899154675 | X71: 0.05899154675 | Y71: 0.05899154675 | Z71: 0.05899154675 | AA71: 0.05899154675 | AB71: 0.05899154675 | AC71: 0.05899154675 | AD71: 0.05899154675 | AE71: 0.05899154675 | AF71: 0.05899154675 | AG71: 0.05899154675 | AH71: 0.05899154675 | AI71: 0.05899154675 | AJ71: 0.05899154675 | AK71: 0.05899154675 | AL71: 0.05899154675 | AM71: 0.05899154675 | AN71: 0.05899154675 | AO71: 0.05899154675 | AP71: 0.05899154675 | AQ71: 0.05899154675 | AR71: =AR37 -> 0.05899154675 | AS71: 0.05899154675 | AT71: 0.05899154675 | AU71: 0.05899154675 | AV71: 0.05899154675 | AW71: 0.05899154675 | AX71: 0.05899154675 | AY71: 0.05899154675 | AZ71: 0.05899154675 | BA71: 0.05899154675

Sheet 21 (hidden)
D1: 2011 | E1: 2012 | F1: 2013 | G1: 2014 | H1: 2015 | I1: 2016 | J1: 2017 | K1: 2018 | L1: 2019 | M1: 2020 | N1: 2021 | O1: 2022 | P1: 2023 | Q1: 2024 | R1: 2025 | S1: 2026 | T1: 2027 | U1: 2028 | V1: 2029 | W1: 2030 | X1: 2031 | Y1: 2032 | Z1: 2033 | AA1: 2034 | AB1: 2035 | AC1: 2036 | AD1: 2037 | AE1: 2038 | AF1: 2039 | AG1: 2040 | AH1: 2041 | AI1: 2042 | AJ1: 2043 | AK1: 2044 | AL1: 2045 | AM1: 2046 | AN1: 2047 | AO1: 2048 | AP1: 2049 | AQ1: 2050 | AR1: 2051 | AS1: 2052 | AT1: 2053 | AU1: 2054 | AV1: 2055 | AW1: 2056 | AX1: 2057 | AY1: 2058 | AZ1: 2059 | BA1: 2060
C2: sales (age 0 pop) | D2: 0.04008115516 | E2: 0.05831426035 | F2: 0.06336022739 | G2: 0.06767408396 | H2: 0.06660214785 | I2: 0.06084386483 | J2: 0.05469655067 | K2: 0.04885319924 | L2: 0.04343712088 | M2: 0.03754614624 | N2: 0.04086324292 | O2: 0.04502940369 | P2: 0.04585458924 | Q2: 0.04688003535 | R2: 0.04834235891 | S2: 0.04873513866 | T2: 0.04862861457 | U2: 0.04995762929 | V2: 0.05111230461 | W2: 0.05270625536 | X2: 0.0538649033 | Y2: 0.05487173909 | Z2: 0.05586145234 | AA2: 0.05674596956 | AB2: 0.05701626359 | AC2: 0.05700482886 | AD2: 0.05711072424 | AE2: 0.05732051227 | AF2: 0.05705317839 | AG2: 0.05700108046 | AH2: 0.05716291929 | AI2: 0.05729256466 | AJ2: 0.05692593083 | AK2: 0.05671392645 | AL2: 0.05676517678 | AM2: 0.05680781983 | AN2: 0.05665809614 | AO2: 0.05646603318 | AP2: 0.05590037731 | AQ2: 0.05534968539 | AR2: 0.05534968539 | AS2: 0.05534968539 | AT2: 0.05534968539 | AU2: 0.05534968539 | AV2: 0.05534968539 | AW2: 0.05534968539 | AX2: 0.05534968539 | AY2: 0.05534968539 | AZ2: 0.05534968539 | BA2: 0.05534968539
C3: scrappage k factor | D3: 0.9383940394 | E3: 1.877894969 | F3: 0.5788780024 | G3: 0.9270222754 | H3: 0.7597811265 | I3: 0.8845728842 | J3: 0.9135407783 | K3: 0.5630017937 | L3: 0.8019312858 | M3: 0.6640800318 | N3: 0.6599017714 | O3: 0.6579950954 | P3: 0.655211652 | Q3: 0.6511073661 | R3: 0.647169138 | S3: 0.6465773283 | T3: 0.6500829261 | U3: 0.6547059412 | V3: 0.6601896874 | W3: 0.6661203006 | X3: 0.675295263 | Y3: 0.6863939223 | Z3: 0.6987148978 | AA3: 0.7022579285 | AB3: 0.7031882152 | AC3: 0.7000140326 | AD3: 0.6981062867 | AE3: 0.6964244569 | AF3: 0.6940568966 | AG3: 0.6901435039 | AH3: 0.6866947043 | AI3: 0.6866189087 | AJ3: 0.6858399197 | AK3: 0.6889546032 | AL3: 0.691753494 | AM3: 0.6932112932 | AN3: 0.6935768456 | AO3: 0.6935476037 | AP3: 0.6931669937 | AQ3: 0.6901314015 | AR3: 0.6875144467 | AS3: 0.6854041191 | AT3: 0.6834065152 | AU3: 0.6814399109 | AV3: 0.6796358687 | AW3: 0.6780385661 | AX3: 0.676539388 | AY3: 0.6751566357 | AZ3: 0.6738914475
A5: default
A6: scrappage | C6: age | D6: 2011 | E6: 2012 | F6: 2013 | G6: 2014 | H6: 2015 | I6: 2016 | J6: 2017 | K6: 2018 | L6: 2019 | M6: 2020 | N6: 2021 | O6: 2022 | P6: 2023 | Q6: 2024 | R6: 2025 | S6: 2026 | T6: 2027 | U6: 2028 | V6: 2029 | W6: 2030 | X6: 2031 | Y6: 2032 | Z6: 2033 | AA6: 2034 | AB6: 2035 | AC6: 2036 | AD6: 2037 | AE6: 2038 | AF6: 2039 | AG6: 2040 | AH6: 2041 | AI6: 2042 | AJ6: 2043 | AK6: 2044 | AL6: 2045 | AM6: 2046 | AN6: 2047 | AO6: 2048 | AP6: 2049 | AQ6: 2050 | AR6: 2051 | AS6: 2052 | AT6: 2053 | AU6: 2054 | AV6: 2055 | AW6: 2056 | AX6: 2057 | AY6: 2058 | AZ6: 2059 | BA6: 2060
A7: 0.003300011158 | C7: 0 | D7: 0.06767408396 | E7: =E41 -> 0.05831426035 | F7: =F41 -> 0.06336022739 | G7: 0.06767408396 | H7: 0.06660214785 | I7: 0.06084386483 | J7: 0.05469655067 | K7: 0.04885319924 | L7: 0.04343712088 | M7: 0.03754614624 | N7: 0.04086324292 | O7: 0.04502940369 | P7: 0.04585458924 | Q7: 0.04688003535 | R7: 0.04834235891 | S7: 0.04873513866 | T7: 0.04862861457 | U7: 0.04995762929 | V7: 0.05111230461 | W7: 0.05270625536 | X7: 0.0538649033 | Y7: 0.05487173909 | Z7: 0.05586145234 | AA7: 0.05674596956 | AB7: 0.05701626359 | AC7: 0.05700482886 | AD7: 0.05711072424 | AE7: 0.05732051227 | AF7: 0.05705317839 | AG7: 0.05700108046 | AH7: 0.05716291929 | AI7: 0.05729256466 | AJ7: 0.05692593083 | AK7: 0.05671392645 | AL7: 0.05676517678 | AM7: 0.05680781983 | AN7: 0.05665809614 | AO7: 0.05646603318 | AP7: 0.05590037731 | AQ7: 0.05534968539 | AR7: =AR41 -> 0.05534968539 | AS7: 0.05534968539 | AT7: 0.05534968539 | AU7: 0.05534968539 | AV7: 0.05534968539 | AW7: 0.05534968539 | AX7: 0.05534968539 | AY7: 0.05534968539 | AZ7: 0.05534968539 | BA7: 0.05534968539
A8: 0.003300011158 | C8: 1 | D8: 0.06281508808 | E8: =E42*(1-E$41-E$71)/SUM(E$42:E$70) -> 0.06842242269 | F8: =F42*(1-F$41-F$71)/SUM(F$42:F$70) -> 0.06306496085 | G8: 0.0612140937 | H8: 0.06704891389 | I8: 0.06562713441 | J8: 0.06090772529 | K8: 0.05522651429 | L8: 0.04846146365 | M8: 0.04415336662 | N8: 0.03769708937 | O8: 0.04090367994 | P8: 0.04510456811 | Q8: 0.0459794227 | R8: 0.04701416451 | S8: 0.048528232 | T8: 0.0490158566 | U8: 0.04892549822 | V8: 0.05029326312 | W8: 0.05144576701 | X8: 0.05301650227 | Y8: 0.05414907204 | Z8: 0.05509132846 | AA8: 0.05600992074 | AB8: 0.05678318453 | AC8: 0.05693216542 | AD8: 0.05684569061 | AE8: 0.0568677727 | AF8: 0.05708727202 | AG8: 0.05679424753 | AH8: 0.05669583431 | AI8: 0.05677057923 | AJ8: 0.05690685975 | AK8: 0.05656457169 | AL8: 0.05635712271 | AM8: 0.05639971728 | AN8: 0.05644014373 | AO8: 0.05629153546 | AP8: 0.05612896695 | AQ8: 0.05559064978 | AR8: =AR42*(1-AR$41-AR$71)/SUM(AR$42:AR$70) -> 0.05505380054 | AS8: 0.05506706956 | AT8: 0.05507023961 | AU8: 0.0550735387 | AV8: 0.05507789214 | AW8: 0.05507905385 | AX8: 0.05507855013 | AY8: 0.0550820207 | AZ8: 0.05508491689 | BA8: 0.05508904265
A9: 0.003400027752 | C9: 2 | D9: 0.0565362041 | E9: =E43*(1-E$41-E$71)/SUM(E$42:E$70) -> 0.06350969612 | F9: 0.07399660704 | G9: 0.06092882841 | H9: 0.06064860072 | I9: 0.06606736009 | J9: 0.0656960153 | K9: 0.06149786998 | L9: 0.05478367347 | M9: 0.04926055706 | N9: 0.04433087211 | O9: 0.03773439326 | P9: 0.04097195758 | Q9: 0.04522735973 | R9: 0.04611097511 | S9: 0.04719493079 | T9: 0.04880775815 | U9: 0.04931510441 | V9: 0.0492541978 | W9: 0.050621382 | X9: 0.05174859426 | Y9: 0.05329619521 | Z9: 0.05436576939 | AA9: 0.05523775002 | AB9: 0.05604665299 | AC9: 0.05669943015 | AD9: 0.05677323002 | AE9: 0.05660386653 | AF9: 0.05663637466 | AG9: 0.05682818643 | AH9: 0.05649010898 | AI9: 0.0563067001 | AJ9: 0.05638838843 | AK9: 0.05654562166 | AL9: 0.05620870757 | AM9: 0.0559942903 | AN9: 0.05603468253 | AO9: 0.05607499313 | AP9: 0.05595551086 | AQ9: 0.05581797288 | AR9: 0.05529347681 | AS9: 0.05477269551 | AT9: 0.05478905063 | AU9: 0.05479548711 | AV9: 0.05480310147 | AW9: 0.05480858954 | AX9: 0.05480924431 | AY9: 0.05481219662 | AZ9: 0.05481853259 | BA9: 0.05482552095
A10: 0.007000029087 | C10: 3 | D10: 0.04346117085 | E10: 0.05715599882 | F10: 0.06867067366 | G10: 0.07148605155 | H10: 0.06036035654 | I10: 0.05975619079 | J10: 0.06613083465 | K10: 0.06632647541 | L10: 0.06100129995 | M10: 0.0556825371 | N10: 0.04945530229 | O10: 0.04437180541 | P10: 0.03779488775 | Q10: 0.04108080055 | R10: 0.04535380033 | S10: 0.04628526614 | T10: 0.04746370086 | U10: 0.04910253582 | V10: 0.04964316356 | W10: 0.04957225709 | X10: 0.05091595677 | Y10: 0.05201807682 | Z10: 0.05350579765 | AA10: 0.05450644441 | AB10: 0.05527008455 | AC10: 0.05596003986 | AD10: 0.05653717669 | AE10: 0.05652775791 | AF10: 0.05636960666 | AG10: 0.05637541276 | AH10: 0.05651995563 | AI10: 0.05609852487 | AJ10: 0.05592378277 | AK10: 0.05602658939 | AL10: 0.05618599608 | AM10: 0.05584295797 | AN10: 0.05562801364 | AO10: 0.05566828435 | AP10: 0.05573638579 | AQ10: 0.05564161121 | AR10: 0.05551574373 | AS10: 0.05500735666 | AT10: 0.05449241852 | AU10: 0.05451196635 | AV10: 0.0545226906 | AW10: 0.05453142709 | AX10: 0.05453639795 | AY10: 0.05454049413 | AZ10: 0.05454630742 | BA10: 0.05455670548
A11: 0.01020002365 | C11: 4 | D11: 0.04493505989 | E11: 0.04378872063 | F11: 0.06138017353 | G11: 0.06620229197 | H11: 0.07058198927 | I11: 0.05930909754 | J11: 0.05962255303 | K11: 0.06654520862 | L11: 0.06565731513 | M11: 0.06182269254 | N11: 0.05576872245 | O11: 0.04938310599 | P11: 0.04433742904 | Q11: 0.03780570519 | R11: 0.04109887244 | S11: 0.04541893036 | T11: 0.04644026624 | U11: 0.04763836331 | V11: 0.04931241925 | W11: 0.04984471944 | X11: 0.04974088768 | Y11: 0.05105639246 | Z11: 0.05209330767 | AA11: 0.05350899074 | AB11: 0.05440014084 | AC11: 0.0550446379 | AD11: 0.05565894816 | AE11: 0.05615091466 | AF11: 0.05615234219 | AG11: 0.05596934586 | AH11: 0.0559300041 | AI11: 0.05598908536 | AJ11: 0.05557897803 | AK11: 0.05542745281 | AL11: 0.05553186514 | AM11: 0.05568105626 | AN11: 0.05533889619 | AO11: 0.05512596027 | AP11: 0.05519365463 | AQ11: 0.05528508421 | AR11: 0.05520252198 | AS11: 0.05509145977 | AT11: 0.05459052979 | AU11: 0.05408313598 | AV11: 0.05410721016 | AW11: 0.05411936004 | AX11: 0.05412785903 | AY11: 0.05413650647 | AZ11: 0.05414369825 | BA11: 0.05415378022
A12: 0.01419997215 | C12: 5 | D12: 0.04079389374 | E12: 0.04513686841 | F12: 0.04673862333 | G12: 0.05906379039 | H12: 0.06516988208 | I12: 0.06918318792 | J12: 0.05900790942 | K12: 0.05981962923 | L12: 0.06575469351 | M12: 0.06636968083 | N12: 0.06178618729 | O12: 0.05556917002 | P12: 0.04924046686 | Q12: 0.04425670286 | R12: 0.03774317116 | S12: 0.04107226888 | T12: 0.04547631212 | U12: 0.04651375586 | V12: 0.04774129521 | W12: 0.04940754609 | X12: 0.04990716794 | Y12: 0.0497697868 | Z12: 0.05101738493 | AA12: 0.05197936242 | AB12: 0.05328402759 | AC12: 0.05405572783 | AD12: 0.05462522877 | AE12: 0.0551545907 | AF12: 0.05565308838 | AG12: 0.05562919197 | AH12: 0.05540392092 | AI12: 0.05528233967 | AJ12: 0.05534808485 | AK12: 0.05496422931 | AL12: 0.05481631292 | AM12: 0.05491039016 | AN12: 0.05505545818 | AO12: 0.05471714537 | AP12: 0.05453406205 | AQ12: 0.05462472005 | AR12: 0.05472709143 | AS12: 0.0546595293 | AT12: 0.05455350158 | AU12: 0.0540614536 | AV12: 0.05356394461 | AW12: 0.05358959122 | AX12: 0.05360173087 | AY12: 0.05361408632 | AZ12: 0.05362598748 | BA12: 0.05363760101
A13: 0.01880002022 | C13: 6 | D13: 0.05221027211 | E13: 0.04082180867 | F13: 0.04780863912 | G13: 0.04487003048 | H13: 0.05792505022 | I13: 0.06368269049 | J13: 0.06858609495 | K13: 0.05898458472 | L13: 0.05897512873 | M13: 0.06625314867 | N13: 0.06615309631 | O13: 0.06140149625 | P13: 0.05526184492 | Q13: 0.04902113184 | R13: 0.04406765765 | S13: 0.03762045059 | T13: 0.04101709459 | U13: 0.04542904663 | V13: 0.04649136419 | W13: 0.04770622007 | X13: 0.04933673647 | Y13: 0.04980034325 | Z13: 0.04959425899 | AA13: 0.05076249912 | AB13: 0.05161438521 | AC13: 0.05279668091 | AD13: 0.05349256958 | AE13: 0.0539780017 | AF13: 0.05451222835 | AG13: 0.054980434 | AH13: 0.05491411058 | AI13: 0.05461086935 | AJ13: 0.05449828047 | AK13: 0.05458467385 | AL13: 0.05420733737 | AM13: 0.05405180207 | AN13: 0.05414183337 | AO13: 0.05428479313 | AP13: 0.05397840283 | AQ13: 0.05382121665 | AR13: 0.05392306506 | AS13: 0.05403870252 | AT13: 0.05397635388 | AU13: 0.05387606592 | AV13: 0.05339550685 | AW13: 0.05290629506 | AX13: 0.05293207533 | AY13: 0.05294827769 | AZ13: 0.05296407495 | BA13: 0.05298053896
A14: 0.02389997244 | C14: 7 | D14: 0.0574793163 | E14: 0.0520174253 | F14: 0.04285441787 | G14: 0.04577403616 | H14: 0.04381478817 | I14: 0.05640319988 | J14: 0.06287290892 | K14: 0.06826709007 | L14: 0.05800005542 | M14: 0.05920046246 | N14: 0.06583329437 | O14: 0.06553976575 | P14: 0.06087534955 | Q14: 0.05484831367 | R14: 0.04866417351 | S14: 0.04379239714 | T14: 0.03745713412 | U14: 0.04085079156 | V14: 0.04526914201 | W14: 0.04631478611 | X14: 0.04749048363 | Y14: 0.04907672095 | Z14: 0.04946647816 | AA14: 0.04918628816 | AB14: 0.05024159331 | AC14: 0.0509752109 | AD14: 0.05207671112 | AE14: 0.05268731673 | AF14: 0.05317672635 | AG14: 0.05367971426 | AH14: 0.05409968441 | AI14: 0.05395540519 | AJ14: 0.05366461829 | AK14: 0.0535753582 | AL14: 0.05366071416 | AM14: 0.05327954503 | AN14: 0.05312362481 | AO14: 0.05321194227 | AP14: 0.05337933912 | AQ14: 0.05310126637 | AR14: 0.05295954527 | AS14: 0.05307473754 | AT14: 0.05319338436 | AU14: 0.05313686447 | AV14: 0.05304397042 | AW14: 0.05257343471 | AX14: 0.05209258769 | AY14: 0.05212248501 | AZ14: 0.05214231542 | BA14: 0.05216281713
A15: 0.02939999104 | C15: 8 | D15: 0.05424970115 | E15: 0.05698801916 | F15: 0.05406536442 | G15: 0.04090818729 | H15: 0.04448246583 | I15: 0.0424959425 | J15: =J49*(1-J$41-J$71)/SUM(J$42:J$70) -> 0.05543052007 | K15: 0.06228381866 | L15: 0.06693281946 | M15: 0.05797990309 | N15: 0.05862355499 | O15: 0.06500066573 | P15: 0.06475737723 | Q15: 0.06021539807 | R15: 0.0542658788 | S15: 0.04819862142 | T15: 0.04345673888 | U15: 0.03718005303 | V15: 0.04056938861 | W15: 0.04494345839 | X15: 0.04594672743 | Y15: 0.04707541222 | Z15: 0.04857483118 | AA15: 0.04888241206 | AB15: 0.04850487205 | AC15: 0.04943908874 | AD15: 0.05009818425 | AE15: 0.05110772523 | AF15: 0.05171840187 | AG15: 0.05217680487 | AH15: 0.0526314477 | AI15: 0.05296660747 | AJ15: 0.05283242032 | AK15: 0.05256887697 | AL15: 0.05248099704 | AM15: 0.0525537559 | AN15: 0.05217705746 | AO15: 0.05202409962 | AP15: 0.05213686361 | AQ15: 0.05232385031 | AR15: 0.05206479888 | AS15: 0.05194121249 | AT15: 0.05205949249 | AU15: 0.05218118334 | AV15: 0.05213201116 | AW15: 0.05204394194 | AX15: 0.05158353458 | AY15: 0.05111657017 | AZ15: 0.05115008075 | BA15: 0.05117473234
A16: 0.03519999981 | C16: 9 | D16: 0.05357658267 | E16: 0.05350204049 | F16: 0.05859113268 | G16: 0.05144336623 | H16: 0.03954662941 | I16: 0.04295989979 | J16: 0.04155552218 | K16: 0.05462910256 | L16: 0.06087481751 | M16: 0.06660868289 | N16: 0.05720180278 | O16: 0.05766866383 | P16: 0.06398857091 | Q16: 0.0638208336 | R16: 0.05935924993 | S16: 0.05355242335 | T16: 0.04765643126 | U16: 0.04297861413 | V16: 0.0367888634 | W16: 0.04012892232 | X16: 0.0444203052 | Y16: 0.04537321274 | Z16: 0.04641515471 | AA16: 0.04781369395 | AB16: 0.04801583813 | AC16: 0.04754235406 | AD16: 0.04839823795 | AE16: 0.04897403175 | AF16: 0.04997244602 | AG16: 0.05054892119 | AH16: 0.05096044547 | AI16: 0.0513312576 | AJ16: 0.05166507407 | AK16: 0.05155519608 | AL16: 0.05129667962 | AM16: 0.05119953437 | AN16: 0.05126675675 | AO16: 0.05089891883 | AP16: 0.05077530466 | AQ16: 0.05090782263 | AR16: 0.05110456025 | AS16: 0.05086735576 | AT16: 0.05075239247 | AU16: 0.05087372559 | AV16: 0.05099935279 | AW16: 0.05095482264 | AX16: 0.05087044565 | AY16: 0.05042561433 | AZ16: 0.04997360362 | BA16: 0.0500117989
A17: 0.04089999199 | C17: 10 | D17: 0.04958741943 | E17: 0.05254245756 | F17: 0.05437295352 | G17: 0.05555922906 | H17: 0.04945628005 | I17: 0.03802085741 | J17: 0.0417879279 | K17: 0.04073172073 | L17: 0.05321598277 | M17: 0.06029144419 | N17: 0.06545663106 | O17: 0.05605043868 | P17: 0.05654979968 | Q17: 0.06281878415 | R17: 0.06267119819 | S17: 0.05835468439 | T17: 0.0527475893 | U17: 0.04695092654 | V17: 0.04236176009 | W17: 0.03624734561 | X17: 0.03950551713 | Y17: 0.04369055325 | Z17: 0.04455505999 | AA17: 0.04549882259 | AB17: 0.04677073551 | AC17: 0.04686702594 | AD17: 0.04634850265 | AE17: 0.04711664804 | AF17: 0.04768868113 | AG17: 0.04864173309 | AH17: 0.04916879643 | AI17: 0.04949950345 | AJ17: 0.04986640289 | AK17: 0.05021139445 | AL17: 0.05010234836 | AM17: 0.04983918104 | AN17: 0.04974070796 | AO17: 0.04980554779 | AP17: 0.04947314313 | AQ17: 0.04937489008 | AR17: 0.04951838436 | AS17: 0.04972599721 | AT17: 0.04950146324 | AU17: 0.04939577831 | AV17: 0.04952097238 | AW17: 0.04964723995 | AX17: 0.04960603199 | AY17: 0.04952944097 | AZ17: 0.04910114091 | BA17: 0.04866666367
A18: 0.04680001736 | C18: 11 | D18: 0.05077665681 | E18: 0.0483612913 | F18: 0.05278572557 | G18: 0.05138566335 | H18: 0.05312140423 | I18: 0.04733660034 | J18: 0.03679115914 | K18: 0.04073914946 | L18: 0.03954818622 | M18: 0.05245808784 | N18: 0.05901901521 | O18: 0.06389212052 | P18: 0.05475194063 | Q18: 0.05530377201 | R18: 0.06145288887 | S18: 0.06137801214 | T18: 0.05726091097 | U18: 0.05176964467 | V18: 0.04610028816 | W18: 0.04157741056 | X18: 0.03554549901 | Y18: 0.0387032996 | Z18: 0.04273073123 | AA18: 0.04349711914 | AB18: 0.04432368996 | AC18: 0.04546408945 | AD18: 0.04550322027 | AE18: 0.04493712047 | AF18: 0.04569334255 | AG18: 0.04623054542 | AH18: 0.04712292259 | AI18: 0.04756765022 | AJ18: 0.04789406194 | AK18: 0.048269188 | AL18: 0.04860002773 | AM18: 0.0484820542 | AN18: 0.0482230116 | AO18: 0.04812717454 | AP18: 0.04821423377 | AQ18: 0.04791380966 | AR18: 0.04783365963 | AS18: 0.04798910681 | AT18: 0.04819702571 | AU18: 0.04798598627 | AV18: 0.04789097297 | AW18: 0.04801672352 | AX18: 0.04814169582 | AY18: 0.04810756363 | AZ18: 0.04803838605 | BA18: 0.04762888177
A19: 0.08850002289 | C19: 12 | D19: 0.04889878126 | E19: 0.04923600382 | F19: 0.04800211004 | G19: 0.04971112798 | H19: 0.04885165633 | I19: 0.05060940597 | J19: 0.04555757235 | K19: 0.03566695983 | L19: 0.03942091009 | M19: 0.03879423721 | N19: 0.05114416401 | O19: 0.05737785702 | P19: 0.06216296145 | Q19: 0.05333283302 | R19: 0.05388775996 | S19: 0.05994878919 | T19: 0.05999157238 | U19: 0.05597784854 | V19: 0.05062994841 | W19: 0.04506558486 | X19: 0.04060763104 | Y19: 0.03468100786 | Z19: 0.03769531789 | AA19: 0.04153907722 | AB19: 0.04219292559 | AC19: 0.04290136041 | AD19: 0.04395342786 | AE19: 0.04393052388 | AF19: 0.04339533902 | AG19: 0.04410952608 | AH19: 0.04459935905 | AI19: 0.04539835923 | AJ19: 0.04583302824 | AK19: 0.04616701226 | AL19: 0.04652473301 | AM19: 0.04683078988 | AN19: 0.04671243505 | AO19: 0.04646220309 | AP19: 0.04639327804 | AQ19: 0.04649804066 | AR19: 0.04622369151 | AS19: 0.04616293303 | AT19: 0.04632001992 | AU19: 0.04652768032 | AV19: 0.04633171559 | AW19: 0.04624470985 | AX19: 0.04636904857 | AY19: 0.04649580022 | AZ19: 0.04646817067 | BA19: 0.046407469
A20: 0.1456999779 | C20: 13 | D20: 0.0453578076 | E20: 0.04547447775 | F20: 0.04467463698 | G20: 0.04408451516 | H20: 0.04534993335 | I20: 0.0450126291 | J20: 0.0468331336 | K20: 0.04240789023 | L20: 0.0336806554 | M20: 0.03732583839 | N20: 0.03674157012 | O20: 0.04831013637 | P20: 0.05424458201 | Q20: 0.05884501762 | R20: 0.05051196599 | S20: 0.05110583912 | T20: 0.05696549111 | U20: 0.05700759765 | V20: 0.05320364624 | W20: 0.04808758381 | X20: 0.04275250564 | Y20: 0.03846792182 | Z20: 0.03277888521 | AA20: 0.03554031852 | AB20: 0.03907353035 | AC20: 0.03960070171 | AD20: 0.04022414065 | AE20: 0.04115726727 | AF20: 0.04114976081 | AG20: 0.04063804997 | AH20: 0.0412876654 | AI20: 0.04169592527 | AJ20: 0.0424488159 | AK20: 0.04287486226 | AL20: 0.04317752019 | AM20: 0.04349457547 | AN20: 0.04377338699 | AO20: 0.04366142053 | AP20: 0.04344951777 | AQ20: 0.0434052739 | AR20: 0.04352383464 | AS20: 0.04328776257 | AT20: 0.04324164761 | AU20: 0.04339927271 | AV20: 0.04360507761 | AW20: 0.04342945662 | AX20: 0.04335379534 | AY20: 0.04347902085 | AZ20: 0.04360564074 | BA20: 0.04358800035
A21: 0.168299973 | C21: 14 | D21: 0.04494468953 | E21: 0.03971227426 | F21: 0.0359460447 | G21: 0.03959671959 | H21: 0.03789382609 | I21: 0.03983917848 | J21: 0.03936737288 | K21: 0.0411168389 | L21: 0.0386889205 | M21: 0.0303160682 | N21: 0.03392420527 | O21: 0.03331436433 | P21: 0.04384676802 | Q21: 0.04930634673 | R21: 0.05353001515 | S21: 0.0460232573 | T21: 0.04665754229 | U21: 0.05199627391 | V21: 0.05202847949 | W21: 0.04850540156 | X21: 0.04377231358 | Y21: 0.03883596321 | Z21: 0.03483829854 | AA21: 0.02958837922 | AB21: 0.03199894928 | AC21: 0.03509999345 | AD21: 0.0355445793 | AE21: 0.03606214761 | AF21: 0.03691544074 | AG21: 0.03690518761 | AH21: 0.03643898696 | AI21: 0.03698556246 | AJ21: 0.03735667113 | AK21: =AK55*(1-AK$41-AK$71)/SUM(AK$42:AK$70) -> 0.03805062435 | AL21: 0.03841573355 | AM21: 0.03866402243 | AN21: 0.03893758291 | AO21: 0.03918501055 | AP21: 0.03910464488 | AQ21: 0.03893399153 | AR21: 0.03892071908 | AS21: 0.03905264673 | AT21: 0.0388560638 | AU21: 0.03882928982 | AV21: 0.03898606018 | AW21: 0.03918296069 | AX21: 0.03903466711 | AY21: 0.03897836946 | AZ21: 0.03910157051 | BA21: 0.03922623357
A22: 0.1869000196 | C22: 15 | D22: 0.03634982862 | E22: 0.03838386829 | F22: 0.02955714002 | G22: 0.031405048 | H22: 0.03321180408 | I22: 0.03264634671 | J22: 0.03404314152 | K22: 0.03373918771 | L22: 0.03699115329 | M22: 0.03410938661 | N22: 0.02709543752 | O22: 0.03025225565 | P22: 0.02973913949 | Q22: 0.03920266142 | R22: 0.04412370986 | S22: 0.04798548628 | T22: 0.04133951123 | U22: 0.04189635442 | V22: 0.04667865037 | W22: 0.04665095985 | X22: 0.04341650523 | Y22: 0.03908928411 | Z22: 0.03456538664 | AA22: 0.03089447438 | AB22: 0.02616908588 | AC22: 0.02823589372 | AD22: 0.03094983356 | AE22: 0.03130708296 | AF22: 0.0317788622 | AG22: 0.03252989592 | AH22: 0.03251799165 | AI22: 0.03207920621 | AJ22: 0.03256515378 | AK22: 0.03290942792 | AL22: 0.03350315593 | AM22: 0.03380192615 | AN22: 0.03400994215 | AO22: 0.03424831848 | AP22: 0.03448349391 | AQ22: 0.03443006398 | AR22: 0.03430601688 | AS22: 0.03431938401 | AT22: 0.03445128824 | AU22: 0.03429272208 | AV22: 0.03428439589 | AW22: 0.03443514279 | AX22: 0.03461906468 | AY22: 0.03449986915 | AZ22: 0.03446081331 | BA22: 0.03458048523
A23: 0.201399982 | C23: 16 | D23: 0.03033957061 | E23: 0.03040018144 | F23: 0.02710945838 | G23: 0.02551518647 | H23: 0.02580287768 | I23: 0.02814904444 | J23: 0.02735749358 | K23: 0.02859031041 | L23: 0.03000264823 | M23: 0.03205023607 | N23: 0.03006183313 | O23: 0.02382900186 | P23: 0.02663397507 | Q23: 0.0262250628 | R23: 0.03460488007 | S23: 0.03901914976 | T23: 0.0425203896 | U23: 0.03661701139 | V23: 0.03709690758 | W23: 0.04127588178 | X23: 0.04117393803 | Y23: 0.03822210692 | Z23: 0.03428866531 | AA23: 0.030201006 | AB23: 0.02691949883 | AC23: 0.02274905417 | AD23: 0.02452987044 | AE23: 0.0268590141 | AF23: 0.0271837635 | AG23: 0.02759421703 | AH23: 0.02824653516 | AI23: 0.02821391853 | AJ23: 0.02783733701 | AK23: 0.02827461019 | AL23: 0.02855636653 | AM23: 0.0290500811 | AN23: 0.02929910196 | AO23: 0.02947720613 | AP23: 0.02969894457 | AQ23: 0.0299181829 | AR23: 0.02989685707 | AS23: 0.02981279604 | AT23: 0.02983941959 | AU23: 0.02996852914 | AV23: 0.02984533036 | AW23: 0.02985006448 | AX23: 0.02999113397 | AY23: 0.0301627451 | AZ23: 0.03006922914 | BA23: 0.03004544138
A24: 0.2128000259 | C24: 17 | D24: 0.02611290776 | E24: 0.02495498484 | F24: 0.02057000441 | G24: 0.02318196435 | H24: 0.0206228314 | I24: 0.02158871643 | J24: 0.02322628982 | K24: 0.02260852704 | L24: 0.02519204099 | M24: 0.02563962375 | N24: 0.02793649216 | O24: 0.02614922843 | P24: 0.02075074068 | Q24: 0.02323253913 | R24: 0.02290049036 | S24: 0.03027485331 | T24: 0.03420652276 | U24: 0.03725887114 | V24: 0.0320716348 | W24: 0.0324449514 | X24: 0.03602801473 | Y24: 0.03584164563 | Z24: 0.03314518548 | AA24: 0.02961010635 | AB24: 0.02600680949 | AC24: 0.02312668654 | AD24: 0.01953239521 | AE24: 0.02103979624 | AF24: 0.02305078604 | AG24: 0.02333124607 | AH24: 0.02368547471 | AI24: 0.02422787482 | AJ24: 0.02420352175 | AK24: 0.02389399622 | AL24: 0.02425329392 | AM24: 0.0244755558 | AN24: 0.02488948671 | AO24: 0.02510079004 | AP24: 0.02526626131 | AQ24: 0.02546953811 | AR24: =AR58*(1-AR$41-AR$71)/SUM(AR$42:AR$70) -> 0.02568056227 | AS24: 0.02568393242 | AT24: 0.02562564814 | AU24: 0.02566187153 | AV24: 0.02578661335 | AW24: 0.02569180966 | AX24: 0.02570509125 | AY24: 0.02583710289 | AZ24: 0.02599457023 | BA24: 0.02592345249
A25: 0.2211999893 | C25: 18 | D25: 0.01980241515 | E25: 0.0211951435 | F25: 0.01630419787 | G25: 0.01745851718 | H25: 0.01849351717 | I25: 0.0170782295 | J25: 0.01759467276 | K25: 0.01894948562 | L25: 0.01977704621 | M25: 0.02129385562 | N25: 0.02215338695 | O25: 0.02408967384 | P25: 0.02257433253 | Q25: 0.01794489985 | R25: 0.02011401849 | S25: 0.01986503934 | T25: 0.02631582741 | U25: 0.02971817141 | V25: 0.032353256 | W25: 0.02780636587 | X25: 0.02807148308 | Y25: 0.03108270895 | Z25: 0.03079869368 | AA25: 0.02835732254 | AB25: 0.02526021345 | AC25: 0.02213393314 | AD25: 0.01967216503 | AE25: 0.01659821092 | AF25: 0.01788990678 | AG25: 0.0196020261 | AH25: 0.01984336066 | AI25: 0.02013115681 | AJ25: 0.02059526983 | AK25: 0.02058647158 | AL25: 0.02030879612 | AM25: 0.02059694284 | AN25: 0.02077752128 | AO25: 0.02112706343 | AP25: 0.02131730836 | AQ25: 0.02146910389 | AR25: 0.02166225882 | AS25: 0.02186107403 | AT25: 0.02187655083 | AU25: 0.02183893332 | AV25: 0.02188210114 | AW25: 0.02199867538 | AX25: 0.0219261912 | AY25: 0.02194697883 | AZ25: 0.02206833231 | BA25: 0.02221138161
A26: 0.2282999754 | C26: 19 | D26: 0.01869996316 | E26: 0.01591477836 | F26: 0.01348389715 | G26: 0.01376122944 | H26: 0.01379250515 | I26: 0.01519830402 | J26: 0.01379125048 | K26: 0.01421811714 | L26: 0.01648719866 | M26: 0.0165809924 | N26: 0.01827899396 | O26: 0.01897970528 | P26: 0.02066268304 | Q26: 0.01939706037 | R26: 0.01543750448 | S26: 0.01733791411 | T26: 0.01715855407 | U26: 0.02271795011 | V26: 0.02564049797 | W26: 0.02786955167 | X26: 0.02390131502 | Y26: 0.02405788122 | Z26: 0.02652900494 | AA26: 0.026168122 | AB26: 0.02402369401 | AC26: 0.02134918618 | AD26: 0.01869761625 | AE26: 0.01660185093 | AF26: 0.01401634956 | AG26: 0.01510923142 | AH26: 0.01655835142 | AI26: 0.0167516694 | AJ26: 0.01699720482 | AK26: 0.01739928391 | AL26: 0.0173788944 | AM26: 0.01712958832 | AN26: 0.01736549964 | AO26: 0.01751614092 | AP26: 0.01781992038 | AQ26: 0.01798990509 | AR26: 0.01813574874 | AS26: 0.01831566982 | AT26: 0.01849488156 | AU26: 0.0185186018 | AV26: 0.01849757436 | AW26: 0.01854312681 | AX26: 0.01864939602 | AY26: 0.01859627872 | AZ26: 0.01862149854 | BA26: 0.01873194886
A27: 0.2332000136 | C27: 20 | D27: 0.013803874 | E27: 0.01490240213 | F27: 0.009893731882 | G27: 0.011327167 | H27: 0.01078157634 | I27: 0.0112614302 | J27: 0.0121773146 | K27: 0.0110540098 | L27: 0.01231413855 | M27: 0.01372712378 | N27: 0.01415472969 | O27: 0.01557444134 | P27: 0.01619064746 | Q27: 0.01765787683 | R27: 0.01659663834 | S27: 0.01323548623 | T27: 0.01489551096 | U27: 0.01473279982 | V27: 0.01949424534 | W27: 0.0219658532 | X27: 0.02382275172 | Y27: 0.02036849625 | Z27: 0.02041535437 | AA27: 0.02240811773 | AB27: 0.02203818827 | AC27: 0.02018407349 | AD27: 0.01792864595 | AE27: 0.01568690949 | AF27: 0.01393747949 | AG27: 0.01176883734 | AH27: 0.01268936157 | AI27: 0.01389812181 | AJ27: 0.01406252628 | AK27: 0.01427714044 | AL27: 0.01460353523 | AM27: 0.01457334344 | AN27: 0.01435818186 | AO27: 0.01455453721 | AP27: 0.01468830233 | AQ27: 0.01495100753 | AR27: 0.01510886233 | AS27: 0.01524569303 | AT27: 0.01540652096 | AU27: 0.01556650853 | AV27: 0.01559589595 | AW27: 0.01558602105 | AX27: 0.01563092201 | AY27: 0.01572778055 | AZ27: 0.01568959296 | BA27: 0.01571734707
A28: 0.2366999984 | C28: 21 | D28: 0.01093256384 | E28: 0.01093622982 | F28: 0.009115143986 | G28: 0.008284078425 | H28: 0.008823415648 | I28: 0.008763388487 | J28: 0.008973972738 | K28: 0.009705197514 | L28: 0.009543436799 | M28: 0.01020334702 | N28: 0.01167351545 | O28: 0.01201448634 | P28: 0.01323537688 | Q28: 0.01378393753 | R28: 0.01505192743 | S28: 0.01417633436 | T28: 0.01132872964 | U28: 0.0127418487 | V28: 0.01259451298 | W28: 0.01663683218 | X28: 0.01870402235 | Y28: 0.02022212359 | Z28: =Z62*(1-Z$41-Z$71)/SUM(Z$42:Z$70) -> 0.01721563056 | AA28: 0.01717388765 | AB28: 0.01879426131 | AC28: 0.01843990376 | AD28: 0.0168810063 | AE28: 0.01498054998 | AF28: 0.01311593705 | AG28: 0.01165532079 | AH28: 0.009844283299 | AI28: 0.01060821486 | AJ28: 0.01162050794 | AK28: 0.01176503316 | AL28: 0.01193505931 | AM28: 0.01219672839 | AN28: 0.01216621883 | AO28: 0.01198542296 | AP28: 0.01215554566 | AQ28: 0.01227383661 | AR28: 0.01250623348 | AS28: 0.01265040699 | AT28: 0.01277310075 | AU28: 0.01291569043 | AV28: 0.01305787882 | AW28: 0.013089272 | AX28: 0.01308658566 | AY28: 0.01313049847 | AZ28: 0.01321755569 | BA28: 0.01319101297
A29: 0.2401999831 | C29: 22 | D29: 0.008854608319 | E29: 0.008624994981 | F29: 0.006610990747 | G29: 0.007614285842 | H29: 0.006426258217 | I29: 0.007148595044 | J29: 0.00695610182 | K29: 0.007123107392 | L29: 0.008359938876 | M29: 0.007880276947 | N29: 0.008653040585 | O29: 0.009881392879 | P29: 0.01018230207 | Q29: 0.01123746213 | R29: 0.01171813463 | S29: 0.01282259196 | T29: 0.01210170048 | U29: 0.009664780062 | V29: 0.01086306697 | W29: 0.01071908834 | X29: 0.01412723554 | Y29: 0.01583251146 | Z29: 0.01704302898 | AA29: 0.01443989281 | AB29: 0.01436184134 | AC29: 0.01567933421 | AD29: 0.0153771084 | AE29: 0.01406401313 | AF29: 0.01248889492 | AG29: 0.01093651052 | AH29: 0.009721263577 | AI29: 0.008206198985 | AJ29: 0.008844369421 | AK29: 0.0096942044 | AL29: 0.009806793349 | AM29: 0.009939267713 | AN29: 0.01015268877 | AO29: 0.01012628257 | AP29: 0.009980906558 | AQ29: 0.01012802083 | AR29: 0.01023727525 | AS29: 0.01044125974 | AT29: 0.01056846365 | AU29: 0.01067755681 | AV29: 0.01080353272 | AW29: 0.01092819479 | AX29: 0.01095924544 | AY29: 0.01096226406 | AZ29: 0.01100386317 | BA29: 0.01108155216
A30: 0.2427999973 | C30: 23 | D30: 0.007362906815 | E30: 0.006956145041 | F30: 0.005152151638 | G30: 0.005509489716 | H30: 0.005882124049 | I30: 0.005189574123 | J30: 0.005652109553 | K30: 0.005498893937 | L30: 0.006121808476 | M30: 0.006879115892 | N30: 0.006664510118 | O30: 0.007304573574 | P30: 0.00835165677 | Q30: 0.008621792275 | R30: 0.009527563031 | S30: 0.009955864376 | T30: 0.01091682413 | U30: 0.0102964555 | V30: 0.008217367639 | W30: 0.009220148905 | X30: 0.009076965553 | Y30: 0.01192472876 | Z30: 0.01330522782 | AA30: 0.01425323446 | AB30: 0.01203991238 | AC30: 0.01194615899 | AD30: 0.01303666215 | AE30: 0.01277357761 | AF30: 0.01169058215 | AG30: 0.01038339213 | AH30: 0.009095395478 | AI30: 0.00808039306 | AJ30: 0.006822108209 | AK30: 0.00735711629 | AL30: 0.008057363441 | AM30: 0.008143247741 | AN30: 0.008249540265 | AO30: 0.008425822997 | AP30: 0.008408210407 | AQ30: 0.00829197246 | AR30: 0.008423119845 | AS30: 0.008522378012 | AT30: 0.008697909642 | AU30: 0.008809401 | AV30: 0.008906012248 | AW30: 0.009015892517 | AX30: 0.009123977065 | AY30: 0.009154368657 | AZ30: 0.009160961378 | BA30: 0.009199710973
A31: 0.2429000139 | C31: 24 | D31: 0.005981598353 | E31: 0.005766050911 | F31: 0.004118302294 | G31: 0.004286211332 | H31: 0.004242947588 | I31: 0.004738675934 | J31: 0.00409120667 | K31: 0.004454474095 | L31: 0.004717911884 | M31: 0.005024423692 | N31: 0.005805856356 | O31: 0.005614459492 | P31: 0.006161209517 | Q31: 0.007057409122 | R31: 0.007295226088 | S31: 0.00807860147 | T31: 0.008459296888 | U31: 0.009269726062 | V31: 0.008736759337 | W31: 0.006960354021 | X31: 0.007791559866 | Y31: 0.007645764172 | Z31: 0.009999814676 | AA31: 0.01110298716 | AB31: 0.0118581753 | AC31: 0.009992750604 | AD31: 0.009910962564 | AE31: 0.01080578086 | AF31: 0.01059483119 | AG31: 0.00969861811 | AH31: 0.008616817902 | AI31: 0.007544002189 | AJ31: 0.006703160525 | AK31: 0.005662799521 | AL31: 0.006101760849 | AM31: 0.006676145695 | AN31: 0.006744237575 | AO31: 0.006831565937 | AP31: 0.00698112103 | AQ31: 0.006970298215 | AR31: 0.006881309829 | AS31: 0.006997106952 | AT31: 0.007084273658 | AU31: 0.007234777743 | AV31: 0.007332241167 | AW31: 0.007416655441 | AX31: 0.007511539312 | AY31: 0.007605343094 | AZ31: 0.007634108042 | BA31: 0.007642953262
A32: 0.2455999851 | C32: 25 | D32: 0.005001177209 | E32: 0.00468374913 | F32: 0.003412542814 | G32: 0.003425893892 | H32: 0.003300486076 | I32: 0.003417826619 | J32: 0.00373531966 | K32: 0.003223935102 | L32: 0.0038215768 | M32: 0.003871801504 | N32: 0.004240192011 | O32: 0.004890709572 | P32: 0.004735273258 | Q32: 0.00520600749 | R32: 0.005971080156 | S32: 0.006185285586 | T32: 0.006863697947 | U32: 0.007182428681 | V32: 0.007864945392 | W32: 0.00739971227 | X32: 0.005881434823 | Y32: 0.006562503323 | Z32: 0.006411041109 | AA32: 0.008343973607 | AB32: 0.009236501368 | AC32: 0.009841079809 | AD32: 0.00828964552 | AE32: 0.008214271759 | AF32: 0.008961923624 | AG32: 0.008788838894 | AH32: 0.008047880246 | AI32: 0.007146466068 | AJ32: 0.006257677048 | AK32: 0.005563607179 | AL32: 0.004696159178 | AM32: 0.005055358043 | AN32: 0.005528722763 | AO32: 0.005584536701 | AP32: 0.005659745113 | AQ32: 0.005786777078 | AR32: 0.005784004308 | AS32: 0.005715849641 | AT32: 0.005815905365 | AU32: 0.005892099056 | AV32: 0.006021158871 | AW32: 0.006105569785 | AX32: 0.006178642465 | AY32: 0.00626077947 | AZ32: 0.006341815993 | BA32: 0.0063685924
A33: 0.2458000183 | C33: 26 | D33: 0.004118586296 | E33: 0.003903202459 | F33: 0.002746157572 | G33: 0.002833630603 | H33: 0.002629499263 | I33: 0.002651956248 | J33: 0.002685948563 | K33: 0.002934159859 | L33: 0.002761003919 | M33: 0.003127781964 | N33: 0.003260490253 | O33: 0.003564253916 | P33: 0.004116135541 | Q33: 0.003992723052 | R33: 0.004395462091 | S33: 0.005052107321 | T33: 0.005244225765 | U33: 0.005815526776 | V33: 0.00608115824 | W33: 0.006647176595 | X33: 0.006239272228 | Y33: 0.004942881161 | Z33: 0.005490478964 | AA33: 0.005337300255 | AB33: 0.006925428338 | AC33: 0.007647805835 | AD33: 0.008145233758 | AE33: 0.006854919064 | AF33: 0.006797201662 | AG33: 0.007417520133 | AH33: 0.007276622233 | AI33: 0.006659758018 | AJ33: 0.005914735492 | AK33: 0.005182316757 | AL33: 0.004603591466 | AM33: 0.003882071175 | AN33: 0.004177076196 | AO33: 0.00456772502 | AP33: 0.004616200431 | AQ33: 0.004680906909 | AR33: 0.004791160291 | AS33: 0.004793684272 | AT33: 0.004740392713 | AU33: 0.004826475718 | AV33: 0.004892899966 | AW33: 0.005002809809 | AX33: 0.005075260057 | AY33: 0.005138568971 | AZ33: 0.005209250255 | BA33: 0.005279015106
A34: 0.2466999888 | C34: 27 | D34: 0.003722600767 | E34: 0.003213594355 | F34: 0.002286914944 | G34: 0.002279984795 | H34: 0.002174393259 | I34: 0.002112420381 | J34: 0.002083607122 | K34: 0.002109363166 | L34: 0.002512509671 | M34: 0.002259301241 | N34: 0.002633524444 | O34: 0.002740296756 | P34: 0.002999288506 | Q34: 0.003470131772 | R34: 0.003370556421 | S34: 0.003718410677 | T34: 0.004282796231 | U34: 0.004442680345 | V34: 0.004923072848 | W34: 0.00513877204 | X34: 0.005603858056 | Y34: 0.005242766072 | Z34: 0.004134748888 | AA34: 0.004570145484 | AB34: 0.004429162601 | AC34: 0.005733266732 | AD34: 0.00632884133 | AE34: 0.006734366086 | AF34: 0.005671401965 | AG34: 0.005624901986 | AH34: 0.006140233147 | AI34: 0.006020533949 | AJ34: 0.005511003505 | AK34: 0.004897500404 | AL34: 0.004287382436 | AM34: 0.003804915887 | AN34: 0.003207091768 | AO34: 0.003450443381 | AP34: 0.003775068464 | AQ34: 0.003817202589 | AR34: 0.003874911219 | AS34: 0.003970175024 | AT34: 0.003974947082 | AU34: 0.003933288169 | AV34: 0.004007331951 | AW34: 0.004064708122 | AX34: 0.00415791317 | AY34: 0.004220237917 | AZ34: 0.004274828414 | BA34: 0.004335551303
A35: 0.247699976 | C35: 28 | D35: 0.003234682968 | E35: 0.002901431692 | F35: 0.001876958278 | G35: 0.00189754743 | H35: 0.001747661431 | I35: 0.001745340145 | J35: 0.001658012522 | K35: 0.001634589865 | L35: 0.001805177286 | M35: 0.002054112836 | N35: 0.001900923865 | O35: =O69*(1-O$41-O$71)/SUM(O$42:O$70) -> 0.00221179094 | P35: 0.002304306776 | Q35: 0.002526790197 | R35: 0.002927354373 | S35: 0.002849400626 | T35: 0.003150007764 | U35: 0.003625672601 | V35: 0.003758263192 | W35: 0.004157202506 | X35: 0.004329102024 | Y35: 0.00470540582 | Z35: 0.004382345384 | AA35: 0.003439054713 | AB35: 0.00378964165 | AC35: 0.003663909435 | AD35: 0.004740879457 | AE35: 0.005228629586 | AF35: 0.005567449379 | AG35: 0.004689732145 | AH35: 0.004652818533 | AI35: 0.005076530787 | AJ35: 0.004978336773 | AK35: 0.00455981587 | AL35: 0.004048726608 | AM35: 0.003540907831 | AN35: 0.003140987728 | AO35: 0.002647201333 | AP35: 0.002849527686 | AQ35: 0.003119311135 | AR35: =AR69*(1-AR$41-AR$71)/SUM(AR$42:AR$70) -> 0.003157562796 | AS35: 0.003208538291 | AT35: 0.00328964694 | AU35: 0.003295730089 | AV35: 0.003263329385 | AW35: 0.003326590304 | AX35: 0.003375768514 | AY35: 0.003454910204 | AZ35: 0.003508301621 | BA35: 0.00355526517
A36: 0.2480000257 | C36: 29 | D36: 0.002624576207 | E36: 0.002518065288 | F36: 0.00168870486 | G36: 0.001556337793 | H36: 0.001452766142 | I36: 0.001401499728 | J36: 0.001368345799 | K36: 0.001299176943 | L36: 0.001397955246 | M36: 0.001474354889 | N36: 0.001726910512 | O36: 0.00159525088 | P36: 0.001858426996 | Q36: 0.001939776483 | R36: 0.002129911233 | S36: 0.002472820702 | T36: 0.002411979236 | U36: 0.002664626955 | V36: 0.003064724742 | W36: 0.00317109665 | X36: 0.003499397961 | Y36: 0.003632082793 | Z36: 0.003929924427 | AA36: 0.003641914537 | AB36: 0.002849299852 | AC36: 0.003132215325 | AD36: 0.003027149522 | AE36: 0.003913417377 | AF36: 0.004318988878 | AG36: 0.004599917467 | AH36: 0.003876036168 | AI36: 0.003843607916 | AJ36: 0.004194277267 | AK36: 0.004115685977 | AL36: 0.003766436538 | AM36: 0.003341015263 | AN36: 0.002920602749 | AO36: 0.002590468301 | AP36: 0.002184345961 | AQ36: 0.002352574907 | AR36: =AR70*(1-AR$41-AR$71)/SUM(AR$42:AR$70) -> 0.002578125869 | AS36: 0.00261238843 | AT36: 0.002656369458 | AU36: 0.002725288271 | AV36: 0.002732127043 | AW36: 0.002706762491 | AX36: 0.002760506993 | AY36: 0.002802729517 | AZ36: 0.002869754857 | BA36: 0.002915406197
A37: 0.7 | C37: 30 | D37: 0.02976141245 | E37: =D37 -> 0.02976141245 | F37: =E37 -> 0.02976141245 | G37: 0.02976141245 | H37: 0.02976141245 | I37: 0.02976141245 | J37: 0.02976141245 | K37: 0.02976141245 | L37: 0.02976141245 | M37: 0.02976141245 | N37: 0.02976141245 | O37: 0.02976141245 | P37: 0.02976141245 | Q37: 0.02976141245 | R37: 0.02976141245 | S37: 0.02976141245 | T37: 0.02976141245 | U37: 0.02976141245 | V37: 0.02976141245 | W37: 0.02976141245 | X37: 0.02976141245 | Y37: 0.02976141245 | Z37: 0.02976141245 | AA37: 0.02976141245 | AB37: 0.02976141245 | AC37: 0.02976141245 | AD37: 0.02976141245 | AE37: 0.02976141245 | AF37: 0.02976141245 | AG37: 0.02976141245 | AH37: 0.02976141245 | AI37: 0.02976141245 | AJ37: 0.02976141245 | AK37: 0.02976141245 | AL37: 0.02976141245 | AM37: 0.02976141245 | AN37: 0.02976141245 | AO37: 0.02976141245 | AP37: 0.02976141245 | AQ37: 0.02976141245 | AR37: =AQ37 -> 0.02976141245 | AS37: =AR37 -> 0.02976141245 | AT37: =AS37 -> 0.02976141245 | AU37: =AT37 -> 0.02976141245 | AV37: =AU37 -> 0.02976141245 | AW37: =AV37 -> 0.02976141245 | AX37: =AW37 -> 0.02976141245 | AY37: =AX37 -> 0.02976141245 | AZ37: =AY37 -> 0.02976141245 | BA37: =AZ37 -> 0.02976141245
C39: Intermediate table
C40: age | D40: 2011 | E40: 2012 | F40: 2013 | G40: 2014 | H40: 2015 | I40: 2016 | J40: 2017 | K40: 2018 | L40: 2019 | M40: 2020 | N40: 2021 | O40: 2022 | P40: 2023 | Q40: 2024 | R40: 2025 | S40: 2026 | T40: 2027 | U40: 2028 | V40: 2029 | W40: 2030 | X40: 2031 | Y40: 2032 | Z40: 2033 | AA40: 2034 | AB40: 2035 | AC40: 2036 | AD40: 2037 | AE40: 2038 | AF40: 2039 | AG40: 2040 | AH40: 2041 | AI40: 2042 | AJ40: 2043 | AK40: 2044 | AL40: 2045 | AM40: 2046 | AN40: 2047 | AO40: 2048 | AP40: 2049 | AQ40: 2050 | AR40: 2051 | AS40: 2052 | AT40: 2053 | AU40: 2054 | AV40: 2055 | AW40: 2056 | AX40: 2057 | AY40: 2058 | AZ40: 2059 | BA40: 2060
C41: 0 | D41: =D7 -> 0.06767408396 | E41: =E2 -> 0.05831426035 | F41: =F2 -> 0.06336022739 | G41: 0.06767408396 | H41: 0.06660214785 | I41: 0.06084386483 | J41: 0.05469655067 | K41: 0.04885319924 | L41: 0.04343712088 | M41: 0.03754614624 | N41: 0.04086324292 | O41: 0.04502940369 | P41: 0.04585458924 | Q41: 0.04688003535 | R41: 0.04834235891 | S41: 0.04873513866 | T41: 0.04862861457 | U41: 0.04995762929 | V41: 0.05111230461 | W41: 0.05270625536 | X41: 0.0538649033 | Y41: 0.05487173909 | Z41: 0.05586145234 | AA41: 0.05674596956 | AB41: 0.05701626359 | AC41: 0.05700482886 | AD41: 0.05711072424 | AE41: 0.05732051227 | AF41: 0.05705317839 | AG41: 0.05700108046 | AH41: 0.05716291929 | AI41: 0.05729256466 | AJ41: 0.05692593083 | AK41: 0.05671392645 | AL41: 0.05676517678 | AM41: 0.05680781983 | AN41: 0.05665809614 | AO41: 0.05646603318 | AP41: 0.05590037731 | AQ41: 0.05534968539 | AR41: =AR2 -> 0.05534968539 | AS41: 0.05534968539 | AT41: 0.05534968539 | AU41: 0.05534968539 | AV41: 0.05534968539 | AW41: 0.05534968539 | AX41: 0.05534968539 | AY41: 0.05534968539 | AZ41: 0.05534968539 | BA41: 0.05534968539
C42: 1 | D42: =D8 -> 0.06281508808 | E42: =MAX(D7*(1-D$3*$A7),0) -> 0.0674645169 | F42: =MAX(E7*(1-E$3*$A7),0) -> 0.05795288254 | G42: 0.0632391901 | H42: 0.0674670565 | I42: 0.0664351572 | J42: 0.06066625548 | K42: 0.05453165726 | L42: 0.04876243429 | M42: 0.04332216965 | N42: 0.03746386493 | O42: 0.04077425573 | P42: 0.04493162724 | Q42: 0.04575544219 | R42: 0.04677930602 | S42: 0.04823911581 | T42: 0.04863115189 | U42: 0.04852429253 | V42: 0.04984969399 | W42: 0.05100094964 | X42: 0.05259039623 | Y42: 0.05374486633 | Z42: 0.0547474487 | AA42: 0.05573264885 | AB42: 0.0566144631 | AC42: 0.0568839557 | AD42: 0.05687314462 | AE42: 0.05697915492 | AF42: 0.05718877779 | AG42: 0.05692250404 | AH42: 0.05687126157 | AI42: 0.05703338239 | AJ42: 0.0571627483 | AK42: 0.05679709155 | AL42: 0.05658498406 | AM42: 0.05663559356 | AN42: 0.05667786598 | AO42: 0.05652841645 | AP42: 0.05633679854 | AQ42: 0.0557725075 | AR42: =MAX(AQ7*(1-AQ$3*$A7),0) -> 0.05522362973 | AS42: 0.05522410773 | AT42: 0.05522449319 | AU42: 0.05522485806 | AV42: 0.05522521727 | AW42: 0.05522554678 | AX42: 0.05522583854 | AY42: 0.05522611237 | AZ42: 0.05522636494 | BA42: 0.05522659603
C43: 2 | D43: 0.0565362041 | E43: =MAX(D8*(1-D$3*$A8),0) -> 0.06262056791 | F43: 0.06799840385 | G43: 0.06294448761 | H43: 0.06102682853 | I43: 0.06688080308 | J43: 0.06543556222 | K43: 0.06072410709 | L43: 0.05512390828 | M43: 0.04833321609 | N43: 0.04405660577 | O43: 0.03761499705 | P43: 0.04081486205 | Q43: 0.04500704275 | R43: 0.04588062848 | S43: 0.04691375799 | T43: 0.04842468671 | U43: 0.04891070382 | V43: 0.04881979287 | W43: 0.05018369254 | X43: 0.05133267869 | Y43: 0.05289835596 | Z43: 0.05402641857 | AA43: 0.0549643007 | AB43: 0.05588012004 | AC43: 0.0566514175 | AD43: 0.05680064904 | AE43: 0.05671473186 | AF43: 0.0567370787 | AG43: 0.05695651959 | AH43: 0.05666489969 | AI43: 0.05656735587 | AJ43: 0.05664194561 | AK43: 0.05677806363 | AL43: 0.05643596886 | AM43: 0.05622847099 | AN43: 0.05627069701 | AO43: 0.05631096289 | AP43: 0.05616270019 | AQ43: 0.05600057425 | AR43: 0.05546404534 | AS43: 0.05492889419 | AT43: 0.05494251659 | AU43: 0.0549460425 | AV43: 0.05494969157 | AW43: 0.05495436312 | AX43: 0.05495581255 | AY43: 0.05495558245 | AZ43: 0.05495929661 | BA43: 0.05496241633
C44: 3 | D44: 0.04346117085 | E44: 0.05635582162 | F44: 0.06310419338 | G44: 0.07385096683 | H44: 0.06073678675 | I44: 0.06049192859 | J44: 0.06586865772 | K44: 0.06549195927 | L44: 0.06138014942 | M44: 0.05463430092 | N44: 0.04914933211 | O44: 0.04423140763 | P44: 0.03764997381 | Q44: 0.0408806828 | R44: 0.04512723616 | S44: 0.04600951284 | T44: 0.04709117835 | U44: 0.04869987836 | V44: 0.04920532808 | W44: 0.04914363871 | X44: 0.0505067333 | Y44: 0.05162977832 | Z44: 0.05317181477 | AA44: 0.05423661535 | AB44: 0.05510585904 | AC44: 0.05591265332 | AD44: 0.0565644817 | AE44: 0.05663847418 | AF44: 0.05646983636 | AG44: 0.05650272343 | AH44: 0.05669483869 | AI44: 0.05635821695 | AJ44: 0.0561752508 | AK44: 0.05625689777 | AL44: 0.05641316554 | AM44: 0.05607650576 | AN44: 0.05586231525 | AO44: 0.05590254263 | AP44: 0.05594276375 | AQ44: 0.05582363564 | AR44: 0.05568699791 | AS44: 0.05516422454 | AT44: 0.0546450536 | AU44: 0.05466174274 | AV44: 0.05466853065 | AW44: 0.05467646351 | AX44: 0.05468223656 | AY44: 0.0546831692 | AZ44: 0.05468637241 | BA44: 0.05469292965
C45: 4 | D45: 0.04493505989 | E45: 0.04317568374 | F45: 0.05640466496 | G45: 0.0683924089 | H45: 0.07102216548 | I45: 0.06003933059 | J45: 0.05938617831 | K45: 0.06570794039 | L45: 0.06606508085 | M45: 0.06065886657 | N45: 0.05542369239 | O45: 0.04922685185 | P45: 0.04416742955 | Q45: 0.03762154148 | R45: 0.04089356369 | S45: 0.04514833842 | T45: 0.04607577624 | U45: 0.04724771257 | V45: 0.04887750083 | W45: 0.04941374527 | X45: 0.04934110852 | Y45: 0.05067527263 | Z45: 0.05176814154 | AA45: 0.05324409948 | AB45: 0.05423850022 | AC45: 0.05499802652 | AD45: 0.05568582903 | AE45: 0.05626089283 | AF45: 0.05625218558 | AG45: 0.05609573952 | AH45: 0.05610306175 | AI45: 0.05624827082 | AJ45: 0.05582889559 | AK45: 0.05565529832 | AL45: 0.05575638983 | AM45: 0.05591392694 | AN45: 0.05557198006 | AO45: 0.0553579364 | AP45: 0.05539802299 | AQ45: 0.05546594231 | AR45: 0.05537280993 | AS45: 0.05524856749 | AT45: 0.05474343968 | AU45: 0.05423173412 | AV45: 0.05425193886 | AW45: 0.05426330049 | AX45: 0.05427260514 | AY45: 0.05427812473 | AZ45: 0.05428272943 | BA45: 0.05428899832
C46: 5 | D46: 0.04079389374 | E46: 0.04450495761 | F46: 0.04294996638 | G46: 0.06101775004 | H46: 0.06557630633 | I46: 0.070034994 | J46: 0.05877397146 | K46: 0.05906698188 | L46: 0.066163064 | M46: 0.0651202568 | N46: 0.06140392837 | O46: 0.05539334242 | P46: 0.04905166804 | Q46: 0.04404111427 | R46: 0.03755462576 | S46: 0.04082757301 | T46: 0.04511938779 | U46: 0.04613232728 | V46: 0.04732023356 | W46: 0.04898035186 | X46: 0.04950605235 | Y46: 0.04939827107 | Z46: 0.0506989347 | AA46: 0.05172204343 | AB46: 0.0531257033 | AC46: 0.05400995385 | AD46: 0.05465161039 | AE46: 0.05526261745 | AF46: 0.05575204406 | AG46: 0.05575481748 | AH46: 0.05557535076 | AI46: 0.05553825345 | AJ46: 0.05559696417 | AK46: 0.05519017065 | AL46: 0.05503794452 | AM46: 0.05514003774 | AN46: 0.05528734823 | AO46: 0.05494740116 | AP46: 0.0547359881 | AQ46: 0.05480341785 | AR46: 0.05489591279 | AS46: 0.05481540526 | AT46: 0.05470630776 | AU46: 0.05420999216 | AV46: 0.05370722015 | AW46: 0.05373212265 | AX46: 0.05374507004 | AY46: 0.05375433795 | AZ46: 0.05376368927 | BA46: 0.05377153024
C47: 6 | D47: 0.05221027211 | E47: 0.0402503082 | F47: 0.04393324613 | G47: 0.04635442944 | H47: 0.05828629293 | I47: 0.06446677264 | J47: 0.0683141841 | K47: 0.05824244385 | L47: 0.05934139464 | M47: 0.06500591838 | N47: 0.06574382019 | O47: 0.06120721446 | P47: 0.05504995881 | Q47: 0.04878233418 | R47: 0.04384751838 | S47: 0.03739631958 | T47: 0.04069516877 | U47: 0.04505651303 | V47: 0.04608132649 | W47: 0.04729373607 | X47: 0.04894020556 | Y47: 0.04942859943 | Z47: 0.04928469191 | AA47: 0.0505112041 | AB47: 0.05146102198 | AC47: 0.05275197309 | AD47: 0.05351840418 | AE47: 0.05408372397 | AF47: 0.05460915548 | AG47: 0.05510459444 | AH47: 0.05508402486 | AI47: 0.05486367475 | AJ47: 0.05474333855 | AK47: 0.05480905495 | AL47: 0.05442650677 | AM47: 0.05427785884 | AN47: 0.05436987528 | AO47: 0.05451322953 | AP47: 0.05417827141 | AQ47: 0.05399728589 | AR47: 0.05408940617 | AS47: 0.05419280802 | AT47: 0.05412754344 | AU47: 0.05402409512 | AV47: 0.05353833185 | AW47: 0.05304700914 | AX47: 0.05307362373 | AY47: 0.0530867876 | AZ47: 0.05310007706 | BA47: 0.05311282755
C48: 7 | D48: 0.0574793163 | E48: 0.05128918752 | F48: 0.03938061662 | G48: 0.04728834161 | H48: 0.0440880339 | I48: 0.05709765457 | J48: 0.0626236481 | K48: 0.06740815722 | L48: 0.05836026562 | M48: 0.05808600056 | N48: 0.06542599679 | O48: 0.06533238997 | P48: 0.06064194003 | Q48: 0.05458112994 | R48: 0.04842107242 | S48: 0.04353149558 | T48: 0.03716314893 | U48: 0.04051580121 | V48: 0.04486988389 | W48: 0.04591433292 | X48: 0.04710879149 | Y48: 0.04871037874 | Z48: 0.04915770868 | AA48: 0.04894279603 | AB48: 0.05009230909 | AC48: 0.05093204548 | AD48: 0.05210186192 | AE48: 0.05279051104 | AF48: 0.05327127885 | AG48: 0.05380093733 | AH48: 0.05426707871 | AI48: 0.05420517631 | AJ48: 0.05390592771 | AK48: 0.05379559031 | AL48: 0.05387767348 | AM48: 0.05350237205 | AN48: 0.0533473781 | AO48: 0.053435864 | AP48: 0.05357698951 | AQ48: 0.05327498038 | AR48: 0.05312291412 | AS48: 0.05322609405 | AT48: 0.0533423808 | AU48: 0.05328286264 | AV48: 0.05318585511 | AW48: 0.05271326348 | AX48: 0.05223189117 | AY48: 0.05225883469 | AZ48: 0.0522762074 | BA48: 0.05229306393
C49: 8 | D49: 0.05424970115 | E49: 0.05619019366 | F49: 0.04968279805 | G49: 0.04226151979 | H49: 0.04475987546 | I49: 0.04301916647 | J49: =MAX(I14*(1-I$3*$A14),0) -> 0.05521076474 | K49: 0.06150016701 | L49: 0.06734850672 | M49: 0.05688841849 | N49: 0.05826086265 | O49: 0.06479499573 | P49: 0.06450908316 | Q49: 0.05992206955 | R49: 0.05399479448 | S49: 0.04791146894 | T49: 0.04311566533 | U49: 0.03687516397 | V49: 0.04021158068 | W49: 0.04455486216 | X49: 0.04557744282 | Y49: 0.04672400915 | Z49: 0.04827162736 | AA49: 0.04864042424 | AB49: 0.0483607482 | AC49: 0.0493972241 | AD49: 0.05012237951 | AE49: 0.05120782572 | AF49: 0.05181036136 | AG49: 0.05229463397 | AH49: 0.05279429901 | AI49: 0.05321180123 | AJ49: 0.05306998766 | AK49: 0.05278497174 | AL49: 0.05269318656 | AM49: 0.05277354751 | AN49: 0.05239682387 | AO49: 0.05224302277 | AP49: 0.05232991343 | AQ49: 0.05249502111 | AR49: 0.05222540763 | AS49: 0.05208933646 | AT49: 0.05220531286 | AU49: 0.0523245557 | AV49: 0.0522714565 | AW49: 0.05218236243 | AX49: 0.05172147678 | AY49: 0.05125028843 | AZ49: 0.05128142486 | BA49: 0.05130251196
C50: 9 | D50: 0.05357658267 | E50: 0.05275301828 | F50: 0.0538417052 | G50: 0.05314522554 | H50: 0.03979325728 | I50: 0.04348883616 | J50: 0.04139077454 | K50: 0.05394176214 | L50: 0.06125288147 | M50: 0.06535475959 | N50: 0.05684790653 | O50: 0.05748619317 | P50: 0.06374322461 | Q50: 0.06350994184 | R50: 0.05906272176 | S50: 0.05323337457 | T50: 0.0472823961 | U50: 0.04262617491 | V50: 0.0364643984 | W50: 0.03978195418 | X50: 0.0440632888 | Y50: 0.04503451605 | Z50: 0.04612543157 | AA50: 0.04757699672 | AB50: 0.04787316736 | AC50: 0.04750209556 | AD50: 0.04842161221 | AE50: 0.04906995316 | AF50: 0.05006130106 | AG50: 0.0506630741 | AH50: 0.05111812639 | AI50: 0.05156888097 | AJ50: 0.05189739229 | AK50: 0.05176712391 | AL50: 0.05150408074 | AM50: 0.05141366232 | AN50: 0.05148268903 | AO50: 0.0511131071 | AP50: 0.05096331297 | AQ50: 0.05107436107 | AR50: 0.05126220687 | AS50: 0.05101241734 | AT50: 0.05089455162 | AU50: 0.05101350559 | AV50: 0.05113576844 | AW50: 0.05109034641 | AX50: 0.05100648095 | AY50: 0.05055752508 | AZ50: 0.05010192675 | BA50: 0.05013667477
C51: 10 | D51: 0.04958741943 | E51: 0.05180686939 | F51: 0.04996545382 | G51: 0.05739725014 | H51: 0.04976470828 | I51: 0.03848898267 | J51: 0.04162225888 | K51: 0.04021923641 | L51: 0.05354648142 | M51: 0.05915644432 | N51: 0.06505166383 | O51: 0.05587308828 | P51: 0.05633297527 | Q51: 0.06251277371 | R51: 0.06235812524 | S51: 0.05800702523 | T51: 0.0523335958 | U51: 0.04656591301 | V51: 0.04198814407 | W51: 0.03593393889 | X51: 0.03918800204 | Y51: 0.04336441708 | Z51: 0.04427694756 | AA51: 0.04527358492 | AB51: 0.04663176435 | AC51: 0.0468273393 | AD51: 0.04637088698 | AE51: 0.04720893154 | AF51: 0.04777347545 | AG51: 0.04875157906 | AH51: 0.04932093366 | AI51: 0.04972864724 | AJ51: 0.05009063318 | AK51: 0.05041779832 | AL51: 0.05030492061 | AM51: 0.05004761969 | AN51: 0.04995021262 | AO51: 0.05001513503 | AP51: 0.04965632986 | AQ51: 0.04953641373 | AR51: 0.04967113797 | AS51: 0.04986780391 | AT51: 0.04964011849 | AU51: 0.04953149753 | AV51: 0.04965343357 | AW51: 0.04977928597 | AX51: 0.04973868605 | AY51: 0.04965900738 | AZ51: 0.04922722371 | BA51: 0.04878818083
C52: 11 | D52: 0.05077665681 | E52: 0.04768423897 | F52: 0.04850688738 | G52: 0.05308561373 | H52: 0.05345268957 | I52: 0.04791942407 | J52: 0.0366452999 | K52: 0.04022657168 | L52: 0.03979380081 | M52: 0.05147055265 | N52: 0.05865387623 | O52: 0.06368995809 | P52: 0.0545420096 | Q52: 0.05503436959 | R52: 0.06114590196 | S52: 0.06101234093 | T52: 0.05681149432 | U52: 0.05134511601 | V52: 0.04569369962 | W52: 0.04121791831 | X52: 0.03525981151 | Y52: 0.0384143917 | Z52: 0.04246400624 | AA52: 0.04328179071 | AB52: 0.04419198978 | AC52: 0.0454255908 | AD52: 0.04552519635 | AE52: 0.04502513511 | AF52: 0.04577458899 | AG52: 0.04633494628 | AH52: 0.04726872951 | AI52: 0.04778785106 | AJ52: 0.04810942335 | AK52: 0.04846760805 | AL52: 0.04879652584 | AM52: 0.04868481703 | AN52: 0.04842612382 | AO52: 0.048329699 | AP52: 0.04839275907 | AQ52: 0.04807055358 | AR52: 0.04798121622 | AS52: 0.04812596031 | AT52: 0.04833202719 | AU52: 0.04811783195 | AV52: 0.04801907416 | AW52: 0.04814443288 | AX52: 0.04827043402 | AY52: 0.04823341049 | AZ52: 0.04816173989 | BA52: 0.04774780766
C53: 12 | D53: 0.04889878126 | E53: 0.04854670562 | F53: 0.04411103421 | G53: 0.05135568105 | H53: 0.04915631389 | I53: 0.05123252556 | J53: 0.04537695851 | K53: 0.03521820006 | L53: 0.03966573424 | M53: 0.03806392705 | N53: 0.05082774519 | O53: 0.05719630651 | P53: 0.06192461494 | Q53: 0.05307303168 | R53: 0.05361856453 | S53: 0.05959163284 | T53: 0.05952072391 | U53: 0.05551881119 | V53: 0.05018340984 | W53: 0.04467593268 | X53: 0.040281258 | Y53: 0.0344221251 | Z53: 0.03746002393 | AA53: 0.0413334419 | AB53: 0.0420675566 | AC53: 0.04286503187 | AD53: 0.04397465547 | AE53: 0.04401656698 | AF53: 0.04347249943 | AG53: 0.04420913712 | AH53: 0.04473735761 | AI53: 0.04560851795 | AJ53: 0.04603912197 | AK53: 0.0463567909 | AL53: 0.04671284035 | AM53: 0.04702664676 | AN53: 0.04690918482 | AO53: 0.04665772117 | AP53: 0.04656506079 | AQ53: 0.04665015306 | AR53: 0.0463662817 | AS53: 0.04629457872 | AT53: 0.04644976384 | AU53: 0.04665551919 | AV53: 0.046455646 | AW53: 0.04636770621 | AX53: 0.04649304644 | AY53: 0.04661743079 | AZ53: 0.04658749248 | BA53: 0.04652334511
C54: 13 | D54: 0.0453578076 | E54: 0.04483784046 | F54: 0.04105328782 | G54: 0.04554292756 | H54: 0.04563275284 | I54: 0.04556683935 | J54: 0.04664746277 | K54: 0.04187431644 | L54: 0.0338898296 | M54: 0.03662317116 | N54: 0.03651425729 | O54: 0.04815727723 | P54: 0.05403659631 | Q54: 0.05855836466 | R54: 0.05025963428 | S54: 0.05080136634 | T54: 0.05651839308 | U54: 0.05654011601 | V54: 0.05273440855 | W54: 0.04767180242 | X54: 0.04240889374 | Y54: 0.03818077095 | Z54: 0.03257427959 | AA54: 0.03536437949 | AB54: 0.03895743011 | AC54: 0.03956716814 | AD54: 0.04024356717 | AE54: 0.04123787862 | AF54: 0.0412229284 | AG54: 0.0407298215 | AH54: 0.04141541698 | AI54: 0.04188894463 | AJ54: 0.04263969211 | AK54: 0.04305110786 | AL54: 0.04335209419 | AM54: 0.04367647955 | AN54: 0.04395775767 | AO54: 0.04384515261 | AP54: 0.04361040051 | AQ54: 0.04354726872 | AR54: 0.04365809634 | AS54: 0.04341120895 | AT54: 0.0433627689 | AU54: 0.043518516 | AV54: 0.04372171468 | AW54: 0.04354496529 | AX54: 0.04346972997 | AY54: 0.04359275968 | AZ54: 0.0437176121 | BA54: 0.04369683645
C55: 14 | D55: 0.04494468953 | E55: 0.03915630714 | F55: 0.03303223975 | G55: 0.04090666586 | H55: 0.03813014644 | I55: 0.0403296915 | J55: 0.0392113002 | K55: 0.04059950905 | L55: 0.03892919861 | M55: 0.02974536146 | N55: 0.03371432292 | O55: 0.03320895363 | P55: 0.04367864983 | Q55: 0.0490661597 | R55: 0.05326260683 | S55: 0.04574906497 | T55: 0.04629134699 | U55: 0.05156988682 | V55: 0.05156960636 | W55: 0.04808600758 | X55: 0.04342050525 | Y55: 0.03854606502 | Z55: 0.03462083808 | AA55: 0.02944190471 | AB55: 0.03190386993 | AC55: 0.03507027105 | AD55: 0.03556174579 | AE55: 0.03613277957 | AF55: 0.03698107936 | AG55: 0.03698852934 | AH55: 0.03655173584 | AI55: 0.03715677654 | AJ55: 0.0375246499 | AK55: =MAX(AJ20*(1-AJ$3*$A20),0) -> 0.03820703897 | AL55: 0.03857105484 | AM55: 0.03882572405 | AN55: 0.0391015855 | AO55: 0.0393499054 | AP55: 0.03924943964 | AQ55: 0.03906135911 | AR55: 0.03904078116 | AS55: 0.03916401558 | AT55: 0.03896490093 | AU55: 0.03893597669 | AV55: 0.03909034207 | AW55: 0.03928717502 | AX55: 0.03913905174 | AY55: 0.03908033483 | AZ55: 0.03920197623 | BA55: 0.03932417865
C56: 15 | D56: 0.03634982862 | E56: 0.03784649869 | F56: 0.02716122298 | G56: 0.03244399583 | H56: 0.03341892556 | I56: 0.03304829923 | J56: 0.03390817685 | K56: 0.03331468307 | L56: 0.03722088739 | M56: 0.03346726981 | N56: 0.0269278034 | O56: 0.03015653383 | P56: 0.02962511307 | Q56: 0.03901169268 | R56: 0.04390329059 | S56: 0.0476996036 | T56: 0.04101505491 | U56: 0.0415527901 | V56: 0.04626696088 | W56: 0.0462476 | X56: 0.04306755661 | Y56: 0.03879749496 | Z56: 0.03434962969 | AA56: 0.03074153417 | AB56: 0.02609132897 | AC56: 0.02821198378 | AD56: 0.03096478099 | AE56: 0.03136840156 | AF56: 0.03183536758 | AG56: 0.03260335708 | AH56: 0.03261860825 | AI56: 0.03222770772 | AJ56: 0.03271158691 | AK56: 0.03304470863 | AL56: 0.03363861484 | AM56: 0.03394329339 | AN56: 0.03415318983 | AO56: 0.03439243918 | AP56: 0.0346111777 | AQ56: 0.03454269754 | AR56: 0.0344118436 | AS56: 0.03441725472 | AT56: 0.03454778745 | AU56: 0.03438694433 | AV56: 0.03437610152 | AW56: 0.03452672942 | AX56: 0.03471164131 | AY56: 0.03459011899 | AZ56: 0.03454930242 | BA56: 0.03466683021
C57: 16 | D57: 0.03033957061 | E57: 0.02997458251 | F57: 0.02491195168 | G57: 0.02635928477 | H57: 0.02596379426 | I57: 0.0284956247 | J57: 0.02724903429 | K57: 0.02823058866 | L57: 0.03018898012 | M57: 0.03144688324 | N57: 0.02987584651 | O57: 0.02375360401 | P57: 0.02653185454 | Q57: 0.02609731211 | R57: 0.03443201195 | S57: 0.03878668574 | T57: 0.04218666506 | U57: 0.03631673947 | V57: 0.03676972573 | W57: 0.04091899665 | X57: 0.04084301345 | Y57: 0.03793679097 | Z57: 0.03407463565 | AA57: 0.03005149874 | AB57: 0.02683951219 | AC57: 0.02272979045 | AD57: 0.0245417173 | AE57: 0.02691162064 | AF57: 0.02723209842 | AG57: 0.02765653211 | AH57: 0.02833393509 | AI57: 0.0283445268 | AJ57: 0.02796251095 | AK57: 0.02839083857 | AL57: 0.02867182474 | AM57: 0.02917157506 | AN57: 0.02942250789 | AO57: 0.02960124947 | AP57: 0.02980891236 | AQ57: 0.03001605642 | AR57: 0.02998908247 | AS57: 0.02989781504 | AT57: 0.02992300079 | AU57: 0.03005087029 | AV57: 0.02992516215 | AW57: 0.02992945625 | AX57: 0.03007133481 | AY57: 0.03024164926 | AZ57: 0.03014644146 | BA57: 0.03012046268
C58: 17 | D58: 0.02611290776 | E58: 0.02460561802 | F58: 0.01890258922 | G58: 0.02394887455 | H58: 0.02075144325 | I58: 0.02185452378 | J58: 0.02313420877 | K58: 0.02232406777 | L58: 0.02534849654 | M58: 0.02515695212 | N58: 0.02776365461 | O58: 0.0260664891 | P58: 0.02067117776 | Q58: 0.02311936598 | R58: 0.02278609133 | S58: 0.0300944851 | T58: 0.03393805024 | U58: 0.03695333575 | V58: 0.03178877411 | W58: 0.03216442146 | X58: 0.03573844914 | Y58: 0.03557409908 | Z58: 0.03293829342 | AA58: 0.02946352428 | AB58: 0.02592953474 | AC58: 0.02310710304 | AD58: 0.01954182851 | AE58: 0.02108100515 | AF58: 0.02309177219 | AG58: 0.02338393422 | AH58: 0.02375876189 | AI58: 0.02434003084 | AJ58: 0.02431235579 | AK58: 0.02399221722 | AL58: 0.02435135408 | AM58: 0.02457791807 | AN58: 0.02499431962 | AO58: 0.02520641693 | AP58: 0.02535981598 | AQ58: 0.02555285845 | AR58: =MAX(AQ23*(1-AQ$3*$A23),0) -> 0.0257597813 | AS58: 0.02575717688 | AT58: 0.02569742643 | AU58: 0.02573237977 | AV58: 0.02585558869 | AW58: 0.02576014178 | AX58: 0.02577383057 | AY58: 0.02590469139 | AZ58: 0.02606131956 | BA58: 0.02598818148
C59: 18 | D59: 0.01980241515 | E59: 0.02089841401 | F59: 0.01498257117 | G59: 0.01803608319 | H59: 0.0186088498 | I59: 0.01728850225 | J59: 0.01752491835 | K59: 0.01871106421 | L59: 0.01989987185 | M59: 0.02089299405 | N59: 0.02201632833 | O59: 0.02401345119 | P59: 0.02248777756 | Q59: 0.01785748449 | R59: 0.02001353924 | S59: 0.01974668958 | T59: 0.02610928561 | U59: 0.02947447232 | V59: 0.03206791151 | W59: 0.0275659427 | X59: 0.027845866 | Y59: 0.03085068635 | Z59: 0.0306064484 | AA59: 0.02821694226 | AB59: 0.02518515709 | AC59: 0.02211519029 | AD59: 0.01968166584 | AE59: 0.01663072047 | AF59: 0.01792171648 | AG59: 0.01964629269 | AH59: 0.01990475964 | AI59: 0.02022434824 | AJ59: 0.02068787894 | AK59: 0.02067109634 | AL59: 0.02039090801 | AM59: 0.02068308387 | AN59: 0.02086503486 | AO59: 0.02121596845 | AP59: 0.02139624104 | AQ59: 0.02153933732 | AR59: 0.02172908225 | AS59: 0.0219234166 | AT59: 0.02193782777 | AU59: 0.0218989377 | AV59: 0.02194063249 | AW59: 0.02205718493 | AX59: 0.02198482517 | AY59: 0.02200439098 | AZ59: 0.02212499977 | BA59: 0.02226684183
C60: 19 | D60: 0.01869996316 | E60: 0.01569197335 | F60: 0.01239088548 | G60: 0.01421648108 | H60: 0.01387852048 | I60: 0.01538543052 | J60: 0.01373657481 | K60: 0.01403922556 | L60: 0.01658959265 | M60: 0.01626885152 | N60: 0.01816590544 | O60: 0.01891965119 | P60: 0.02058345776 | Q60: 0.01930257107 | R60: 0.01536038668 | S60: 0.01723462018 | T60: 0.01702388384 | U60: 0.02253165521 | V60: 0.02541435768 | W60: 0.02762858217 | X60: 0.02370921455 | Y60: 0.02387829674 | Z60: 0.02636341104 | AA60: 0.02603857916 | AB60: 0.02395231176 | AC60: 0.02133110785 | AD60: 0.01870664639 | AE60: 0.01663436761 | AF60: 0.01404127176 | AG60: 0.01514335208 | AH60: 0.01660958598 | AI60: 0.01682921646 | AJ60: 0.01707363479 | AK60: 0.0174708071 | AL60: 0.0174491602 | AM60: 0.01720122811 | AN60: 0.017438642 | AO60: 0.01758985077 | AP60: 0.01788590311 | AQ60: 0.01804875677 | AR60: 0.01819169364 | AS60: 0.01836790175 | AT60: 0.01854668634 | AU60: 0.01856948327 | AV60: 0.0185470526 | AW60: 0.01859244569 | AX60: 0.01869926733 | AY60: 0.01864492561 | AZ60: 0.01866931517 | BA60: 0.01877872119
C61: 20 | D61: 0.013803874 | E61: 0.01469377027 | F61: 0.009091740864 | G61: 0.01170189452 | H61: 0.01084881437 | I61: 0.01140008462 | J61: 0.01212903741 | K61: 0.01091492884 | L61: 0.01239061569 | M61: 0.01346870761 | N61: 0.01406715718 | O61: 0.01552516192 | P61: 0.01612856894 | Q61: 0.01757185965 | R61: 0.01651373011 | S61: 0.01315663329 | T61: 0.0147786024 | U61: 0.01461198587 | V61: 0.01932231287 | W61: 0.02177592906 | X61: 0.02363128268 | Y61: 0.02021645187 | Z61: 0.02028792184 | AA61: 0.02229718843 | AB61: 0.0219727056 | AC61: 0.02016698177 | AD61: 0.01793730471 | AE61: 0.01571763415 | AF61: 0.01396226145 | AG61: 0.01179541451 | AH61: 0.01272862477 | AI61: 0.01396245919 | AJ61: 0.01412576012 | AK61: 0.01433582945 | AL61: 0.01466257979 | AM61: 0.01463429243 | AN61: 0.0144186576 | AO61: 0.01461578431 | AP61: 0.01474268945 | AQ61: 0.01499991785 | AR61: 0.01515546994 | AS61: 0.01528917012 | AT61: 0.01544967513 | AU61: 0.01560927887 | AV61: 0.01563761264 | AW61: 0.01562747496 | AX61: 0.01567272147 | AY61: 0.01576892359 | AZ61: 0.01572988099 | BA61: 0.01575659215
C62: 21 | D62: 0.01093256384 | E62: 0.0107831239 | F62: 0.008376265706 | G62: 0.008558133898 | H62: 0.008878441834 | I62: 0.008871286199 | J62: 0.008938395256 | K62: 0.009583087241 | L62: 0.009602706454 | M62: 0.01001126674 | N62: 0.01160129372 | O62: 0.01197647105 | P62: 0.01318462952 | Q62: 0.01371679155 | R62: 0.01497673577 | S62: 0.01409187614 | T62: 0.01123981524 | U62: 0.01263736122 | V62: 0.01248343374 | W62: 0.01649298455 | X62: 0.01855369375 | Y62: 0.02007117183 | Z62: =MAX(Y27*(1-Y$3*$A27),0) -> 0.0171081707 | AA62: 0.01708886992 | AB62: 0.0187384174 | AC62: 0.01842428899 | AD62: 0.01688915909 | AE62: 0.01500989115 | AF62: 0.01313925824 | AG62: 0.0116816416 | AH62: 0.009874743309 | AI62: 0.01065732255 | AJ62: 0.01167276095 | AK62: 0.01181339566 | AL62: 0.01198331477 | AM62: 0.01224773785 | AN62: 0.01221746216 | AO62: 0.01203585895 | AP62: 0.01220055462 | AQ62: 0.0123139889 | AR62: 0.01254481253 | AS62: 0.01268648294 | AT62: 0.01280887863 | AU62: 0.01295117741 | AV62: 0.0130928067 | AW62: 0.01312408534 | AX62: 0.01312158118 | AY62: 0.01316484716 | AZ62: 0.01325149597 | BA62: 0.01322394998
C63: 22 | D63: 0.008854608319 | E63: 0.008504246076 | F63: 0.006075100422 | G63: 0.007866183108 | H63: 0.006466334815 | I63: 0.007236610889 | J63: 0.006928524225 | K63: 0.007033484839 | L63: 0.0084118584 | M63: 0.007731928977 | N63: 0.008599505934 | O63: 0.009850126952 | P63: 0.01014326088 | Q63: 0.01118272085 | R63: 0.01165959688 | S63: 0.01274619892 | T63: 0.01200671936 | U63: 0.009585525586 | V63: 0.01076725849 | W63: 0.0106264075 | X63: 0.01401369164 | Y63: 0.01571432676 | Z63: 0.01693664649 | AA63: 0.01436840947 | AB63: 0.01431916761 | AC63: 0.01566605707 | AD63: 0.01538453488 | AE63: 0.01409155916 | AF63: 0.01251110118 | AG63: 0.01096120807 | AH63: 0.009751342941 | AI63: 0.008244187237 | AJ63: 0.008884139193 | AK63: 0.009734054345 | AL63: 0.009846443869 | AM63: 0.009980835962 | AN63: 0.01019545124 | AO63: 0.01016889509 | AP63: 0.01001786337 | AQ63: 0.01016115336 | AR63: 0.01026885505 | AS63: 0.01047103572 | AT63: 0.01059806627 | AU63: 0.01070689432 | AV63: 0.01083243056 | AW63: 0.01095726035 | AX63: 0.01098855213 | AY63: 0.01099094077 | AZ63: 0.01103211909 | BA63: 0.011109222
C64: 23 | D64: 0.007362906815 | E64: 0.006858759837 | F64: 0.004734515564 | G64: 0.005691755712 | H64: 0.005918807218 | I64: 0.00525346986 | J64: 0.00562970166 | K64: 0.00542970715 | L64: 0.006159828058 | M64: 0.006749615002 | N64: 0.006623278112 | O64: 0.007281461016 | P64: 0.008319634676 | Q64: 0.008579792759 | R64: 0.009479968245 | S64: 0.009896550415 | T64: 0.0108311426 | U64: 0.01021202107 | V64: 0.008144893309 | W64: 0.009140428402 | X64: 0.009004011856 | Y64: 0.01183571443 | Z64: 0.01322217666 | AA64: 0.01418267515 | AB64: 0.01200413787 | AC64: 0.01193604308 | AD64: 0.01304295829 | AE64: 0.01279859616 | AF64: 0.01171136894 | AG64: 0.01040684059 | AH64: 0.009123538292 | AI64: 0.008117798929 | AJ64: 0.00685278464 | AK64: 0.007387359172 | AL64: 0.00808994072 | AM64: 0.008177304631 | AN64: 0.008284286797 | AO64: 0.00846127979 | AP64: 0.008439343916 | AQ64: 0.008319098589 | AR64: 0.008449103365 | AS64: 0.008546681804 | AT64: 0.008722272777 | AU64: 0.008833605598 | AV64: 0.008929834499 | AW64: 0.009039871951 | AX64: 0.009148375965 | AY64: 0.009178316004 | AZ64: 0.009184485061 | BA64: 0.009222681989
C65: 24 | D65: 0.005981598353 | E65: 0.005685326883 | F65: 0.003784470583 | G65: 0.004428008598 | H65: 0.004269408228 | I65: 0.004797020065 | J65: 0.004074987005 | K65: 0.004398428141 | L65: 0.004747212546 | M65: 0.004929837796 | N65: 0.005769936671 | O65: 0.005596694661 | P65: 0.00613758608 | Q65: 0.007023030218 | R65: 0.007258782905 | S65: 0.008030471661 | T65: 0.008392903446 | U65: 0.009193711163 | V65: 0.008659704152 | W65: 0.006900172464 | X65: 0.007728937275 | Y65: 0.007588690959 | Z65: 0.009937395889 | AA65: 0.01104802286 | AB65: 0.01182294078 | AC65: 0.009984288819 | AD65: 0.00991574913 | AE65: 0.01082694525 | AF65: 0.01061366966 | AG65: 0.009720520168 | AH65: 0.008643479909 | AI65: 0.007578924989 | AJ65: 0.006733302094 | AK65: 0.005686077579 | AL65: 0.006126431297 | AM65: 0.006704066835 | AN65: 0.006772643869 | AO65: 0.00686031392 | AP65: 0.007006970382 | AQ65: 0.006993100656 | AR65: 0.006902537195 | AS65: 0.007017061035 | AT65: 0.007104116945 | AU65: 0.007254655927 | AV65: 0.007351853815 | AW65: 0.007436381408 | AX65: 0.007531626309 | AY65: 0.007625238272 | AZ65: 0.007653711043 | BA65: 0.007662037167
C66: 25 | D66: 0.005001177209 | E66: 0.004618177198 | F66: 0.003135920331 | G66: 0.003539229971 | H66: 0.003321069166 | I66: 0.00345990802 | J66: 0.003720510916 | K66: 0.003183371724 | L66: 0.003845310759 | M66: 0.003798913978 | N66: 0.004213958782 | O66: 0.004875234773 | P66: 0.004717117175 | Q66: 0.005180647358 | R66: 0.005941251722 | S66: 0.006148435568 | T66: 0.006809827686 | U66: 0.007123530329 | V66: 0.007795579303 | W66: 0.007335731874 | X66: 0.005834164354 | Y66: 0.00651351631 | Z66: 0.006371023427 | AA66: 0.008302667544 | AB66: 0.0092090567 | AC66: 0.009832746458 | AD66: 0.00829364906 | AE66: 0.008230360377 | AF66: 0.008977858646 | AG66: 0.008808686429 | AH66: 0.008072781857 | AI66: 0.007179548589 | AJ66: 0.006285815446 | AK66: 0.005586477487 | AL66: 0.004715146541 | AM66: 0.005076500686 | AN66: 0.005552009388 | AO66: 0.005608037048 | AP66: 0.005680701739 | AQ66: 0.00580570778 | AR66: 0.005801846723 | AS66: 0.005732149882 | AT66: 0.00583219591 | AU66: 0.005908288113 | AV66: 0.00603726457 | AW66: 0.006121808677 | AX66: 0.006195165093 | AY66: 0.00627715734 | AZ66: 0.006358100623 | BA66: 0.006384494318
C67: 26 | D67: 0.004118586296 | E67: 0.003848558088 | F67: 0.00252355262 | G67: 0.002927373314 | H67: 0.002645897823 | I67: 0.002684608003 | J67: 0.00267530007 | K67: 0.002897242418 | L67: 0.002778151175 | M67: 0.003068900771 | N67: 0.003240318244 | O67: 0.003552976183 | P67: 0.004100353369 | Q67: 0.003973273218 | R67: 0.004373504631 | S67: 0.005022008429 | T67: 0.005203066057 | U67: 0.005767837482 | V67: 0.006027524535 | W67: 0.006589702875 | X67: 0.006189125736 | Y67: 0.004905984115 | Z67: 0.005456207426 | AA67: 0.005310878448 | AB67: 0.006904850624 | AC67: 0.007641329732 | AD67: 0.008149167554 | AE67: 0.006868345229 | AF67: 0.006809287634 | AG67: 0.007434270866 | AH67: 0.007299137431 | AI67: 0.006690587463 | AJ67: 0.005941331812 | AK67: 0.005203619696 | AL67: 0.004622204563 | AM67: 0.003898306868 | AN67: 0.004194669772 | AO67: 0.004586946511 | AP67: 0.004633293072 | AQ67: 0.004696219898 | AR67: 0.004805939994 | AS67: 0.004807354718 | AT67: 0.004753670711 | AU67: 0.004839736881 | AV67: 0.004905987742 | AW67: 0.005016115707 | AX67: 0.005088832073 | AY67: 0.005152011197 | AZ67: 0.005222626662 | BA67: 0.005292196427
C68: 27 | D68: 0.003722600767 | E68: 0.003168604416 | F68: 0.002101536438 | G68: 0.002355411689 | H68: 0.002187953605 | I68: 0.002138429193 | J68: 0.002075346623 | K68: 0.002082823272 | L68: 0.002528113649 | M68: 0.002216769392 | N68: 0.002617231349 | O68: 0.002731626124 | P68: 0.002987788573 | Q68: 0.003453227647 | R68: 0.003353718861 | S68: 0.003696257537 | T68: 0.004249182376 | U68: 0.004406248858 | V68: 0.004879653055 | W68: 0.005094340493 | X68: 0.005558818537 | Y68: 0.00520363048 | Z68: 0.004108939809 | AA68: 0.004547521406 | AB68: 0.004416002109 | AC68: 0.005728411845 | AD68: 0.006331897886 | AE68: 0.006747556134 | AF68: 0.005681486175 | AG68: 0.00563760451 | AH68: 0.00615923215 | AI68: 0.006048404289 | AJ68: 0.005535784395 | AK68: 0.004917632548 | AL68: 0.004304717046 | AM68: 0.003820828899 | AN68: 0.003220599832 | AO68: 0.003464963228 | AP68: 0.003789046602 | AQ68: 0.00382969008 | AR68: 0.00388686449 | AS68: 0.003981497018 | AT68: 0.003986081042 | AU68: 0.003944095222 | AV68: 0.004018050965 | AW68: 0.004075518965 | AX68: 0.004169032061 | AY68: 0.004231277837 | AZ68: 0.004285805396 | BA68: 0.004346376862
C69: 28 | D69: 0.003234682968 | E69: 0.002860811993 | F69: 0.001724811071 | G69: 0.001960322458 | H69: 0.001758560514 | I69: 0.001766829345 | J69: 0.001651439301 | K69: 0.001614023543 | L69: 0.001816388366 | M69: 0.002015443704 | N69: 0.001889163225 | O69: =MAX(N34*(1-N$3*$A34),0) -> 0.002204792565 | P69: 0.002295471556 | Q69: 0.002514481391 | R69: 0.002912730821 | S69: 0.002832424778 | T69: 0.003125284686 | U69: 0.003595940856 | V69: 0.003725116615 | W69: 0.004121257938 | X69: 0.004294308018 | Y69: 0.004670281453 | Z69: 0.004354990809 | AA69: 0.003422029994 | AB69: 0.003778381384 | AC69: 0.003660806865 | AD69: 0.004743169097 | AE69: 0.005238870472 | AF69: 0.005577348752 | AG69: 0.004700322807 | AH69: 0.004667215203 | AI69: 0.005100031134 | AJ69: 0.005000722464 | AK69: 0.004578559895 | AL69: 0.004065096293 | AM69: 0.003555716703 | AN69: 0.003154217366 | AO69: 0.002658341048 | AP69: 0.002860078777 | AQ69: 0.003129515563 | AR69: 0.0031673032 | AS69: 0.003217688277 | AT69: 0.003298861351 | AU69: 0.003304785395 | AV69: 0.003272058303 | AW69: 0.003335437986 | AX69: 0.003384795831 | AY69: 0.003463948067 | AZ69: 0.003517310301 | BA69: 0.003564142411
C70: 29 | D70: 0.002624576207 | E70: =MAX(D35*(1-D$3*$A35),0) -> 0.002482812673 | F70: =MAX(E35*(1-E$3*$A35),0) -> 0.001551817572 | G70: 0.001607824858 | H70: 0.001461826146 | I70: 0.001418755452 | J70: 0.001362920966 | K70: 0.001282830769 | L70: 0.001406637268 | M70: 0.00144659983 | N70: 0.001716226459 | O70: 0.001590203312 | P70: 0.001851301377 | Q70: 0.00193032721 | R70: 0.002119271296 | S70: 0.002458088401 | T70: 0.002393048632 | U70: 0.002642776109 | V70: 0.003037694934 | W70: 0.003143678284 | X70: 0.00347127248 | Y70: 0.003604970443 | Z70: 0.003905393861 | AA70: 0.003623885579 | AB70: 0.002840833649 | AC70: 0.003129562989 | AD70: 0.003028611505 | AE70: 0.003921082265 | AF70: 0.004326668388 | AG70: 0.004610305304 | AH70: 0.003888029332 | AI70: 0.0038614008 | AJ70: 0.00421313734 | AK70: 0.004132604319 | AL70: 0.003781664876 | AM70: 0.003354988139 | AN70: 0.00293290414 | AO70: 0.002601369278 | AP70: 0.00219243405 | AQ70: 0.002360271055 | AR70: 0.002586078835 | AS70: 0.002619838339 | AT70: 0.002663810038 | AU70: 0.002732776238 | AV70: 0.002739435075 | AW70: 0.002713961627 | AX70: 0.002767889008 | AY70: 0.00281006131 | AZ70: 0.002877123865 | BA70: 0.002922685756
C71: 30 | D71: =D37 -> 0.02976141245 | E71: =E37 -> 0.02976141245 | F71: =F37 -> 0.02976141245 | G71: 0.02976141245 | H71: 0.02976141245 | I71: 0.02976141245 | J71: 0.02976141245 | K71: 0.02976141245 | L71: 0.02976141245 | M71: 0.02976141245 | N71: 0.02976141245 | O71: 0.02976141245 | P71: 0.02976141245 | Q71: 0.02976141245 | R71: 0.02976141245 | S71: 0.02976141245 | T71: 0.02976141245 | U71: 0.02976141245 | V71: 0.02976141245 | W71: 0.02976141245 | X71: 0.02976141245 | Y71: 0.02976141245 | Z71: 0.02976141245 | AA71: 0.02976141245 | AB71: 0.02976141245 | AC71: 0.02976141245 | AD71: 0.02976141245 | AE71: 0.02976141245 | AF71: 0.02976141245 | AG71: 0.02976141245 | AH71: 0.02976141245 | AI71: 0.02976141245 | AJ71: 0.02976141245 | AK71: 0.02976141245 | AL71: 0.02976141245 | AM71: 0.02976141245 | AN71: 0.02976141245 | AO71: 0.02976141245 | AP71: 0.02976141245 | AQ71: 0.02976141245 | AR71: =AR37 -> 0.02976141245 | AS71: 0.02976141245 | AT71: 0.02976141245 | AU71: 0.02976141245 | AV71: 0.02976141245 | AW71: 0.02976141245 | AX71: 0.02976141245 | AY71: 0.02976141245 | AZ71: 0.02976141245 | BA71: 0.02976141245

Sheet 31 (hidden)
D1: 2011 | E1: 2012 | F1: 2013 | G1: 2014 | H1: 2015 | I1: 2016 | J1: 2017 | K1: 2018 | L1: 2019 | M1: 2020 | N1: 2021 | O1: 2022 | P1: 2023 | Q1: 2024 | R1: 2025 | S1: 2026 | T1: 2027 | U1: 2028 | V1: 2029 | W1: 2030 | X1: 2031 | Y1: 2032 | Z1: 2033 | AA1: 2034 | AB1: 2035 | AC1: 2036 | AD1: 2037 | AE1: 2038 | AF1: 2039 | AG1: 2040 | AH1: 2041 | AI1: 2042 | AJ1: 2043 | AK1: 2044 | AL1: 2045 | AM1: 2046 | AN1: 2047 | AO1: 2048 | AP1: 2049 | AQ1: 2050 | AR1: 2051 | AS1: 2052 | AT1: 2053 | AU1: 2054 | AV1: 2055 | AW1: 2056 | AX1: 2057 | AY1: 2058 | AZ1: 2059 | BA1: 2060
C2: sales (age 0 pop) | D2: 0.05000386049 | E2: 0.04497974575 | F2: 0.04845992608 | G2: 0.06719659743 | H2: 0.07364691837 | I2: 0.07644576799 | J2: 0.07704327208 | K2: 0.08167317536 | L2: 0.08199414267 | M2: 0.05710744817 | N2: 0.06330511041 | O2: 0.06497676013 | P2: 0.06448623501 | Q2: 0.06490030193 | R2: 0.065099501 | S2: 0.06400781414 | T2: 0.06230523258 | U2: 0.06138964355 | V2: 0.06054411304 | W2: 0.05921522581 | X2: 0.05861567061 | Y2: 0.05774776081 | Z2: 0.05726726647 | AA2: 0.05688448129 | AB2: 0.05621899581 | AC2: 0.05546445 | AD2: 0.05497164079 | AE2: 0.05463144682 | AF2: 0.05430051093 | AG2: 0.05387606366 | AH2: 0.05379486004 | AI2: 0.05389578613 | AJ2: 0.05359859474 | AK2: 0.05357425996 | AL2: 0.05399536273 | AM2: 0.05398104719 | AN2: 0.05395941309 | AO2: 0.05391336254 | AP2: 0.05367070392 | AQ2: 0.05339151122 | AR2: 0.05339151122 | AS2: 0.05339151122 | AT2: 0.05339151122 | AU2: 0.05339151122 | AV2: 0.05339151122 | AW2: 0.05339151122 | AX2: 0.05339151122 | AY2: 0.05339151122 | AZ2: 0.05339151122 | BA2: 0.05339151122
C3: scrappage k factor | D3: 0 | E3: 0 | F3: 1.183521443 | G3: 0.8182813145 | H3: 0.7785777566 | I3: 0.8072905246 | J3: 1.152329806 | K3: 1.150559647 | L3: 0.4839648852 | M3: 1.00477673 | N3: 0.9837202424 | O3: 0.9597898225 | P3: 0.944229913 | Q3: 0.9342853712 | R3: 0.9231765702 | S3: 0.9128276548 | T3: 0.9087965864 | U3: 0.9056764581 | V3: 0.8994621312 | W3: 0.8961975103 | X3: 0.8942548527 | Y3: 0.8935741969 | Z3: 0.8917414431 | AA3: 0.8975462511 | AB3: 0.9028635245 | AC3: 0.9068606802 | AD3: 0.9090605678 | AE3: 0.9087181298 | AF3: 0.9056210349 | AG3: 0.9000762687 | AH3: 0.8965461482 | AI3: 0.8914076134 | AJ3: 0.8854143736 | AK3: 0.8856456843 | AL3: 0.8866529403 | AM3: 0.8869974917 | AN3: 0.8872906075 | AO3: 0.890109716 | AP3: 0.8922145221 | AQ3: 0.8907101936 | AR3: 0.8901073587 | AS3: 0.8898567934 | AT3: 0.8896985028 | AU3: 0.8897360397 | AV3: 0.8899054795 | AW3: 0.8900242651 | AX3: 0.8900474406 | AY3: 0.8900542761 | AZ3: 0.8899960564
A5: default
A6: scrappage | C6: age | D6: 2011 | E6: 2012 | F6: 2013 | G6: 2014 | H6: 2015 | I6: 2016 | J6: 2017 | K6: 2018 | L6: 2019 | M6: 2020 | N6: 2021 | O6: 2022 | P6: 2023 | Q6: 2024 | R6: 2025 | S6: 2026 | T6: 2027 | U6: 2028 | V6: 2029 | W6: 2030 | X6: 2031 | Y6: 2032 | Z6: 2033 | AA6: 2034 | AB6: 2035 | AC6: 2036 | AD6: 2037 | AE6: 2038 | AF6: 2039 | AG6: 2040 | AH6: 2041 | AI6: 2042 | AJ6: 2043 | AK6: 2044 | AL6: 2045 | AM6: 2046 | AN6: 2047 | AO6: 2048 | AP6: 2049 | AQ6: 2050 | AR6: 2051 | AS6: 2052 | AT6: 2053 | AU6: 2054 | AV6: 2055 | AW6: 2056 | AX6: 2057 | AY6: 2058 | AZ6: 2059 | BA6: 2060
A7: 0.008599996567 | C7: 0 | D7: 0.06719659743 | E7: =E41 -> 0.04497974575 | F7: =F41 -> 0.04845992608 | G7: 0.06719659743 | H7: 0.07364691837 | I7: 0.07644576799 | J7: 0.07704327208 | K7: 0.08167317536 | L7: 0.08199414267 | M7: 0.05710744817 | N7: 0.06330511041 | O7: 0.06497676013 | P7: 0.06448623501 | Q7: 0.06490030193 | R7: 0.065099501 | S7: 0.06400781414 | T7: 0.06230523258 | U7: 0.06138964355 | V7: 0.06054411304 | W7: 0.05921522581 | X7: 0.05861567061 | Y7: 0.05774776081 | Z7: 0.05726726647 | AA7: 0.05688448129 | AB7: 0.05621899581 | AC7: 0.05546445 | AD7: 0.05497164079 | AE7: 0.05463144682 | AF7: 0.05430051093 | AG7: 0.05387606366 | AH7: 0.05379486004 | AI7: 0.05389578613 | AJ7: 0.05359859474 | AK7: 0.05357425996 | AL7: 0.05399536273 | AM7: 0.05398104719 | AN7: 0.05395941309 | AO7: 0.05391336254 | AP7: 0.05367070392 | AQ7: 0.05339151122 | AR7: =AR41 -> 0.05339151122 | AS7: 0.05339151122 | AT7: 0.05339151122 | AU7: 0.05339151122 | AV7: 0.05339151122 | AW7: 0.05339151122 | AX7: 0.05339151122 | AY7: 0.05339151122 | AZ7: 0.05339151122 | BA7: 0.05339151122
A8: 0.008700013161 | C8: 1 | D8: 0.04669568344 | E8: =E42*(1-E$41-E$71)/SUM(E$42:E$70) -> 0.06431633905 | F8: =F42*(1-F$41-F$71)/SUM(F$42:F$70) -> 0.04293564401 | G8: 0.04819232236 | H8: 0.06506203795 | I8: 0.07091290818 | J8: 0.07355514665 | K8: 0.07493536547 | L8: 0.07920617198 | M8: 0.07918464229 | N8: 0.05615206603 | O8: 0.06203041256 | P8: 0.06356434516 | Q8: 0.06306136916 | R8: 0.06339216269 | S8: 0.06367360661 | T8: 0.06269330379 | U8: 0.06105352428 | V8: 0.06023316905 | W8: 0.05947633759 | X8: 0.05823202831 | Y8: 0.05768454925 | Z8: 0.05684768554 | AA8: 0.05640424947 | AB8: 0.05607508665 | AC8: 0.05538892782 | AD8: 0.05475553354 | AE8: 0.05435546296 | AF8: 0.05404473789 | AG8: 0.05376751625 | AH8: 0.05344384295 | AI8: 0.05327269148 | AJ8: 0.05341661146 | AK8: 0.05320728004 | AL8: 0.05320597022 | AM8: 0.05365600971 | AN8: 0.05365967965 | AO8: 0.05367482649 | AP8: 0.0536612451 | AQ8: 0.05331355831 | AR8: =AR42*(1-AR$41-AR$71)/SUM(AR$42:AR$70) -> 0.05307587611 | AS8: 0.05309178499 | AT8: 0.05309606608 | AU8: 0.05310575506 | AV8: 0.05311470405 | AW8: 0.05311524462 | AX8: 0.05311128855 | AY8: 0.05311187634 | AZ8: 0.05311228218 | BA8: 0.05310895911
A9: 0.008800029755 | C9: 2 | D9: 0.04355950902 | E9: =E43*(1-E$41-E$71)/SUM(E$42:E$70) -> 0.04469415898 | F9: 0.06139348703 | G9: 0.04269344001 | H9: 0.04665760461 | I9: 0.06264181487 | J9: 0.06822595155 | K9: 0.0715343473 | L9: 0.07266343672 | M9: 0.0764884824 | N9: 0.07785202586 | O9: 0.05501594067 | P9: 0.06067616939 | Q9: 0.06215393072 | R9: 0.06159016024 | S9: 0.06199789385 | T9: 0.06236022085 | U9: 0.06142817116 | V9: 0.05989791288 | W9: 0.05916551293 | X9: 0.0584835213 | Y9: 0.05730183591 | Z9: 0.05678034487 | AA9: 0.05598595925 | AB9: 0.05559665776 | AC9: 0.05524211552 | AD9: 0.05467597804 | AE9: 0.05413681663 | AF9: 0.05376679229 | AG9: 0.05350936857 | AH9: 0.05333132745 | AI9: 0.05292029895 | AJ9: 0.0527943129 | AK9: 0.05302189353 | AL9: 0.05283679647 | AM9: 0.05286685374 | AN9: 0.05333180913 | AO9: 0.0533719006 | AP9: 0.05341903174 | AQ9: 0.05329936899 | AR9: 0.05299362618 | AS9: 0.05277318695 | AT9: 0.05279326312 | AU9: 0.05280715548 | AV9: 0.05282569183 | AW9: 0.05283513044 | AX9: 0.05283173229 | AY9: 0.05282838186 | AZ9: 0.05282937016 | BA9: 0.05282646876
A10: 0.01419997215 | C10: 3 | D10: 0.04634072645 | E10: 0.0416924109 | F10: 0.04266303571 | G10: 0.06103985917 | H10: 0.04133043087 | I10: 0.04491848052 | J10: 0.0602633571 | K10: 0.06634383794 | L10: 0.0693574694 | M10: 0.07016682785 | N10: 0.07519361631 | O10: 0.07626927544 | P10: 0.05380962745 | Q10: 0.05932419056 | R10: 0.06069817325 | S10: 0.0602299185 | T10: 0.06071348486 | U10: 0.06109621164 | V10: 0.06025996614 | W10: 0.05883086459 | X10: 0.05817262939 | Y10: 0.05754412398 | Z10: 0.05639855013 | AA10: 0.05591461295 | AB10: 0.05517936373 | AC10: 0.05476580846 | AD10: 0.05452607011 | AE10: 0.05405320586 | AF10: 0.05354560808 | AG10: 0.05322931622 | AH10: 0.05307045831 | AI10: 0.0528041131 | AJ10: 0.05244037248 | AK10: 0.05239951666 | AL10: 0.05264800065 | AM10: 0.05249534108 | AN10: 0.05254272343 | AO10: 0.05304104435 | AP10: 0.05311278375 | AQ10: 0.05305401724 | AR10: 0.05297476543 | AS10: 0.0526866786 | AT10: 0.0524717496 | AU10: 0.05250129148 | AV10: 0.05252395607 | AW10: 0.05254292596 | AX10: 0.05254839863 | AY10: 0.05254560019 | AZ10: 0.05254266933 | BA10: 0.0525403654
A11: 0.0191000104 | C11: 4 | D11: 0.0381641346 | E11: 0.04435441656 | F11: 0.03979770188 | G11: 0.04214335586 | H11: 0.05882813339 | I11: 0.03962143118 | J11: 0.04302323596 | K11: 0.05823252287 | L11: 0.06392117795 | M11: 0.06679867024 | N11: 0.0686013799 | O11: 0.07327018451 | P11: 0.07420703349 | Q11: 0.05234014992 | R11: 0.05764000204 | S11: 0.05905930403 | T11: 0.05868904651 | U11: 0.0591885917 | V11: 0.05963884992 | W11: 0.05889670324 | X11: 0.05756144254 | Y11: 0.05695963436 | Z11: 0.05636156511 | AA11: 0.05526908606 | AB11: 0.05483982197 | AC11: 0.05408762645 | AD11: 0.05378909573 | AE11: 0.05363825859 | AF11: 0.05319845172 | AG11: 0.05274902393 | AH11: 0.05253406293 | AI11: 0.05228940985 | AJ11: 0.05207137876 | AK11: 0.05179741653 | AL11: 0.05177922785 | AM11: 0.05205535285 | AN11: 0.0519216254 | AO11: 0.052003914 | AP11: 0.05252782459 | AQ11: 0.05249370672 | AR11: 0.05247527997 | AS11: 0.05241277863 | AT11: 0.052132026 | AU11: 0.05192888087 | AV11: 0.05196686156 | AW11: 0.05198977422 | AX11: 0.05200464222 | AY11: 0.05201062754 | AZ11: 0.05200825312 | BA11: 0.05200211571
A12: 0.0243999958 | C12: 5 | D12: 0.02928828622 | E12: 0.03652829926 | F12: 0.04233873287 | G12: 0.03908104026 | H12: 0.04045155813 | I12: 0.05617805152 | J12: 0.03779782444 | K12: 0.04133473467 | L12: 0.05578449385 | M12: 0.06141593596 | N12: 0.06498217092 | O12: 0.06651979258 | P12: 0.07094912948 | Q12: 0.07184202604 | R12: 0.05061829271 | S12: 0.05582663415 | T12: 0.0572875921 | U12: 0.05695688233 | V12: 0.0575169886 | W12: 0.05802940912 | X12: 0.0573695403 | Y12: 0.05611104717 | Z12: 0.05554167247 | AA12: 0.05498840285 | AB12: 0.05396522404 | AC12: 0.0535138993 | AD12: 0.052883869 | AE12: 0.05267450294 | AF12: 0.05255193211 | AG12: 0.05217144221 | AH12: 0.05182746533 | AI12: 0.05153058509 | AJ12: 0.05133570308 | AK12: 0.05120696049 | AL12: 0.05095930196 | AM12: 0.05097109404 | AN12: 0.0512598146 | AO12: 0.0511629064 | AP12: 0.0512732298 | AQ12: 0.05168568442 | AR12: 0.05169156839 | AS12: 0.05168924713 | AT12: 0.05163198429 | AU12: 0.0513648729 | AV12: 0.0511733184 | AW12: 0.05121117427 | AX12: 0.05122987229 | AY12: 0.05124507733 | AZ12: 0.05125136308 | BA12: 0.05124584893
A13: 0.03009998798 | C13: 6 | D13: 0.05099935748 | E13: 0.02803289777 | F13: 0.03486827298 | G13: 0.04130948817 | H13: 0.03734690697 | I13: 0.03846749362 | J13: 0.05335952059 | K13: 0.03608762574 | L13: 0.03935018302 | M13: 0.05345938797 | N13: 0.05942142286 | O13: 0.06267559383 | P13: 0.06407879932 | Q13: 0.06833789722 | R13: 0.06912831895 | S13: 0.04878164921 | T13: 0.05388526443 | U13: 0.05532427245 | V13: 0.05507795458 | W13: 0.0556933539 | X13: 0.05625157585 | Y13: 0.05565432069 | Z13: 0.05445058815 | AA13: 0.05392794144 | AB13: 0.05343129971 | AC13: 0.0524040369 | AD13: 0.0520669957 | AE13: 0.05153410985 | AF13: 0.05135475242 | AG13: 0.05128568158 | AH13: 0.05101116683 | AI13: 0.05059171239 | AJ13: 0.05034756544 | AK13: 0.05024251915 | AL13: 0.05013785928 | AM13: 0.04992417115 | AN13: 0.04995210274 | AO13: 0.05026913825 | AP13: 0.05020194983 | AQ13: 0.05020849778 | AR13: 0.05065146806 | AS13: 0.05067291539 | AT13: 0.05067493239 | AU13: 0.05062816058 | AV13: 0.05037469891 | AW13: 0.05018720944 | AX13: 0.05022049798 | AY13: 0.05023937134 | AZ13: 0.05025466081 | BA13: 0.05025772803
A14: 0.03619998693 | C14: 7 | D14: 0.05511228692 | E14: 0.04881336396 | F14: 0.02675894448 | G14: 0.03378430336 | H14: 0.0392885953 | I14: 0.03535445484 | J14: 0.03636601843 | K14: 0.05060091538 | L14: 0.03412318265 | M14: 0.03760479169 | N14: 0.05141959214 | O14: 0.05698296327 | P14: 0.06003744263 | Q14: 0.06138040521 | R14: 0.06539820211 | S14: 0.06626141435 | T14: 0.04683469784 | U14: 0.05176286723 | V14: 0.05321677956 | W14: 0.05305208892 | X14: 0.0537051411 | Y14: 0.05428542058 | Z14: 0.05372616666 | AA14: 0.05259385419 | AB14: 0.05212678162 | AC14: 0.0516125244 | AD14: 0.05071762027 | AE14: 0.05046921544 | AF14: 0.04997678793 | AG14: 0.04985279493 | AH14: 0.04988206248 | AI14: 0.04953471917 | AJ14: 0.04917350695 | AK14: 0.04902124652 | AL14: 0.04893973096 | AM14: 0.04886567963 | AN14: 0.04867327292 | AO14: 0.0487334648 | AP14: 0.04906915673 | AQ14: 0.04890389395 | AR14: 0.04894847979 | AS14: 0.04939579752 | AT14: 0.04942097357 | AU14: 0.04943213364 | AV14: 0.04939478988 | AW14: 0.0491478177 | AX14: 0.04896111812 | AY14: 0.04899411036 | AZ14: 0.04901288989 | BA14: 0.04902480212
A15: 0.04240000248 | C15: 8 | D15: 0.05652654264 | E15: 0.05275000025 | F15: 0.04659504367 | G15: 0.02573297972 | H15: 0.0319671133 | I15: 0.03701167599 | J15: =J49*(1-J$41-J$71)/SUM(J$42:J$70) -> 0.03325435473 | K15: 0.03423483205 | L15: 0.04749858325 | M15: 0.03251194396 | N15: 0.03594133927 | O15: 0.04900458153 | P15: 0.05425534371 | Q15: 0.05716830082 | R15: 0.05839554671 | S15: 0.06232289569 | T15: 0.06325257625 | U15: 0.04473358008 | V15: 0.04950825474 | W15: 0.05097029924 | X15: 0.05087074227 | Y15: 0.05153745132 | Z15: 0.05211114946 | AA15: 0.05160406469 | AB15: 0.05055118819 | AC15: 0.05006735038 | AD15: 0.0496675005 | AE15: 0.04888096672 | AF15: 0.04866513847 | AG15: 0.04823960933 | AH15: 0.04821475474 | AI15: 0.04816604249 | AJ15: 0.04787712689 | AK15: 0.04761244517 | AL15: 0.04748509362 | AM15: 0.04743290012 | AN15: 0.04737645996 | AO15: 0.04722176515 | AP15: 0.04730474077 | AQ15: 0.04753305771 | AR15: 0.04741043671 | AS15: 0.04746870704 | AT15: 0.04790670942 | AU15: 0.04794009108 | AV15: 0.04795894533 | AW15: 0.04792296888 | AX15: 0.04767964148 | AY15: 0.04749901315 | AZ15: 0.04753137401 | BA15: 0.04754669739
A16: 0.04850000143 | C16: 9 | D16: 0.06032981135 | E16: 0.05410363651 | F16: 0.05035277977 | G16: 0.04446502715 | H16: 0.02422155293 | I16: 0.02996491642 | J16: 0.03463364216 | K16: 0.03107212648 | L16: 0.0318966973 | M16: 0.04511756538 | N16: 0.03087288934 | O16: 0.03403666388 | P16: 0.04637121782 | Q16: 0.05134937524 | R16: 0.0540621952 | S16: 0.05532000098 | T16: 0.05914469108 | U16: 0.0600629218 | V16: 0.04253674809 | W16: 0.04714498843 | X16: 0.04859387554 | Y16: 0.0485377385 | Z16: 0.0491899906 | AA16: 0.04976687434 | AB16: 0.04931455824 | AC16: 0.04827302826 | AD16: 0.04790046396 | AE16: 0.04758989659 | AF16: 0.04685907654 | AG16: 0.04670086258 | AH16: 0.04638545041 | AI16: 0.04628862537 | AJ16: 0.04628837784 | AK16: 0.04609431144 | AL16: 0.04585880286 | AM16: 0.0457616598 | AN16: 0.04572605287 | AO16: 0.045702378 | AP16: 0.04557597508 | AQ16: 0.04556193007 | AR16: 0.04581850405 | AS16: 0.04571497971 | AT16: 0.04577526299 | AU16: 0.04620632869 | AV16: 0.04624625584 | AW16: 0.04626463732 | AX16: 0.04622629424 | AY16: 0.04599205292 | AZ16: 0.04581815683 | BA16: 0.04584659835
A17: 0.0544000268 | C17: 10 | D17: 0.06173096608 | E17: 0.05774388511 | F17: 0.05164490012 | G17: 0.0476857536 | H17: 0.0416369529 | I17: 0.02259297175 | J17: 0.02789666899 | K17: 0.03212174536 | L17: 0.02873639151 | M17: 0.03020645518 | N17: 0.04256873641 | O17: 0.02905373417 | P17: 0.0320110667 | Q17: 0.04362420492 | R17: 0.04827126517 | S17: 0.05091471687 | T17: 0.05219481776 | U17: 0.05583836427 | V17: 0.05678514766 | W17: 0.04027520683 | X17: 0.04469149317 | Y17: 0.04610240378 | Z17: 0.04606444774 | AA17: 0.04671154758 | AB17: 0.04728819049 | AC17: 0.04682244662 | AD17: 0.04591810094 | AE17: 0.04563206254 | AF17: 0.04535838785 | AG17: 0.04470936482 | AH17: 0.04464951102 | AI17: 0.04427923141 | AJ17: 0.04423276065 | AK17: 0.04431463933 | AL17: 0.04414737653 | AM17: 0.04394602787 | AN17: 0.04386693148 | AO17: 0.04386221056 | AP17: 0.04386064857 | AQ17: 0.04364855369 | AR17: 0.04367048727 | AS17: 0.04393068623 | AT17: 0.04383542322 | AU17: 0.04390152963 | AV17: 0.0443223481 | AW17: 0.04436078292 | AX17: 0.04437488814 | AY17: 0.04433855876 | AZ17: 0.04411420752 | BA17: 0.04394476943
A18: 0.06010001898 | C18: 11 | D18: 0.05657150871 | E18: 0.05908498192 | F18: 0.05511971785 | G18: 0.04854711172 | H18: 0.04442834629 | I18: 0.03865200913 | J18: 0.02092928697 | K18: 0.02568706862 | L18: 0.02949352917 | M18: 0.02713404389 | N18: 0.02832239121 | O18: 0.03981625623 | P18: 0.0271623939 | Q18: 0.0299389232 | R18: 0.04077239137 | S18: 0.04520171094 | T18: 0.04776769517 | U18: 0.04900060276 | V18: 0.05249608376 | W18: 0.05346772178 | X18: 0.03796817581 | Y18: 0.04216625096 | Z18: 0.04351208647 | AA18: 0.04350293435 | AB18: 0.04413929671 | AC18: 0.04464835826 | AD18: 0.04428901824 | AE18: 0.04349813833 | AF18: 0.04324842402 | AG18: 0.04303565871 | AH18: 0.04250813006 | AI18: 0.04238641073 | AJ18: 0.04208002041 | AK18: 0.0421155302 | AL18: 0.04221114247 | AM18: 0.04207472631 | AN18: 0.04189610324 | AO18: 0.04184867857 | AP18: 0.04186359554 | AQ18: 0.0417746455 | AR18: 0.04160675557 | AS18: 0.0416413581 | AT18: 0.04189335394 | AU18: 0.04181045797 | AV18: 0.04188049058 | AW18: 0.04228201921 | AX18: 0.042315289 | AY18: 0.0423291647 | AZ18: 0.04229481929 | BA18: 0.04207829525
A19: 0.06540000439 | C19: 12 | D19: 0.05459662598 | E19: 0.05414667518 | F19: 0.0563998686 | G19: 0.0514399111 | H19: 0.04501007094 | I19: 0.04105215994 | J19: 0.03563345042 | K19: 0.01913650288 | L19: 0.02342033603 | M19: 0.02777006205 | N19: 0.0252874804 | O19: 0.02633413572 | P19: 0.03700943204 | Q19: 0.02525998414 | R19: 0.02782475389 | S19: 0.03796815967 | T19: 0.04217562605 | U19: 0.044600029 | V19: 0.04581746447 | W19: 0.04916276979 | X19: 0.05013432012 | Y19: 0.03563089214 | Z19: 0.03958403299 | AA19: 0.04087298376 | AB19: 0.04088627004 | AC19: 0.04144969728 | AD19: 0.04200293075 | AE19: 0.04172620577 | AF19: 0.04100132495 | AG19: 0.04081094906 | AH19: 0.0406960991 | AI19: 0.04013677506 | AJ19: 0.04006610995 | AK19: 0.03985339341 | AL19: 0.03990365364 | AM19: 0.04001577575 | AN19: 0.03989900745 | AO19: 0.03975613043 | AP19: 0.03972885013 | AQ19: 0.03965945117 | AR19: 0.03960804005 | AS19: 0.0394619863 | AT19: 0.03949853244 | AU19: 0.03974515707 | AV19: 0.03967311448 | AW19: 0.03973960229 | AX19: 0.04011735568 | AY19: 0.04014931551 | AZ19: 0.0401627728 | BA19: 0.04012780245
A20: 0.07090002298 | C20: 13 | D20: 0.04780993703 | E20: 0.05225644217 | F20: 0.0516859829 | G20: 0.05227915806 | H20: 0.04747457413 | I20: 0.04140963593 | J20: 0.0376759728 | K20: 0.03236733107 | L20: 0.01733351957 | M20: 0.02199350118 | N20: 0.02573353799 | O20: 0.02338198926 | P20: 0.02434558872 | Q20: 0.03423475118 | R20: 0.0233530603 | S20: 0.02577680576 | T20: 0.03524499374 | U20: 0.03917816186 | V20: 0.04149105802 | W20: 0.0426919803 | X20: 0.04586633548 | Y20: 0.04681244927 | Z20: 0.03328149111 | AA20: 0.03699748785 | AB20: 0.03822135225 | AC20: 0.0382006245 | AD20: 0.03879557004 | AE20: 0.03937072541 | AF20: 0.03913073301 | AG20: 0.038494101 | AH20: 0.03839770307 | AI20: 0.03823284405 | AJ20: 0.03775023292 | AK20: 0.03775797024 | AL20: 0.03757311449 | AM20: 0.03764052709 | AN20: 0.03775809233 | AO20: 0.03767296674 | AP20: 0.03755418398 | AQ20: 0.03744904182 | AR20: 0.03741499616 | AS20: 0.03737906424 | AT20: 0.03724479992 | AU20: 0.03728645413 | AV20: 0.03752550364 | AW20: 0.03745747992 | AX20: 0.03751718918 | AY20: 0.03787418275 | AZ20: 0.03790462943 | BA20: 0.03791509612
A21: 0.08660000563 | C21: 14 | D21: 0.04563262034 | E21: 0.04576065214 | F21: 0.04988165141 | G21: 0.04757165338 | H21: 0.04801970016 | I21: 0.04347993137 | J21: 0.03782590155 | K21: 0.03398806267 | L21: 0.02911715729 | M21: 0.0162327673 | N21: 0.02026005175 | O21: 0.02365684372 | P21: 0.02149461294 | Q21: 0.02239569274 | R21: 0.03147708314 | S21: 0.02151733039 | T21: 0.02380027303 | U21: 0.03256610743 | V21: 0.03625415501 | W21: 0.0384574934 | X21: 0.03962087521 | Y21: 0.04260353193 | Z21: 0.04349753176 | AA21: 0.03094475907 | AB21: 0.03441583815 | AC21: 0.03552229458 | AD21: 0.03556496507 | AE21: 0.03617105189 | AF21: 0.03672557575 | AG21: 0.03654338614 | AH21: 0.03602734714 | AI21: 0.0358846065 | AJ21: 0.03577229504 | AK21: =AK55*(1-AK$41-AK$71)/SUM(AK$42:AK$70) -> 0.03539161287 | AL21: 0.0354135253 | AM21: 0.03525868711 | AN21: 0.03533291547 | AO21: 0.0354667959 | AP21: 0.03540141298 | AQ21: 0.03521469221 | AR21: 0.03514589774 | AS21: 0.03512588986 | AT21: 0.03509557523 | AU21: 0.03497626535 | AV21: 0.0350211949 | AW21: 0.03524568001 | AX21: 0.03517888861 | AY21: 0.0352353009 | AZ21: 0.03557083675 | BA21: 0.03559734332
A22: 0.09210002422 | C22: 15 | D22: 0.04011604311 | E22: 0.04367666212 | F22: 0.04368106215 | G22: 0.04497972684 | H22: 0.04309980761 | I22: 0.04341019321 | J22: 0.0391830732 | K22: 0.03345104725 | L22: 0.02997378488 | M22: 0.02705354241 | N22: 0.01469937615 | O22: 0.01831584776 | P22: 0.02139565027 | Q22: 0.01945890339 | R22: 0.02026820998 | S22: 0.02855294001 | T22: 0.01956297892 | U22: 0.02165588866 | V22: 0.02967767778 | W22: 0.03309662369 | X22: 0.03515474528 | Y22: 0.03625068147 | Z22: 0.03899372945 | AA22: 0.03983908198 | AB22: 0.02835226694 | AC22: 0.03150111179 | AD22: 0.0325682111 | AE22: 0.03265314048 | AF22: 0.03322634826 | AG22: 0.03377615334 | AH22: 0.03368538217 | AI22: 0.03316329632 | AJ22: 0.03307359458 | AK22: 0.03303982826 | AL22: 0.03270162333 | AM22: 0.03273848668 | AN22: 0.03260526224 | AO22: 0.03269541531 | AP22: 0.03283114108 | AQ22: 0.03269962789 | AR22: 0.03255564767 | AS22: 0.03250345574 | AT22: 0.03248826487 | AU22: 0.0324665876 | AV22: 0.03236156413 | AW22: 0.0324029971 | AX22: 0.03260794086 | AY22: 0.032546444 | AZ22: 0.03259886506 | BA22: 0.032907399
A23: 0.09719997644 | C23: 16 | D23: 0.03169629441 | E23: 0.03839654281 | F23: 0.04169177893 | G23: 0.0391028017 | H23: 0.04055413551 | I23: 0.03878366291 | J23: 0.03893347236 | K23: 0.0344072926 | L23: 0.0292928564 | M23: 0.02777208546 | N23: 0.02434970562 | O23: 0.01321019399 | P23: 0.01646979069 | Q23: 0.01925976517 | R23: 0.01751194265 | S23: 0.01828388039 | T23: 0.02581804724 | U23: 0.01770379727 | V23: 0.01962846192 | W23: 0.02694756809 | X23: 0.0300925956 | Y23: 0.03199296743 | Z23: 0.03300241513 | AA23: 0.03552425921 | AB23: 0.03630606443 | AC23: 0.02581127562 | AD23: 0.02872510477 | AE23: 0.02973946131 | AF23: 0.02983211352 | AG23: 0.03039278795 | AH23: 0.03096741134 | AI23: 0.03084174042 | AJ23: 0.03040306659 | AK23: 0.03038615548 | AL23: 0.03036752983 | AM23: 0.03007174582 | AN23: 0.03011473746 | AO23: 0.03001187823 | AP23: 0.03010516617 | AQ23: 0.03016424121 | AR23: 0.03007001946 | AS23: 0.02994824596 | AT23: 0.02990333189 | AU23: 0.02989524415 | AV23: 0.02988022859 | AW23: 0.0297834121 | AX23: 0.02981899844 | AY23: 0.03000786718 | AZ23: 0.02995148402 | BA23: 0.02999800858
A24: 0.1017000079 | C24: 17 | D24: 0.02880154324 | E24: 0.03033769113 | F24: 0.03665161431 | G24: 0.03706918618 | H24: 0.03509632601 | I24: 0.03633682613 | J24: 0.03462934359 | K24: 0.03396334139 | L24: 0.02993248059 | M24: 0.02707105898 | N24: 0.02485528293 | O24: 0.02176213403 | P24: 0.01181495329 | Q24: 0.01474745107 | R24: 0.01724236654 | S24: 0.01571617296 | T24: 0.01644856132 | U24: 0.02324622908 | V24: 0.01596550421 | W24: 0.01773365843 | X24: 0.02437960011 | Y24: 0.02724999309 | Z24: 0.02898157944 | AA24: 0.02991705231 | AB24: 0.03221234618 | AC24: 0.03288624256 | AD24: 0.02341790398 | AE24: 0.02609743327 | AF24: 0.0270327391 | AG24: 0.02715051352 | AH24: 0.02772592452 | AI24: 0.02821190563 | AJ24: 0.02813469947 | AK24: 0.0277952942 | AL24: 0.02779113975 | AM24: 0.02778785701 | AN24: 0.0275254528 | AO24: 0.02758284984 | AP24: 0.02749758024 | AQ24: 0.02752257273 | AR24: =AR58*(1-AR$41-AR$71)/SUM(AR$42:AR$70) -> 0.02760125628 | AS24: 0.02752490946 | AT24: 0.02741632471 | AU24: 0.02738062684 | AV24: 0.02737773369 | AW24: 0.02736380795 | AX24: 0.02727279693 | AY24: 0.02730562383 | AZ24: 0.02747876487 | BA24: 0.02742557378
A25: 0.1055999994 | C25: 18 | D25: 0.02059067581 | E25: 0.02756701814 | F25: 0.02895899665 | G25: 0.03239173138 | H25: 0.0331379747 | I25: 0.03132738802 | J25: 0.03231669808 | K25: 0.03003225857 | L25: 0.02937402735 | M25: 0.02759895099 | N25: 0.0241064789 | O25: 0.02210525209 | P25: 0.01937093572 | Q25: 0.01052990131 | R25: 0.01314165021 | S25: 0.01540361853 | T25: 0.01407486534 | U25: 0.0147436315 | V25: 0.02087005141 | W25: 0.01436032144 | X25: 0.01597285263 | Y25: 0.02197936018 | Z25: 0.02457634221 | AA25: 0.02615668876 | AB25: 0.02700785519 | AC25: 0.02904817629 | AD25: 0.02970330722 | AE25: 0.02118024596 | AF25: 0.02361578378 | AG25: 0.024492832 | AH25: 0.02465821018 | AI25: 0.02514721417 | AJ25: 0.02562266201 | AK25: 0.02560935737 | AL25: 0.02531068213 | AM25: 0.02531929165 | AN25: 0.02532384696 | AO25: 0.02510109292 | AP25: 0.02516123266 | AQ25: 0.02502816451 | AR25: 0.02507353318 | AS25: 0.02515431649 | AT25: 0.0250874092 | AU25: 0.02499340829 | AV25: 0.02496497477 | AW25: 0.02496215463 | AX25: 0.02494729363 | AY25: 0.02486453558 | AZ25: 0.02489463645 | BA25: 0.02505107276
A26: 0.1093000174 | C26: 19 | D26: 0.01987490888 | E26: 0.01970809442 | F26: 0.02631423672 | G26: 0.025458903 | H26: 0.02885576998 | I26: 0.02948180151 | J26: 0.0277659137 | K26: 0.02788394539 | L26: 0.02584213866 | M26: 0.0270302683 | N26: 0.02446929348 | O26: 0.02134790154 | P26: 0.01959473352 | Q26: 0.01719373004 | R26: 0.009345555589 | S26: 0.01169355889 | T26: 0.01374081631 | U26: 0.01256670597 | V26: 0.01318507389 | W26: 0.01869928264 | X26: 0.01288471847 | Y26: 0.01434503387 | Z26: 0.01974685425 | AA26: 0.02209600479 | AB26: 0.02352219851 | AC26: 0.0242604865 | AD26: 0.0261344927 | AE26: 0.02676011013 | AF26: 0.01909133881 | AG26: 0.02131368404 | AH26: 0.02215854017 | AI26: 0.0222787748 | AJ26: 0.02275192709 | AK26: 0.02323429204 | AL26: 0.02323162432 | AM26: 0.02297181422 | AN26: 0.02298644028 | AO26: 0.02300555857 | AP26: 0.02280996188 | AQ26: 0.02281399061 | AR26: 0.02271398968 | AS26: 0.02276346457 | AT26: 0.02283926403 | AU26: 0.02278306018 | AV26: 0.02270142643 | AW26: 0.02267541663 | AX26: 0.02267087589 | AY26: 0.02265757309 | AZ26: 0.02258256667 | BA26: 0.02260863237
A27: 0.1122000217 | C27: 20 | D27: 0.01694070613 | E27: 0.01902300752 | F27: 0.0188124613 | G27: 0.02301802532 | H27: 0.0226045851 | I27: 0.02559148031 | J27: 0.02604481953 | K27: 0.02384107656 | L27: 0.0238772901 | M27: 0.0237353135 | N27: 0.02386542778 | O27: 0.02158118399 | P27: 0.0188486153 | Q27: 0.01732488104 | R27: 0.01520134769 | S27: 0.008284286713 | T27: 0.01039226344 | U27: 0.01222281841 | V27: 0.01119663007 | W27: 0.01177020472 | X27: 0.01671637735 | Y27: 0.011529336 | Z27: 0.01284091763 | AA27: 0.01768925901 | AB27: 0.01979760681 | AC27: 0.02105138341 | AD27: 0.02174603829 | AE27: 0.02345731301 | AF27: 0.02403117784 | AG27: 0.0171664475 | AH27: 0.01921142046 | AI27: 0.0199469574 | AJ27: 0.02008331856 | AK27: 0.02055658747 | AL27: 0.02100088141 | AM27: 0.02100855722 | AN27: 0.02077973452 | AO27: 0.02080648785 | AP27: 0.02082970539 | AQ27: 0.0206066875 | AR27: 0.0206292253 | AS27: 0.02054634952 | AT27: 0.02059334333 | AU27: 0.02066605467 | AV27: 0.02061858567 | AW27: 0.02054452521 | AX27: 0.02051918424 | AY27: 0.02051524888 | AZ27: 0.02050335186 | BA27: 0.020434332
A28: 0.1151999831 | C28: 21 | D28: 0.01181994086 | E28: 0.01621457396 | F28: 0.01815850813 | G28: 0.01639107579 | H28: 0.02038410383 | I28: 0.01999798156 | J28: 0.02254998019 | K28: 0.02227776521 | L28: 0.02033742577 | M28: 0.02189815385 | N28: 0.02088766593 | O28: 0.02098131111 | P28: 0.01899533411 | Q28: 0.01661430768 | R28: 0.01527107995 | S28: 0.01343497839 | T28: 0.007340735849 | U28: 0.009217142207 | V28: 0.01085848929 | W28: 0.009966223259 | X28: 0.01049175499 | Y28: 0.0149149378 | Z28: =Z62*(1-Z$41-Z$71)/SUM(Z$42:Z$70) -> 0.01029081456 | AA28: 0.01146995191 | AB28: 0.01580350396 | AC28: 0.01766655916 | AD28: 0.01881445371 | AE28: 0.01946127283 | AF28: 0.02100355757 | AG28: 0.02154524118 | AH28: 0.01542844876 | AI28: 0.01724413262 | AJ28: 0.01792978856 | AK28: 0.01809388936 | AL28: 0.01852773631 | AM28: 0.01893720482 | AN28: 0.01894968938 | AO28: 0.01875546195 | AP28: 0.01878475213 | AQ28: 0.01876375857 | AR28: 0.01857998081 | AS28: 0.01860717819 | AT28: 0.01853445877 | AU28: 0.01858058197 | AV28: 0.01864924754 | AW28: 0.01860623478 | AX28: 0.01853776632 | AY28: 0.01851505575 | AZ28: 0.01851163154 | BA28: 0.01849986382
A29: 0.117200017 | C29: 22 | D29: 0.008746893936 | E29: 0.01131330087 | F29: 0.01547770366 | G29: 0.01575651871 | H29: 0.01447623221 | I29: 0.01798739799 | J29: 0.01757433205 | K29: 0.01921183013 | L29: 0.01892853915 | M29: 0.01862306626 | N29: 0.01920545091 | O29: 0.01830249305 | P29: 0.01840774695 | Q29: 0.01669058544 | R29: 0.01459888923 | S29: 0.01345491003 | T29: 0.01186846148 | U29: 0.006490904948 | V29: 0.008163547082 | W29: 0.009636233381 | X29: 0.008857162872 | Y29: 0.009333197444 | Z29: 0.0132730593 | AA29: 0.009164787063 | AB29: 0.01021652172 | AC29: 0.01405988557 | AD29: 0.0157414811 | AE29: 0.0167865632 | AF29: 0.01737262634 | AG29: 0.01877387058 | AH29: 0.01930575633 | AI29: 0.01380713185 | AJ29: 0.01545423422 | AK29: 0.0161060451 | AL29: 0.01625998677 | AM29: 0.01665773732 | AN29: 0.01703085625 | AO29: 0.01705313118 | AP29: 0.01688278845 | AQ29: 0.01687129828 | AR29: 0.01686808052 | AS29: 0.01670908177 | AT29: 0.01673539175 | AU29: 0.01667334535 | AV29: 0.0167175787 | AW29: 0.01677918992 | AX29: 0.01673900544 | AY29: 0.01667754644 | AZ29: 0.01665722848 | BA29: 0.0166532219
A30: 0.1198999882 | C30: 23 | D30: 0.007418508776 | E30: 0.008371974439 | F30: 0.01079916862 | G30: 0.01339351904 | H30: 0.01389066079 | I30: 0.01275230576 | J30: 0.01577928077 | K30: 0.01493295438 | L30: 0.01628023239 | M30: 0.0173151749 | N30: 0.0162959646 | O30: 0.01679113697 | P30: 0.01602285623 | Q30: 0.01614001853 | R30: 0.01463520395 | S30: 0.01283608635 | T30: 0.01186181874 | U30: 0.01047315401 | V30: 0.005737314568 | W30: 0.0072301006 | X30: 0.008546777526 | Y30: 0.007863395449 | Z30: 0.008289225422 | AA30: 0.01179721655 | AB30: 0.008146920059 | AC30: 0.009071002963 | AD30: 0.01250244406 | AE30: 0.01401628421 | AF30: 0.01495455606 | AG30: 0.01549698798 | AH30: 0.01678866451 | AI30: 0.01724243999 | AJ30: 0.01234940005 | AK30: 0.01385491793 | AL30: 0.01444506976 | AM30: 0.01458999772 | AN30: 0.01495125442 | AO30: 0.01529604737 | AP30: 0.01531998006 | AQ30: 0.01513291499 | AR30: 0.01513670468 | AS30: 0.01513946907 | AT30: 0.01499843267 | AU30: 0.01502508088 | AV30: 0.01497182932 | AW30: 0.01501139067 | AX30: 0.01506537304 | AY30: 0.01502941675 | AZ30: 0.0149743366 | BA30: 0.01495526425
A31: 0.1215000153 | C31: 24 | D31: 0.006702551977 | E31: 0.007100528061 | F31: 0.007991510582 | G31: 0.009310311755 | H31: 0.01177862934 | I31: 0.0122081625 | J31: 0.01115991223 | K31: 0.01335946663 | L31: 0.0126088474 | M31: 0.01487196501 | N31: 0.01510491423 | O31: 0.01420462901 | P31: 0.01465682354 | Q31: 0.01400865959 | R31: 0.01411234732 | S31: 0.01283205058 | T31: 0.01128503376 | U31: 0.01043854665 | V31: 0.009231901961 | W31: 0.005067497224 | X31: 0.006395340072 | Y31: 0.00756736966 | Z31: 0.00696500891 | AA31: 0.00734773048 | AB31: 0.01045858332 | AC31: 0.00721373394 | AD31: 0.008044091115 | AE31: 0.01110164976 | AF31: 0.01245232462 | AG31: 0.01330349362 | AH31: 0.01382063965 | AI31: 0.01495380644 | AJ31: 0.01538056716 | AK31: 0.0110418628 | AL31: 0.01239294069 | AM31: 0.01292685525 | AN31: 0.01306034196 | AO31: 0.01339237621 | AP31: 0.01370460206 | AQ31: 0.01369514614 | AR31: 0.01354059315 | AS31: 0.01354906929 | AT31: 0.01355306284 | AU31: 0.01342952211 | AV31: 0.01345558644 | AW31: 0.01340774867 | AX31: 0.01344197537 | AY31: 0.01349042402 | AZ31: 0.01345831793 | BA31: 0.01340825463
A32: 0.1227999926 | C32: 25 | D32: 0.006867053304 | E32: 0.006415259432 | F32: 0.006777845006 | G32: 0.006874534718 | H32: 0.008175858288 | I32: 0.01033772594 | J32: 0.01066843777 | K32: 0.009428282699 | L32: 0.01125616189 | M32: 0.01150869237 | N32: 0.01294986293 | O32: 0.01314293671 | P32: 0.01237756804 | Q32: 0.01279251631 | R32: 0.01222813075 | S32: 0.01235306129 | T32: 0.01126298346 | U32: 0.009914762199 | V32: 0.009186438067 | W32: 0.008140946499 | X32: 0.004475221499 | Y32: 0.005653398548 | Z32: 0.006692070586 | AA32: 0.006164055604 | AB32: 0.006503498751 | AC32: 0.009245606595 | AD32: 0.006386665583 | AE32: 0.007131157661 | AF32: 0.009846815848 | AG32: 0.01105951504 | AH32: 0.01184526758 | AI32: 0.01229037563 | AJ32: 0.01331776285 | AK32: 0.01373029783 | AL32: 0.009861061764 | AM32: 0.01107280507 | AN32: 0.01155319094 | AO32: 0.01168003227 | AP32: 0.01197986373 | AQ32: 0.01223151047 | AR32: 0.01223455764 | AS32: 0.01210104412 | AT32: 0.01210998258 | AU32: 0.01211600709 | AV32: 0.01200753121 | AW32: 0.01203069811 | AX32: 0.01198685164 | AY32: 0.01201754861 | AZ32: 0.01206094488 | BA32: 0.01203157736
A33: 0.1248000264 | C33: 26 | D33: 0.00575486352 | E33: 0.006572709713 | F33: 0.006123718367 | G33: 0.005820026434 | H33: 0.006029747935 | I33: 0.007167667538 | J33: 0.009023393686 | K33: 0.008997368265 | L33: 0.007930088096 | M33: 0.01026716455 | N33: 0.01000636095 | O33: 0.0112514396 | P33: 0.01143625965 | Q33: 0.01078819666 | R33: 0.01115126271 | S33: 0.01068926809 | T33: 0.01082809225 | U33: 0.009882247691 | V33: 0.008713938569 | W33: 0.008090220838 | X33: 0.007180054656 | Y33: 0.00395087884 | Z33: 0.004992968971 | AA33: 0.005914804416 | AB33: 0.00544867952 | AC33: 0.005741649724 | AD33: 0.008174735266 | AE33: 0.005654313623 | AF33: 0.006316714336 | AG33: 0.008733867158 | AH33: 0.00983431974 | AI33: 0.0105199451 | AJ33: 0.01093150405 | AK33: 0.0118734898 | AL33: 0.01224617961 | AM33: 0.008799248481 | AN33: 0.00988337092 | AO33: 0.01031880991 | AP33: 0.01043456728 | AQ33: 0.01067825303 | AR33: 0.01091283098 | AS33: 0.01091967197 | AT33: 0.01080172814 | AU33: 0.01081190053 | AV33: 0.01081904964 | AW33: 0.01072205996 | AX33: 0.01074178173 | AY33: 0.01070271918 | AZ33: 0.01073020015 | BA33: 0.01076835492
A34: 0.1254000068 | C34: 27 | D34: 0.004337099332 | E34: 0.005508191895 | F34: 0.006274013329 | G34: 0.005243774881 | H34: 0.005095536583 | I34: 0.005277098996 | J34: 0.006245161382 | K34: 0.007589568878 | L34: 0.007547368177 | M34: 0.007225884878 | N34: 0.008906436309 | O34: 0.008674533566 | P34: 0.009769078271 | Q34: 0.009946466249 | R34: 0.009384243263 | S34: 0.009727619994 | T34: 0.009350426402 | U34: 0.009481232128 | V34: 0.008667660849 | W34: 0.007658585119 | X34: 0.007120945138 | Y34: 0.00632606244 | Z34: 0.003482332781 | AA34: 0.004404210317 | AB34: 0.005217807303 | AC34: 0.004800627171 | AD34: 0.005066262165 | AE34: 0.007222535199 | AF34: 0.004998293135 | AG34: 0.005591341874 | AH34: 0.007750593711 | AI34: 0.008716396001 | AJ34: 0.009338086899 | AK34: 0.00972664963 | AL34: 0.01056902787 | AM34: 0.01090579717 | AN34: 0.007838401995 | AO34: 0.00880981818 | AP34: 0.009200069568 | AQ34: 0.00928221367 | AR34: 0.009507973971 | AS34: 0.00972052788 | AT34: 0.009727726822 | AU34: 0.009624613868 | AV34: 0.009635253475 | AW34: 0.009641507493 | AX34: 0.009554212968 | AY34: 0.009571863354 | AZ34: 0.00953711951 | BA34: 0.009561082697
A35: 0.1269999743 | C35: 28 | D35: 0.004402785941 | E35: 0.004151197558 | F35: 0.005257872457 | G35: 0.005367997244 | H35: 0.004588507774 | I35: 0.004457190983 | J35: 0.004595439673 | K35: 0.005248558362 | L35: 0.006361315567 | M35: 0.006875025759 | N35: 0.006263903075 | O35: =O69*(1-O$41-O$71)/SUM(O$42:O$70) -> 0.007715811986 | P35: 0.00752674862 | Q35: 0.008491011008 | R35: 0.008646563822 | S35: 0.008181065085 | T35: 0.008503966221 | U35: 0.008182331476 | V35: 0.008310837862 | W35: 0.007613281226 | X35: 0.006736941859 | Y35: 0.006270194293 | Z35: 0.005572471976 | AA35: 0.003069855394 | AB35: 0.003882864582 | AC35: 0.004594407773 | AD35: 0.004233332755 | AE35: 0.004473385881 | AF35: 0.006380641482 | AG35: 0.004421609723 | AH35: 0.004958840583 | AI35: 0.006865378371 | AJ35: 0.007732500646 | AK35: 0.008303894339 | AL35: 0.008652874535 | AM35: 0.009406584852 | AN35: 0.009709109442 | AO35: 0.006982795387 | AP35: 0.007849960068 | AQ35: 0.008179119195 | AR35: =AR69*(1-AR$41-AR$71)/SUM(AR$42:AR$70) -> 0.008259963779 | AS35: 0.008464073173 | AT35: 0.008654275385 | AU35: 0.008662446729 | AV35: 0.008572027269 | AW35: 0.008581397987 | AX35: 0.008586193281 | AY35: 0.008508521644 | AZ35: 0.008524297643 | BA35: 0.008492890347
A36: 0.1277999878 | C36: 29 | D36: 0.003204263298 | E36: 0.004214068631 | F36: 0.003962546643 | G36: 0.004488591859 | H36: 0.004690354307 | I36: 0.004008139625 | J36: 0.003875863616 | K36: 0.003853776046 | L36: 0.00438969743 | M36: 0.00578985346 | N36: 0.005948791633 | O36: 0.005416793338 | P36: 0.006683194272 | Q36: 0.006530829743 | R36: 0.007368823786 | S36: 0.007525373778 | T36: 0.007140159451 | U36: 0.007429402511 | V36: 0.007160553156 | W36: 0.007288023183 | X36: 0.00668627118 | Y36: 0.005922509034 | Z36: 0.005514366056 | AA36: 0.004904529292 | AB36: 0.002702083588 | AC36: 0.003413388417 | AD36: 0.004044849718 | AE36: 0.003731793335 | AF36: 0.003945461564 | AG36: 0.005635241722 | AH36: 0.003915064633 | AI36: 0.004385379711 | AJ36: 0.006080643982 | AK36: 0.006865169078 | AL36: 0.007375409096 | AM36: 0.007688889498 | AN36: 0.008361032904 | AO36: 0.008635488235 | AP36: 0.006212022928 | AQ36: 0.006967616651 | AR36: =AR70*(1-AR$41-AR$71)/SUM(AR$42:AR$70) -> 0.007266676403 | AS36: 0.007341297125 | AT36: 0.007523565812 | AU36: 0.00769420079 | AV36: 0.007702724536 | AW36: 0.007622226598 | AX36: 0.007629868772 | AY36: 0.007634193038 | AZ36: 0.007565184149 | BA36: 0.007578796213
A37: 0.6999999881 | C37: 30 | D37: 0.02217127378 | E37: =D37 -> 0.02217127378 | F37: =E37 -> 0.02217127378 | G37: 0.02217127378 | H37: 0.02217127378 | I37: 0.02217127378 | J37: 0.02217127378 | K37: 0.02217127378 | L37: 0.02217127378 | M37: 0.02217127378 | N37: 0.02217127378 | O37: 0.02217127378 | P37: 0.02217127378 | Q37: 0.02217127378 | R37: 0.02217127378 | S37: 0.02217127378 | T37: 0.02217127378 | U37: 0.02217127378 | V37: 0.02217127378 | W37: 0.02217127378 | X37: 0.02217127378 | Y37: 0.02217127378 | Z37: 0.02217127378 | AA37: 0.02217127378 | AB37: 0.02217127378 | AC37: 0.02217127378 | AD37: 0.02217127378 | AE37: 0.02217127378 | AF37: 0.02217127378 | AG37: 0.02217127378 | AH37: 0.02217127378 | AI37: 0.02217127378 | AJ37: 0.02217127378 | AK37: 0.02217127378 | AL37: 0.02217127378 | AM37: 0.02217127378 | AN37: 0.02217127378 | AO37: 0.02217127378 | AP37: 0.02217127378 | AQ37: 0.02217127378 | AR37: =AQ37 -> 0.02217127378 | AS37: =AR37 -> 0.02217127378 | AT37: =AS37 -> 0.02217127378 | AU37: =AT37 -> 0.02217127378 | AV37: =AU37 -> 0.02217127378 | AW37: =AV37 -> 0.02217127378 | AX37: =AW37 -> 0.02217127378 | AY37: =AX37 -> 0.02217127378 | AZ37: =AY37 -> 0.02217127378 | BA37: =AZ37 -> 0.02217127378
C39: Intermediate table
C40: age | D40: 2011 | E40: 2012 | F40: 2013 | G40: 2014 | H40: 2015 | I40: 2016 | J40: 2017 | K40: 2018 | L40: 2019 | M40: 2020 | N40: 2021 | O40: 2022 | P40: 2023 | Q40: 2024 | R40: 2025 | S40: 2026 | T40: 2027 | U40: 2028 | V40: 2029 | W40: 2030 | X40: 2031 | Y40: 2032 | Z40: 2033 | AA40: 2034 | AB40: 2035 | AC40: 2036 | AD40: 2037 | AE40: 2038 | AF40: 2039 | AG40: 2040 | AH40: 2041 | AI40: 2042 | AJ40: 2043 | AK40: 2044 | AL40: 2045 | AM40: 2046 | AN40: 2047 | AO40: 2048 | AP40: 2049 | AQ40: 2050 | AR40: 2051 | AS40: 2052 | AT40: 2053 | AU40: 2054 | AV40: 2055 | AW40: 2056 | AX40: 2057 | AY40: 2058 | AZ40: 2059 | BA40: 2060
C41: 0 | D41: =D7 -> 0.06719659743 | E41: =E2 -> 0.04497974575 | F41: =F2 -> 0.04845992608 | G41: 0.06719659743 | H41: 0.07364691837 | I41: 0.07644576799 | J41: 0.07704327208 | K41: 0.08167317536 | L41: 0.08199414267 | M41: 0.05710744817 | N41: 0.06330511041 | O41: 0.06497676013 | P41: 0.06448623501 | Q41: 0.06490030193 | R41: 0.065099501 | S41: 0.06400781414 | T41: 0.06230523258 | U41: 0.06138964355 | V41: 0.06054411304 | W41: 0.05921522581 | X41: 0.05861567061 | Y41: 0.05774776081 | Z41: 0.05726726647 | AA41: 0.05688448129 | AB41: 0.05621899581 | AC41: 0.05546445 | AD41: 0.05497164079 | AE41: 0.05463144682 | AF41: 0.05430051093 | AG41: 0.05387606366 | AH41: 0.05379486004 | AI41: 0.05389578613 | AJ41: 0.05359859474 | AK41: 0.05357425996 | AL41: 0.05399536273 | AM41: 0.05398104719 | AN41: 0.05395941309 | AO41: 0.05391336254 | AP41: 0.05367070392 | AQ41: 0.05339151122 | AR41: =AR2 -> 0.05339151122 | AS41: 0.05339151122 | AT41: 0.05339151122 | AU41: 0.05339151122 | AV41: 0.05339151122 | AW41: 0.05339151122 | AX41: 0.05339151122 | AY41: 0.05339151122 | AZ41: 0.05339151122 | BA41: 0.05339151122
C42: 1 | D42: =D8 -> 0.04669568344 | E42: =MAX(D7*(1-D$3*$A7),0) -> 0.06719659743 | F42: =MAX(E7*(1-E$3*$A7),0) -> 0.04497974575 | G42: 0.04796668737 | H42: 0.06672372043 | I42: 0.07315379584 | J42: 0.07591502828 | K42: 0.07627977076 | L42: 0.08086503489 | M42: 0.08165287515 | N42: 0.05661397835 | O42: 0.06276954976 | P42: 0.06444042966 | Q42: 0.06396258266 | R42: 0.06437883768 | S42: 0.06458265553 | T42: 0.06350533266 | U42: 0.06181827685 | V42: 0.06091149101 | W42: 0.06007578185 | X42: 0.05875883657 | Y42: 0.05816488159 | Z42: 0.05730398457 | AA42: 0.05682808533 | AB42: 0.05644539597 | AC42: 0.05578247649 | AD42: 0.05503188282 | AE42: 0.05454187703 | AF42: 0.05420450355 | AG42: 0.05387760021 | AH42: 0.05345902776 | AI42: 0.05338008587 | AJ42: 0.05348261551 | AK42: 0.053190465 | AL42: 0.05316620894 | AM42: 0.05358363663 | AN42: 0.0535692703 | AO42: 0.05354766521 | AP42: 0.05350065896 | AQ42: 0.05325888637 | AR42: =MAX(AQ7*(1-AQ$3*$A7),0) -> 0.05298252666 | AS42: 0.05298280346 | AT42: 0.05298291852 | AU42: 0.0529829912 | AV42: 0.05298297396 | AW42: 0.05298289616 | AX42: 0.05298284162 | AY42: 0.05298283098 | AZ42: 0.05298282784 | BA42: 0.05298285457
C43: 2 | D43: 0.04355950902 | E43: =MAX(D8*(1-D$3*$A8),0) -> 0.04669568344 | F43: 0.06431633905 | G43: 0.04249355062 | H43: 0.04784923842 | I43: 0.06462133135 | J43: 0.07041485575 | K43: 0.07281773538 | L43: 0.07418527115 | M43: 0.07887267433 | N43: 0.07849244414 | O43: 0.05567149537 | P43: 0.0615124472 | Q43: 0.06304217597 | R43: 0.06254878774 | S43: 0.06288301913 | T43: 0.06316793549 | U43: 0.06219761653 | V43: 0.06057245931 | W43: 0.05976182449 | X43: 0.05901260474 | Y43: 0.05777898144 | Z43: 0.05723610337 | AA43: 0.05640665197 | AB43: 0.05596380763 | AC43: 0.05563462107 | AD43: 0.0549519258 | AE43: 0.05432248085 | AF43: 0.05392573629 | AG43: 0.053618924 | AH43: 0.05334648029 | AI43: 0.05302698294 | AJ43: 0.05285954801 | AK43: 0.05300513707 | AL43: 0.05279731108 | AM43: 0.05279554509 | AN43: 0.05324195219 | AO43: 0.05324545698 | AP43: 0.05325917044 | AQ43: 0.05324471159 | AR43: 0.05290042139 | AS43: 0.05266485941 | AT43: 0.05268076083 | AU43: 0.05268508189 | AV43: 0.05269467853 | AW43: 0.05270347995 | AX43: 0.05270396145 | AY43: 0.0527000253 | AZ43: 0.05270060538 | BA43: 0.05270103498
C44: 3 | D44: 0.04634072645 | E44: 0.04355950902 | F44: 0.04469415898 | G44: 0.0607540724 | H44: 0.04238600882 | I44: 0.04633792969 | J44: 0.0621967961 | K44: 0.06753410379 | L44: 0.07081006496 | M44: 0.07235397001 | N44: 0.07581216625 | O44: 0.07717807898 | P44: 0.05455126619 | Q44: 0.06017199584 | R44: 0.06164291732 | S44: 0.06108980293 | T44: 0.06149987032 | U44: 0.06186149891 | V44: 0.06093858988 | W44: 0.05942380332 | X44: 0.05869890028 | Y44: 0.05802328702 | Z44: 0.05685124409 | AA44: 0.05633476956 | AB44: 0.05554375787 | AC44: 0.05515492976 | AD44: 0.05480126129 | AE44: 0.05423858333 | AF44: 0.05370389823 | AG44: 0.05333829826 | AH44: 0.05308553703 | AI44: 0.05291056286 | AJ44: 0.05250517025 | AK44: 0.05238295689 | AL44: 0.05260865635 | AM44: 0.05242453355 | AN44: 0.05245419599 | AO44: 0.05291538457 | AP44: 0.05295383893 | AQ44: 0.05299961144 | AR44: 0.05288159381 | AS44: 0.05257852863 | AT44: 0.05235993246 | AU44: 0.05237992495 | AV44: 0.05239369111 | AW44: 0.05241200356 | AX44: 0.05242131302 | AY44: 0.05241793071 | AZ44: 0.05241460334 | BA44: 0.05241561097
C45: 4 | D45: 0.0381641346 | E45: 0.04634072645 | F45: 0.0416924109 | G45: 0.04194604195 | H45: 0.06033060214 | I45: 0.04087349062 | J45: 0.04440355738 | K45: 0.05927726471 | L45: 0.06525991796 | M45: 0.06888082491 | N45: 0.06916570147 | O45: 0.07414325172 | P45: 0.07522980234 | Q45: 0.05308814589 | R45: 0.05853714683 | S45: 0.05990247594 | T45: 0.05944921063 | U45: 0.05992998425 | V45: 0.06031047889 | W45: 0.05949030554 | X45: 0.0580821842 | Y45: 0.05743393042 | Z45: 0.0568139622 | AA45: 0.05568439201 | AB45: 0.05520197384 | AC45: 0.05447192914 | AD45: 0.05406056743 | AE45: 0.05382221298 | AF45: 0.05335571561 | AG45: 0.05285702262 | AH45: 0.05254898924 | AI45: 0.05239482201 | AJ45: 0.05213572057 | AK45: 0.05178104705 | AL45: 0.05174053279 | AM45: 0.05198513879 | AN45: 0.05183414443 | AO45: 0.05188071129 | AP45: 0.05237063031 | AQ45: 0.05243987551 | AR45: 0.05238298684 | AS45: 0.05230519089 | AT45: 0.0520209328 | AU45: 0.05180883758 | AV45: 0.05183797825 | AW45: 0.05186023011 | AX45: 0.05187887166 | AY45: 0.05188425787 | AZ45: 0.0518814897 | BA45: 0.05187863932
C46: 5 | D46: 0.02928828622 | E46: 0.0381641346 | F46: 0.04435441656 | G46: 0.03889806401 | H46: 0.0414846897 | I46: 0.05795330944 | J46: 0.03901049813 | K46: 0.04207631557 | L46: 0.05695282235 | M46: 0.06333030757 | N46: 0.06551672053 | O46: 0.06731242399 | P46: 0.07192699581 | Q46: 0.0728687244 | R46: 0.05140614726 | S46: 0.05662365421 | T46: 0.05802960402 | U46: 0.05767032062 | V46: 0.05816472201 | W46: 0.05861427022 | X46: 0.05788854588 | Y46: 0.05657827715 | Z46: 0.05598748853 | AA46: 0.05540159967 | AB46: 0.05432160023 | AC46: 0.05389412555 | AD46: 0.05315077206 | AE46: 0.0528551521 | AF46: 0.05270728478 | AG46: 0.05227825835 | AH46: 0.05184219088 | AI46: 0.0516344675 | AJ46: 0.05139913587 | AK46: 0.0511907776 | AL46: 0.05092121963 | AM46: 0.05090234246 | AN46: 0.05117344869 | AO46: 0.05104169612 | AP46: 0.05111979001 | AQ46: 0.05163268183 | AR46: 0.05160065365 | AS46: 0.0515831446 | AT46: 0.05152195668 | AU46: 0.05124613341 | AV46: 0.05104640315 | AW46: 0.05108357022 | AX46: 0.05110597547 | AY46: 0.05112056771 | AZ46: 0.05112644449 | BA46: 0.05112416826
C47: 6 | D47: 0.05099935748 | E47: 0.02928828622 | F47: 0.03652829926 | G47: 0.0411160784 | H47: 0.03830074584 | I47: 0.03968308799 | J47: 0.0550714627 | K47: 0.03673506896 | L47: 0.04017431777 | M47: 0.0551257492 | N47: 0.05991022922 | O47: 0.06342241883 | P47: 0.06496197437 | Q47: 0.06931451788 | R47: 0.07020427504 | S47: 0.04947809014 | T47: 0.05458320803 | U47: 0.05601726078 | V47: 0.05569822056 | W47: 0.0562546706 | X47: 0.05676046753 | Y47: 0.05611774757 | Z47: 0.05488764642 | AA47: 0.05433316968 | AB47: 0.05378414997 | AC47: 0.05277637737 | AD47: 0.05232977602 | AE47: 0.05171084799 | AF47: 0.05150656601 | AG47: 0.05139068421 | AH47: 0.05102566045 | AI47: 0.05069370209 | AJ47: 0.05040977724 | AK47: 0.05022664106 | AL47: 0.05010039082 | AM47: 0.0498568317 | AN47: 0.04986794016 | AO47: 0.0501500454 | AP47: 0.05005171595 | AQ47: 0.05015701002 | AR47: 0.05056238264 | AS47: 0.05056889907 | AT47: 0.05056694425 | AU47: 0.05051112414 | AV47: 0.05024976433 | AW47: 0.05006215683 | AX47: 0.05009904228 | AY47: 0.05011730528 | AZ47: 0.05013217155 | BA47: 0.0501383936
C48: 7 | D48: 0.05511228692 | E48: 0.05099935748 | F48: 0.02803289777 | G48: 0.03362612628 | H48: 0.04029202483 | I48: 0.03647167544 | J48: 0.03753275526 | K48: 0.05150873957 | L48: 0.03483784516 | M48: 0.03877695563 | N48: 0.05184257467 | O48: 0.05766195646 | P48: 0.0608649171 | Q48: 0.06225759597 | R48: 0.06641610035 | S48: 0.06720740862 | T48: 0.04744131967 | U48: 0.05241124562 | V48: 0.05381608573 | W48: 0.05358678509 | X48: 0.05419099592 | Y48: 0.05473744879 | Z48: 0.05415741021 | AA48: 0.05298905777 | AB48: 0.05247101708 | AC48: 0.05197924103 | AD48: 0.05097359034 | AE48: 0.05064230148 | AF48: 0.05012452802 | AG48: 0.04995486386 | AH48: 0.04989623528 | AI48: 0.04963457804 | AJ48: 0.04923426802 | AK48: 0.04900575439 | AL48: 0.04890315787 | AM48: 0.04879976791 | AN48: 0.04859126498 | AO48: 0.04861801012 | AP48: 0.04892231283 | AQ48: 0.04885374402 | AR48: 0.04886238958 | AS48: 0.04929440274 | AT48: 0.04931565762 | AU48: 0.04931786204 | AV48: 0.04927228558 | AW48: 0.04902535496 | AX48: 0.04884270816 | AY48: 0.04887506989 | AZ48: 0.04889342728 | BA48: 0.04890839521
C49: 8 | D49: 0.05652654264 | E49: 0.05511228692 | F49: 0.04881336396 | G49: 0.02561249869 | H49: 0.0327835524 | I49: 0.0381812657 | J49: =MAX(I14*(1-I$3*$A14),0) -> 0.03432125956 | K49: 0.03484903455 | L49: 0.0484933749 | M49: 0.03352536078 | N49: 0.03623699619 | O49: 0.04958850654 | P49: 0.05500312559 | Q49: 0.05798529616 | R49: 0.05930445127 | S49: 0.06321266092 | T49: 0.06407184903 | U49: 0.04529391006 | V49: 0.05006579699 | W49: 0.05148401368 | X49: 0.05133095511 | Y49: 0.05196659752 | Z49: 0.05252942976 | AA49: 0.05199183074 | AB49: 0.05088501873 | AC49: 0.05042308825 | AD49: 0.04991817066 | AE49: 0.0490486058 | AF49: 0.0488090011 | AG49: 0.04833837542 | AH49: 0.04822845382 | AI49: 0.04826314219 | AJ49: 0.04793628609 | AK49: 0.04759739825 | AL49: 0.0474496076 | AM49: 0.04736892098 | AN49: 0.04729663698 | AO49: 0.04710989185 | AP49: 0.04716317705 | AQ49: 0.04748431355 | AR49: 0.04732705159 | AS49: 0.04737126801 | AT49: 0.04780462036 | AU49: 0.04782926861 | AV49: 0.04784000208 | AW49: 0.04780355813 | AX49: 0.04756433071 | AY49: 0.04738360531 | AZ49: 0.04741552241 | BA49: 0.04743380017
C50: 9 | D50: 0.06032981135 | E50: 0.05652654264 | F50: 0.05275000025 | G50: 0.04425684324 | H50: 0.02484017065 | I50: 0.03091182458 | J50: 0.03574479888 | K50: 0.03162958731 | L50: 0.03256472918 | M50: 0.04652390699 | N50: 0.03112685271 | O50: 0.03444223533 | P50: 0.04701033563 | Q50: 0.052083212 | R50: 0.05490365279 | S50: 0.05610978799 | T50: 0.05991075689 | U50: 0.06081526615 | V50: 0.04301578 | W50: 0.0476201487 | X50: 0.04903349023 | Y50: 0.04894190645 | Z50: 0.04958482365 | AA50: 0.05014083527 | AB50: 0.0496402223 | AC50: 0.04861601714 | AD50: 0.04814221594 | AE50: 0.0477531079 | AF50: 0.04699760013 | AG50: 0.04679647822 | AH50: 0.04639862974 | AI50: 0.04638194032 | AJ50: 0.04634557392 | AK50: 0.0460797443 | AL50: 0.04582453218 | AM50: 0.04569993489 | AN50: 0.04564901061 | AO50: 0.04559410429 | AP50: 0.04543958484 | AQ50: 0.04551520726 | AR50: 0.04573791882 | AS50: 0.04562114055 | AT50: 0.04567771603 | AU50: 0.04609951414 | AV50: 0.04613156024 | AW50: 0.04614935867 | AX50: 0.04611449832 | AY50: 0.04588030652 | AZ50: 0.04570648098 | BA50: 0.04573773793
C51: 10 | D51: 0.06173096608 | E51: 0.06032981135 | F51: 0.05410363651 | G51: 0.04746249035 | H51: 0.04270035941 | I51: 0.02330692233 | J51: 0.02879168232 | K51: 0.03269803726 | L51: 0.02933823519 | M51: 0.03114800853 | N51: 0.04291891095 | O51: 0.02939993041 | P51: 0.03245226372 | Q51: 0.04424764084 | R51: 0.04902258912 | S51: 0.05164161096 | T51: 0.05287086601 | U51: 0.05653779207 | V51: 0.05742463937 | W51: 0.04068112862 | X51: 0.04509580414 | Y51: 0.04648629299 | Z51: 0.04643419301 | AA51: 0.04706255001 | AB51: 0.04760047281 | AC51: 0.04715512885 | AD51: 0.046149848 | AE51: 0.04578855938 | AF51: 0.04549247514 | AG51: 0.04480090306 | AH51: 0.04466219712 | AI51: 0.04436849555 | AJ51: 0.0442874167 | AK51: 0.04430063462 | AL51: 0.04411438482 | AM51: 0.04388675195 | AN51: 0.04379302158 | AO51: 0.04375829639 | AP51: 0.04372939161 | AQ51: 0.043603793 | AR51: 0.04359367994 | AS51: 0.04384050969 | AT51: 0.04374201006 | AU51: 0.04380004306 | AV51: 0.04421242399 | AW51: 0.04425024815 | AX51: 0.04426756974 | AY51: 0.04423082983 | AZ51: 0.04400668483 | BA51: 0.0438404248
C52: 11 | D52: 0.05657150871 | E52: 0.06173096608 | F52: 0.05774388511 | G52: 0.04831981562 | H52: 0.04556304491 | I52: 0.03987343429 | J52: 0.02160076466 | K52: 0.02614791685 | L52: 0.03011123004 | M52: 0.02797982834 | N52: 0.02855537393 | O52: 0.0402906957 | P52: 0.0275367634 | Q52: 0.030366782 | R52: 0.0414069982 | S52: 0.04584704216 | T52: 0.04838640155 | U52: 0.0496143812 | V52: 0.05308727375 | W52: 0.054006607 | X52: 0.03831166288 | Y52: 0.04251736429 | Z52: 0.04386134472 | AA52: 0.04382982644 | AB52: 0.04443078433 | AC52: 0.04496559319 | AD52: 0.04451254338 | AE52: 0.0436473168 | AF52: 0.0433762739 | AG52: 0.04312377019 | AH52: 0.04252020774 | AI52: 0.04247185906 | AJ52: 0.04213201644 | AK52: 0.04210222048 | AL52: 0.04217959772 | AM52: 0.04201797446 | AN52: 0.04182551393 | AO52: 0.04174953467 | AP52: 0.04173831493 | AQ52: 0.04173180647 | AR52: 0.04153357793 | AS52: 0.04155588086 | AT52: 0.04180407932 | AU52: 0.04171380529 | AV52: 0.04177662253 | AW52: 0.04217666414 | AX52: 0.04221295164 | AY52: 0.04222631797 | AZ52: 0.04219173112 | BA52: 0.04197838246
C53: 12 | D53: 0.05459662598 | E53: 0.05657150871 | F53: 0.05908498192 | G53: 0.05119907099 | H53: 0.04615962679 | I53: 0.04234943121 | J53: 0.03677668416 | K53: 0.0194798283 | L53: 0.02391084233 | M53: 0.02863567156 | N53: 0.02549549766 | O53: 0.02664792598 | P53: 0.03751951973 | Q53: 0.02562097597 | R53: 0.02825783564 | S53: 0.03851021966 | T53: 0.04272190171 | U53: 0.04515868613 | V53: 0.0463334425 | W53: 0.04965826668 | X53: 0.05058787076 | Y53: 0.03592758632 | Z53: 0.03990176195 | AA53: 0.04118011374 | AB53: 0.04115627528 | AC53: 0.04174420512 | AD53: 0.04221491808 | AE53: 0.04186930733 | AF53: 0.04112253201 | AG53: 0.04089450566 | AH53: 0.04070766193 | AI53: 0.04021768827 | AJ53: 0.0401156175 | AK53: 0.03984079858 | AL53: 0.0398738333 | AM53: 0.03996180108 | AN53: 0.03983178298 | AO53: 0.039661944 | AP53: 0.03960995794 | AQ53: 0.03961878123 | AR53: 0.03953837773 | AS53: 0.03938098266 | AT53: 0.03941436118 | AU53: 0.03965327873 | AV53: 0.03957472096 | AW53: 0.03964058222 | AX53: 0.04002033391 | AY53: 0.04005176515 | AZ53: 0.04006488121 | BA53: 0.04003252102
C54: 13 | D54: 0.04780993703 | E54: 0.05459662598 | F54: 0.05414667518 | G54: 0.05203438862 | H54: 0.04868707331 | I54: 0.04271820365 | J54: 0.03888473711 | K54: 0.03294802899 | L54: 0.01769654599 | M54: 0.02267905182 | N54: 0.02594522456 | O54: 0.02366060256 | P54: 0.02468113521 | Q54: 0.03472400189 | R54: 0.02371654184 | S54: 0.02614481346 | T54: 0.03570150106 | U54: 0.03966890503 | V54: 0.04195831378 | W54: 0.04312226004 | X54: 0.04628127491 | Y54: 0.04720225094 | Z54: 0.03354863148 | AA54: 0.03727549637 | AB54: 0.03847375887 | AC54: 0.03847204707 | AD54: 0.03899136993 | AE54: 0.03950574877 | AF54: 0.03924641028 | AG54: 0.03857291407 | AH54: 0.03840861287 | AI54: 0.03830991906 | AJ54: 0.03779687887 | AK54: 0.03774603763 | AL54: 0.03754503578 | AM54: 0.03758975624 | AN54: 0.03769447501 | AO54: 0.03758371554 | AP54: 0.03744179968 | AQ54: 0.03741063861 | AR54: 0.03734919095 | AS54: 0.03730233622 | AT54: 0.03716543136 | AU54: 0.03720025954 | AV54: 0.03743243643 | AW54: 0.03736414627 | AX54: 0.03742645578 | AY54: 0.03778216025 | AZ54: 0.03781224178 | BA54: 0.03782506864
C55: 14 | D55: 0.04563262034 | E55: 0.04780993703 | F55: 0.05225644217 | G55: 0.04734892434 | H55: 0.04924612185 | I55: 0.04485392158 | J55: 0.03903947605 | K55: 0.03459783792 | L55: 0.02972697557 | M55: 0.01673875241 | N55: 0.02042671289 | O55: 0.02393873211 | P55: 0.02179086545 | Q55: 0.02271575082 | R55: 0.03196701201 | S55: 0.02182452684 | T55: 0.02410854373 | U55: 0.03297402843 | V55: 0.03666243486 | W55: 0.03884509501 | X55: 0.03997931377 | Y55: 0.04295828645 | Z55: 0.04384667318 | AA55: 0.03117728584 | AB55: 0.03464311387 | AC55: 0.03577468712 | AD55: 0.03574446022 | AE55: 0.03629510185 | AF55: 0.03683414295 | AG55: 0.0366182053 | AH55: 0.03603758346 | AI55: 0.03595694761 | AJ55: 0.03581649695 | AK55: =MAX(AJ20*(1-AJ$3*$A20),0) -> 0.0353804281 | AL55: 0.03538706047 | AM55: 0.03521112897 | AN55: 0.03527338425 | AO55: 0.03538277135 | AP55: 0.03529547105 | AQ55: 0.03517858028 | AR55: 0.0350840834 | AS55: 0.03505378693 | AT55: 0.03502078666 | AU55: 0.03489541119 | AV55: 0.03493433864 | AW55: 0.03515785755 | AX55: 0.03509381027 | AY55: 0.03514969007 | AZ55: 0.03548413742 | BA55: 0.03551281923
C56: 15 | D56: 0.04011604311 | E56: 0.04563262034 | F56: 0.04576065214 | G56: 0.04476913313 | H56: 0.04420057539 | I56: 0.04478197965 | J56: 0.04044019006 | K56: 0.03405118797 | L56: 0.03060154404 | M56: 0.02789681757 | N56: 0.01482029464 | O56: 0.01853409433 | P56: 0.02169053882 | Q56: 0.01973699165 | R56: 0.02058367698 | S56: 0.02896058175 | T56: 0.01981636648 | U56: 0.02192714895 | V56: 0.03001189596 | W56: 0.03343019468 | X56: 0.03547278006 | Y56: 0.03655253656 | Z56: 0.03930672022 | AA56: 0.04013844296 | AB56: 0.02853949998 | AC56: 0.03172493307 | AD56: 0.03273258173 | AE56: 0.03276512564 | AF56: 0.03332457114 | AG56: 0.03384530685 | AH56: 0.03369495307 | AI56: 0.03323015143 | AJ56: 0.03311446185 | AK56: 0.03302938671 | AL56: 0.03267718513 | AM56: 0.03269432787 | AN56: 0.03255032675 | AO56: 0.03261795645 | AP56: 0.03273289091 | AQ56: 0.0326660951 | AR56: 0.03249838905 | AS56: 0.03243673588 | AT56: 0.03241903247 | AU56: 0.03239153502 | AV56: 0.03228130402 | AW56: 0.03232225782 | AX56: 0.03252908023 | AY56: 0.03246736625 | AZ56: 0.03251940953 | BA56: 0.03282926205
C57: 16 | D57: 0.03169629441 | E57: 0.04011604311 | F57: 0.04367666212 | G57: 0.03891972357 | H57: 0.0415898869 | I57: 0.0400092484 | J57: 0.04018258123 | K57: 0.0350245892 | L57: 0.02990635446 | M57: 0.02863775805 | N57: 0.02455000865 | O57: 0.013367603 | P57: 0.01669678789 | Q57: 0.01953500754 | R57: 0.0177845094 | S57: 0.01854491384 | T57: 0.02615245297 | U57: 0.01792555391 | V57: 0.01984950984 | W57: 0.02721916459 | X57: 0.03036483458 | Y57: 0.03225936905 | Z57: 0.03326731545 | AA57: 0.03579119751 | AB57: 0.03654582285 | AC57: 0.02599466956 | AD57: 0.02887007937 | AE57: 0.0298414539 | AF57: 0.02992030245 | AG57: 0.03045501433 | AH57: 0.03097621 | AI57: 0.03090391542 | AJ57: 0.03044063404 | AK57: 0.03037655257 | AL57: 0.03034483591 | AM57: 0.03003118401 | AN57: 0.03006399817 | AO57: 0.02994077695 | AP57: 0.03001507373 | AQ57: 0.03013330841 | AR57: 0.03001713254 | AS57: 0.02988677119 | AT57: 0.02983960797 | AU57: 0.02982613571 | AV57: 0.02980612247 | AW57: 0.0297092001 | AX57: 0.02974688272 | AY57: 0.02993495738 | AZ57: 0.02987848113 | BA57: 0.02992677983
C58: 17 | D58: 0.02880154324 | E58: 0.03169629441 | F58: 0.03839654281 | G58: 0.03689562938 | H58: 0.03599268512 | I58: 0.03748509021 | J58: 0.0357403624 | K58: 0.03457267312 | L58: 0.03055937469 | M58: 0.02791488014 | N58: 0.02505974489 | O58: 0.02202144558 | P58: 0.01197779454 | Q58: 0.0149582077 | R58: 0.01751073744 | S58: 0.01594054804 | T58: 0.0166616097 | U58: 0.02353740987 | V58: 0.01614530136 | W58: 0.01791239068 | X58: 0.02460015528 | Y58: 0.02747690053 | Z58: 0.02921420574 | AA58: 0.03014185663 | AB58: 0.03242507046 | AC58: 0.03311990546 | AD58: 0.02353609332 | AE58: 0.02618693538 | AF58: 0.02711265259 | AG58: 0.02720610166 | AH58: 0.02773380219 | AI58: 0.02826877906 | AJ58: 0.02816946402 | AK58: 0.02778651009 | AL58: 0.02777037119 | AM58: 0.02775037579 | AN58: 0.02747907611 | AO58: 0.02751750318 | AP58: 0.02741529124 | AQ58: 0.0274943489 | AR58: =MAX(AQ23*(1-AQ$3*$A23),0) -> 0.0275527114 | AS58: 0.02746840906 | AT58: 0.0273579006 | AU58: 0.02731733141 | AV58: 0.02730983401 | AW58: 0.02729562493 | AX58: 0.02720683907 | AY58: 0.02723927965 | AZ58: 0.02741178892 | BA58: 0.02736045315
C59: 18 | D59: 0.02059067581 | E59: 0.02880154324 | F59: 0.03033769113 | G59: 0.03224007427 | H59: 0.03398431757 | I59: 0.03231735105 | J59: 0.03335351991 | K59: 0.03057106327 | L59: 0.02998922543 | M59: 0.02845922687 | N59: 0.02430478112 | O59: 0.02236865214 | P59: 0.01963791836 | Q59: 0.01068038471 | R59: 0.01334619502 | S59: 0.01562353136 | T59: 0.01425716865 | U59: 0.01492830929 | V59: 0.02110508161 | W59: 0.01450505483 | X59: 0.01611735439 | Y59: 0.02216237969 | Z59: 0.02477360902 | AA59: 0.02635323676 | AB59: 0.02718620998 | AC59: 0.02925456901 | AD59: 0.02985321879 | AE59: 0.0212528844 | AF59: 0.02368559615 | AG59: 0.02454297878 | AH59: 0.02466521623 | AI59: 0.02519790937 | AJ59: 0.02565432256 | AK59: 0.02560126407 | AL59: 0.02529176724 | AM59: 0.02528514012 | AN59: 0.02528117968 | AO59: 0.02504162581 | AP59: 0.02508593539 | AQ59: 0.02500249865 | AR59: 0.02502943404 | AS59: 0.02510268222 | AT59: 0.02503394801 | AU59: 0.02493563136 | AV59: 0.024903059 | AW59: 0.02489995586 | AX59: 0.02488695988 | AY59: 0.02480412249 | AZ59: 0.02483395898 | BA59: 0.02499159025
C60: 19 | D60: 0.01987490888 | E60: 0.02059067581 | F60: 0.02756701814 | G60: 0.02533970519 | H60: 0.02959274547 | I60: 0.03041344297 | J60: 0.02865673199 | K60: 0.02838420749 | L60: 0.02638336625 | M60: 0.027872818 | N60: 0.02467058025 | O60: 0.02160227721 | P60: 0.01986480069 | Q60: 0.01743944658 | R60: 0.00949101562 | S60: 0.01186050431 | T60: 0.01391879289 | U60: 0.01272411573 | V60: 0.01333355894 | W60: 0.01888774713 | X60: 0.01300128278 | Y60: 0.01446448325 | Z60: 0.01990535622 | AA60: 0.02226203978 | AB60: 0.02367753469 | AC60: 0.02443286179 | AD60: 0.02626639258 | AE60: 0.02685188492 | AF60: 0.01914777613 | AG60: 0.02135732181 | AH60: 0.022164836 | AI60: 0.02232368741 | AJ60: 0.02278004043 | AK60: 0.02322694933 | AL60: 0.02321426312 | AM60: 0.02294082905 | AN60: 0.02294771122 | AO60: 0.02295105599 | AP60: 0.022741701 | AQ60: 0.02279059534 | AR60: 0.02267404049 | AS60: 0.02271673799 | AT60: 0.02279059362 | AU60: 0.02273039289 | AV60: 0.02264512449 | AW60: 0.02261891578 | AX60: 0.02261604754 | AY60: 0.02260252222 | AZ60: 0.02252752457 | BA60: 0.02255494932
C61: 20 | D61: 0.01694070613 | E61: 0.01987490888 | F61: 0.01970809442 | G61: 0.02291025563 | H61: 0.02318190551 | I61: 0.02640018544 | J61: 0.02688041967 | K61: 0.02426880609 | L61: 0.02437736667 | M61: 0.02447515748 | N61: 0.02406174709 | O61: 0.02183833939 | P61: 0.01910839898 | Q61: 0.01757247187 | R61: 0.0154379509 | S61: 0.008402558982 | T61: 0.01052686821 | U61: 0.01237592065 | V61: 0.01132272206 | W61: 0.0118888331 | X61: 0.01686760556 | Y61: 0.01162533941 | Z61: 0.01294398776 | AA61: 0.01782218059 | AB61: 0.01992834648 | AC61: 0.02120095742 | AD61: 0.02185578979 | AE61: 0.02353776073 | AF61: 0.02410221819 | AG61: 0.01720159419 | AH61: 0.01921687893 | AI61: 0.01998716921 | AJ61: 0.02010813444 | AK61: 0.020550091 | AL61: 0.02098518728 | AM61: 0.02098022015 | AN61: 0.02074472345 | AO61: 0.0207571951 | AP61: 0.02076737061 | AQ61: 0.02058555577 | AR61: 0.02059294278 | AS61: 0.02050417402 | AT61: 0.02054945898 | AU61: 0.02061828122 | AV61: 0.02056744939 | AW61: 0.02049333395 | AX61: 0.02046955964 | AY61: 0.02046540319 | AZ61: 0.02045337759 | BA61: 0.02038581171
C62: 21 | D62: 0.01181994086 | E62: 0.01694070613 | F62: 0.01902300752 | G62: 0.01631433327 | H62: 0.02090471323 | I62: 0.02062992899 | J62: 0.02327345484 | K62: 0.02267744759 | L62: 0.02076336481 | M62: 0.02258073246 | N62: 0.02105948989 | O62: 0.0212313186 | P62: 0.01925713997 | Q62: 0.01685174367 | R62: 0.01550876852 | S62: 0.01362678554 | T62: 0.00743581601 | U62: 0.009332595546 | V62: 0.01098077327 | W62: 0.01006666985 | X62: 0.01058667085 | Y62: 0.01503913271 | Z62: =MAX(Y27*(1-Y$3*$A27),0) -> 0.01037341579 | AA62: 0.01155614004 | AB62: 0.01590786733 | AC62: 0.01779208337 | AD62: 0.01890940961 | AE62: 0.01952801599 | AF62: 0.02106564774 | AG62: 0.02158935304 | AH62: 0.01543283239 | AI62: 0.0172788957 | AJ62: 0.01795194344 | AK62: 0.01808817116 | AL62: 0.01851389037 | AM62: 0.01891166167 | AN62: 0.0189177617 | AO62: 0.0187110283 | AP62: 0.01872853705 | AQ62: 0.01874451672 | AR62: 0.01854730249 | AS62: 0.01856898323 | AT62: 0.01849496189 | AU62: 0.01853762949 | AV62: 0.01860299543 | AW62: 0.0185598732 | AX62: 0.01849293368 | AY62: 0.01847006992 | AZ62: 0.01846651182 | BA62: 0.01845593683
C63: 22 | D63: 0.008746893936 | E63: 0.01181994086 | F63: 0.01621457396 | G63: 0.01568274716 | H63: 0.01484595475 | I63: 0.01855580985 | J63: 0.01813817218 | K63: 0.01955650698 | L63: 0.01932497103 | M63: 0.01920355842 | N63: 0.0193634368 | O63: 0.01852058048 | P63: 0.0186614543 | Q63: 0.01692911152 | R63: 0.01482611541 | S63: 0.01364700174 | T63: 0.01202218656 | U63: 0.006572209611 | V63: 0.008255481697 | W63: 0.009733354102 | X63: 0.008937291054 | Y63: 0.009410913863 | Z63: 0.0133795981 | AA63: 0.0092336536 | AB63: 0.0102839897 | AC63: 0.01415978368 | AD63: 0.01582092781 | AE63: 0.01684413334 | AF63: 0.01742398285 | AG63: 0.01881230833 | AH63: 0.0193112416 | AI63: 0.01383496616 | AJ63: 0.01547333019 | AK63: 0.01610095513 | AL63: 0.01624783555 | AM63: 0.01663526879 | AN63: 0.01700216154 | AO63: 0.01701273053 | AP63: 0.01683226517 | AQ63: 0.01685399711 | AR63: 0.01683841307 | AS63: 0.01667478303 | AT63: 0.01669972868 | AU63: 0.0166348018 | AV63: 0.01667611734 | AW63: 0.01673738083 | AX63: 0.01669852301 | AY63: 0.01663702518 | AZ63: 0.01661662863 | BA63: 0.01661367967
C64: 23 | D64: 0.007418508776 | E64: 0.008746893936 | F64: 0.01131330087 | G64: 0.01333081099 | H64: 0.01424542785 | I64: 0.01315528578 | J64: 0.01628552998 | K64: 0.0152008645 | L64: 0.01662119917 | M64: 0.0178548993 | N64: 0.01643001678 | O64: 0.0169912155 | P64: 0.01624369349 | Q64: 0.01637067642 | R64: 0.01486299535 | S64: 0.01301934329 | T64: 0.01201545779 | U64: 0.01060434007 | V64: 0.005801925919 | W64: 0.007302970627 | X64: 0.008624097742 | Y64: 0.007928873003 | Z64: 0.008355760505 | AA64: 0.01188586384 | AB64: 0.008200720787 | AC64: 0.009135454133 | AD64: 0.01256554347 | AE64: 0.01406435357 | AF64: 0.01499876434 | AG64: 0.01552871662 | AH64: 0.01679343461 | AI64: 0.01727719966 | AJ64: 0.01236465954 | AK64: 0.01385053938 | AL64: 0.01443427484 | AM64: 0.01457031822 | AN64: 0.01492606356 | AO64: 0.01525980943 | AP64: 0.01527413364 | AQ64: 0.0151173965 | AR64: 0.01511008236 | AS64: 0.01510839228 | AT64: 0.01496647106 | AU64: 0.0149903476 | AV64: 0.0149346976 | AW64: 0.01497398645 | AX64: 0.01502893821 | AY64: 0.01499289994 | AZ64: 0.01493783858 | BA64: 0.01491975373
C65: 24 | D65: 0.006702551977 | E65: 0.007418508776 | F65: 0.008371974439 | G65: 0.009266721158 | H65: 0.01207945517 | I65: 0.01259394728 | J65: 0.01151795749 | K65: 0.01359914702 | L65: 0.01287292214 | M65: 0.01533553309 | N65: 0.01522916871 | O65: 0.01437388743 | P65: 0.01485883327 | Q65: 0.01420885812 | R65: 0.01433200066 | S65: 0.01301524991 | T65: 0.01143120205 | U65: 0.01056929922 | V65: 0.009335867963 | W65: 0.005118571016 | X65: 0.006453196858 | Y65: 0.007630382243 | Z65: 0.007020914912 | AA65: 0.007402943193 | AB65: 0.01052764984 | AC65: 0.007264988867 | AD65: 0.008084689363 | AE65: 0.01113972328 | AF65: 0.01248913586 | AG65: 0.01333073127 | AH65: 0.01382456646 | AI65: 0.01498395237 | AJ65: 0.0153995721 | AK65: 0.01103837325 | AL65: 0.01238367934 | AM65: 0.01290941906 | AN65: 0.01303833703 | AO65: 0.01336064827 | AP65: 0.0136635898 | AQ65: 0.01368110205 | AR65: 0.01351677806 | AS65: 0.01352125711 | AT65: 0.0135241813 | AU65: 0.01339847727 | AV65: 0.01342221516 | AW65: 0.01337434028 | AX65: 0.01340946664 | AY65: 0.01345764649 | AZ65: 0.01342551501 | BA65: 0.0133764174
C66: 25 | D66: 0.006867053304 | E66: 0.006702551977 | F66: 0.007100528061 | G66: 0.006842348355 | H66: 0.008384669461 | I66: 0.01066440387 | J66: 0.01101071498 | K66: 0.009597434247 | L66: 0.01149190651 | M66: 0.01186742523 | N66: 0.01305638975 | O66: 0.0132995443 | P66: 0.01254816361 | Q66: 0.01297533487 | R66: 0.01241845697 | S66: 0.01252942223 | T66: 0.01140886615 | U66: 0.01003895388 | V66: 0.009289892073 | W66: 0.00822299667 | X66: 0.004515707529 | Y66: 0.005700473722 | Z66: 0.006745785796 | AA66: 0.006210373883 | AB66: 0.006546446634 | AC66: 0.009311298357 | AD66: 0.006418898863 | AE66: 0.00715561423 | AF66: 0.009875924751 | AG66: 0.01108215836 | AH66: 0.01184863313 | AI66: 0.01231515225 | AJ66: 0.0133342189 | AK66: 0.01372595866 | AL66: 0.009853692508 | AM66: 0.01105786969 | AN66: 0.01153372536 | AO66: 0.01165236105 | AP66: 0.0119440129 | AQ66: 0.01221896731 | AR66: 0.01221303959 | AS66: 0.0120762043 | AT66: 0.01208417624 | AU66: 0.01208799868 | AV66: 0.01197775126 | AW66: 0.01200072094 | AX66: 0.01195786206 | AY66: 0.0119883497 | AZ66: 0.01203154788 | BA66: 0.01200300898
C67: 26 | D67: 0.00575486352 | E67: 0.006867053304 | F67: 0.006415259432 | G67: 0.005792777247 | H67: 0.006183747514 | I67: 0.007394169851 | J67: 0.00931289268 | K67: 0.009158788835 | L67: 0.008096172741 | M67: 0.01058719823 | N67: 0.01008867424 | O67: 0.01138550863 | P67: 0.0115938815 | Q67: 0.01094237137 | R67: 0.01132482789 | S67: 0.01084187555 | T67: 0.01096834206 | U67: 0.0100060321 | V67: 0.008812071473 | W67: 0.00817175976 | X67: 0.007245010526 | Y67: 0.003983777336 | Z67: 0.00503304601 | AA67: 0.005959249758 | AB67: 0.005484661575 | AC67: 0.005782445217 | AD67: 0.008215992871 | AE67: 0.005673705301 | AF67: 0.006335387644 | AG67: 0.008751748934 | AH67: 0.009837113929 | AI67: 0.01054115265 | AJ67: 0.01094501153 | AK67: 0.01186973744 | AL67: 0.01223702794 | AM67: 0.00878737975 | AN67: 0.009866718766 | AO67: 0.01029436357 | AP67: 0.01040334089 | AQ67: 0.0106673027 | AR67: 0.01089363758 | AS67: 0.01089725715 | AT67: 0.01077870969 | AU67: 0.0107869068 | AV67: 0.01079221726 | AW67: 0.01069534356 | AX67: 0.01071580328 | AY67: 0.0106767149 | AZ67: 0.01070404667 | BA67: 0.01074278601
C68: 27 | D68: 0.004337099332 | E68: 0.00575486352 | F68: 0.006572709713 | G68: 0.005219223686 | H68: 0.005225676432 | I68: 0.005443858284 | J68: 0.006445525902 | K68: 0.00772573231 | L68: 0.007705437287 | M68: 0.007451120049 | N68: 0.008979701514 | O68: 0.008777896903 | P68: 0.009903721963 | Q68: 0.01008861175 | R68: 0.009530305453 | S68: 0.009866498298 | T68: 0.009471536883 | U68: 0.00959999344 | V68: 0.008765272593 | W68: 0.007735773714 | X68: 0.007185366262 | Y68: 0.006378738806 | Z68: 0.003510284404 | AA68: 0.004437304672 | AB68: 0.005252264721 | AC68: 0.004834736524 | AD68: 0.005091831415 | AE68: 0.00724730515 | AF68: 0.00501306896 | AG68: 0.005602789623 | AH68: 0.007752795859 | AI68: 0.008733967706 | AJ68: 0.009349625474 | AK68: 0.009723575727 | AL68: 0.01056112954 | AM68: 0.01089108705 | AN68: 0.00782519534 | AO68: 0.008788946799 | AP68: 0.009172537525 | AQ68: 0.009272694953 | AR68: 0.009491251418 | AS68: 0.009700574548 | AT68: 0.009706997064 | AU68: 0.009602364777 | AV68: 0.009611357027 | AW68: 0.00961748353 | AX68: 0.009531106593 | AY68: 0.009548606699 | AZ68: 0.009513874011 | BA68: 0.00953838039
C69: 28 | D69: 0.004402785941 | E69: 0.004337099332 | F69: 0.005508191895 | G69: 0.005342864444 | H69: 0.004705698123 | I69: 0.004598040717 | J69: 0.004742875905 | K69: 0.005342722039 | L69: 0.006494544458 | M69: 0.007089324441 | N69: 0.006315430546 | O69: =MAX(N34*(1-N$3*$A34),0) -> 0.007807751463 | P69: 0.007630487089 | Q69: 0.008612356515 | R69: 0.008781144312 | S69: 0.00829786369 | T69: 0.00861411301 | U69: 0.008284822841 | V69: 0.008404431207 | W69: 0.007690013216 | X69: 0.006797889016 | Y69: 0.006322405451 | Z69: 0.005617200509 | AA69: 0.003092923067 | AB69: 0.00390850629 | AC69: 0.004627051898 | AD69: 0.004254698239 | AE69: 0.004488727523 | AF69: 0.00639950377 | AG69: 0.004430662555 | AH69: 0.00496024952 | AI69: 0.006879218541 | AJ69: 0.007742055284 | AK69: 0.008301270067 | AL69: 0.008646408167 | AM69: 0.009393896925 | AN69: 0.009692750896 | AO69: 0.006966252414 | AP69: 0.00782646835 | AQ69: 0.008170731679 | AR69: 0.008245436217 | AS69: 0.008446698967 | AT69: 0.008635833149 | AU69: 0.008642421867 | AV69: 0.008550767735 | AW69: 0.008560015523 | AX69: 0.008565428012 | AY69: 0.008487848579 | AZ69: 0.008503520766 | BA69: 0.008472724409
C70: 29 | D70: 0.003204263298 | E70: =MAX(D35*(1-D$3*$A35),0) -> 0.004402785941 | F70: =MAX(E35*(1-E$3*$A35),0) -> 0.004151197558 | G70: 0.004467576408 | H70: 0.004810145813 | I70: 0.004134799085 | J70: 0.004000213573 | K70: 0.003922916122 | L70: 0.004481633527 | M70: 0.00597032667 | N70: 0.005997726968 | O70: 0.005481338346 | P70: 0.006775306334 | Q70: 0.006624162192 | R70: 0.007483516736 | S70: 0.007632811276 | T70: 0.007232641665 | U70: 0.007522462735 | V70: 0.007241192453 | W70: 0.007361476994 | X70: 0.006746759934 | Y70: 0.005971825059 | Z70: 0.005558628191 | AA70: 0.004941383171 | AB70: 0.00271992764 | AC70: 0.003437641179 | AD70: 0.004065263935 | AE70: 0.003744591658 | AF70: 0.003957125036 | AG70: 0.005646779352 | AH70: 0.003916177006 | AI70: 0.00439422036 | AJ70: 0.006088157509 | AK70: 0.006862999486 | AL70: 0.007369897389 | AM70: 0.007678518458 | AN70: 0.008346945686 | AO70: 0.008615029859 | AP70: 0.006193432886 | AQ70: 0.006960471505 | AR70: 0.007253895828 | AS70: 0.007326227641 | AT70: 0.007507533115 | AU70: 0.00767641421 | AV70: 0.007683620964 | AW70: 0.007603234123 | AX70: 0.007611416325 | AY70: 0.00761564432 | AZ70: 0.007546744988 | BA70: 0.007560800745
C71: 30 | D71: 0.02217127378 | E71: =E37 -> 0.02217127378 | F71: =F37 -> 0.02217127378 | G71: 0.02217127378 | H71: 0.02217127378 | I71: 0.02217127378 | J71: 0.02217127378 | K71: 0.02217127378 | L71: 0.02217127378 | M71: 0.02217127378 | N71: 0.02217127378 | O71: 0.02217127378 | P71: 0.02217127378 | Q71: 0.02217127378 | R71: 0.02217127378 | S71: 0.02217127378 | T71: 0.02217127378 | U71: 0.02217127378 | V71: 0.02217127378 | W71: 0.02217127378 | X71: 0.02217127378 | Y71: 0.02217127378 | Z71: 0.02217127378 | AA71: 0.02217127378 | AB71: 0.02217127378 | AC71: 0.02217127378 | AD71: 0.02217127378 | AE71: 0.02217127378 | AF71: 0.02217127378 | AG71: 0.02217127378 | AH71: 0.02217127378 | AI71: 0.02217127378 | AJ71: 0.02217127378 | AK71: 0.02217127378 | AL71: 0.02217127378 | AM71: 0.02217127378 | AN71: 0.02217127378 | AO71: 0.02217127378 | AP71: 0.02217127378 | AQ71: 0.02217127378 | AR71: =AR37 -> 0.02217127378 | AS71: 0.02217127378 | AT71: 0.02217127378 | AU71: 0.02217127378 | AV71: 0.02217127378 | AW71: 0.02217127378 | AX71: 0.02217127378 | AY71: 0.02217127378 | AZ71: 0.02217127378 | BA71: 0.02217127378

Sheet 32 (hidden)
D1: 2011 | E1: 2012 | F1: 2013 | G1: 2014 | H1: 2015 | I1: 2016 | J1: 2017 | K1: 2018 | L1: 2019 | M1: 2020 | N1: 2021 | O1: 2022 | P1: 2023 | Q1: 2024 | R1: 2025 | S1: 2026 | T1: 2027 | U1: 2028 | V1: 2029 | W1: 2030 | X1: 2031 | Y1: 2032 | Z1: 2033 | AA1: 2034 | AB1: 2035 | AC1: 2036 | AD1: 2037 | AE1: 2038 | AF1: 2039 | AG1: 2040 | AH1: 2041 | AI1: 2042 | AJ1: 2043 | AK1: 2044 | AL1: 2045 | AM1: 2046 | AN1: 2047 | AO1: 2048 | AP1: 2049 | AQ1: 2050 | AR1: 2051 | AS1: 2052 | AT1: 2053 | AU1: 2054 | AV1: 2055 | AW1: 2056 | AX1: 2057 | AY1: 2058 | AZ1: 2059 | BA1: 2060
C2: sales (age 0 pop) | D2: 0.08292956423 | E2: 0.09333171158 | F2: 0.1226159943 | G2: 0.06719659639 | H2: 0.07364691663 | I2: 0.07644576597 | J2: 0.07704327472 | K2: 0.08167317598 | L2: 0.08199414307 | M2: 0.05710744817 | N2: 0.06330511041 | O2: 0.06497676013 | P2: 0.06448623501 | Q2: 0.06490030193 | R2: 0.065099501 | S2: 0.06400781414 | T2: 0.06230523258 | U2: 0.06138964355 | V2: 0.06054411304 | W2: 0.05921522581 | X2: 0.05861567061 | Y2: 0.05774776081 | Z2: 0.05726726647 | AA2: 0.05688448129 | AB2: 0.05621899581 | AC2: 0.05546445 | AD2: 0.05497164079 | AE2: 0.05463144682 | AF2: 0.05430051093 | AG2: 0.05387606366 | AH2: 0.05379486004 | AI2: 0.05389578613 | AJ2: 0.05359859474 | AK2: 0.05357425996 | AL2: 0.05399536273 | AM2: 0.05398104719 | AN2: 0.05395941309 | AO2: 0.05391336254 | AP2: 0.05367070392 | AQ2: 0.05339151122 | AR2: 0.05339151122 | AS2: 0.05339151122 | AT2: 0.05339151122 | AU2: 0.05339151122 | AV2: 0.05339151122 | AW2: 0.05339151122 | AX2: 0.05339151122 | AY2: 0.05339151122 | AZ2: 0.05339151122 | BA2: 0.05339151122
C3: scrappage k factor | D3: 0 | E3: 0 | F3: 1.35887999 | G3: 1.00816543 | H3: 0.9551491244 | I3: 0.9774861977 | J3: 1.375456118 | K3: 1.353315282 | L3: 0.559117384 | M3: 1.138330508 | N3: 1.093626801 | O3: 1.046792808 | P3: 1.012485955 | Q3: 0.9859647639 | R3: 0.9593020968 | S3: 0.9340926878 | T3: 0.9147296185 | U3: 0.904518024 | V3: 0.8928454311 | W3: 0.8856688655 | X3: 0.8811186245 | Y3: 0.8781494085 | Z3: 0.8752606874 | AA3: 0.8800941551 | AB3: 0.8855976679 | AC3: 0.8910576058 | AD3: 0.8948198309 | AE3: 0.8968633032 | AF3: 0.8955336424 | AG3: 0.8916709023 | AH3: 0.8906136381 | AI3: 0.8891883577 | AJ3: 0.8888528992 | AK3: 0.8882173446 | AL3: 0.8883748892 | AM3: 0.8879200218 | AN3: 0.8874744284 | AO3: 0.8896085414 | AP3: 0.891102773 | AQ3: 0.8891439246 | AR3: 0.8881283286 | AS3: 0.8875243707 | AT3: 0.8870725906 | AU3: 0.8868684194 | AV3: 0.8868511049 | AW3: 0.8868456003 | AX3: 0.8868186131 | AY3: 0.8868089002 | AZ3: 0.8867637832
A5: default
A6: scrappage | C6: age | D6: 2011 | E6: 2012 | F6: 2013 | G6: 2014 | H6: 2015 | I6: 2016 | J6: 2017 | K6: 2018 | L6: 2019 | M6: 2020 | N6: 2021 | O6: 2022 | P6: 2023 | Q6: 2024 | R6: 2025 | S6: 2026 | T6: 2027 | U6: 2028 | V6: 2029 | W6: 2030 | X6: 2031 | Y6: 2032 | Z6: 2033 | AA6: 2034 | AB6: 2035 | AC6: 2036 | AD6: 2037 | AE6: 2038 | AF6: 2039 | AG6: 2040 | AH6: 2041 | AI6: 2042 | AJ6: 2043 | AK6: 2044 | AL6: 2045 | AM6: 2046 | AN6: 2047 | AO6: 2048 | AP6: 2049 | AQ6: 2050 | AR6: 2051 | AS6: 2052 | AT6: 2053 | AU6: 2054 | AV6: 2055 | AW6: 2056 | AX6: 2057 | AY6: 2058 | AZ6: 2059 | BA6: 2060
A7: 0.008599996567 | C7: 0 | D7: 0.06719659639 | E7: =E41 -> 0.09333171158 | F7: =F41 -> 0.1226159943 | G7: 0.06719659639 | H7: 0.07364691663 | I7: 0.07644576597 | J7: 0.07704327472 | K7: 0.08167317598 | L7: 0.08199414307 | M7: 0.05710744817 | N7: 0.06330511041 | O7: 0.06497676013 | P7: 0.06448623501 | Q7: 0.06490030193 | R7: 0.065099501 | S7: 0.06400781414 | T7: 0.06230523258 | U7: 0.06138964355 | V7: 0.06054411304 | W7: 0.05921522581 | X7: 0.05861567061 | Y7: 0.05774776081 | Z7: 0.05726726647 | AA7: 0.05688448129 | AB7: 0.05621899581 | AC7: 0.05546445 | AD7: 0.05497164079 | AE7: 0.05463144682 | AF7: 0.05430051093 | AG7: 0.05387606366 | AH7: 0.05379486004 | AI7: 0.05389578613 | AJ7: 0.05359859474 | AK7: 0.05357425996 | AL7: 0.05399536273 | AM7: 0.05398104719 | AN7: 0.05395941309 | AO7: 0.05391336254 | AP7: 0.05367070392 | AQ7: 0.05339151122 | AR7: =AR41 -> 0.05339151122 | AS7: 0.05339151122 | AT7: 0.05339151122 | AU7: 0.05339151122 | AV7: 0.05339151122 | AW7: 0.05339151122 | AX7: 0.05339151122 | AY7: 0.05339151122 | AZ7: 0.05339151122 | BA7: 0.05339151122
A8: 0.008700013161 | C8: 1 | D8: 0.1178696307 | E8: =E42*(1-E$41-E$71)/SUM(E$42:E$70) -> 0.06096014526 | F8: =F42*(1-F$41-F$71)/SUM(F$42:F$70) -> 0.08187980683 | G8: 0.1201746837 | H8: 0.0645501957 | I8: 0.07038667093 | J8: 0.07305806534 | K8: 0.07434008868 | L8: 0.0786482825 | M8: 0.07885523671 | N8: 0.05580824208 | O8: 0.06169050689 | P8: 0.06326170508 | Q8: 0.06275784661 | R8: 0.06311636487 | S8: 0.0633912589 | T8: 0.06243164729 | U8: 0.06082839037 | V8: 0.05999374524 | W8: 0.0592682919 | X8: 0.05803185484 | Y8: 0.05752640371 | Z8: 0.05675160628 | AA8: 0.05630959246 | AB8: 0.05602396634 | AC8: 0.05534343065 | AD8: 0.05470462109 | AE8: 0.05434695894 | AF8: 0.05410325096 | AG8: 0.05392273337 | AH8: 0.05333823821 | AI8: 0.05338164153 | AJ8: 0.05367159399 | AK8: 0.05315086396 | AL8: 0.05315162723 | AM8: 0.05360440586 | AN8: 0.05361143931 | AO8: 0.0536293185 | AP8: 0.05361906094 | AQ8: 0.05327892195 | AR8: =AR42*(1-AR$41-AR$71)/SUM(AR$42:AR$70) -> 0.0530421528 | AS8: 0.05305942465 | AT8: 0.0530650592 | AU8: 0.05307586731 | AV8: 0.05308569685 | AW8: 0.05308737148 | AX8: 0.05308450247 | AY8: 0.05308592236 | AZ8: 0.05308733151 | BA8: 0.05308491642
A9: 0.008800029755 | C9: 2 | D9: 0.08307651193 | E9: =E43*(1-E$41-E$71)/SUM(E$42:E$70) -> 0.1069302642 | F9: 0.05348026768 | G9: 0.08023852667 | H9: 0.1154301071 | I9: 0.06168670672 | J9: 0.06726084746 | K9: 0.07048489279 | L9: 0.07157698388 | M9: 0.07563321249 | N9: 0.07705240368 | O9: 0.05437884184 | P9: 0.06005584673 | Q9: 0.06155984779 | R9: 0.06102672988 | S9: 0.0614542153 | T9: 0.06182445122 | U9: 0.06094618804 | V9: 0.05943983403 | W9: 0.05872423668 | X9: 0.05807867579 | Y9: 0.05694837969 | Z9: 0.05652906447 | AA9: 0.05579763356 | AB9: 0.05545285524 | AC9: 0.0551465161 | AD9: 0.0545803574 | AE9: 0.05407809578 | AF9: 0.05381664822 | AG9: 0.0537219962 | AH9: 0.05337964432 | AI9: 0.05292377612 | AJ9: 0.05315482399 | AK9: 0.05321848542 | AL9: 0.05272685074 | AM9: 0.05276205493 | AN9: 0.05323261262 | AO9: 0.0532787075 | AP9: 0.05333178519 | AQ9: 0.05322287539 | AR9: 0.05292555691 | AS9: 0.05270752084 | AT9: 0.05273028597 | AU9: 0.05274662905 | AV9: 0.05276714396 | AW9: 0.0527785813 | AX9: 0.05277739386 | AY9: 0.05277595334 | AZ9: 0.05277876599 | BA9: 0.05277776611
A10: 0.01419997215 | C10: 3 | D10: 0.06695096999 | E10: 0.0753662612 | F10: 0.09380980196 | G10: 0.05240104803 | H10: 0.07706281609 | I10: 0.1102989256 | J10: 0.05894143026 | K10: 0.06488282309 | L10: 0.06785578434 | M10: 0.06882913199 | N10: 0.07389554491 | O10: 0.07507059184 | P10: 0.05293233105 | Q10: 0.05843426241 | R10: 0.05985582252 | S10: 0.05941386112 | T10: 0.05992963917 | U10: 0.06034787329 | V10: 0.05954951221 | W10: 0.05817681032 | X10: 0.05754040363 | Y10: 0.05698926496 | Z10: 0.05595610882 | AA10: 0.05557392985 | AB10: 0.05494381155 | AC10: 0.05457947745 | AD10: 0.05438127311 | AE10: 0.05395038855 | AF10: 0.05354556728 | AG10: 0.05343258922 | AH10: 0.05317614904 | AI10: 0.05296010574 | AJ10: 0.0526941808 | AK10: 0.05270135603 | AL10: 0.0527892062 | AM10: 0.05233570504 | AN10: 0.05239141478 | AO10: 0.05289749969 | AP10: 0.05297836839 | AQ10: 0.05293296735 | AR10: 0.05286514375 | AS10: 0.05258695257 | AT10: 0.05237587923 | AU10: 0.05240917828 | AV10: 0.05243513309 | AW10: 0.05245718178 | AX10: 0.05246571643 | AY10: 0.05246593962 | AZ10: 0.05246590037 | BA10: 0.05246631003
A11: 0.0191000104 | C11: 4 | D11: 0.04335378583 | E11: 0.06073731521 | F11: 0.06611873718 | G11: 0.09123410494 | H11: 0.05005066465 | I11: 0.07325414329 | J11: 0.1048291184 | K11: 0.05643006402 | L11: 0.06200070564 | M11: 0.06505281049 | N11: 0.06683023822 | O11: 0.0715656293 | P11: 0.07265676959 | Q11: 0.05121897302 | R11: 0.05651160709 | S11: 0.05796946044 | T11: 0.05764522895 | U11: 0.05820701926 | V11: 0.05867459294 | W11: 0.05800092637 | X11: 0.05672924628 | Y11: 0.05619034887 | Z11: 0.05572868185 | AA11: 0.0547486369 | AB11: 0.05446142978 | AC11: 0.0538178072 | AD11: 0.0535610826 | AE11: 0.0534918045 | AF11: 0.05315835023 | AG11: 0.05290431131 | AH11: 0.05263300622 | AI11: 0.05250247748 | AJ11: 0.05247516775 | AK11: 0.05199190426 | AL11: 0.05202353915 | AM11: 0.05214425702 | AN11: 0.05171692546 | AO11: 0.05181013821 | AP11: 0.05234463738 | AQ11: 0.05232717318 | AR11: 0.0523227533 | AS11: 0.05227303075 | AT11: 0.05200365676 | AU11: 0.05180560783 | AV11: 0.05184820521 | AW11: 0.05187552374 | AX11: 0.05189453405 | AY11: 0.05190437345 | AZ11: 0.05190597493 | BA11: 0.05190358813
A12: 0.0243999958 | C12: 5 | D12: 0.03291574225 | E12: 0.03933016289 | F12: 0.05328477913 | G12: 0.06386674988 | H12: 0.08670517578 | I12: 0.04735127765 | J12: 0.06928325404 | K12: 0.09967268037 | L12: 0.05355883254 | M12: 0.05927544257 | N12: 0.06280548 | O12: 0.06437078055 | P12: 0.06890386486 | Q12: 0.06995106816 | R12: 0.04929101286 | S12: 0.05446981761 | T12: 0.05598293164 | U12: 0.05573401849 | V12: 0.05633900489 | W12: 0.05689552429 | X12: 0.05630916258 | Y12: 0.05515601028 | Z12: 0.05470801504 | AA12: 0.0542893223 | AB12: 0.05341835285 | AC12: 0.05311087309 | AD12: 0.05258007348 | AE12: 0.05245105065 | AF12: 0.05247188328 | AG12: 0.05228828976 | AH12: 0.05188202206 | AI12: 0.05173652808 | AJ12: 0.05179216967 | AK12: 0.05154742241 | AL12: 0.05109698469 | AM12: 0.05116139115 | AN12: 0.05130068915 | AO12: 0.05091788971 | AP12: 0.05104229531 | AQ12: 0.05147258843 | AR12: 0.0514957082 | AS12: 0.0515086885 | AT12: 0.05146553879 | AU12: 0.0512110033 | AV12: 0.05102553326 | AW12: 0.0510691097 | AX12: 0.05109325937 | AY12: 0.05111336498 | AZ12: 0.05112441867 | BA12: 0.05112369504
A13: 0.03009998798 | C13: 6 | D13: 0.06165514118 | E13: 0.02986086404 | F13: 0.03450430819 | G13: 0.05108934712 | H13: 0.06036567249 | I13: 0.0816059284 | J13: 0.04454807819 | K13: 0.06538210053 | L13: 0.09390467473 | M13: 0.0510512617 | N13: 0.05687476245 | O13: 0.0601360228 | P13: 0.06162575607 | Q13: 0.0659749199 | R13: 0.06695947473 | S13: 0.04726404308 | T13: 0.05233806426 | U13: 0.05385975818 | V13: 0.0536822123 | W13: 0.05436775197 | X13: 0.05497226164 | Y13: 0.05448753356 | Z13: 0.05344676544 | AA13: 0.05304358535 | AB13: 0.05271889557 | AC13: 0.05184494612 | AD13: 0.05164010258 | AE13: 0.05124193168 | AF13: 0.05120214578 | AG13: 0.05136382352 | AH13: 0.05103137417 | AI13: 0.05075344505 | AJ13: 0.05079190804 | AK13: 0.0506326858 | AL13: 0.0504175532 | AM13: 0.05000951124 | AN13: 0.05009276859 | AO13: 0.05026641799 | AP13: 0.04992266657 | AQ13: 0.04995079053 | AR13: 0.05041187091 | AS13: 0.05045177086 | AT13: 0.05047034307 | AU13: 0.05043870505 | AV13: 0.05019870976 | AW13: 0.05001849784 | AX13: 0.05005851327 | AY13: 0.05008354663 | AZ13: 0.05010459281 | BA13: 0.05011318524
A14: 0.03619998693 | C14: 7 | D14: 0.05574331387 | E14: 0.05593298715 | F14: 0.02619690283 | G14: 0.03281763363 | H14: 0.04800421637 | I14: 0.05649878258 | J14: 0.07633663548 | K14: 0.04169865517 | L14: 0.06110708297 | M14: 0.08921894722 | N14: 0.04865675505 | O14: 0.05410860598 | P14: 0.05721906823 | Q14: 0.05865702664 | R14: 0.06278970374 | S14: 0.06384643997 | T14: 0.045166858 | U14: 0.05008459152 | V14: 0.05160345089 | W14: 0.05153440568 | X14: 0.05225889211 | Y14: 0.05292085276 | Z14: 0.05252893509 | AA14: 0.05155653362 | AB14: 0.05124512597 | AC14: 0.0509021053 | AD14: 0.0501475124 | AE14: 0.05006346774 | AF14: 0.04976037858 | AG14: 0.04985934012 | AH14: 0.04986868173 | AI14: 0.04966224657 | AJ14: 0.04956863337 | AK14: 0.0493976663 | AL14: 0.04926658655 | AM14: 0.04908913614 | AN14: 0.04871164207 | AO14: 0.04882906433 | AP14: 0.04902847628 | AQ14: 0.0486014402 | AR14: 0.04866799561 | AS14: 0.04913433954 | AT14: 0.04917911139 | AU14: 0.04920773028 | AV14: 0.04918621474 | AW14: 0.0489537421 | AX14: 0.04877536944 | AY14: 0.04881572535 | AZ14: 0.04884144422 | BA14: 0.04885979464
A15: 0.04240000248 | C15: 8 | D15: 0.05793601557 | E15: 0.05056983082 | F15: 0.04906994746 | G15: 0.02470097572 | H15: 0.03064030683 | I15: 0.04465964913 | J15: =J49*(1-J$41-J$71)/SUM(J$42:J$70) -> 0.05252597379 | K15: 0.07082851376 | L15: 0.03863679704 | M15: 0.05785651215 | N15: 0.08442281361 | O15: 0.04597096935 | P15: 0.05114457379 | Q15: 0.05411568101 | R15: 0.05547908973 | S15: 0.05950976325 | T15: 0.06065575605 | U15: 0.042974148 | V15: 0.04771425621 | W15: 0.04926155758 | X15: 0.04926049898 | Y15: 0.05003097108 | Z15: 0.05073785835 | AA15: 0.0503933057 | AB15: 0.04953381622 | AC15: 0.04920451088 | AD15: 0.04896054786 | AE15: 0.04834373485 | AF15: 0.04834263668 | AG15: 0.04818335144 | AH15: 0.04813743008 | AI15: 0.0482598305 | AJ15: 0.04823259131 | AK15: 0.04793940149 | AL15: 0.04779731331 | AM15: 0.04770140818 | AN15: 0.04754905949 | AO15: 0.04721867232 | AP15: 0.04736095959 | AQ15: 0.04746431201 | AR15: 0.04708940174 | AS15: 0.04717061769 | AT15: 0.04762849732 | AU15: 0.04768222568 | AV15: 0.04771908924 | AW15: 0.047699753 | AX15: 0.04747174778 | AY15: 0.04730007687 | AZ15: 0.04734048197 | BA15: 0.04736333021
A16: 0.04850000143 | C16: 9 | D16: 0.04984930024 | E16: 0.05255902999 | F16: 0.04436485637 | G16: 0.04585791819 | H16: 0.02291254519 | I16: 0.02833067041 | J16: 0.04125847397 | K16: 0.04829853552 | L16: 0.06504868147 | M16: 0.03645209467 | N16: 0.05434333822 | O16: 0.07919966527 | P16: 0.04315958997 | Q16: 0.04805545271 | R16: 0.05085931922 | S16: 0.0522570466 | T16: 0.05619692214 | U16: 0.0573726001 | V16: 0.04070295944 | W16: 0.04528829972 | X16: 0.04682080613 | Y16: 0.0468942833 | Z16: 0.04769745097 | AA16: 0.04840226294 | AB16: 0.04814334353 | AC16: 0.04729155135 | AD16: 0.04705752446 | AE16: 0.04692884081 | AF16: 0.04641372732 | AG16: 0.04654192596 | AH16: 0.04625356794 | AI16: 0.04631863184 | AJ16: 0.04660355686 | AK16: 0.04638165764 | AL16: 0.04612235849 | AM16: 0.0460154425 | AN16: 0.04594205811 | AO16: 0.0458296907 | AP16: 0.04553797203 | AQ16: 0.04558823625 | AR16: 0.045725703 | AS16: 0.04538092868 | AT16: 0.04546499728 | AU16: 0.04591640485 | AV16: 0.04597704729 | AW16: 0.04601407225 | AX16: 0.04599295012 | AY16: 0.04577437148 | AZ16: 0.04561006511 | BA16: 0.04564702273
A17: 0.0544000268 | C17: 10 | D17: 0.04573071642 | E17: 0.04522283489 | F17: 0.04610997859 | G17: 0.04109612617 | H17: 0.04226437649 | I17: 0.02105677509 | J17: 0.02601026341 | K17: 0.03759985312 | L17: 0.04396875192 | M17: 0.06115613575 | N17: 0.03398884015 | O17: 0.05062453563 | P17: 0.07385931848 | Q17: 0.0402910653 | R17: 0.04488027646 | S17: 0.04761336036 | T17: 0.04905517747 | U17: 0.05284654747 | V17: 0.05402866768 | W17: 0.03841479075 | X17: 0.042802786 | Y17: 0.04432291769 | Z17: 0.04445831862 | AA17: 0.04524951199 | AB17: 0.0459833249 | AC17: 0.04570602996 | AD17: 0.04497254762 | AE17: 0.04484887757 | AF17: 0.04479908408 | AG17: 0.04443112937 | AH17: 0.04442532285 | AI17: 0.04425467039 | AJ17: 0.04447686263 | AK17: 0.0445626337 | AL17: 0.04437241938 | AM17: 0.04415288792 | AN17: 0.04406884302 | AO17: 0.04403170706 | AP17: 0.04394918057 | AQ17: 0.04358586055 | AR17: 0.04367081222 | AS17: 0.04381863022 | AT17: 0.04349395717 | AU17: 0.04358423254 | AV17: 0.0440254961 | AW17: 0.0440850639 | AX17: 0.04411819106 | AY17: 0.04409916873 | AZ17: 0.04389077311 | BA17: 0.04373132123
A18: 0.06010001898 | C18: 11 | D18: 0.04081105694 | E18: 0.04148649285 | F18: 0.03967394279 | G18: 0.04234606345 | H18: 0.03763885574 | I18: 0.038611713 | J18: 0.01921509141 | K18: 0.02349767593 | L18: 0.0339366617 | M18: 0.04119747397 | N18: 0.05661814323 | O18: 0.03144718274 | P18: 0.04690380355 | Q18: 0.06851723249 | R18: 0.03739901813 | S18: 0.04176650362 | T18: 0.04443800056 | U18: 0.04587006141 | V18: 0.04948864064 | W18: 0.05071060617 | X18: 0.03610827549 | Y18: 0.0402992109 | Z18: 0.04179312724 | AA18: 0.04194916086 | AB18: 0.04275496287 | AC18: 0.04341702643 | AD18: 0.04322594742 | AE18: 0.04262520616 | AF18: 0.04257666423 | AG18: 0.04264857565 | AH18: 0.04217731794 | AI18: 0.04227200086 | AJ18: 0.04226198431 | AK18: 0.04229599312 | AL18: 0.04239872311 | AM18: 0.0422450042 | AN18: 0.04205359051 | AO18: 0.04200528147 | AP18: 0.04199335257 | AQ18: 0.04183402825 | AR18: 0.04152375128 | AS18: 0.04162028119 | AT18: 0.04176681653 | AU18: 0.04146669869 | AV18: 0.04156087328 | AW18: 0.04198301115 | AX18: 0.04203755467 | AY18: 0.04207032356 | AZ18: 0.04205332028 | BA18: 0.04185278003
A19: 0.06540000439 | C19: 12 | D19: 0.03632470938 | E19: 0.03702342221 | F19: 0.03639605407 | G19: 0.03613065368 | H19: 0.03854783621 | I19: 0.0341884796 | J19: 0.03502728508 | K19: 0.01721181414 | L19: 0.02103179819 | M19: 0.03169317275 | N19: 0.03787667173 | O19: 0.05203708295 | P19: 0.02895157807 | Q19: 0.04324560382 | R19: 0.0632214586 | S19: 0.03460350279 | T19: 0.03876241492 | U19: 0.04132467518 | V19: 0.04272251662 | W19: 0.04620093706 | X19: 0.04741300873 | Y19: 0.03381693059 | Z19: 0.0377993346 | AA19: 0.03922781554 | AB19: 0.03942771952 | AC19: 0.04015474506 | AD19: 0.04084197426 | AE19: 0.04075011228 | AF19: 0.04024817689 | AG19: 0.0403153424 | AH19: 0.04026892936 | AI19: 0.0399188501 | AJ19: 0.04015358693 | AK19: 0.03997575332 | AL19: 0.04002806446 | AM19: 0.04015115378 | AN19: 0.04002244143 | AO19: 0.03987133799 | AP19: 0.03984726682 | AQ19: 0.0397589547 | AR19: 0.03964254534 | AS19: 0.03936352684 | AT19: 0.03946053126 | AU19: 0.03960850906 | AV19: 0.03933162277 | AW19: 0.03942222939 | AX19: 0.03982050472 | AY19: 0.03987336423 | AZ19: 0.0399055266 | BA19: 0.03988768221
A20: 0.07090002298 | C20: 13 | D20: 0.03406923567 | E20: 0.03295344823 | F20: 0.03248060716 | G20: 0.03288556916 | H20: 0.03270284277 | I20: 0.0348260874 | J20: 0.03084396725 | K20: 0.03112616557 | L20: 0.01528530296 | M20: 0.01958119799 | N20: 0.02894977662 | O20: 0.03459603964 | P20: 0.04762385825 | Q20: 0.02654101537 | R20: 0.03968145058 | S20: 0.05818015299 | T20: 0.03194617309 | U20: 0.03586179834 | V20: 0.03829390809 | W20: 0.03968487328 | X20: 0.04298242736 | Y20: 0.0441853331 | Z20: 0.03156331677 | AA20: 0.03530544512 | AB20: 0.0366883623 | AC20: 0.03684627775 | AD20: 0.03758469696 | AE20: 0.03830970666 | AF20: 0.03828433078 | AG20: 0.03791935129 | AH20: 0.037875803 | AI20: 0.03792257521 | AJ20: 0.03772957559 | AK20: 0.03779238849 | AL20: 0.03764409688 | AM20: 0.03771762152 | AN20: 0.03784965102 | AO20: 0.03775705269 | AP20: 0.03763454926 | AQ20: 0.03753879776 | AR20: 0.03748860449 | AS20: 0.03739332166 | AT20: 0.03713543981 | AU20: 0.03723555792 | AV20: 0.03738257758 | AW20: 0.03712246191 | AX20: 0.03720598098 | AY20: 0.03758293283 | AZ20: 0.03763384325 | BA20: 0.03766258899
A21: 0.08660000563 | C21: 14 | D21: 0.03181376197 | E21: 0.03090730285 | F21: 0.0289100235 | G21: 0.02910704061 | H21: 0.02958892928 | I21: 0.0293798676 | J21: 0.03123874912 | K21: 0.0271809156 | L21: 0.02741650022 | M21: 0.01418562499 | N21: 0.01776523769 | O21: 0.02627103255 | P21: 0.03146628952 | Q21: 0.04339824491 | R21: 0.02421242849 | S21: 0.03631166657 | T21: 0.05341838323 | U21: 0.02939746363 | V21: 0.03305596284 | W21: 0.03538563595 | X21: 0.03672939045 | Y21: 0.0398503767 | Z21: 0.04102942989 | AA21: 0.02933032509 | AB21: 0.03285031498 | AC21: 0.03410900504 | AD21: 0.03430850443 | AE21: 0.03507009549 | AF21: 0.03580299323 | AG21: 0.03588042746 | AH21: 0.03543926613 | AI21: 0.03548336303 | AJ21: 0.03565666857 | AK21: =AK55*(1-AK$41-AK$71)/SUM(AK$42:AK$70) -> 0.03532660212 | AL21: 0.03540350337 | AM21: 0.03528725187 | AN21: 0.0353712678 | AO21: 0.03552221773 | AP21: 0.03545372758 | AQ21: 0.03526975181 | AR21: 0.03521144449 | AS21: 0.03517820719 | AT21: 0.03509394275 | AU21: 0.03486007208 | AV21: 0.03496100735 | AW21: 0.03510019419 | AX21: 0.03485408893 | AY21: 0.03493350208 | AZ21: 0.03528839001 | BA21: 0.03533469146
A22: 0.09210002422 | C22: 15 | D22: 0.0271805094 | E22: 0.02886115748 | F22: 0.02711494244 | G22: 0.02529566663 | H22: 0.02574274431 | I22: 0.02615478238 | J22: 0.02591897836 | K22: 0.02687010063 | L22: 0.02337877816 | M22: 0.02521149085 | N22: 0.01261984619 | O22: 0.01582133701 | P22: 0.02347023169 | Q22: 0.02818326168 | R22: 0.03893177192 | S22: 0.0217982386 | T22: 0.03281611629 | U22: 0.04840168275 | V22: 0.02668622236 | W22: 0.03008837935 | X22: 0.0322644288 | Y22: 0.03355052398 | Z22: 0.0364600488 | AA22: 0.03756815941 | AB22: 0.02688851898 | AC22: 0.03008770601 | AD22: 0.03128549196 | AE22: 0.03153288979 | AF22: 0.03228251931 | AG22: 0.03305113225 | AH22: 0.03303257002 | AI22: 0.03270520825 | AJ22: 0.03286610434 | AK22: 0.03288848499 | AL22: 0.03260107597 | AM22: 0.03269295075 | AN22: 0.03259978055 | AO22: 0.03270264215 | AP22: 0.03285799721 | AQ22: 0.03272977379 | AR22: 0.03259017918 | AS22: 0.03254971115 | AT22: 0.03252411216 | AU22: 0.0324540621 | AV22: 0.03224431482 | AW22: 0.0323387441 | AX22: 0.03246575175 | AY22: 0.03223905427 | AZ22: 0.03231339366 | BA22: 0.03264030443
A23: 0.09719997644 | C23: 16 | D23: 0.01959535319 | E23: 0.02465791261 | F23: 0.02531986138 | G23: 0.02352404107 | H23: 0.02223598548 | I23: 0.02262467375 | J23: 0.02293828059 | K23: 0.02210282134 | L23: 0.02291657913 | M23: 0.02142903285 | N23: 0.02227292157 | O23: 0.01116428822 | P23: 0.01404510574 | Q23: 0.02089315793 | R23: 0.0251327857 | S23: 0.03484825053 | T23: 0.01958971061 | U23: 0.02957178065 | V23: 0.04370057693 | W23: 0.02416120102 | X23: 0.02728967949 | Y23: 0.02931737229 | Z23: 0.03053570494 | AA23: 0.03321036378 | AB23: 0.03426007276 | AC23: 0.02449736 | AD23: 0.0274505146 | AE23: 0.02860104086 | AF23: 0.02887123356 | AG23: 0.02964212089 | AH23: 0.03026612661 | AI23: 0.03032238036 | AJ23: 0.0301323581 | AK23: 0.03015400657 | AL23: 0.03019043829 | AM23: 0.02994572644 | AN23: 0.03004327549 | AO23: 0.02998088639 | AP23: 0.03008953112 | AQ23: 0.03017237784 | AR23: 0.03008293599 | AS23: 0.02996717329 | AT23: 0.02993479734 | AU23: 0.02991858559 | AV23: 0.02986023482 | AW23: 0.02966823412 | AX23: 0.02975352615 | AY23: 0.0298712534 | AZ23: 0.02966348623 | BA23: 0.02973065698
A24: 0.1017000079 | C24: 17 | D24: 0.01912055315 | E24: 0.01777672741 | F24: 0.02163235933 | G24: 0.02179267504 | H24: 0.02056144608 | I24: 0.0194382898 | J24: 0.01973360028 | K24: 0.01940386444 | L24: 0.01870210146 | M24: 0.02094223229 | N24: 0.01880855808 | O24: 0.01958178246 | P24: 0.009852339357 | Q24: 0.01243172792 | R24: 0.01852869747 | S24: 0.02237589957 | T24: 0.03115430254 | U24: 0.01756306283 | V24: 0.02656520712 | W24: 0.03936937255 | X24: 0.02180605049 | Y24: 0.02467574952 | Z24: 0.02655292493 | AA24: 0.02767901485 | AB24: 0.03013807806 | AC24: 0.03105987669 | AD24: 0.02223951573 | AE24: 0.02497031528 | AF24: 0.02605629651 | AG24: 0.02637788638 | AH24: 0.02700988809 | AI24: 0.0276454442 | AJ24: 0.02779899258 | AK24: 0.02750935239 | AL24: 0.02754372692 | AM24: 0.02759459664 | AN24: 0.02738299373 | AO24: 0.02749357169 | AP24: 0.02744893523 | AQ24: 0.02749339542 | AR24: =AR58*(1-AR$41-AR$71)/SUM(AR$42:AR$70) -> 0.02759538364 | AS24: 0.02752527172 | AT24: 0.02742388133 | AU24: 0.0274010422 | AV24: 0.02739182095 | AW24: 0.02733930683 | AX24: 0.02716206225 | AY24: 0.02724094982 | AZ24: 0.02734948736 | BA24: 0.0271581443
A25: 0.1055999994 | C25: 18 | D25: 0.01324921147 | E25: 0.0173459931 | F25: 0.0155955032 | G25: 0.01848767969 | H25: 0.0189523212 | I25: 0.01788927378 | J25: 0.0168719783 | K25: 0.01657370503 | L25: 0.01630327141 | M25: 0.01704537462 | N25: 0.01827541356 | O25: 0.01644494359 | P25: 0.01719004564 | Q25: 0.008676519546 | R25: 0.01097073954 | S25: 0.01641769701 | T25: 0.01991155001 | U25: 0.02780504947 | V25: 0.01570700977 | W25: 0.02382701112 | X25: 0.03537682927 | Y25: 0.01963186402 | Z25: 0.02225242025 | AA25: 0.02396521866 | AB25: 0.02500964688 | AC25: 0.02720376938 | AD25: 0.02807340008 | AE25: 0.02014091757 | AF25: 0.02264803108 | AG25: 0.02370096616 | AH25: 0.0239299233 | AI25: 0.02456290922 | AJ25: 0.02523381891 | AK25: 0.02526799232 | AL25: 0.02501807973 | AM25: 0.02506529917 | AN25: 0.02512272532 | AO25: 0.02494953655 | AP25: 0.02506137248 | AQ25: 0.02497052079 | AR25: 0.02503508236 | AS25: 0.02513876669 | AT25: 0.02507912111 | AU25: 0.02499299478 | AV25: 0.02497733079 | AW25: 0.02496975743 | AX25: 0.02492055405 | AY25: 0.02475972173 | AZ25: 0.02483231614 | BA25: 0.02493023862
A26: 0.1093000174 | C26: 19 | D26: 0.0134834112 | E26: 0.01201956496 | F26: 0.01521762047 | G26: 0.01324643424 | H26: 0.01600764478 | I26: 0.01642123898 | J26: 0.0154617412 | K26: 0.01408193224 | L26: 0.01384012359 | M26: 0.01482469068 | N26: 0.0148001061 | O26: 0.01590211747 | P26: 0.01437038521 | Q26: 0.0150718739 | R26: 0.007624122961 | S26: 0.00968052787 | T26: 0.01455074017 | U26: 0.01770105321 | V26: 0.02477002329 | W26: 0.01403406228 | X26: 0.02132938106 | Y26: 0.03172934024 | Z26: 0.01763730148 | AA26: 0.02000856315 | AB26: 0.02157237895 | AC26: 0.02248896717 | AD26: 0.02449410488 | AE26: 0.02532668817 | AF26: 0.01819746678 | AG26: 0.02052162789 | AH26: 0.02141920284 | AI26: 0.0216788599 | AJ26: 0.02233470683 | AK26: 0.02284895768 | AL26: 0.02289219204 | AM26: 0.02268019977 | AN26: 0.02273313033 | AO26: 0.02280304639 | AP26: 0.02265564084 | AQ26: 0.02271140789 | AR26: 0.02265110436 | AS26: 0.02271955272 | AT26: 0.02281755613 | AU26: 0.02276916376 | AV26: 0.0226956723 | AW26: 0.02268220598 | AX26: 0.02267411654 | AY26: 0.02263010791 | AZ26: 0.02248467806 | BA26: 0.02254968597
A27: 0.1122000217 | C27: 20 | D27: 0.01108457981 | E27: 0.01223202884 | F27: 0.01054475098 | G27: 0.0128495943 | H27: 0.01142160626 | I27: 0.0138153085 | J27: 0.01413567506 | K27: 0.01282806387 | L27: 0.01169063059 | M27: 0.01255726269 | N27: 0.01281031537 | O27: 0.01281920873 | P27: 0.01383552719 | Q27: 0.0125468025 | R27: 0.01318983947 | S27: 0.006700919047 | T27: 0.008546797929 | U27: 0.01288691689 | V27: 0.01571056884 | W27: 0.02205105341 | X27: 0.01251754678 | Y27: 0.01906147278 | Z27: 0.02840360903 | AA27: 0.01580222817 | AB27: 0.01794612214 | AC27: 0.01932801566 | AD27: 0.02017523276 | AE27: 0.02201679604 | AF27: 0.02279896983 | AG27: 0.01642858068 | AH27: 0.01847840201 | AI27: 0.0193337395 | AJ27: 0.0196407071 | AK27: 0.02015044093 | AL27: 0.02062553261 | AM27: 0.02067769423 | AN27: 0.02049537851 | AO27: 0.02055932993 | AP27: 0.02063127848 | AQ27: 0.02045653264 | AR27: 0.02052703168 | AS27: 0.02048153222 | AT27: 0.02054700055 | AU27: 0.02064088326 | AV27: 0.02060139444 | AW27: 0.02053558759 | AX27: 0.02052230648 | AY27: 0.02051559829 | AZ27: 0.02047634505 | BA27: 0.02034393371
A28: 0.1151999831 | C28: 21 | D28: 0.007860612727 | E28: 0.01005583067 | F28: 0.01073114531 | G28: 0.008862665265 | H28: 0.01104303073 | I28: 0.009826866523 | J28: 0.01185470259 | K28: 0.01167281563 | L28: 0.01060063439 | M28: 0.01058869117 | N28: 0.01081007393 | O28: 0.01105577059 | P28: 0.01111503145 | Q28: 0.01203993474 | R28: 0.01094488798 | S28: 0.01155665553 | T28: 0.005898296097 | U28: 0.007547192858 | V28: 0.01140448831 | W28: 0.01394591266 | X28: 0.0196122938 | Y28: 0.01115495159 | Z28: =Z62*(1-Z$41-Z$71)/SUM(Z$42:Z$70) -> 0.01701546394 | AA28: 0.02537692733 | AB28: 0.01413334292 | AC28: 0.01603330977 | AD28: 0.01728984855 | AE28: 0.01808256944 | AF28: 0.01976226913 | AG28: 0.02052353977 | AH28: 0.01475049428 | AI28: 0.01663154272 | AJ28: 0.01746603465 | AK28: 0.0176693149 | AL28: 0.01813771657 | AM28: 0.01857714347 | AN28: 0.01863249082 | AO28: 0.01848272863 | AP28: 0.01854809661 | AQ28: 0.0185753335 | AR28: 0.01843622338 | AS28: 0.01850796337 | AT28: 0.01847019373 | AU28: 0.01853397765 | AV28: 0.01862255145 | AW28: 0.01858754762 | AX28: 0.01852718408 | AY28: 0.01851575505 | AZ28: 0.01851021493 | BA28: 0.01847405481
A29: 0.117200017 | C29: 22 | D29: 0.006237254653 | E29: 0.007131076861 | F29: 0.008821969073 | G29: 0.008975943761 | H29: 0.007590661873 | I29: 0.00947065702 | J29: 0.008404509234 | K29: 0.009741492175 | L29: 0.009599807669 | M29: 0.009584253503 | N29: 0.009079718399 | O29: 0.009294599407 | P29: 0.009551914105 | Q29: 0.009639363692 | R29: 0.01046780494 | S29: 0.009558750425 | T29: 0.01014057909 | U29: 0.005192523527 | V29: 0.006658841324 | W29: 0.01009336882 | X29: 0.01236695755 | Y29: 0.01742613457 | Z29: 0.009928508543 | AA29: 0.01515803586 | AB29: 0.02263035977 | AC29: 0.01258967315 | AD29: 0.0142999756 | AE29: 0.01545022817 | AF29: 0.0161823523 | AG29: 0.0177367817 | AH29: 0.01837240453 | AI29: 0.01323681828 | AJ29: 0.01498035818 | AK29: 0.01566638003 | AL29: 0.01585734741 | AM29: 0.01628804248 | AN29: 0.016690179 | AO29: 0.01675309419 | AP29: 0.01662520505 | AQ29: 0.01665014224 | AR29: 0.01669121062 | AS29: 0.01657361922 | AT29: 0.01664108079 | AU29: 0.01661140134 | AV29: 0.01667226049 | AW29: 0.01675250031 | AX29: 0.01672011887 | AY29: 0.01666631944 | AZ29: 0.01665649983 | BA29: 0.01665084837
A30: 0.1198999882 | C30: 23 | D30: 0.005500030617 | E30: 0.005658381081 | F30: 0.006256085805 | G30: 0.007355258244 | H30: 0.007670144155 | I30: 0.006495883857 | J30: 0.008082013403 | K30: 0.006883751413 | L30: 0.007985783836 | M30: 0.008669011352 | N30: 0.008196886231 | O30: 0.007787286857 | P30: 0.008011187635 | Q30: 0.00826478129 | R30: 0.008362047448 | S30: 0.00912236894 | T30: 0.008369924983 | U30: 0.008908931599 | V30: 0.00457207922 | W30: 0.005881575845 | X30: 0.008932942165 | Y30: 0.0109668752 | Z30: 0.01547989268 | AA30: 0.008827481534 | AB30: 0.01349098983 | AC30: 0.02011886813 | AD30: 0.01120632459 | AE30: 0.0127529767 | AF30: 0.01379897277 | AG30: 0.01449477413 | AH30: 0.01584617762 | AI30: 0.01645432769 | AJ30: 0.01189903983 | AK30: 0.01341020909 | AL30: 0.0140319874 | AM30: 0.01421203772 | AN30: 0.0146046439 | AO30: 0.01497702689 | AP30: 0.01503952601 | AQ30: 0.01489437177 | AR30: 0.01493165212 | AS30: 0.01497521365 | AT30: 0.0148723878 | AU30: 0.0149367903 | AV30: 0.01491328366 | AW30: 0.01496842524 | AX30: 0.01503966217 | AY30: 0.0150110425 | AZ30: 0.01496315721 | BA30: 0.01495374316
A31: 0.1215000153 | C31: 24 | D31: 0.005095328552 | E31: 0.004989578094 | F31: 0.004964091433 | G31: 0.005193207887 | H31: 0.00626583137 | I31: 0.006544841381 | J31: 0.00552689603 | K31: 0.006590302047 | L31: 0.005618587184 | M31: 0.007199833236 | N31: 0.007387834706 | O31: 0.007006309323 | P31: 0.006690383973 | Q31: 0.006910169427 | R31: 0.007148031855 | S31: 0.007266000725 | T31: 0.00796519441 | U31: 0.007332994776 | V31: 0.007822991963 | W31: 0.004027521933 | X31: 0.005191486487 | Y31: 0.007900614242 | Z31: 0.009716289063 | AA31: 0.01372699929 | AB31: 0.007835839001 | AC31: 0.01196177563 | AD31: 0.01786010631 | AE31: 0.009967028558 | AF31: 0.01135917165 | AG31: 0.01232655579 | AH31: 0.01291492846 | AI31: 0.0141537352 | AJ31: 0.0147517297 | AK31: 0.01062331977 | AL31: 0.0119790394 | AM31: 0.01254240098 | AN31: 0.01270909953 | AO31: 0.01307051171 | AP31: 0.01340906838 | AQ31: 0.01343757854 | AR31: 0.01332130165 | AS31: 0.01336069649 | AT31: 0.01340211382 | AU31: 0.01331355534 | AV31: 0.01337402658 | AW31: 0.01335342957 | AX31: 0.01340208855 | AY31: 0.01346627684 | AZ31: 0.01344102441 | BA31: 0.01339761381
A32: 0.1227999926 | C32: 25 | D32: 0.005263825887 | E32: 0.004622436037 | F32: 0.004377351317 | G32: 0.004110013606 | H32: 0.004415896337 | I32: 0.005337330503 | J32: 0.005558685107 | K32: 0.004494910027 | L32: 0.005365167311 | M32: 0.005060755702 | N32: 0.006122841773 | O32: 0.006302053112 | P32: 0.006007884603 | Q32: 0.005760249911 | R32: 0.00596576485 | S32: 0.006200338416 | T32: 0.006333628978 | U32: 0.006966933604 | V32: 0.006428698684 | W32: 0.006880209964 | X32: 0.003549333752 | Y32: 0.004584298869 | Z32: 0.006988690783 | AA32: 0.008602566647 | AB32: 0.01216578254 | AC32: 0.006936626356 | AD32: 0.01060186692 | AE32: 0.0158594989 | AF32: 0.008863432263 | AG32: 0.0101308047 | AH32: 0.010965488 | AI32: 0.01151715309 | AJ32: 0.01266898149 | AK32: 0.01314920226 | AL32: 0.00947447984 | AM32: 0.01069035257 | AN32: 0.01119819555 | AO32: 0.01135600891 | AP32: 0.01168350237 | AQ32: 0.01196166493 | AR32: 0.01199922945 | AS32: 0.01190081361 | AT32: 0.01193819462 | AU32: 0.01197833139 | AV32: 0.01190169453 | AW32: 0.01195615653 | AX32: 0.01193710637 | AY32: 0.01198096605 | AZ32: 0.01203868244 | BA32: 0.01201562956
A33: 0.1248000264 | C33: 26 | D33: 0.004704430159 | E33: 0.004775295297 | F33: 0.004055257997 | G33: 0.003616554519 | H33: 0.003489613278 | I33: 0.003756243924 | J33: 0.004526581606 | K33: 0.004511058084 | L33: 0.003651603306 | M33: 0.00482872772 | N33: 0.004296348557 | O33: 0.005214411434 | P33: 0.005395562112 | Q33: 0.005164872081 | R33: 0.004965761899 | S33: 0.005167512816 | T33: 0.005397309104 | U33: 0.005532437509 | V33: 0.006099711157 | W33: 0.005646587953 | X33: 0.006055498973 | Y33: 0.003130189141 | Z33: 0.004049976859 | AA33: 0.006179739105 | AB33: 0.007614401208 | AC33: 0.01075578755 | AD33: 0.00614002993 | AE33: 0.009402007293 | AF33: 0.01408500638 | AG33: 0.007894625212 | AH33: 0.009000470556 | AI33: 0.009766004145 | AJ33: 0.0102956221 | AK33: 0.01127808122 | AL33: 0.01171202622 | AM33: 0.008444283544 | AN33: 0.009532287106 | AO33: 0.00999302622 | AP33: 0.01013777633 | AQ33: 0.01040882091 | AR33: 0.01066745515 | AS33: 0.01070584424 | AT33: 0.01061999251 | AU33: 0.01065614198 | AV33: 0.01069423054 | AW33: 0.01062616826 | AX33: 0.01067422416 | AY33: 0.01065753874 | AZ33: 0.01069699435 | BA33: 0.01074809906
A34: 0.1254000068 | C34: 27 | D34: 0.003581705814 | E34: 0.004267816545 | F34: 0.004189361256 | G34: 0.003339512291 | H34: 0.003063574724 | I34: 0.002961906274 | J34: 0.003178587017 | K34: 0.003661312363 | L34: 0.003652825553 | M34: 0.003282549406 | N34: 0.004088517813 | O34: 0.003649665704 | P34: 0.004453642045 | Q34: 0.004627742669 | R34: 0.004442512445 | S34: 0.004291961079 | T34: 0.004488756096 | U34: 0.004704843529 | V34: 0.004833919068 | W34: 0.005346879445 | X34: 0.004959870154 | Y34: 0.005329845571 | Z34: 0.002759906672 | AA34: 0.003574161824 | AB34: 0.005459085816 | AC34: 0.006718525463 | AD34: 0.00950155004 | AE34: 0.005434187898 | AF34: 0.00833320091 | AG34: 0.01252021476 | AH34: 0.006999744281 | AI34: 0.007999902628 | AJ34: 0.008712774355 | AK34: 0.009146998049 | AL34: 0.01002538412 | AM34: 0.01041771491 | AN34: 0.007514522571 | AO34: 0.008489460311 | AP34: 0.008903190278 | AQ34: 0.009013660554 | AR34: 0.009264092582 | AS34: 0.009498645049 | AT34: 0.009534598521 | AU34: 0.00946062836 | AV34: 0.009494844766 | AW34: 0.009529104777 | AX34: 0.009467952973 | AY34: 0.009511059132 | AZ34: 0.009496456139 | BA34: 0.009531236269
A35: 0.1269999743 | C35: 28 | D35: 0.003853537898 | E35: 0.003249291161 | F35: 0.003744150712 | G35: 0.003446559397 | H35: 0.002826935492 | I35: 0.002598602386 | J35: 0.002504733032 | K35: 0.002568429481 | L35: 0.002961848203 | M35: 0.003282463966 | N35: 0.002777145173 | O35: =O69*(1-O$41-O$71)/SUM(O$42:O$70) -> 0.003470478375 | P35: 0.003114936783 | Q35: 0.003817207155 | R35: 0.003977820914 | S35: 0.003837200424 | T35: 0.003725843598 | U35: 0.003910432131 | V35: 0.004108301248 | W35: 0.004234758 | X35: 0.004693805284 | Y35: 0.004362917131 | Z35: 0.004696576326 | AA35: 0.002434220742 | AB35: 0.003155486276 | AC35: 0.004813917281 | AD35: 0.005931505018 | AE35: 0.00840419403 | AF35: 0.004813519021 | AG35: 0.007402932591 | AH35: 0.011094326 | AI35: 0.006217853661 | AJ35: 0.007132857871 | AK35: 0.007736096481 | AL35: 0.008126134706 | AM35: 0.008912120078 | AN35: 0.009265114251 | AO35: 0.006688430725 | AP35: 0.007559061503 | AQ35: 0.007911208389 | AR35: =AR69*(1-AR$41-AR$71)/SUM(AR$42:AR$70) -> 0.008017553577 | AS35: 0.008244102381 | AT35: 0.008454404156 | AU35: 0.008488641406 | AV35: 0.008424573524 | AW35: 0.00845532892 | AX35: 0.008485385657 | AY35: 0.008431187425 | AZ35: 0.008469809064 | BA35: 0.008456470574
A36: 0.1277999878 | C36: 29 | D36: 0.003204225515 | E36: 0.003495894772 | F36: 0.002850599524 | G36: 0.003072215009 | H36: 0.002912164924 | I36: 0.002393715847 | J36: 0.002193588567 | K36: 0.002018545258 | L36: 0.002072333362 | M36: 0.002658984654 | N36: 0.002771172812 | O36: 0.002352558564 | P36: 0.002956292529 | Q36: 0.002664851798 | R36: 0.003275211035 | S36: 0.003429830559 | T36: 0.003325427855 | U36: 0.003240446155 | V36: 0.00340904198 | W36: 0.003593290439 | X36: 0.003711593621 | Y36: 0.004122331157 | Z36: 0.003838464106 | AA36: 0.004135835394 | AB36: 0.002145675755 | AC36: 0.002778127706 | AD36: 0.004243184868 | AE36: 0.005238001132 | AF36: 0.007432268352 | AG36: 0.004269264669 | AH36: 0.006549298643 | AI36: 0.009839250843 | AJ36: 0.005535073727 | AK36: 0.006323147618 | AL36: 0.006861707613 | AM36: 0.007212217015 | AN36: 0.007913425209 | AO36: 0.008233399216 | AP36: 0.005945874022 | AQ36: 0.006706059522 | AR36: =AR70*(1-AR$41-AR$71)/SUM(AR$42:AR$70) -> 0.007025667291 | AS36: 0.007123400117 | AT36: 0.007326055986 | AU36: 0.007514925695 | AV36: 0.007546962961 | AW36: 0.007490256096 | AX36: 0.007517199891 | AY36: 0.007544150952 | AZ36: 0.007496173385 | BA36: 0.007530214999
A37: 0.6999999881 | C37: 30 | D37: 0.02568894169 | E37: =D37 -> 0.02568894169 | F37: =E37 -> 0.02568894169 | G37: 0.02568894169 | H37: 0.02568894169 | I37: 0.02568894169 | J37: 0.02568894169 | K37: 0.02568894169 | L37: 0.02568894169 | M37: 0.02568894169 | N37: 0.02568894169 | O37: 0.02568894169 | P37: 0.02568894169 | Q37: 0.02568894169 | R37: 0.02568894169 | S37: 0.02568894169 | T37: 0.02568894169 | U37: 0.02568894169 | V37: 0.02568894169 | W37: 0.02568894169 | X37: 0.02568894169 | Y37: 0.02568894169 | Z37: 0.02568894169 | AA37: 0.02568894169 | AB37: 0.02568894169 | AC37: 0.02568894169 | AD37: 0.02568894169 | AE37: 0.02568894169 | AF37: 0.02568894169 | AG37: 0.02568894169 | AH37: 0.02568894169 | AI37: 0.02568894169 | AJ37: 0.02568894169 | AK37: 0.02568894169 | AL37: 0.02568894169 | AM37: 0.02568894169 | AN37: 0.02568894169 | AO37: 0.02568894169 | AP37: 0.02568894169 | AQ37: 0.02568894169 | AR37: =AQ37 -> 0.02568894169 | AS37: =AR37 -> 0.02568894169 | AT37: =AS37 -> 0.02568894169 | AU37: =AT37 -> 0.02568894169 | AV37: =AU37 -> 0.02568894169 | AW37: =AV37 -> 0.02568894169 | AX37: =AW37 -> 0.02568894169 | AY37: =AX37 -> 0.02568894169 | AZ37: =AY37 -> 0.02568894169 | BA37: =AZ37 -> 0.02568894169
C39: Intermediate table
C40: age | D40: 2011 | E40: 2012 | F40: 2013 | G40: 2014 | H40: 2015 | I40: 2016 | J40: 2017 | K40: 2018 | L40: 2019 | M40: 2020 | N40: 2021 | O40: 2022 | P40: 2023 | Q40: 2024 | R40: 2025 | S40: 2026 | T40: 2027 | U40: 2028 | V40: 2029 | W40: 2030 | X40: 2031 | Y40: 2032 | Z40: 2033 | AA40: 2034 | AB40: 2035 | AC40: 2036 | AD40: 2037 | AE40: 2038 | AF40: 2039 | AG40: 2040 | AH40: 2041 | AI40: 2042 | AJ40: 2043 | AK40: 2044 | AL40: 2045 | AM40: 2046 | AN40: 2047 | AO40: 2048 | AP40: 2049 | AQ40: 2050 | AR40: 2051 | AS40: 2052 | AT40: 2053 | AU40: 2054 | AV40: 2055 | AW40: 2056 | AX40: 2057 | AY40: 2058 | AZ40: 2059 | BA40: 2060
C41: 0 | D41: =D7 -> 0.06719659639 | E41: =E2 -> 0.09333171158 | F41: =F2 -> 0.1226159943 | G41: 0.06719659639 | H41: 0.07364691663 | I41: 0.07644576597 | J41: 0.07704327472 | K41: 0.08167317598 | L41: 0.08199414307 | M41: 0.05710744817 | N41: 0.06330511041 | O41: 0.06497676013 | P41: 0.06448623501 | Q41: 0.06490030193 | R41: 0.065099501 | S41: 0.06400781414 | T41: 0.06230523258 | U41: 0.06138964355 | V41: 0.06054411304 | W41: 0.05921522581 | X41: 0.05861567061 | Y41: 0.05774776081 | Z41: 0.05726726647 | AA41: 0.05688448129 | AB41: 0.05621899581 | AC41: 0.05546445 | AD41: 0.05497164079 | AE41: 0.05463144682 | AF41: 0.05430051093 | AG41: 0.05387606366 | AH41: 0.05379486004 | AI41: 0.05389578613 | AJ41: 0.05359859474 | AK41: 0.05357425996 | AL41: 0.05399536273 | AM41: 0.05398104719 | AN41: 0.05395941309 | AO41: 0.05391336254 | AP41: 0.05367070392 | AQ41: 0.05339151122 | AR41: =AR2 -> 0.05339151122 | AS41: 0.05339151122 | AT41: 0.05339151122 | AU41: 0.05339151122 | AV41: 0.05339151122 | AW41: 0.05339151122 | AX41: 0.05339151122 | AY41: 0.05339151122 | AZ41: 0.05339151122 | BA41: 0.05339151122
C42: 1 | D42: =D8 -> 0.1178696307 | E42: =MAX(D7*(1-D$3*$A7),0) -> 0.06719659639 | F42: =MAX(E7*(1-E$3*$A7),0) -> 0.09333171158 | G42: 0.1211830593 | H42: 0.06661398717 | I42: 0.07304196029 | J42: 0.07580313397 | K42: 0.07613193614 | L42: 0.08072262216 | M42: 0.08159988181 | N42: 0.0565483869 | O42: 0.06270971402 | P42: 0.0643918124 | Q42: 0.06392472913 | R42: 0.06434999322 | S42: 0.06456243046 | T42: 0.06349362696 | U42: 0.06181509778 | V42: 0.0609121026 | W42: 0.06007922703 | X42: 0.05876419829 | Y42: 0.0581715035 | Z42: 0.05731164499 | AA42: 0.05683620207 | AB42: 0.05645393365 | AC42: 0.05579082424 | AD42: 0.05503942079 | AE42: 0.05454860942 | AF42: 0.05421007331 | AG42: 0.05388231086 | AH42: 0.05346292225 | AI42: 0.05338283046 | AJ42: 0.05348364415 | AK42: 0.05318888001 | AL42: 0.05316502407 | AM42: 0.05358283702 | AN42: 0.05356884203 | AO42: 0.0535475799 | AP42: 0.05350089133 | AQ42: 0.05325939951 | AR42: =MAX(AQ7*(1-AQ$3*$A7),0) -> 0.05298324584 | AS42: 0.05298371217 | AT42: 0.05298398949 | AU42: 0.05298419693 | AV42: 0.05298429068 | AW42: 0.05298429863 | AX42: 0.05298430116 | AY42: 0.05298431355 | AZ42: 0.05298431801 | BA42: 0.05298433872
C43: 2 | D43: 0.08307651193 | E43: =MAX(D8*(1-D$3*$A8),0) -> 0.1178696307 | F43: 0.06096014526 | G43: 0.08091180134 | H43: 0.1191206253 | I43: 0.06401379584 | J43: 0.06978809263 | K43: 0.072183817 | L43: 0.07346481883 | M43: 0.07826571141 | N43: 0.07807429463 | O43: 0.05527725079 | P43: 0.06112868458 | Q43: 0.06270445542 | R43: 0.06221951568 | S43: 0.06258959942 | T43: 0.06287610231 | U43: 0.06193480627 | V43: 0.06034971238 | W43: 0.0595277278 | X43: 0.05881161011 | Y43: 0.05758699752 | Z43: 0.05708690708 | AA43: 0.05631945532 | AB43: 0.05587843944 | AC43: 0.05559231785 | AD43: 0.05491439659 | AE43: 0.05427874866 | AF43: 0.0539229047 | AG43: 0.05368172418 | AH43: 0.05350442515 | AI43: 0.05292495485 | AJ43: 0.0529686838 | AK43: 0.05325654984 | AL43: 0.05274014052 | AM43: 0.05274082504 | AN43: 0.05319031633 | AO43: 0.05319750329 | AP43: 0.0532142487 | AQ43: 0.05320337349 | AR43: 0.05286677945 | AS43: 0.0526323105 | AT43: 0.0526497277 | AU43: 0.05265552731 | AV43: 0.05266634629 | AW43: 0.05267610799 | AX43: 0.05267777223 | AY43: 0.05267493783 | AZ43: 0.05267635124 | BA43: 0.05267777036
C44: 3 | D44: 0.06695096999 | E44: 0.08307651193 | F44: 0.1069302642 | G44: 0.05284074078 | H44: 0.07952665962 | I44: 0.1144598777 | J44: 0.06115608337 | K44: 0.06644671848 | L44: 0.06964547307 | M44: 0.07122480725 | N44: 0.0748755687 | O44: 0.07631085532 | P44: 0.05387791439 | Q44: 0.05952075474 | R44: 0.06102572258 | S44: 0.06051154912 | T44: 0.06094905898 | U44: 0.06132678616 | V44: 0.06046106945 | W44: 0.05897281131 | X44: 0.05826654512 | Y44: 0.05762834129 | Z44: 0.05650829736 | AA44: 0.05609365952 | AB44: 0.05536548899 | AC44: 0.05502069529 | AD44: 0.05471409388 | AE44: 0.05415056759 | AF44: 0.05365128853 | AG44: 0.05339253414 | AH44: 0.05330045418 | AI44: 0.05296128528 | AJ44: 0.05250965371 | AK44: 0.05273905057 | AL44: 0.05280251169 | AM44: 0.0523146467 | AN44: 0.05234978687 | AO44: 0.05281687649 | AP44: 0.05286161079 | AQ44: 0.05291357168 | AR44: 0.05280643337 | AS44: 0.05251191427 | AT44: 0.05229586241 | AU44: 0.05231865937 | AV44: 0.05233496965 | AW44: 0.05235533248 | AX44: 0.05236668312 | AY44: 0.05236551748 | AZ44: 0.05236409272 | BA44: 0.05236690438
C45: 4 | D45: 0.04335378583 | E45: 0.06695096999 | F45: 0.0753662612 | G45: 0.09199964257 | H45: 0.05165087877 | I45: 0.07601760611 | J45: 0.108767946 | K45: 0.05779021933 | L45: 0.06363596733 | M45: 0.06731704664 | N45: 0.0677165599 | O45: 0.07274798626 | P45: 0.07395471038 | Q45: 0.05217130851 | R45: 0.05761614346 | S45: 0.05904046273 | T45: 0.05862579031 | U45: 0.05915120499 | V45: 0.05957275731 | W45: 0.05879452085 | X45: 0.05744515122 | Y45: 0.05682046616 | Z45: 0.05627862609 | AA45: 0.05526064839 | AB45: 0.05487940508 | AC45: 0.05425286773 | AD45: 0.0538888837 | AE45: 0.053690282 | AF45: 0.05326330695 | AG45: 0.05286465225 | AH45: 0.0527560417 | AI45: 0.05250364683 | AJ45: 0.05229140761 | AK45: 0.05202909137 | AL45: 0.05203665166 | AM45: 0.05212327571 | AN45: 0.05167583347 | AO45: 0.0517311723 | AP45: 0.05222927644 | AQ45: 0.05230799948 | AR45: 0.05226464529 | AS45: 0.0521984404 | AT45: 0.0519242086 | AU45: 0.05171613139 | AV45: 0.05174916293 | AW45: 0.05177480378 | AX45: 0.0517965789 | AY45: 0.05180502618 | AZ45: 0.05180525379 | BA45: 0.05180524865
C46: 5 | D46: 0.03291574225 | E46: 0.04335378583 | F46: 0.06073731521 | G46: 0.06440265036 | H46: 0.08947730373 | I46: 0.04913757245 | J46: 0.07188648869 | K46: 0.1020751289 | L46: 0.05497144076 | M46: 0.06133859094 | N46: 0.06363842419 | O46: 0.06543426928 | P46: 0.07013476375 | Q46: 0.07125169721 | R46: 0.05025442054 | S46: 0.05547616299 | T46: 0.05693521686 | U46: 0.05663808925 | V46: 0.05720141712 | W46: 0.05767399416 | X46: 0.0570197662 | Y46: 0.05577452853 | Z46: 0.05524788709 | AA46: 0.05479703826 | AB46: 0.05382832285 | AC46: 0.0535402188 | AD46: 0.05290187066 | AE46: 0.0526456665 | AF46: 0.05257548463 | AG46: 0.05224909249 | AH46: 0.05200330203 | AI46: 0.05173768037 | AJ46: 0.05161080129 | AK46: 0.0515842916 | AL46: 0.05110986366 | AM46: 0.05114080532 | AN46: 0.05125992788 | AO46: 0.05084028371 | AP46: 0.05092980457 | AQ46: 0.05145372787 | AR46: 0.05143851868 | AS46: 0.05143518882 | AT46: 0.05138691273 | AU46: 0.05112255383 | AV46: 0.05092806249 | AW46: 0.05096995544 | AX46: 0.05099681668 | AY46: 0.05101553173 | AZ46: 0.0510252141 | BA46: 0.05102683318
C47: 6 | D47: 0.06165514118 | E47: 0.03291574225 | F47: 0.03933016289 | G47: 0.0515180335 | H47: 0.06229567686 | I47: 0.08468445664 | J47: 0.04622191847 | K47: 0.06695803019 | L47: 0.09638140003 | M47: 0.05282815821 | N47: 0.05762905177 | O47: 0.06112954784 | P47: 0.0627266388 | Q47: 0.06720161879 | R47: 0.06826821781 | S47: 0.04813725974 | T47: 0.05322834928 | U47: 0.05473342626 | V47: 0.05450395555 | W47: 0.05511163573 | X47: 0.055665994 | Y47: 0.05509855552 | Z47: 0.05397419117 | AA47: 0.05353965113 | AB47: 0.05312349745 | AC47: 0.05226405813 | AD47: 0.05195614701 | AE47: 0.05143206118 | AF47: 0.05130324013 | AG47: 0.05132531926 | AH47: 0.05115066566 | AI47: 0.05075457544 | AJ47: 0.05061404243 | AK47: 0.05066890073 | AL47: 0.05043026092 | AM47: 0.04998938889 | AN47: 0.05005296709 | AO47: 0.05018980492 | AP47: 0.04981264335 | AQ47: 0.04993248758 | AR47: 0.05035588506 | AS47: 0.05037977934 | AT47: 0.05039323741 | AU47: 0.05035158946 | AV47: 0.0501028184 | AW47: 0.04992138342 | AX47: 0.04996402375 | AY47: 0.04998768449 | AZ47: 0.05000736717 | BA47: 0.05001823795
C48: 7 | D48: 0.05574331387 | E48: 0.06165514118 | F48: 0.02986086404 | G48: 0.03309300361 | H48: 0.04953900168 | I48: 0.05863016079 | J48: 0.07920489243 | K48: 0.04270373374 | L48: 0.06271877546 | M48: 0.09232431291 | N48: 0.04930205482 | O48: 0.05500255028 | P48: 0.05824122987 | Q48: 0.05974766093 | R48: 0.06401694739 | S48: 0.06502602113 | T48: 0.0459351588 | U48: 0.05089702199 | V48: 0.05239337339 | W48: 0.05223952234 | X48: 0.05291838261 | Y48: 0.053514306 | Z48: 0.05304730345 | AA48: 0.05203869243 | AB48: 0.05163841709 | AC48: 0.05131359543 | AD48: 0.05045442198 | AE48: 0.05024922464 | AF48: 0.04985862629 | AG48: 0.04982196368 | AH48: 0.0499852553 | AI48: 0.04966335266 | AJ48: 0.04939505148 | AK48: 0.04943299789 | AL48: 0.04927900417 | AM48: 0.04906938412 | AN48: 0.04867293794 | AO48: 0.04875464199 | AP48: 0.04892042374 | AQ48: 0.04858363169 | AR48: 0.04861394646 | AS48: 0.04906422791 | AT48: 0.0491039784 | AU48: 0.04912274078 | AV48: 0.0490922575 | AW48: 0.04885869498 | AX48: 0.04868330196 | AY48: 0.04872228988 | AZ48: 0.04874666966 | BA48: 0.0487672221
C49: 8 | D49: 0.05793601557 | E49: 0.05574331387 | F49: 0.05593298715 | G49: 0.02490823952 | H49: 0.03161993521 | I49: 0.04634440407 | J49: =MAX(I14*(1-I$3*$A14),0) -> 0.05449957386 | K49: 0.07253572039 | L49: 0.03965583824 | M49: 0.05987027305 | N49: 0.08554245304 | O49: 0.04673046935 | P49: 0.05205822063 | Q49: 0.05512187618 | R49: 0.05656344524 | S49: 0.06060922307 | T49: 0.06168752732 | U49: 0.04367123879 | V49: 0.04844464466 | W49: 0.04993557612 | X49: 0.04988215072 | Y49: 0.05059201726 | Z49: 0.05123855193 | AA49: 0.05086458597 | AB49: 0.04991397355 | AC49: 0.04960227774 | AD49: 0.04926019306 | AE49: 0.0485231108 | AF49: 0.04843808518 | AG49: 0.04814723139 | AH49: 0.04824995665 | AI49: 0.04826090535 | AJ49: 0.04806368804 | AK49: 0.04797369006 | AL49: 0.0478093606 | AM49: 0.04768221454 | AN49: 0.0475112791 | AO49: 0.04714670444 | AP49: 0.04725658205 | AQ49: 0.04744692016 | AR49: 0.04703710572 | AS49: 0.04710330817 | AT49: 0.04755573327 | AU49: 0.04759987097 | AV49: 0.04762793454 | AW49: 0.04760714058 | AX49: 0.04738214099 | AY49: 0.04720954242 | AZ49: 0.04724861996 | BA49: 0.04727359296
C50: 9 | D50: 0.04984930024 | E50: 0.05793601557 | F50: 0.05056983082 | G50: 0.0462427081 | H50: 0.02364510246 | I50: 0.02939942572 | J50: 0.04280871134 | K50: 0.04946269351 | L50: 0.06676433317 | M50: 0.03772085078 | N50: 0.05506405507 | O50: 0.08050814639 | P50: 0.04393059304 | Q50: 0.04894896756 | R50: 0.05185337992 | S50: 0.05322251042 | T50: 0.0571528474 | U50: 0.05830325057 | V50: 0.04132602211 | W50: 0.04590795438 | X50: 0.04741166973 | Y50: 0.04742015473 | Z50: 0.04816814107 | AA50: 0.04885492288 | AB50: 0.04851282939 | AC50: 0.04767385395 | AD50: 0.04734552289 | AE50: 0.0471029669 | AF50: 0.04650536734 | AG50: 0.04650703638 | AH50: 0.04636169078 | AI50: 0.04631966346 | AJ50: 0.04644035822 | AK50: 0.04641483203 | AL50: 0.04613398361 | AM50: 0.04599692725 | AN50: 0.04590555457 | AO50: 0.04575983983 | AP50: 0.04543761212 | AQ50: 0.04557153183 | AR50: 0.04567492147 | AS50: 0.04531617293 | AT50: 0.0453955385 | AU50: 0.04583709999 | AV50: 0.04588922031 | AW50: 0.04592473271 | AX50: 0.04590613469 | AY50: 0.0456867573 | AZ50: 0.04552156089 | BA50: 0.04556053729
C51: 10 | D51: 0.04573071642 | E51: 0.04984930024 | F51: 0.05255902999 | G51: 0.04144096028 | H51: 0.04361564829 | I51: 0.02185112763 | J51: 0.02698756767 | K51: 0.0385061367 | L51: 0.04512842284 | M51: 0.06328474376 | N51: 0.03443960984 | O51: 0.05146091858 | P51: 0.07517874161 | Q51: 0.04104021369 | R51: 0.04575747497 | S51: 0.04849303075 | T51: 0.04988961967 | U51: 0.05370378009 | V51: 0.05485571431 | W51: 0.038940399 | X51: 0.04334294347 | Y51: 0.04481995389 | Z51: 0.04489704416 | AA51: 0.04567268728 | AB51: 0.04633623326 | AC51: 0.04607551528 | AD51: 0.04524778571 | AE51: 0.0450152861 | AF51: 0.04488753613 | AG51: 0.04439782213 | AH51: 0.04452917196 | AI51: 0.04425565604 | AJ51: 0.04432111135 | AK51: 0.04459450703 | AL51: 0.04438360343 | AM51: 0.0441351221 | AN51: 0.04403382786 | AO51: 0.04396459656 | AP51: 0.04385232215 | AQ51: 0.04356988984 | AR51: 0.04362231278 | AS51: 0.04375610378 | AT51: 0.04342750963 | AU51: 0.04350895571 | AV51: 0.04394139704 | AW51: 0.04399946966 | AX51: 0.04403491438 | AY51: 0.04401476096 | AZ51: 0.0438056051 | BA51: 0.04364846539
C52: 11 | D52: 0.04081105694 | E52: 0.04573071642 | F52: 0.04522283489 | G52: 0.04270138567 | H52: 0.03884224092 | I52: 0.04006831365 | J52: 0.01993707528 | K52: 0.02406404936 | L52: 0.03483173736 | M52: 0.04263139833 | N52: 0.05736902919 | O52: 0.03196673096 | P52: 0.04774169326 | Q52: 0.06979120164 | R52: 0.03812999319 | S52: 0.04253815167 | T52: 0.0451939033 | U52: 0.04661412729 | V52: 0.05024619058 | W52: 0.05140445123 | X52: 0.03656395038 | Y52: 0.04075112533 | Z52: 0.04220555202 | AA52: 0.04234147113 | AB52: 0.04308309452 | AC52: 0.04376800755 | AD52: 0.04349049608 | AE52: 0.04278336392 | AF52: 0.04266072829 | AG52: 0.04261660467 | AH52: 0.04227591209 | AI52: 0.04227294235 | AJ52: 0.04211398921 | AK52: 0.04232624524 | AL52: 0.04240940969 | AM52: 0.04222800606 | AN52: 0.04202017658 | AO52: 0.04194125953 | AP52: 0.04190080455 | AQ52: 0.04181869944 | AR52: 0.0414776363 | AS52: 0.04156089165 | AT52: 0.04170300762 | AU52: 0.04139507917 | AV52: 0.04148148223 | AW52: 0.0419014982 | AX52: 0.04195820537 | AY52: 0.04198979909 | AZ52: 0.04197171776 | BA52: 0.04177348338
C53: 12 | D53: 0.03632470938 | E53: 0.04081105694 | F53: 0.04148649285 | G53: 0.03643382293 | H53: 0.03978028322 | I53: 0.03547821678 | J53: 0.03634339305 | K53: 0.01762667705 | L53: 0.02158650952 | M53: 0.03279628923 | N53: 0.03837900296 | O53: 0.05289680301 | P53: 0.02946876916 | Q53: 0.04404968716 | R53: 0.06445714103 | S53: 0.03524281236 | T53: 0.03942177437 | U53: 0.0419950096 | V53: 0.04337649376 | W53: 0.04683307883 | X53: 0.04801134573 | Y53: 0.03419615288 | Z53: 0.03817234766 | AA53: 0.03959467568 | AB53: 0.03973031556 | AC53: 0.04047935406 | AD53: 0.04109193269 | AE53: 0.04090131264 | AF53: 0.04032764355 | AG53: 0.04028512051 | AH53: 0.04036306244 | AI53: 0.03991973918 | AJ53: 0.04001297511 | AK53: 0.0400043459 | AL53: 0.04003815352 | AM53: 0.04013499814 | AN53: 0.03999064137 | AO53: 0.03981056848 | AP53: 0.0397594485 | AQ53: 0.03974438624 | AR53: 0.03959851957 | AS53: 0.03930735755 | AT53: 0.03940024575 | AU53: 0.03954009892 | AV53: 0.03925649011 | AW53: 0.03934568836 | AX53: 0.03974534028 | AY53: 0.03979704484 | AZ53: 0.03982809178 | BA53: 0.03981210875
C54: 13 | D54: 0.03406923567 | E54: 0.03632470938 | F54: 0.03702342221 | G54: 0.03316150918 | H54: 0.03374841431 | I54: 0.0361398779 | J54: 0.03200289209 | K54: 0.03187641139 | L54: 0.01568845111 | M54: 0.02026274358 | N54: 0.02933371682 | O54: 0.03516761106 | P54: 0.04847461102 | Q54: 0.02703450341 | R54: 0.04045703647 | S54: 0.05925504788 | T54: 0.03248958637 | U54: 0.03644351852 | V54: 0.03888009407 | W54: 0.04022785936 | X54: 0.04352485184 | Y54: 0.04468082642 | Z54: 0.03187479128 | AA54: 0.03563562309 | AB54: 0.03696993459 | AC54: 0.03714414126 | AD54: 0.03781472041 | AE54: 0.03845185207 | AF54: 0.03835991999 | AG54: 0.03789092552 | AH54: 0.03796434189 | AI54: 0.03792341983 | AJ54: 0.0375974523 | AK54: 0.03781941943 | AL54: 0.03765358506 | AM54: 0.03770244506 | AN54: 0.03781957735 | AO54: 0.03769950565 | AP54: 0.03755160749 | AQ54: 0.03752504282 | AR54: 0.03744697082 | AS54: 0.03733996373 | AT54: 0.03707870644 | AU54: 0.03717124625 | AV54: 0.03731116806 | AW54: 0.03705038604 | AX54: 0.03713575167 | AY54: 0.03751099743 | AZ54: 0.03756081653 | BA54: 0.03759123131
C55: 14 | D55: 0.03181376197 | E55: 0.03406923567 | F55: 0.03295344823 | G55: 0.02935127532 | H55: 0.03053494314 | I55: 0.03048820315 | J55: 0.03241250742 | K55: 0.02783606756 | L55: 0.02813960735 | M55: 0.01467937161 | N55: 0.01800084533 | O55: 0.02670506406 | P55: 0.03202840343 | Q55: 0.04420516637 | R55: 0.02468566769 | S55: 0.03698253494 | T55: 0.05432704477 | U55: 0.02987432477 | V55: 0.03356196871 | W55: 0.03586979795 | X55: 0.03719290361 | Y55: 0.04029725792 | Z55: 0.04143431833 | AA55: 0.02960462349 | AB55: 0.03310243139 | AC55: 0.03438474057 | AD55: 0.03451847713 | AE55: 0.03520022056 | AF55: 0.03587368325 | AG55: 0.03585353014 | AH55: 0.03552210934 | AI55: 0.03548415332 | AJ55: 0.03553180429 | AK55: =MAX(AJ20*(1-AJ$3*$A20),0) -> 0.0353518694 | AL55: 0.03541242681 | AM55: 0.03527305332 | AN55: 0.03534316335 | AO55: 0.03546807689 | AP55: 0.03537559206 | AQ55: 0.03525682828 | AR55: 0.03517233976 | AS55: 0.03512801009 | AT55: 0.03504032826 | AU55: 0.03479986325 | AV55: 0.0348942236 | AW55: 0.0350320447 | AX55: 0.034788299 | AY55: 0.03486663781 | AZ55: 0.03521991452 | BA55: 0.03526774435
C56: 15 | D56: 0.0271805094 | E56: 0.03181376197 | F56: 0.03090730285 | G56: 0.02550792042 | H56: 0.02656578838 | I56: 0.02714145378 | J56: 0.02689285269 | K56: 0.0275177609 | L56: 0.02399539082 | M56: 0.02608900511 | N56: 0.01278721419 | O56: 0.01608272601 | P56: 0.02388950399 | Q56: 0.02870728468 | R56: 0.03969270512 | S56: 0.02220096727 | T56: 0.03337432755 | U56: 0.04918681448 | V56: 0.02709472309 | W56: 0.03050006193 | X56: 0.03267159558 | Y56: 0.0339267588 | Z56: 0.03681984547 | AA56: 0.03791949838 | AB56: 0.02709488038 | AC56: 0.03033093355 | AD56: 0.03147696342 | AE56: 0.0316498903 | AF56: 0.03234625844 | AG56: 0.03302635588 | AH56: 0.03310978731 | AI56: 0.03270593667 | AJ56: 0.03275101219 | AK56: 0.03291200842 | AL56: 0.03260929306 | AM56: 0.03267979607 | AN56: 0.0325738782 | AO56: 0.03265279874 | AP56: 0.03278558235 | AQ56: 0.03271778097 | AR56: 0.03255398554 | AS56: 0.03250326475 | AT56: 0.03247442371 | AU56: 0.03239800882 | AV56: 0.03218272059 | AW56: 0.03227595616 | AX56: 0.03240447 | AY56: 0.03217734729 | AZ56: 0.03225069102 | BA56: 0.03257846226
C57: 16 | D57: 0.01959535319 | E57: 0.0271805094 | F57: 0.02886115748 | G57: 0.02372142931 | H57: 0.02294691186 | I57: 0.0234781742 | J57: 0.0238001588 | K57: 0.02263557406 | L57: 0.02352100134 | M57: 0.02217489441 | N57: 0.02256831141 | O57: 0.01134873673 | P57: 0.01429600756 | Q57: 0.02128163303 | R57: 0.02562401356 | S57: 0.03549208188 | T57: 0.01992293703 | U57: 0.03005146941 | V57: 0.04436952578 | W57: 0.02449178531 | X57: 0.02763406651 | Y57: 0.02964613664 | Z57: 0.03083703874 | AA57: 0.03352094847 | AB57: 0.03452300865 | AC57: 0.02469539547 | AD57: 0.02761851548 | AE57: 0.02870716296 | AF57: 0.0289282374 | AG57: 0.02961990005 | AH57: 0.03033687703 | AI57: 0.0303230557 | AJ57: 0.03002683912 | AK57: 0.03017557416 | AL57: 0.03019804777 | AM57: 0.02993367716 | AN57: 0.03001940442 | AO57: 0.02993519131 | AP57: 0.03002321761 | AQ57: 0.03016132209 | AR57: 0.03004952683 | AS57: 0.029924412 | AT57: 0.02988906469 | AU57: 0.02986691148 | AV57: 0.02980319474 | AW57: 0.02961063116 | AX57: 0.02969736395 | AY57: 0.0298140785 | AZ57: 0.02960592561 | BA57: 0.02967432759
C58: 17 | D58: 0.01912055315 | E58: 0.01959535319 | F58: 0.02465791261 | G58: 0.02197553552 | H58: 0.02121883428 | I58: 0.02017158608 | J58: 0.0204750665 | K58: 0.01987156317 | L58: 0.01919536729 | M58: 0.02167115021 | N58: 0.01905800254 | O58: 0.01990529889 | P58: 0.01002834158 | Q58: 0.01266287617 | R58: 0.01889084643 | S58: 0.02278930068 | T58: 0.03168424589 | U58: 0.01784795618 | V58: 0.0269718554 | W58: 0.03990804182 | X58: 0.02208123588 | Y58: 0.02495246281 | Z58: 0.02681495567 | AA58: 0.02793787013 | AB58: 0.03036937886 | AC58: 0.03131096322 | AD58: 0.02237562459 | AE58: 0.02506296584 | AF58: 0.02610774249 | AG58: 0.02635811252 | AH58: 0.02707302669 | AI58: 0.02764605992 | AJ58: 0.02770164469 | AK58: 0.0275290284 | AL58: 0.02755066931 | AM58: 0.02758349339 | AN58: 0.02736123641 | AO58: 0.02745166763 | AP58: 0.02738844126 | AQ58: 0.02748332131 | AR58: =MAX(AQ23*(1-AQ$3*$A23),0) -> 0.02756473707 | AS58: 0.02748599488 | AT58: 0.02738198472 | AU58: 0.02735371629 | AV58: 0.02733949612 | AW58: 0.02728622565 | AX58: 0.02711079165 | AY58: 0.02718880944 | AZ58: 0.02729641695 | BA58: 0.02710668894
C59: 18 | D59: 0.01324921147 | E59: 0.01912055315 | F59: 0.01777672741 | G59: 0.01864280824 | H59: 0.01955826265 | I59: 0.01856413449 | J59: 0.01750592253 | K59: 0.01697318735 | L59: 0.01673326837 | M59: 0.01763865803 | N59: 0.0185177873 | O59: 0.01671663538 | P59: 0.01749712867 | Q59: 0.008837845652 | R59: 0.01118516594 | S59: 0.01672101864 | T59: 0.02025025101 | U59: 0.02825607979 | V59: 0.01594744563 | W59: 0.02415302289 | X59: 0.03582327353 | Y59: 0.0198520153 | Z59: 0.02247201257 | AA59: 0.02418934237 | AB59: 0.0252015885 | AC59: 0.02742368332 | AD59: 0.0282452131 | AE59: 0.02021564899 | AF59: 0.02269274773 | AG59: 0.02368319902 | AH59: 0.02398586215 | AI59: 0.02456345629 | AJ59: 0.02514545388 | AK59: 0.0252860652 | AL59: 0.02502438552 | AM59: 0.02505521363 | AN59: 0.02510276391 | AO59: 0.02491150996 | AP59: 0.02500614039 | AQ59: 0.02496137111 | AR59: 0.02500727918 | AS59: 0.02510289524 | AT59: 0.02504080669 | AU59: 0.02494982794 | AV59: 0.02492961821 | AW59: 0.0249212769 | AX59: 0.02487351447 | AY59: 0.02471233052 | AZ59: 0.02478413018 | BA59: 0.02488300437
C60: 19 | D60: 0.0134834112 | E60: 0.01324921147 | F60: 0.0173459931 | G60: 0.01335758395 | H60: 0.01651943937 | I60: 0.01704071907 | J60: 0.01604269747 | K60: 0.01442135441 | L60: 0.0142051553 | M60: 0.01534068069 | N60: 0.01499638933 | O60: 0.01616484106 | P60: 0.01462709782 | Q60: 0.01535211146 | R60: 0.007773138738 | S60: 0.009859378378 | T60: 0.01479825231 | U60: 0.01798818493 | V60: 0.0251491917 | W60: 0.01422608256 | X60: 0.02159855103 | Y60: 0.03208515234 | Z60: 0.01781135068 | AA60: 0.02019568406 | AB60: 0.02173794055 | AC60: 0.02267076689 | AD60: 0.02464401213 | AE60: 0.02542066103 | AF60: 0.01823339615 | AG60: 0.0205062441 | AH60: 0.0214692726 | AI60: 0.02167934274 | AJ60: 0.02225649405 | AK60: 0.02286530036 | AL60: 0.022897962 | AM60: 0.02267107393 | AN60: 0.02271506759 | AO60: 0.02276829136 | AP60: 0.02260571069 | AQ60: 0.02270308599 | AR60: 0.02262594876 | AS60: 0.02268713334 | AT60: 0.02278269679 | AU60: 0.02272983782 | AV60: 0.02265231823 | AW60: 0.02263816689 | AX60: 0.0226313173 | AY60: 0.02258679288 | AZ60: 0.02244104759 | BA60: 0.02250696206
C61: 20 | D61: 0.01108457981 | E61: 0.0134834112 | F61: 0.01201956496 | G61: 0.01295741416 | H61: 0.01178677655 | I61: 0.01433648163 | J61: 0.01466680599 | K61: 0.01313726358 | L61: 0.01199896966 | M61: 0.01299433232 | N61: 0.01298020942 | O61: 0.01303099868 | P61: 0.01408268509 | Q61: 0.01278009037 | R61: 0.01344763885 | S61: 0.006824720434 | T61: 0.008692181337 | U61: 0.01309595771 | V61: 0.01595105919 | W61: 0.02235276573 | X61: 0.01267551422 | Y61: 0.0192752277 | Z61: 0.02868390278 | AA61: 0.01595001125 | AB61: 0.0180838533 | AC61: 0.0194842624 | AD61: 0.02029870792 | AE61: 0.02209848778 | AF61: 0.02284398449 | AG61: 0.0164162652 | AH61: 0.01852159732 | AI61: 0.01933417011 | AJ61: 0.0195719283 | AK61: 0.02016485349 | AL61: 0.02063073126 | AM61: 0.02066937414 | AN61: 0.02047909378 | AO61: 0.02052799463 | AP61: 0.02058580976 | AQ61: 0.02044903697 | AR61: 0.020504235 | AS61: 0.02045230635 | AT61: 0.02051561004 | AU61: 0.02060523321 | AV61: 0.02056204093 | AW61: 0.0204957163 | AX61: 0.02048356896 | AY61: 0.02047633053 | AZ61: 0.02043661165 | BA61: 0.02030538894
C62: 21 | D62: 0.007860612727 | E62: 0.01108457981 | F62: 0.01223202884 | G62: 0.008937031138 | H62: 0.01139609724 | I62: 0.01019757839 | J62: 0.01230012873 | K62: 0.01195416995 | L62: 0.01088022494 | M62: 0.01095724246 | N62: 0.01095344021 | O62: 0.01123842625 | P62: 0.01131359041 | Q62: 0.01226379821 | R62: 0.01115880911 | S62: 0.01177016803 | T62: 0.005998627753 | U62: 0.007669617126 | V62: 0.0115790631 | W62: 0.01413672684 | X62: 0.01985979468 | Y62: 0.01128004297 | Z62: =MAX(Y27*(1-Y$3*$A27),0) -> 0.01718337669 | AA62: 0.02561425339 | AB62: 0.01424181213 | AC62: 0.01616292227 | AD62: 0.01739566477 | AE62: 0.01814966351 | AF62: 0.01980128808 | AG62: 0.02050815455 | AH62: 0.0147849752 | AI62: 0.01663191314 | AJ62: 0.01740487122 | AK62: 0.01768195284 | AL62: 0.01814228818 | AM62: 0.01856966858 | AN62: 0.01861768627 | AO62: 0.01845455836 | AP62: 0.01850721896 | AQ62: 0.01856852714 | AR62: 0.01841574869 | AS62: 0.01848155366 | AT62: 0.01844197605 | AU62: 0.01850196655 | AV62: 0.01858697799 | AW62: 0.0185514586 | AX62: 0.01849221252 | AY62: 0.01848031508 | AZ62: 0.01847429672 | BA62: 0.01843905282
C63: 22 | D63: 0.006237254653 | E63: 0.007860612727 | F63: 0.01005583067 | G63: 0.009051260144 | H63: 0.007833349645 | I63: 0.009827931126 | J63: 0.008720298525 | K63: 0.00997629507 | L63: 0.009853001524 | M63: 0.009917844213 | N63: 0.009200136214 | O63: 0.009448158236 | P63: 0.009722549532 | Q63: 0.009818592356 | R63: 0.01067240133 | S63: 0.009735351061 | T63: 0.01031307316 | U63: 0.005276752313 | V63: 0.006760771882 | W63: 0.01023147078 | X63: 0.0125230246 | Y63: 0.01762155085 | Z63: 0.01002648549 | AA63: 0.01529979443 | AB63: 0.02280404106 | AC63: 0.01269144745 | AD63: 0.01438749339 | AE63: 0.01550755513 | AF63: 0.016214303 | AG63: 0.01772348554 | AH63: 0.01841535206 | AI63: 0.0132371131 | AJ63: 0.01492789922 | AK63: 0.01567758538 | AL63: 0.01586134425 | AM63: 0.01628148865 | AN63: 0.01667691772 | AO63: 0.01672756013 | AP63: 0.01658856521 | AQ63: 0.0166440413 | AR63: 0.01667267389 | AS63: 0.0165499697 | AT63: 0.01661565751 | AU63: 0.01658271083 | AV63: 0.01664041255 | AW63: 0.01671997416 | AX63: 0.01668855829 | AY63: 0.01663441936 | AZ63: 0.01662417866 | BA63: 0.01661930073
C64: 23 | D64: 0.005500030617 | E64: 0.006237254653 | F64: 0.007131076861 | G64: 0.007416975593 | H64: 0.007915373125 | I64: 0.006740936664 | J64: 0.008385685303 | K64: 0.007049673094 | L64: 0.008196407992 | M64: 0.00897074603 | N64: 0.008305595674 | O64: 0.00791594293 | P64: 0.008154299519 | Q64: 0.008418451776 | R64: 0.008525486181 | S64: 0.009290907304 | T64: 0.008512299733 | U64: 0.009053444857 | V64: 0.00464206656 | W64: 0.005962050181 | X64: 0.009045673038 | Y64: 0.01108985749 | Z64: 0.01563265204 | AA64: 0.008910036503 | AB64: 0.01359452918 | AC64: 0.02028150807 | AD64: 0.01127490882 | AE64: 0.0128002957 | AF64: 0.01382621769 | AG64: 0.0144839083 | AH64: 0.01588321981 | AI64: 0.01645469416 | AJ64: 0.01185737119 | AK64: 0.01341980072 | AL64: 0.01403552416 | AM64: 0.01420631922 | AN64: 0.01459303969 | AO64: 0.0149541998 | AP64: 0.0150063808 | AQ64: 0.01488891418 | AR64: 0.01491506949 | AS64: 0.01495384496 | AT64: 0.01484966663 | AU64: 0.01491099211 | AV64: 0.01488479577 | AW64: 0.014939363 | AX64: 0.01501127358 | AY64: 0.0149823107 | AZ64: 0.01493412189 | BA64: 0.01492541095
C65: 24 | D65: 0.005095328552 | E65: 0.005500030617 | F65: 0.005658381081 | G65: 0.005236783654 | H65: 0.006466161813 | I65: 0.006791741078 | J65: 0.005734562478 | K65: 0.006749150606 | L65: 0.005766776793 | M65: 0.00745043152 | N65: 0.007485814277 | O65: 0.007122062635 | P65: 0.006809901016 | Q65: 0.007038653056 | R65: 0.007287742288 | S65: 0.007400242157 | T65: 0.00810068458 | U65: 0.007451944501 | V65: 0.007942742818 | W65: 0.004082628279 | X65: 0.005257001386 | Y65: 0.007989211551 | Z65: 0.009812171776 | AA65: 0.01385537475 | AB65: 0.007895976739 | AC65: 0.01205847404 | AD65: 0.01796941259 | AE65: 0.0100040105 | AF65: 0.01138159938 | AG65: 0.01231731534 | AH65: 0.01294511854 | AI65: 0.01415405044 | AJ65: 0.01470007137 | AK65: 0.01063091808 | AL65: 0.01198205871 | AM65: 0.01253735428 | AN65: 0.01269900144 | AO65: 0.01305059042 | AP65: 0.01337951649 | AQ65: 0.01343265475 | AR65: 0.01330650743 | AS65: 0.01334163161 | AT65: 0.01338163884 | AU65: 0.01329056074 | AV65: 0.01334847904 | AW65: 0.01332750295 | AX65: 0.01337679102 | AY65: 0.01344050179 | AZ65: 0.01341494272 | BA65: 0.01337222993
C66: 25 | D66: 0.005263825887 | E66: 0.005095328552 | F66: 0.004989578094 | G66: 0.004144500381 | H66: 0.004557080869 | I66: 0.005538677672 | J66: 0.005767545991 | K66: 0.004603252555 | L66: 0.005506672999 | M66: 0.005236900989 | N66: 0.006204044647 | O66: 0.006406171198 | P66: 0.006115209475 | Q66: 0.005867352613 | R66: 0.006082367519 | S66: 0.006314891434 | T66: 0.006441365767 | U66: 0.00707994539 | V66: 0.006527106322 | W66: 0.006974348057 | X66: 0.003594125209 | Y66: 0.004635707093 | Z66: 0.00705765689 | AA66: 0.008683018203 | AB66: 0.01225915131 | AC66: 0.006992701705 | AD66: 0.01066675178 | AE66: 0.01591834443 | AF66: 0.008880932369 | AG66: 0.01012321027 | AH66: 0.01099112104 | AI66: 0.0115174096 | AJ66: 0.01262461662 | AK66: 0.0131586072 | AL66: 0.009476867879 | AM66: 0.01068605109 | AN66: 0.01118929796 | AO66: 0.01133870076 | AP66: 0.01165775341 | AQ66: 0.01195728194 | AR66: 0.01198590348 | AS66: 0.01188383189 | AT66: 0.01191995614 | AU66: 0.01195764292 | AV66: 0.01187895949 | AW66: 0.01193294281 | AX66: 0.01191457411 | AY66: 0.01195803395 | AZ66: 0.01201532194 | BA66: 0.01199286407
C67: 26 | D67: 0.004704430159 | E67: 0.005263825887 | F67: 0.004622436037 | G67: 0.003646900721 | H67: 0.003601182794 | I67: 0.003897945675 | J67: 0.004696662447 | K67: 0.004619789834 | L67: 0.003747913935 | M67: 0.004996797012 | N67: 0.004353327957 | O67: 0.005300560269 | P67: 0.005491948453 | Q67: 0.005260904678 | R67: 0.00506281921 | S67: 0.005262984087 | T67: 0.005489118832 | U67: 0.005622180096 | V67: 0.006193082801 | W67: 0.005723847081 | X67: 0.006131917433 | Y67: 0.003165291011 | Z67: 0.00408994302 | AA67: 0.006237532279 | AB67: 0.007672839476 | AC67: 0.01084273681 | AD67: 0.006177607747 | AE67: 0.009436892765 | AF67: 0.01411281605 | AG67: 0.007888707104 | AH67: 0.009021510153 | AI67: 0.009766221656 | AJ67: 0.01025956838 | AK67: 0.01128614785 | AL67: 0.01171497823 | AM67: 0.008440885814 | AN67: 0.009524713171 | AO67: 0.009977795448 | AP67: 0.01011543395 | AQ67: 0.01040500692 | AR67: 0.01065560821 | AS67: 0.01069056766 | AT67: 0.0106037679 | AU67: 0.01063773715 | AV67: 0.01067380204 | AW67: 0.01060553681 | AX67: 0.01065407569 | AY67: 0.01063713974 | AZ67: 0.01067623733 | BA67: 0.0107277351
C68: 27 | D68: 0.003581705814 | E68: 0.004704430159 | F68: 0.004775295297 | G68: 0.003367533855 | H68: 0.003161522984 | I68: 0.003073642177 | J68: 0.003298018588 | K68: 0.003749562369 | L68: 0.003749168419 | M68: 0.003396802226 | N68: 0.004142740902 | O68: 0.003709962912 | P68: 0.004533201922 | Q68: 0.004713788197 | R68: 0.004529342688 | S68: 0.004371256282 | T68: 0.004565111084 | U68: 0.004781161577 | V68: 0.004907914535 | W68: 0.005420037828 | X68: 0.005022462129 | Y68: 0.005389614339 | Z68: 0.002787142105 | AA68: 0.003607587532 | AB68: 0.005500982679 | AC68: 0.006772837695 | AD68: 0.009559700815 | AE68: 0.005454351061 | AF68: 0.008349654119 | AG68: 0.01251082913 | AH68: 0.007016106959 | AI68: 0.008000080804 | AJ68: 0.008682263531 | AK68: 0.009153540421 | AL68: 0.01002791102 | AM68: 0.01041352313 | AN68: 0.007508551862 | AO68: 0.008476521183 | AP68: 0.008883568777 | AQ68: 0.009010357773 | AR68: 0.00925380417 | AS68: 0.009485091076 | AT68: 0.009520032115 | AU68: 0.009444288365 | AV68: 0.009476707377 | AW68: 0.009510603352 | AX68: 0.009450081442 | AY68: 0.009492854543 | AZ68: 0.009478028706 | BA68: 0.009513177848
C69: 28 | D69: 0.003853537898 | E69: 0.003581705814 | F69: 0.004267816545 | G69: 0.003475479184 | H69: 0.00291731795 | I69: 0.002696632897 | J69: 0.002598845353 | K69: 0.002630337315 | L69: 0.003039966619 | M69: 0.003396713812 | N69: 0.002813976464 | O69: =MAX(N34*(1-N$3*$A34),0) -> 0.003527815176 | P69: 0.003170582024 | Q69: 0.003888182062 | R69: 0.004055568621 | S69: 0.003908093794 | T69: 0.003789221233 | U69: 0.0039738639 | V69: 0.004171189283 | W69: 0.004292699842 | X69: 0.004753039606 | Y69: 0.004411842785 | Z69: 0.004742923287 | AA69: 0.002456985674 | AB69: 0.003179703697 | AC69: 0.004852832753 | AD69: 0.005967806633 | AE69: 0.008435377187 | AF69: 0.004823022912 | AG69: 0.007397383074 | AH69: 0.01112026022 | AI69: 0.006217992147 | AJ69: 0.007107879677 | AK69: 0.007741629709 | AL69: 0.008128182895 | AM69: 0.008908534103 | AN69: 0.0092577526 | AO69: 0.006678236619 | AP69: 0.00754240229 | AQ69: 0.007908309568 | AR69: 0.008008649533 | AS69: 0.008232338562 | AT69: 0.008441488009 | AU69: 0.008473980185 | AV69: 0.008408480605 | AW69: 0.008438912307 | AX69: 0.008469368801 | AY69: 0.008415049758 | AZ69: 0.008453373792 | BA69: 0.008440448465
C70: 29 | D70: 0.003204225515 | E70: =MAX(D35*(1-D$3*$A35),0) -> 0.003853537898 | F70: =MAX(E35*(1-E$3*$A35),0) -> 0.003249291161 | G70: 0.003097993705 | H70: 0.003005272328 | I70: 0.002484017152 | J70: 0.00227601001 | K70: 0.002067199023 | L70: 0.002126990923 | M70: 0.002751533602 | N70: 0.002807924896 | O70: 0.002391425881 | P70: 0.003009103749 | Q70: 0.002714400486 | R70: 0.00333922602 | S70: 0.003493197655 | T70: 0.003381994307 | U70: 0.00329300997 | V70: 0.003461226066 | W70: 0.003642455437 | X70: 0.003758432746 | Y70: 0.004168558885 | Z70: 0.003876343007 | AA70: 0.004174513896 | AB70: 0.00216214318 | AC70: 0.002800585955 | AD70: 0.004269153735 | AE70: 0.005257436358 | AF70: 0.007446942745 | AG70: 0.004266064268 | AH70: 0.006564608354 | AI70: 0.009839469985 | AJ70: 0.005515690732 | AK70: 0.006327670237 | AL70: 0.006863437104 | AM70: 0.007209315032 | AN70: 0.00790713755 | AO70: 0.008220850362 | AP70: 0.00593277007 | AQ70: 0.006703602292 | AR70: 0.007017864805 | AS70: 0.00711323547 | AT70: 0.007314863664 | AU70: 0.007501946234 | AV70: 0.007532546485 | AW70: 0.007475713239 | AX70: 0.007503010564 | AY70: 0.007529711112 | AZ70: 0.007481627408 | BA70: 0.007515947827
C71: 30 | D71: 0.02568894169 | E71: =E37 -> 0.02568894169 | F71: =F37 -> 0.02568894169 | G71: 0.02568894169 | H71: 0.02568894169 | I71: 0.02568894169 | J71: 0.02568894169 | K71: 0.02568894169 | L71: 0.02568894169 | M71: 0.02568894169 | N71: 0.02568894169 | O71: 0.02568894169 | P71: 0.02568894169 | Q71: 0.02568894169 | R71: 0.02568894169 | S71: 0.02568894169 | T71: 0.02568894169 | U71: 0.02568894169 | V71: 0.02568894169 | W71: 0.02568894169 | X71: 0.02568894169 | Y71: 0.02568894169 | Z71: 0.02568894169 | AA71: 0.02568894169 | AB71: 0.02568894169 | AC71: 0.02568894169 | AD71: 0.02568894169 | AE71: 0.02568894169 | AF71: 0.02568894169 | AG71: 0.02568894169 | AH71: 0.02568894169 | AI71: 0.02568894169 | AJ71: 0.02568894169 | AK71: 0.02568894169 | AL71: 0.02568894169 | AM71: 0.02568894169 | AN71: 0.02568894169 | AO71: 0.02568894169 | AP71: 0.02568894169 | AQ71: 0.02568894169 | AR71: =AR37 -> 0.02568894169 | AS71: 0.02568894169 | AT71: 0.02568894169 | AU71: 0.02568894169 | AV71: 0.02568894169 | AW71: 0.02568894169 | AX71: 0.02568894169 | AY71: 0.02568894169 | AZ71: 0.02568894169 | BA71: 0.02568894169

Sheet 41 (hidden)
D1: 2011 | E1: 2012 | F1: 2013 | G1: 2014 | H1: 2015 | I1: 2016 | J1: 2017 | K1: 2018 | L1: 2019 | M1: 2020 | N1: 2021 | O1: 2022 | P1: 2023 | Q1: 2024 | R1: 2025 | S1: 2026 | T1: 2027 | U1: 2028 | V1: 2029 | W1: 2030 | X1: 2031 | Y1: 2032 | Z1: 2033 | AA1: 2034 | AB1: 2035 | AC1: 2036 | AD1: 2037 | AE1: 2038 | AF1: 2039 | AG1: 2040 | AH1: 2041 | AI1: 2042 | AJ1: 2043 | AK1: 2044 | AL1: 2045 | AM1: 2046 | AN1: 2047 | AO1: 2048 | AP1: 2049 | AQ1: 2050 | AR1: 2051 | AS1: 2052 | AT1: 2053 | AU1: 2054 | AV1: 2055 | AW1: 2056 | AX1: 2057 | AY1: 2058 | AZ1: 2059 | BA1: 2060
C2: sales (age 0 pop) | D2: 0.036142115 | E2: 0.04007899013 | F2: 0.04603372074 | G2: 0.07330858391 | H2: 0.07450697287 | I2: 0.07921661088 | J2: 0.0848050989 | K2: 0.08376358754 | L2: 0.08376358754 | M2: 0.04503128346 | N2: 0.04883875042 | O2: 0.05439910452 | P2: 0.05561635969 | Q2: 0.05535344435 | R2: 0.05519572431 | S2: 0.05427008177 | T2: 0.05227938356 | U2: 0.05098773682 | V2: 0.04989323081 | W2: 0.04909068285 | X2: 0.04890381095 | Y2: 0.04859816451 | Z2: 0.0482826829 | AA2: 0.04816391038 | AB2: 0.04774512847 | AC2: 0.04707783018 | AD2: 0.04653036222 | AE2: 0.04643652227 | AF2: 0.04659554214 | AG2: 0.04665031621 | AH2: 0.04664004178 | AI2: 0.04680218608 | AJ2: 0.04684276687 | AK2: 0.04672019836 | AL2: 0.04643116709 | AM2: 0.04585707756 | AN2: 0.04530242241 | AO2: 0.04501894498 | AP2: 0.04483579783 | AQ2: 0.04447352174 | AR2: 0.04447352174 | AS2: 0.04447352174 | AT2: 0.04447352174 | AU2: 0.04447352174 | AV2: 0.04447352174 | AW2: 0.04447352174 | AX2: 0.04447352174 | AY2: 0.04447352174 | AZ2: 0.04447352174 | BA2: 0.04447352174
C3: scrappage k factor | D3: 0.9046015206 | E3: 1.055689579 | F3: 1.77051767 | G3: 1.074240239 | H3: 0.6061104245 | I3: 1.200748465 | J3: 0 | K3: 2.393374123 | L3: 0.7858494488 | M3: 0.935650291 | N3: 0.8967221099 | O3: 0.8627107009 | P3: 0.8296373479 | Q3: 0.7949035062 | R3: 0.7679972717 | S3: 0.7500021396 | T3: 0.7478560244 | U3: 0.7525032158 | V3: 0.7397826859 | W3: 0.7472213408 | X3: 0.7357911222 | Y3: 0.7620190887 | Z3: 0.7727299279 | AA3: 0.7619392423 | AB3: 0.7422410176 | AC3: 0.7328980957 | AD3: 0.7291126248 | AE3: 0.7408631038 | AF3: 0.7577899766 | AG3: 0.758992132 | AH3: 0.7429544008 | AI3: 0.7059645476 | AJ3: 0.6733200201 | AK3: 0.6740636609 | AL3: 0.6890358029 | AM3: 0.688978936 | AN3: 0.6928500935 | AO3: 0.7196889246 | AP3: 0.740976089 | AQ3: 0.7361339423 | AR3: 0.7325917467 | AS3: 0.7309595999 | AT3: 0.7298968477 | AU3: 0.7291957528 | AV3: 0.7288076057 | AW3: 0.728367954 | AX3: 0.7277416666 | AY3: 0.7269849328 | AZ3: 0.7261546908
A5: default
A6: scrappage | C6: age | D6: 2011 | E6: 2012 | F6: 2013 | G6: 2014 | H6: 2015 | I6: 2016 | J6: 2017 | K6: 2018 | L6: 2019 | M6: 2020 | N6: 2021 | O6: 2022 | P6: 2023 | Q6: 2024 | R6: 2025 | S6: 2026 | T6: 2027 | U6: 2028 | V6: 2029 | W6: 2030 | X6: 2031 | Y6: 2032 | Z6: 2033 | AA6: 2034 | AB6: 2035 | AC6: 2036 | AD6: 2037 | AE6: 2038 | AF6: 2039 | AG6: 2040 | AH6: 2041 | AI6: 2042 | AJ6: 2043 | AK6: 2044 | AL6: 2045 | AM6: 2046 | AN6: 2047 | AO6: 2048 | AP6: 2049 | AQ6: 2050 | AR6: 2051 | AS6: 2052 | AT6: 2053 | AU6: 2054 | AV6: 2055 | AW6: 2056 | AX6: 2057 | AY6: 2058 | AZ6: 2059 | BA6: 2060
A7: 0 | C7: 0 | D7: 0.07330858391 | E7: =E41 -> 0.04007899013 | F7: =F41 -> 0.04603372074 | G7: 0.07330858391 | H7: 0.07450697287 | I7: 0.07921661088 | J7: 0.0848050989 | K7: 0.08376358754 | L7: 0.08376358754 | M7: 0.04503128346 | N7: 0.04883875042 | O7: 0.05439910452 | P7: 0.05561635969 | Q7: 0.05535344435 | R7: 0.05519572431 | S7: 0.05427008177 | T7: 0.05227938356 | U7: 0.05098773682 | V7: 0.04989323081 | W7: 0.04909068285 | X7: 0.04890381095 | Y7: 0.04859816451 | Z7: 0.0482826829 | AA7: 0.04816391038 | AB7: 0.04774512847 | AC7: 0.04707783018 | AD7: 0.04653036222 | AE7: 0.04643652227 | AF7: 0.04659554214 | AG7: 0.04665031621 | AH7: 0.04664004178 | AI7: 0.04680218608 | AJ7: 0.04684276687 | AK7: 0.04672019836 | AL7: 0.04643116709 | AM7: 0.04585707756 | AN7: 0.04530242241 | AO7: 0.04501894498 | AP7: 0.04483579783 | AQ7: 0.04447352174 | AR7: =AR41 -> 0.04447352174 | AS7: 0.04447352174 | AT7: 0.04447352174 | AU7: 0.04447352174 | AV7: 0.04447352174 | AW7: 0.04447352174 | AX7: 0.04447352174 | AY7: 0.04447352174 | AZ7: 0.04447352174 | BA7: 0.04447352174
A8: 0 | C8: 1 | D8: 0.04719139356 | E8: =E42*(1-E$41-E$71)/SUM(E$42:E$70) -> 0.07312082837 | F8: =F42*(1-F$41-F$71)/SUM(F$42:F$70) -> 0.03998243364 | G8: 0.04596004223 | H8: 0.07100615493 | I8: 0.07062572738 | J8: 0.07614754822 | K8: 0.07784125943 | L8: 0.08401807157 | M8: 0.08241715074 | N8: 0.04439919409 | O8: 0.0478883664 | P8: 0.05321079945 | Q8: 0.05444954071 | R8: 0.0541613258 | S8: 0.05407033991 | T8: 0.05351948026 | U8: 0.0515010579 | V8: 0.05022491389 | W8: 0.04921142376 | X8: 0.04834518649 | Y8: 0.04818560293 | Z8: 0.04815265133 | AA8: 0.04778686828 | AB8: 0.04766758694 | AC8: 0.04724852073 | AD8: 0.04658362634 | AE8: 0.04602537079 | AF8: 0.04600566046 | AG8: 0.04625282942 | AH8: 0.04651622438 | AI8: 0.04622052471 | AJ8: 0.04635739368 | AK8: 0.04656414041 | AL8: 0.04650214357 | AM8: 0.04635169947 | AN8: 0.04588689573 | AO8: 0.04541471436 | AP8: 0.04518805872 | AQ8: 0.04468053869 | AR8: =AR42*(1-AR$41-AR$71)/SUM(AR$42:AR$70) -> 0.04436358797 | AS8: 0.04443001384 | AT8: 0.04445544964 | AU8: 0.04446552379 | AV8: 0.04447729802 | AW8: 0.04447985614 | AX8: 0.04446589253 | AY8: 0.04446036907 | AZ8: 0.04445685746 | BA8: 0.04445590017
A9: 0 | C9: 2 | D9: 0.04215704019 | E9: =E43*(1-E$41-E$71)/SUM(E$42:E$70) -> 0.04707052852 | F9: 0.07294466898 | G9: 0.03991844042 | H9: 0.0445165587 | I9: 0.06730727538 | J9: 0.06788949845 | K9: 0.06989463055 | L9: 0.07807775071 | M9: 0.08266754413 | N9: 0.08126028819 | O9: 0.04353520219 | P9: 0.04684228321 | Q9: 0.0520944486 | R9: 0.05327688907 | S9: 0.05305703172 | T9: 0.05332250099 | U9: 0.05272269227 | V9: 0.05073055523 | W9: 0.04953857429 | X9: 0.04846409381 | Y9: 0.0476351825 | Z9: 0.04774387182 | AA9: 0.04765817201 | AB9: 0.04729443021 | AC9: 0.04717178572 | AD9: 0.04675252505 | AE9: 0.04607805684 | AF9: 0.04559832386 | AG9: 0.04566728635 | AH9: 0.04611988012 | AI9: 0.04609782101 | AJ9: 0.04578126022 | AK9: 0.04608165428 | AL9: 0.04634681398 | AM9: 0.04642255448 | AN9: 0.04638183927 | AO9: 0.04600063642 | AP9: 0.0455853148 | AQ9: 0.04503157975 | AR9: 0.04457009319 | AS9: 0.04432018761 | AT9: 0.04441195942 | AU9: 0.04444745494 | AV9: 0.04446929939 | AW9: 0.04448363296 | AX9: 0.04447222584 | AY9: 0.04445274211 | AZ9: 0.04444370972 | BA9: 0.04443924249
